Workbook

Sheet LDC Info
AA3: Algoma Power Inc.
AA4: Atikokan Hydro Inc.
AA5: Attawapiskat Power Corporation
AA6: Bluewater Power Distribution Corp.
AA7: Brant County Power
AA8: Brantford Power Inc.
AA9: Burlington Hydro Inc.
AA10: Cambridge and North Dumfries Hydro
AA11: Canadian Niagara Power Inc. – Eastern Ontario Power/Fort Erie/Port Colborne
AA12: Centre Wellington Hydro Ltd.
AA13: Chapleau Public Utilities Corporation
D14: Utility Name | E14: Midland Power Utility Corporation | AA14: COLLUS Power Corp.
AA15: Cooperative Hydro Embrun Inc.
D16: Service Territory | E16: Town of Midland | AA16: E.L.K. Energy Inc.
AA17: Enersource Hydro Mississauga Inc.
D18: Assigned EB Number | E18: EB-2012-0147 | AA18: Entegrus Powerlines Inc.
AA19: ENWIN Utilities Ltd.
D20: Name of Contact and Title | E20: Christine Bell, CFO | AA20: Erie Thames Powerlines Corp.
AA21: Espanola Regional Hydro Distribution Corporation
D22: Phone Number | E22: 705-526-9362 ext 219 | AA22: Essex Powerlines Corporation
AA23: Festival Hydro Inc.
D24: Email Address | E24: cbell@midlandpuc.on.ca | AA24: Fort Albany Power Corporation
AA25: Fort Frances Power Corporation
D26: Bridge Year | E26: 2012 | AA26: Greater Sudbury Hydro Inc.
AA27: Grimsby Power Inc.
D28: Test Year | E28: 2013 | AA28: Guelph Hydro Electric Systems Inc.
AA29: Haldimand County Hydro Inc.
D30: Last Rebasing Year | E30: 2009 | AA30: Guelph Hydro Electric Systems Inc.
AA31: Halton Hills Hydro Inc.
B32: Notes | AA32: Hearst Power Distribution Co. Ltd.
AA33: Horizon Utilities Corporation
C34: Pale green cells represent input cells. | AA34: Hydro 2000 Inc.
AA35: Hydro Hawkesbury Inc.
C36: Pale blue cells represent drop-down lists. The applicant should select the appropriate item from the drop-down list. | AA36: Hydro One Brampton Networks Inc.
AA37: Hydro One Networks Inc.
C38: White cells contain fixed values, automatically generated values or formulae. | AA38: Hydro One Remote Communities Inc.
AA39: Hydro Ottawa Limited
AA40: Innisfil Hydro Dist. Systems Limited
AA41: Kashechewan Power Corporation
AA42: Kenora Hydro Electric Corporation Ltd.
AA43: Kingston Hydro Corporation
AA44: Kitchener-Wilmot Hydro Inc.
AA45: Lakefront Utilities Inc.
AA46: Lakeland Power Distribution Ltd.
AA47: London Hydro Inc.
AA48: Midland Power Utility Corporation
AA49: Milton Hydro Distribution Inc.
AA50: Newmarket – Tay Power Distribution Ltd.
AA51: Niagara Peninsula Energy Inc.
AA52: Niagara-on-the-Lake Hydro Inc.
AA53: Norfolk Power Distribution Ltd.
AA54: North Bay Hydro Distribution Limited
AA55: Northern Ontario Wires Inc.
AA56: Oakville Hydro Distribution Inc.
AA57: Orangeville Hydro Limited
AA58: Orillia Power Distribution Corp.
AA59: Oshawa PUC Networks Inc.
AA60: Ottawa River Power Corporation
AA61: Parry Sound Power Corporation
AA62: Peterborough Distribution Inc.
AA63: PowerStream Inc.
AA64: PUC Distribution Inc.
AA65: Renfrew Hydro Inc.
AA66: Rideau St. Lawrence Distribution Inc.
AA67: St. Thomas Energy Inc.
AA68: Sioux Lookout Hydro Inc.
AA69: Thunder Bay Hydro Electricity Distribution
AA70: Tillsonburg Hydro Inc.
AA71: Toronto Hydro-Electric System Limited
AA72: Veridian Connections Inc.
AA73: Wasaga Distribution Inc.
AA74: Waterloo North Hydro Inc.
AA75: Welland Hydro Electric System Corp.
AA76: Wellington North Power Inc.
AA77: West Coast Huron Energy Inc.
AA78: Westario Power Inc.
AA79: Whitby Hydro Electric Corporation
AA80: Woodstock Hydro Services Inc.

Sheet Index
A15: 1 | B15: LDC Information Sheet | E15: 19 | F15: Appendix 2-H OM&A Detailed Analysis
A16: 2 | B16: Index | E16: 20 | F16: Appendix 2-I OM&A Summary Analysis
A17: 3 | B17: Appendix 2-A Capital Projects | E17: 21 | F17: Appendix 2-J OM&A Cost Drivers
A18: 4 | B18: Appendix 2-B Fixed Asset Continuity | E18: 22 | F18: Appendix 2-K Employee Costs
A19: 5 | B19: Appendix 2-CA CGAAP Depreciation Expense 2011 | E19: 23 | F19: Appendix 2-L OM&A per Cust FTEE
A20: 6 | B20: Appendix 2-CB MIFRS Depreciation Expense 2011 | E20: 24 | F20: Appendix 2-M Regulatory Costs
A21: 7 | B21: Appendix 2-CC MIFRS Depreciation Expense 2012 | E21: 25 | F21: Appendix 2-N Corp Cost Allocation
A22: 8 | B22: Appendix 2-CD MIFRS Depreciation Expense 2013 | E22: 26 | F22: Appendix 2-OA Capital Structure and Cost of Capital
A23: 9 | B23: Appendix 2-CE CGAAP Depreciation Expense 2011 | E23: 27 | F23: Appendix 2-OB Debt Instruments
A24: 10 | B24: Appendix 2-CF CGAAP Depreciation Expense 2012 | E24: 28 | F24: Appendix 2-P Cost Allocation
A25: 11 | B25: Appendix 2-CG MIFRS Depreciation Expense 2012 | E25: 29 | F25: Appendix 2-Q Cost of Service Embedded Distributor
A26: 12 | B26: Appendix 2-CH MIFRS Depreciation Expense 2013 | E26: 30 | F26: Appendix 2-R Loss Factors
A27: 13 | B27: Appendix 2-CI Alternative Accounting Standards Depreciation Expense | E27: 31 | F27: Appendix 2-S Stranded Meters
A28: 14 | B28: Appendix 2-D Overhead | E28: 32 | F28: Appendix 2-T 1592 Tax Variance
A29: 15 | B29: Appendix 2-EA PP&E Deferral Account - 2012 IFRS Adopters | E29: 33 | F29: Appendix 2-U IFRS Transition Costs
A30: 16 | B30: Appendix 2-EB PP&E Deferral Account - 2013 IFRS Adopters | E30: 34 | F30: Appendix 2-V Rev Reconciliation
A31: 17 | B31: Appendix 2-F Other Operating Revenue | E31: 35 | F31: Appendix 2-W Bill Impacts
A32: 18 | B32: Appendix 2-G Detailed OM&A Expenses | E32: 36 | F32: Appendix 2-X CoS Flowchart

Sheet App.2-A_Capital Projects
G1: File Number: | H1: ='LDC Info'!$E$18 -> EB-2012-0147
G2: Exhibit: | H2: 2
G3: Tab: | H3: 3
G4: Schedule: | H4: 1
G5: Page: | H5: 4 & 5 of 7
G7: Date: | H7: 2012-08-31
A9: Appendix 2-A
A10: Capital Projects Table | D10: TABLE 2.3.1 (a)
A13: Projects | B13: =IF(ISBLANK('LDC Info'!E26), "Year 1", 'LDC Info'!E26-5) -> 2007 | C13: =IF(ISBLANK('LDC Info'!E26), "Year 2", 'LDC Info'!E26-4) -> 2008 | D13: =IF(ISBLANK('LDC Info'!E26), "Year 3", 'LDC Info'!E26-3) -> 2009 | E13: =IF(ISBLANK('LDC Info'!E26), "Year 4", 'LDC Info'!E26-2) -> 2010 | F13: =IF(ISBLANK('LDC Info'!E26), "Year 5", 'LDC Info'!E26-1) -> 2011 | G13: ='LDC Info'!E26 & " Bridge Year" -> 2012 Bridge Year | H13: ='LDC Info'!E28 & " Test Year" -> 2013 Test Year
A14: Reporting Basis | B14: CGAAP | C14: CGAAP | D14: CGAAP | E14: CGAAP | F14: CGAAP | G14: MIFRS | H14: MIFRS
A15: Substation Projects | G15: & CGAAP
A16: Scott/Brandon | B16: 743693.47 | C16: 1322652.44
A17: Project 1: Fourth St Substation | D17: 1072526.54 | E17: 179886.03
A18: Project 5: Montreal Substation | D18: 59179.33
A19: Project 6: Brandon St Substation | D19: -230007.16
A20: Project 2: Dorion St Substation | E20: 1178363.71
A21: Project 1: Montreal St Substation | G21: 512294
A22: Project 1: Queen St Substation | H22: 896700
A24: Sub-Total | B24: =SUM(B16:B23) -> 743693.47 | C24: 1322652.44 | D24: 901698.71 | E24: 1358249.74 | F24: 0 | G24: 512294 | H24: 896700
A25: Pole Line Projects
A26: Pole Line construction | B26: 235703.06 | C26: 404610.85
A27: Project 2: Yonge St Pole Line | D27: 246173.46
A28: Project 3: Sunnyside Pole Line | D28: 88237.21
A29: Project 4: Miscellaneous Pole Replacements | D29: 52075.93
A30: Project 4: Hugel Ave Pole Line | E30: 120002.65
A31: Project 7: Tornado Rebuild | E31: 127658.63
A32: Project 1: Gloucester Pole Line | F32: 56552.17
A33: Project 2: Bay St Pole Line | F33: 95558.59
A34: Project 3: Albert St Pole Line | F34: 65742.25
A35: Project 4: Pole Replacements Misc | F35: 70326.09
A36: Project 6: Tornado Rebuild | F36: 228214.55
A37: Project 2: William St. North Pole Line | G37: 125499.11
A38: Project 3: Pratt's Field Pole Line | G38: 71400
A39: Project 4: Selected Pole Replacements | G39: 84100
A40: Project 2: William St. South Pole Line | H40: 162900
A41: Project 3: Fourth St Pole Line | H41: 117600
A42: Project 4: Selected Pole Replacements | H42: 84100
A44: Sub-Total | B44: =SUM(B26:B43) -> 235703.06 | C44: 404610.85 | D44: 386486.6 | E44: 247661.28 | F44: 516393.65 | G44: 280999.11 | H44: 364600
A45: Transformers
A46: Pad Mount and Pole Top | B46: 48816.75 | C46: 106437.55 | E46: 54059.33 | G46: 87200 | H46: 87200
A47: Project 3: Bourgeois Lane Kiosk | E47: 79274.71
A49: Sub-Total | B49: =SUM(B45:B48) -> 48816.75 | C49: 106437.55 | D49: 0 | E49: 133334.04 | F49: 0 | G49: 87200 | H49: 87200
A50: Economic Evaluations - System Expansions
A51: =A50 -> Economic Evaluations - System Expansions | D51: 116132 | E51: 35272 | F51: -141484 | G51: 80459 | H51: 100000
A53: Sub-Total | B53: =SUM(B50:B52) -> 0 | C53: 0 | D53: 116132 | E53: 35272 | F53: -141484 | G53: 80459 | H53: 100000
A54: Vehicles
A55: Large and Small Trucks | B55: 151987.28 | C55: 43924.65
A56: Project 9: Truck Purchase | D56: 377619.86
A57: Project 9: Vehicles | G57: 536200
A59: Sub-Total | B59: =SUM(B55:B58) -> 151987.28 | C59: =SUM(C55:C55) -> 43924.65 | D59: =SUM(D55:D58) -> 377619.86 | E59: =SUM(E55:E58) -> 0 | F59: =SUM(F55:F58) -> 0 | G59: =SUM(G55:G58) -> 536200 | H59: =SUM(H55:H58) -> 0
A60: Software/Hardware
A61: CIS System | B61: 142023.95
A62: Project 5: Mapping & Asset Management | E62: 107668.46 | F62: 110198.46
A63: Project 8: Scada | H63: 132300
A64: Project 9: Harris CIS Upgrade | H64: 55000
A66: Sub-Total | B66: =SUM(B61:B65) -> 142023.95 | C66: 0 | D66: 0 | E66: 107668.46 | F66: 110198.46 | G66: 0 | H66: 187300
A67: Metering Infrastructure
A68: Project 7: Smart Meter Infrastructure Implementation | G68: 1291250.55
A70: Sub-Total | B70: =SUM(B68:B69) -> 0 | C70: 0 | D70: 0 | E70: 0 | F70: 0 | G70: 1291250.55 | H70: 0
A71: Miscellaneous | B71: 129612.35 | C71: 111957.46 | D71: 246809.23 | E71: 264601.13 | F71: 289747.258 | G71: 157000 | H71: 115100
A72: Total | B72: =SUMPRODUCT(--($A15:$A71="Sub-Total"), B$15:B$71)+B71 -> 1451836.86 | C72: 1989582.95 | D72: 2028746.4 | E72: 2146786.65 | F72: 774855.368 | G72: 2945402.66 | H72: 1750900
A75: Notes:
A77: 1 Please provide a breakdown of the major components of each capital project. Please ensure that all projects below the materiality threshold are included in the miscellaneous line. Add more projects as required.
A79: 2 Amounts should be reported on a MIFRS basis for the adoption year and any subsequent years, only.

Sheet App.2-B_Fixed Asset Continuity
M1: File Number: | N1: ='LDC Info'!$E$18 -> EB-2012-0147
M2: Exhibit: | N2: 2
M3: Tab: | N3: 2
M4: Schedule: | N4: 1
M5: Page: | N5: 7 - 13 of 13
M7: Date: | N7: 2012-08-31
A9: Appendix 2-B
A10: Fixed Asset Continuity Schedule
C12: Table 2.2.1 | F12: Year | G12: 2009
E14: Cost | K14: Accumulated Depreciation
A15: CCA Class | B15: OEB | C15: Description | D15: Depreciation Rate | E15: Opening Balance | F15: Additions | G15: Disposals | H15: Closing Balance | J15: Opening Balance | K15: Additions | L15: Disposals | M15: Closing Balance | N15: Net Book Value
A16: 12 | B16: 1611 | C16: Computer Software (Formally known as Account 1925) | H16: =E16+F16+G16 -> 0 | M16: =J16+K16+L16 -> 0 | N16: =H16+M16 -> 0
A17: CEC | B17: 1612 | C17: Land Rights (Formally known as Account 1906) | H17: =E17+F17+G17 -> 0 | M17: =J17+K17+L17 -> 0 | N17: =H17+M17 -> 0
A18: N/A | B18: 1805 | C18: Land | E18: 365297.97 | F18: 16439.7 | H18: =E18+F18+G18 -> 381737.67 | J18: 0 | K18: 0 | L18: 0 | M18: =J18+K18+L18 -> 0 | N18: =H18-M18 -> 381737.67
A19: 47 | B19: 1806 | C19: Land Rights | E19: 32555.43 | H19: =E19+F19+G19 -> 32555.43 | J19: 15060.22 | K19: 0 | L19: 0 | M19: =J19+K19+L19 -> 15060.22 | N19: =H19-M19 -> 17495.21
A20: 47 | B20: 1815 | C20: Transformer Station Equipment >50 kV | E20: 0 | H20: 0 | K20: 0 | L20: 0 | M20: 0 | N20: 0
A21: 47 | B21: 1820 | C21: Distribution Station Equipment <50 kV | E21: 2533665.87 | F21: 81349.08 | H21: 2615014.95 | J21: 931477.86 | K21: 84953.55 | L21: 0 | M21: 1016431.41 | N21: 1598583.54
A22: 47 | B22: 1825 | C22: Storage Battery Equipment | E22: 0 | H22: 0 | J22: 0 | K22: 0 | L22: 0 | M22: 0 | N22: 0
A23: 47 | B23: 1830 | C23: Poles, Towers & Fixtures | E23: 3605488.37 | F23: 433638.24 | H23: 4039126.61 | J23: 1899569.776 | K23: 117398.4921 | L23: 0 | M23: 2016968.269 | N23: 2022158.342
A24: 47 | B24: 1835 | C24: Overhead Conductors & Devices | E24: 1950198.69 | F24: -100490.97 | H24: 1849707.72 | J24: 935705.4036 | K24: 57823.1379 | L24: 0 | M24: 993528.5415 | N24: 856179.1785
A25: 47 | B25: 1840 | C25: Underground Conduit | E25: 0 | F25: 0 | H25: 0 | J25: 0 | K25: 0 | L25: 0 | M25: 0 | N25: 0
A26: 47 | B26: 1845 | C26: Underground Conductors & Devices | E26: 2757214.29 | F26: 302531.85 | H26: 3059746.14 | J26: 1815120.22 | K26: 110422.5 | L26: 0 | M26: 1925542.72 | N26: 1134203.42
A27: 47 | B27: 1850 | C27: Line Transformers | E27: 2915561.69 | F27: 205336.66 | H27: 3120898.35 | J27: 1641447.41 | K27: 103924.5 | L27: 0 | M27: 1745371.91 | N27: 1375526.44
A28: 47 | B28: 1855 | C28: Services (Overhead & Underground) | E28: 106379.31 | F28: 61583.16 | H28: 167962.47 | J28: 0 | K28: 5424.5 | L28: 0 | M28: 5424.5 | N28: 162537.97
A29: 47 | B29: 1860 | C29: Meters | E29: 1040199.78 | F29: 4092.08 | H29: 1044291.86 | J29: 593996.76 | K29: 35879 | L29: 0 | M29: 629875.76 | N29: 414416.1
A30: 47 | B30: 1860 | C30: Meters (Smart Meters) | E30: 0 | H30: 0 | K30: 0 | L30: 0 | M30: 0 | N30: 0
A31: N/A | B31: 1905 | C31: Land | H31: 0 | K31: 0 | L31: 0 | M31: 0 | N31: 0
A32: 1 | B32: 1908 | C32: Buildings & Fixtures | E32: 942340.58 | F32: 23865.33 | H32: 966205.91 | J32: 349199.14 | K32: 30849.5 | L32: 0 | M32: 380048.64 | N32: 586157.27
A33: 13 | B33: 1910 | C33: Leasehold Improvements | E33: 0 | F33: 0 | H33: 0 | J33: 0 | K33: 0 | L33: 0 | M33: 0 | N33: 0
A34: 8 | B34: 1915 | C34: Office Furniture & Equipment (10 years) | E34: 249143.76 | H34: 249143.76 | J34: 215419.82 | K34: 6816.5 | L34: 0 | M34: 222236.32 | N34: 26907.44
A35: 8 | B35: 1915 | C35: Office Furniture & Equipment (5 years) | E35: 0 | F35: 2086.71 | H35: 2086.71 | J35: 0 | K35: 0 | L35: 0 | M35: 0 | N35: 2086.71
A36: 50 | B36: 1920 | C36: Computer Equipment - Hardware | E36: 398812.42 | F36: 31528.94 | H36: 430341.36 | J36: 371608.43 | K36: 12968 | L36: 0 | M36: 384576.43 | N36: 45764.93
A37: 45 | B37: 1920 | C37: Computer Equip.-Hardware(Post Mar. 22/04) | E37: 0 | H37: 0 | J37: 0 | K37: 0 | L37: 0 | M37: 0 | N37: 0
A38: 50 | B38: 1920 | C38: Computer Equip.-Hardware(Post Mar. 19/07) | E38: 0 | H38: 0 | J38: 0 | K38: 0 | L38: 0 | M38: 0 | N38: 0
A39: 12 | B39: 1925 | C39: Software | E39: 282536.52 | F39: 23217.66 | H39: 305754.18 | J39: 150773.01 | K39: 46205 | L39: 0 | M39: 196978.01 | N39: 108776.17
A40: 10 | B40: 1930 | C40: Transportation Equipment | E40: 847466.35 | F40: 377619.86 | G40: -177812.28 | H40: =E40+F40+G40 -> 1047273.93 | J40: 509362.99 | K40: 87320.67 | L40: -177812.28 | M40: 418871.38 | N40: 628402.55
A41: 8 | B41: 1935 | C41: Stores Equipment | E41: 8609.78 | H41: 8609.78 | J41: 8486.77 | K41: 123 | L41: 0 | M41: 8609.77 | N41: 0.01
A42: 8 | B42: 1940 | C42: Tools, Shop & Garage Equipment | E42: 242711.87 | F42: 17152.7 | H42: 259864.57 | J42: 178701.94 | K42: 8747.5 | L42: 0 | M42: 187449.44 | N42: 72415.13
A43: 8 | B43: 1945 | C43: Measurement & Testing Equipment | E43: 2634.03 | F43: 0 | H43: 2634.03 | J43: 2634.03 | K43: 0 | L43: 0 | M43: 2634.03 | N43: 0
A44: 8 | B44: 1950 | C44: Power Operated Equipment | E44: 0 | H44: 0 | J44: 0 | K44: 0 | L44: 0 | M44: 0 | N44: 0
A45: 8 | B45: 1955 | C45: Communications Equipment | E45: 132252.74 | F45: 0 | H45: 132252.74 | J45: 128160.74 | K45: 2046 | L45: 0 | M45: 130206.74 | N45: 2046
A46: 8 | B46: 1955 | C46: Communication Equipment (Smart Meters) | E46: 0 | H46: 0 | J46: 0 | K46: 0 | L46: 0 | M46: 0 | N46: 0
A47: 8 | B47: 1960 | C47: Miscellaneous Equipment | E47: 19219.52 | F47: 0 | H47: 19219.52 | J47: 17485.82 | K47: 592 | L47: 0 | M47: 18077.82 | N47: 1141.7
A48: 47 | B48: 1975 | C48: Load Management Controls Utility Premises | E48: 0 | J48: 0 | K48: 0 | L48: 0 | M48: 0 | N48: 0
A49: 12 | B49: 1980 | C49: System Supervisor Equipment | E49: 357011.9 | F49: 0 | H49: =E49+F49+G49 -> 357011.9 | J49: 226695.27 | K49: 22104 | L49: 0 | M49: 248799.27 | N49: 108212.63
A50: 47 | B50: 1985 | C50: Miscellaneous Fixed Assets | E50: 0 | J50: 0 | K50: 0 | L50: 0 | M50: 0 | N50: 0
A51: 47 | B51: 1995 | C51: Contributions & Grants | E51: -784980.37 | F51: -523731.14 | G51: 48845.17 | H51: =E51+F51+G51 -> -1259866.34 | J51: 0 | K51: -48845.17 | L51: 48845.17 | M51: 0 | N51: -1259866.34
A52: WIP | C52: Work In Process | F52: 1072527 | H52: =E53+F52+G52 -> 1072527 | J52: 0 | L52: 0 | M52: 0 | N52: 1072527
N53: 0
C54: Total | E54: =SUM(E16:E51) -> 18004320.5 | F54: =SUM(F16:F52) -> 2028746.86 | G54: -128967.11 | H54: =SUM(H16:H53) -> 19904100.25 | J54: 9990905.61 | K54: 684752.68 | L54: -128967.11 | M54: 10546691.18 | N54: 9357409.07
J56: Less: Fully Allocated Depreciation
A57: 10 | C57: Transportation | J57: Transportation
A58: 8 | C58: Stores Equipment | J58: Stores Equipment
J59: Net Depreciation | L59: =K54-L57-L58 -> 684752.68
A61: Notes:
A63: 1 | B63: Tables in the format outlined above covering all fixed asset accounts should be submitted for the Test Year, Bridge Year and all relevant historical years. At a minimum , the applicant must provide data for the earlier of: 1) all historical years back to its last rebasing; or 2) at least three years of historical actuals, in addition to Bridge Year and Test Year forecasts.
A66: 2 | B66: The "CCA Class" for fixed assets should agree with the CCA Class used for tax purposes in Tax Returns. Fixed Assets sub-components may be used where the underlying asset components are classified under multiple CCA Classes for tax purposes. If an applicant uses any different classes from those shown in the table, an explanation should be provided. (also see note 3 below).
A69: 3 | B69: The table may need to be customized for a utility's asset categories or for any new asset accounts announced or authorized by the Board.
A71: 4 | B71: The depreciation column (D) is not required as the relevant information will be provided in the following 2-C series of appendices.
C74: Table 2.2.2 | F74: Year | G74: 2010
E76: Cost | K76: Accumulated Depreciation
A77: CCA Class | B77: OEB | C77: Description | D77: Depreciation Rate | E77: Opening Balance | F77: Additions | G77: Disposals | H77: Closing Balance | J77: Opening Balance | K77: Additions | L77: Disposals | M77: Closing Balance | N77: Net Book Value
A78: 12 | B78: 1611 | C78: Computer Software (Formally known as Account 1925) | E78: 0 | F78: 0 | G78: 0 | H78: =E78+F78+G78 -> 0 | J78: 0 | K78: 0 | L78: 0 | M78: =J78+K78+L78 -> 0 | N78: =H78+M78 -> 0
A79: CEC | B79: 1612 | C79: Land Rights (Formally known as Account 1906) | E79: 0 | F79: 0 | G79: 0 | H79: =E79+F79+G79 -> 0 | J79: 0 | K79: 0 | L79: 0 | M79: =J79+K79+L79 -> 0 | N79: =H79+M79 -> 0
A80: N/A | B80: 1805 | C80: Land | E80: 381737.67 | F80: 0 | G80: 0 | H80: =E80+F80+G80 -> 381737.67 | J80: 0 | K80: 0 | L80: 0 | M80: 0 | N80: =H80-M80 -> 381737.67
A81: 47 | B81: 1806 | C81: Land Rights | E81: 32555.43 | F81: 0 | G81: 0 | H81: =E81+F81+G81 -> 32555.43 | J81: 15060.22 | K81: 0 | L81: 0 | M81: 15060.22 | N81: =H81-M81 -> 17495.21
A82: 47 | B82: 1815 | C82: Transformer Station Equipment >50 kV | E82: 0 | F82: 0 | G82: 0 | H82: 0 | J82: 0 | K82: 0 | L82: 0 | M82: 0 | N82: 0
A83: 47 | B83: 1820 | C83: Distribution Station Equipment <50 kV | E83: 2615014.95 | F83: 2408290.81 | G83: 0 | H83: 5023305.76 | J83: 1016431.41 | K83: 134725.99 | L83: 0 | M83: 1151157.4 | N83: 3872148.36
A84: 47 | B84: 1825 | C84: Storage Battery Equipment | E84: 0 | F84: 0 | G84: 0 | H84: 0 | J84: 0 | K84: 0 | L84: 0 | M84: 0 | N84: 0
A85: 47 | B85: 1830 | C85: Poles, Towers & Fixtures | E85: 4039126.61 | F85: 175868.16 | G85: 0 | H85: 4214994.77 | J85: 2016968.269 | K85: 123015.0908 | L85: 0 | M85: 2139983.359 | N85: 2075011.411
A86: 47 | B86: 1835 | C86: Overhead Conductors & Devices | E86: 1849707.72 | F86: 199841.09 | G86: 0 | H86: 2049548.81 | J86: 993528.5415 | K86: 60597.6492 | L86: 0 | M86: 1054126.191 | N86: 995422.6193
A87: 47 | B87: 1840 | C87: Underground Conduit | E87: 0 | F87: 2091.64 | G87: 0 | H87: 2091.64 | J87: 0 | K87: 0 | L87: 0 | M87: 0 | N87: 2091.64
A88: 47 | B88: 1845 | C88: Underground Conductors & Devices | E88: 3059746.14 | F88: 202640.79 | G88: 0 | H88: 3262386.93 | J88: 1925542.72 | K88: 120567.5 | L88: 0 | M88: 2046110.22 | N88: 1216276.71
A89: 47 | B89: 1850 | C89: Line Transformers | E89: 3120898.35 | F89: 225108.66 | G89: 0 | H89: 3346007.01 | J89: 1745371.91 | K89: 111062 | L89: 0 | M89: 1856433.91 | N89: 1489573.1
A90: 47 | B90: 1855 | C90: Services (Overhead & Underground) | E90: 167962.47 | F90: 15005.3 | G90: 0 | H90: 182967.77 | J90: 5424.5 | K90: 6962 | L90: 0 | M90: 12386.5 | N90: 170581.27
A91: 47 | B91: 1860 | C91: Meters | E91: 1044291.86 | F91: 21353.71 | G91: 0 | H91: 1065645.57 | J91: 629875.76 | K91: 36388 | L91: 0 | M91: 666263.76 | N91: 399381.81
A92: 47 | B92: 1860 | C92: Meters (Smart Meters) | E92: 0 | F92: 0 | G92: 0 | H92: 0 | J92: 0 | K92: 0 | L92: 0 | M92: 0 | N92: 0
A93: N/A | B93: 1905 | C93: Land | E93: 0 | F93: 0 | G93: 0 | H93: 0 | J93: 0 | K93: 0 | L93: 0 | M93: 0 | N93: 0
A94: 1 | B94: 1908 | C94: Buildings & Fixtures | E94: 966205.91 | F94: 23597.51 | G94: -5442.11 | H94: 984361.31 | J94: 380048.64 | K94: 32036 | L94: -1058.43 | M94: 411026.21 | N94: 573335.1
A95: 13 | B95: 1910 | C95: Leasehold Improvements | E95: 0 | F95: 0 | G95: 0 | H95: 0 | J95: 0 | K95: 0 | L95: 0 | M95: 0 | N95: 0
A96: 8 | B96: 1915 | C96: Office Furniture & Equipment (10 years) | E96: 251230.47 | F96: 7798.63 | G96: 0 | H96: 259029.1 | J96: 222236.32 | K96: 6464 | L96: 0 | M96: 228700.32 | N96: 30328.78
A97: 8 | B97: 1915 | C97: Office Furniture & Equipment (5 years) | E97: 0 | F97: 0 | G97: 0 | H97: 0 | J97: 0 | K97: 0 | L97: 0 | M97: 0 | N97: 0
A98: 52 | B98: 1920 | C98: Computer Equipment - Hardware | E98: 430341.36 | F98: 28566.87 | G98: 0 | H98: 458908.23 | J98: 384576.43 | K98: 16279.54 | L98: 0 | M98: 400855.97 | N98: 58052.26
A99: 45 | B99: 1920 | C99: Computer Equip.-Hardware(Post Mar. 22/04) | E99: 0 | F99: 0 | G99: 0 | H99: 0 | J99: 0 | K99: 0 | L99: 0 | M99: 0 | N99: 0
A100: 52 | B100: 1920 | C100: Computer Equip.-Hardware(Post Mar. 19/07) | E100: 0 | F100: 0 | G100: 0 | H100: 0 | J100: 0 | K100: 0 | L100: 0 | M100: 0 | N100: 0
A101: 12 | B101: 1925 | C101: Software | E101: 305754.18 | F101: 39999.65 | G101: 0 | H101: 345753.83 | J101: 196978.01 | K101: 47139.57 | L101: 0 | M101: 244117.58 | N101: 101636.25
A102: 10 | B102: 1930 | C102: Transportation Equipment | E102: 1047273.93 | F102: 0 | G102: 0 | H102: =E102+F102+G102 -> 1047273.93 | J102: 418871.38 | K102: 108389.36 | L102: 0 | M102: 527260.74 | N102: 520013.19
A103: 8 | B103: 1935 | C103: Stores Equipment | E103: 8609.78 | F103: 0 | G103: 0 | H103: =E103+F103+G103 -> 8609.78 | J103: 8609.77 | K103: 0 | L103: 0 | M103: 8609.77 | N103: 0.01
A104: 8 | B104: 1940 | C104: Tools, Shop & Garage Equipment | E104: 259864.57 | F104: 6263.45 | G104: 0 | H104: 266128.02 | J104: 187449.44 | K104: 9918 | L104: 0 | M104: 197367.44 | N104: 68760.58
A105: 8 | B105: 1945 | C105: Measurement & Testing Equipment | E105: 2634.03 | F105: 0 | G105: 0 | H105: 2634.03 | J105: 2634.03 | K105: 0 | L105: 0 | M105: 2634.03 | N105: 0
A106: 8 | B106: 1950 | C106: Power Operated Equipment | E106: 0 | F106: 0 | G106: 0 | H106: 0 | J106: 0 | K106: 0 | L106: 0 | M106: 0 | N106: 0
A107: 8 | B107: 1955 | C107: Communications Equipment | E107: 132252.74 | F107: 1857 | G107: 0 | H107: 134109.74 | J107: 130206.74 | K107: 1524 | L107: 0 | M107: 131730.74 | N107: 2379
A108: 8 | B108: 1955 | C108: Communication Equipment (Smart Meters) | E108: 0 | F108: 0 | G108: 0 | H108: 0 | J108: 0 | K108: 0 | L108: 0 | M108: 0 | N108: 0
A109: 8 | B109: 1960 | C109: Miscellaneous Equipment | E109: 19219.52 | F109: 0 | G109: 0 | H109: 19219.52 | J109: 18077.82 | K109: 522.84 | L109: 0 | M109: 18600.66 | N109: 618.86
A110: 47 | B110: 1975 | C110: Load Management Controls Utility Premises | E110: 0 | F110: 0 | G110: 0 | J110: 0 | K110: 0 | L110: 0 | M110: 0 | N110: 0
A111: 12 | B111: 1980 | C111: System Supervisor Equipment | E111: 357011.9 | F111: 95117.2 | G111: 0 | H111: =E111+F111+G111 -> 452129.1 | J111: 248799.27 | K111: 21852.5 | L111: 0 | M111: 270651.77 | N111: 181477.33
A112: 47 | B112: 1985 | C112: Miscellaneous Fixed Assets | E112: 0 | F112: 0 | G112: 0 | J112: 0 | K112: 0 | L112: 0 | M112: 0 | N112: 0
A113: 47 | B113: 1995 | C113: Contributions & Grants | E113: -1259866.34 | F113: -234087.26 | G113: 64001.53 | H113: =E113+F113+G113 -> -1429952.07 | J113: 0 | K113: -64001.53 | L113: 64001.53 | M113: 0 | N113: -1429952.07
A114: WIP | C114: Work in Process | E114: 1072527 | F114: 0 | G114: -1072527 | H114: =E114+F114+G114 -> 0 | J114: 0 | K114: 0 | L114: 0 | M114: 0 | N114: =H114+M114 -> 0
C116: Total | E116: =SUM(E78:E114) -> 19904100.25 | F116: =SUM(F78:F114) -> 3219313.21 | G116: =SUM(G78:G114) -> -1013967.58 | H116: =SUM(H78:H114) -> 22109445.88 | J116: =SUM(J78:J114) -> 10546691.18 | K116: =SUM(K78:K114) -> 773442.51 | L116: =SUM(L78:L114) -> 62943.1 | M116: =SUM(M78:M114) -> 11383076.79 | N116: =SUM(N78:N114) -> 10726369.09
J118: Less: Fully Allocated Depreciation
A119: 10 | C119: Transportation | J119: Transportation
A120: 8 | C120: Stores Equipment | J120: Stores Equipment
J121: Net Depreciation | L121: =K116-L119-L120 -> 773442.51
C123: Table 2.2.3 | F123: Year | G123: 2011
E125: Cost | K125: Accumulated Depreciation
A126: CCA Class | B126: OEB | C126: Description | D126: Depreciation Rate | E126: Opening Balance | F126: Additions | G126: Disposals | H126: Closing Balance | J126: Opening Balance | K126: Additions | L126: Disposals | M126: Closing Balance | N126: Net Book Value
A127: 12 | B127: 1611 | C127: Computer Software (Formally known as Account 1925) | E127: 0 | F127: 0 | G127: 0 | H127: =E127+F127+G127 -> 0 | J127: 0 | K127: 0 | L127: 0 | M127: =J127+K127+L127 -> 0 | N127: =H127+M127 -> 0
A128: CEC | B128: 1612 | C128: Land Rights (Formally known as Account 1906) | E128: 0 | F128: 0 | G128: 0 | H128: =E128+F128+G128 -> 0 | J128: 0 | K128: 0 | L128: 0 | M128: =J128+K128+L128 -> 0 | N128: =H128+M128 -> 0
A129: N/A | B129: 1805 | C129: Land | E129: 381737.67 | F129: 0 | G129: 0 | H129: =E129+F129+G129 -> 381737.67 | J129: 0 | K129: 0 | L129: 0 | M129: =J129+K129+L129 -> 0 | N129: =H129-M129 -> 381737.67
A130: 47 | B130: 1806 | C130: Land Rights | E130: 32555.43 | F130: 0 | G130: 0 | H130: =E130+F130+G130 -> 32555.43 | J130: 15060.22 | K130: 0 | L130: 0 | M130: =J130+K130+L130 -> 15060.22 | N130: =H130-M130 -> 17495.21
A131: 47 | B131: 1815 | C131: Transformer Station Equipment >50 kV | E131: 0 | F131: 0 | G131: 0 | H131: 0 | J131: 0 | K131: 0 | L131: 0 | M131: 0 | N131: 0
A132: 47 | B132: 1820 | C132: Distribution Station Equipment <50 kV | E132: 5023305.76 | F132: 18426.91 | G132: 0 | H132: 5041732.67 | J132: 1151157.4 | K132: 183578.49 | L132: 0 | M132: 1334735.89 | N132: 3706996.78
A133: 47 | B133: 1825 | C133: Storage Battery Equipment | E133: 0 | F133: 0 | G133: 0 | H133: 0 | J133: 0 | K133: 0 | L133: 0 | M133: 0 | N133: 0
A134: 47 | B134: 1830 | C134: Poles, Towers & Fixtures | E134: 4214994.77 | F134: 368740.2 | G134: 0 | H134: 4583734.97 | J134: 2139983.359 | K134: 136175.0009 | L134: 0 | M134: 2276158.36 | N134: 2307576.61
A135: 47 | B135: 1835 | C135: Overhead Conductors & Devices | E135: 2049548.81 | F135: 148122.57 | G135: 0 | H135: 2197671.38 | J135: 1054126.191 | K135: 67071.2691 | L135: 0 | M135: 1121197.46 | N135: 1076473.92
A136: 47 | B136: 1840 | C136: Underground Conduit | E136: 2091.64 | F136: 1513.75 | G136: 0 | H136: 3605.39 | J136: 0 | K136: 0 | L136: 0 | M136: 0 | N136: 3605.39
A137: 47 | B137: 1845 | C137: Underground Conductors & Devices | E137: 3262386.93 | F137: 65680.07 | G137: -2407 | H137: 3325660 | J137: 2046110.22 | K137: 124523 | L137: -2407 | M137: 2168226.22 | N137: 1157433.78
A138: 47 | B138: 1850 | C138: Line Transformers | E138: 3346007.01 | F138: 77346.2 | G138: 0 | H138: 3423353.21 | J138: 1856433.91 | K138: 114494 | L138: 0 | M138: 1970927.91 | N138: 1452425.3
A139: 47 | B139: 1855 | C139: Services (Overhead & Underground) | E139: 182967.77 | F139: 121454.93 | G139: 0 | H139: 304422.7 | J139: 12386.5 | K139: 12642.28 | L139: 0 | M139: 25028.78 | N139: 279393.92
A140: 47 | B140: 1860 | C140: Meters | E140: 1065645.57 | F140: 38813.08 | G140: 0 | H140: 1104458.65 | J140: 666263.76 | K140: 36830.5 | L140: 0 | M140: 703094.26 | N140: 401364.39
A141: 47 | B141: 1860 | C141: Meters (Smart Meters) | E141: 0 | F141: 0 | G141: 0 | H141: 0 | J141: 0 | K141: 0 | L141: 0 | M141: 0 | N141: 0
A142: N/A | B142: 1905 | C142: Land | E142: 0 | F142: 0 | G142: 0 | H142: 0 | J142: 0 | K142: 0 | L142: 0 | M142: 0 | N142: 0
A143: 1 | B143: 1908 | C143: Buildings & Fixtures | E143: 984361.31 | F143: 41410.75 | G143: 0 | H143: 1025772.06 | J143: 411026.21 | K143: 33389 | L143: 0 | M143: 444415.21 | N143: 581356.85
A144: 13 | B144: 1910 | C144: Leasehold Improvements | E144: 0 | F144: 0 | G144: 0 | H144: 0 | J144: 0 | K144: 0 | L144: 0 | M144: 0 | N144: 0
A145: 8 | B145: 1915 | C145: Office Furniture & Equipment (10 years) | E145: 259029.1 | F145: 16518.99 | G145: -15523.92 | H145: 260024.17 | J145: 228700.32 | K145: 7419 | L145: -10090.55 | M145: 226028.77 | N145: 33995.4
A146: 8 | B146: 1915 | C146: Office Furniture & Equipment (5 years) | E146: 0 | F146: 0 | G146: 0 | H146: 0 | J146: 0 | K146: 0 | L146: 0 | M146: 0 | N146: 0
A147: 52 | B147: 1920 | C147: Computer Equipment - Hardware | E147: 458908.23 | F147: 6074.75 | G147: 0 | H147: 464982.98 | J147: 400855.97 | K147: 18419.39 | L147: 0 | M147: 419275.36 | N147: 45707.62
A148: 45 | B148: 1920 | C148: Computer Equip.-Hardware(Post Mar. 22/04) | E148: 0 | F148: 0 | G148: 0 | H148: 0 | J148: 0 | K148: 0 | L148: 0 | M148: 0 | N148: 0
A149: 52 | B149: 1920 | C149: Computer Equip.-Hardware(Post Mar. 19/07) | E149: 0 | F149: 0 | G149: 0 | H149: 0 | J149: 0 | K149: 0 | L149: 0 | M149: 0 | N149: 0
A150: 12 | B150: 1925 | C150: Software | E150: 345753.83 | F150: 17302.51 | G150: 0 | H150: 363056.34 | J150: 244117.58 | K150: 48328.96 | L150: 0 | M150: 292446.54 | N150: 70609.8
A151: 10 | B151: 1930 | C151: Transportation Equipment - Large Vehicles | E151: 858183.34 | F151: 0 | G151: 0 | H151: 858183.34 | J151: 392906.5513 | K151: 90055.7375 | L151: 0 | M151: 482962.2888 | N151: 375221.0513
A152: 10 | B152: 1930 | C152: Transportation Equipment - Small Vehicles | E152: 189090.59 | F152: 2425 | G152: -30492.15 | H152: 161023.44 | J152: 134354.4426 | K152: 18333.36537 | L152: -30492.15 | M152: =J152+K152+L152 -> 122195.658 | N152: =H152-M152 -> 38827.782
A153: 8 | B153: 1935 | C153: Stores Equipment | E153: 8609.78 | F153: 0 | G153: 0 | H153: 8609.78 | J153: 8609.77 | K153: 0 | L153: 0 | M153: 8609.77 | N153: 0.01
A154: 8 | B154: 1940 | C154: Tools, Shop & Garage Equipment | E154: 266128.02 | F154: 6696.6 | G154: 0 | H154: 272824.62 | J154: 197367.44 | K154: 10523 | L154: 0 | M154: 207890.44 | N154: 64934.18
A155: 8 | B155: 1945 | C155: Measurement & Testing Equipment | E155: 2634.03 | F155: 0 | G155: 0 | H155: 2634.03 | J155: 2634.03 | K155: 0 | L155: 0 | M155: 2634.03 | N155: 0
A156: 8 | B156: 1950 | C156: Power Operated Equipment | E156: 0 | F156: 0 | G156: 0 | H156: 0 | J156: 0 | K156: 0 | L156: 0 | M156: 0 | N156: 0
A157: 8 | B157: 1955 | C157: Communications Equipment | E157: 134109.74 | F157: 0 | G157: 0 | H157: 134109.74 | J157: 131730.74 | K157: 300 | L157: 0 | M157: 132030.74 | N157: 2079
A158: 8 | B158: 1955 | C158: Communication Equipment (Smart Meters) | E158: 0 | F158: 0 | G158: 0 | H158: 0 | J158: 0 | K158: 0 | L158: 0 | M158: 0 | N158: 0
A159: 8 | B159: 1960 | C159: Miscellaneous Equipment | E159: 19219.52 | F159: 0 | G159: 0 | H159: 19219.52 | J159: 18600.66 | K159: 177 | L159: 0 | M159: 18777.66 | N159: 441.86
A160: 47 | B160: 1975 | C160: Load Management Controls Utility Premises | E160: 0 | F160: 0 | G160: 0 | H160: 0 | J160: 0 | K160: 0 | L160: 0 | M160: 0 | N160: 0
A161: 12 | B161: 1980 | C161: System Supervisor Equipment | E161: 452129.1 | F161: 110198.46 | G161: 0 | H161: 562327.56 | J161: 270651.77 | K161: 27745 | L161: 0 | M161: 298396.77 | N161: 263930.79
A162: 47 | B162: 1985 | C162: Miscellaneous Fixed Assets | G162: 0 | H162: 0 | J162: 0 | K162: 0 | L162: 0 | M162: 0 | N162: 0 | O162: =10639787-N166 -> 0.3267500028
A163: 47 | B163: 1995 | C163: Contributions & Grants | E163: -1429952.07 | F163: -265869.23 | G163: 74000.66 | H163: -1621820.64 | J163: 0 | K163: -74000.66 | L163: 74000.66 | M163: 0 | N163: -1621820.64
B164: etc. | H164: =E165+F164+G164 -> 0 | M164: 0 | N164: =H164+M164 -> 0
C166: Total | E166: =SUM(E127:E163) -> 22109445.88 | F166: =SUM(F127:F164) -> 774855.54 | G166: =SUM(G127:G164) -> 25577.59 | H166: =SUM(H127:H164) -> 22909879.01 | J166: =SUM(J127:J164) -> 11383077.04 | K166: =SUM(K127:K164) -> 856004.3329 | L166: =SUM(L127:L164) -> 31010.96 | M166: =SUM(M127:M164) -> 12270092.34 | N166: =SUM(N127:N164) -> 10639786.67
J168: Less: Fully Allocated Depreciation
A169: 10 | C169: Transportation | J169: Transportation
A170: 8 | C170: Stores Equipment | J170: Stores Equipment
J171: Net Depreciation | L171: =K166-L169-L170 -> 856004.3329
C175: Table 2.2.4(a) | F175: Year | G175: 2012 | H175: CGAAP
E177: Cost | K177: Accumulated Depreciation
A178: CCA Class | B178: OEB | C178: Description | D178: Depreciation Rate | E178: Opening Balance | F178: Additions | G178: Disposals | H178: Closing Balance | J178: Opening Balance | K178: Additions | L178: Disposals | M178: Closing Balance | N178: Net Book Value
A179: 12 | B179: 1611 | C179: Computer Software (Formally known as Account 1925) | E179: 0 | F179: 0 | G179: 0 | H179: =E179+F179+G179 -> 0 | J179: 0 | K179: 0 | L179: 0 | M179: =J179+K179+L179 -> 0 | N179: =H179+M179 -> 0
A180: CEC | B180: 1612 | C180: Land Rights (Formally known as Account 1906) | E180: 32555.43 | F180: 0 | G180: 0 | H180: =E180+F180+G180 -> 32555.43 | J180: 15060.22 | K180: 0 | L180: 0 | M180: =J180+K180+L180 -> 15060.22 | N180: =H180+M180 -> 47615.65
A181: N/A | B181: 1805 | C181: Land | E181: 381737.67 | F181: 0 | G181: 0 | H181: 381737.67 | J181: 0 | K181: 0 | L181: 0 | M181: =J181+K181+L181 -> 0 | N181: =H181-M181 -> 381737.67
A182: 47 | B182: 1806 | C182: Land Rights | E182: 0 | F182: 0 | G182: 0 | H182: 0 | J182: 0 | K182: 0 | L182: 0 | M182: =J182+K182+L182 -> 0 | N182: =H182-M182 -> 0
A183: 47 | B183: 1815 | C183: Transformer Station Equipment >50 kV | E183: 0 | F183: 0 | G183: 0 | H183: 0 | J183: 0 | K183: 0 | L183: 0 | M183: 0 | N183: 0
A184: 47 | B184: 1820 | C184: Distribution Station Equipment <50 kV | E184: 5041732.67 | F184: 512294 | G184: 0 | H184: 5554026.67 | J184: 1334735.89 | K184: 193895.2484 | L184: 0 | M184: 1528631.138 | N184: 4025395.532
A185: 47 | B185: 1825 | C185: Storage Battery Equipment | E185: 0 | F185: 0 | G185: 0 | H185: 0 | J185: 0 | K185: 0 | L185: 0 | M185: 0 | N185: 0
A186: 47 | B186: 1830 | C186: Poles, Towers & Fixtures | E186: 4583734.97 | F186: 271798 | G186: 0 | H186: 4855532.97 | J186: 2276158.36 | K186: 136596.7761 | L186: 0 | M186: 2412755.136 | N186: 2442777.834
A187: 47 | B187: 1835 | C187: Overhead Conductors & Devices | E187: 2197671.38 | F187: 91160 | G187: 0 | H187: 2288831.38 | J187: 1121197.46 | K187: 67279.00912 | L187: 0 | M187: 1188476.469 | N187: 1100354.911
A188: 47 | B188: 1840 | C188: Underground Conduit | E188: 1948941 | F188: 0 | G188: 0 | H188: 1948941 | J188: 1330391.877 | K188: 72830.13926 | L188: 0 | M188: 1403222.016 | N188: 545718.9837
A189: 47 | B189: 1845 | C189: Underground Conductors & Devices | E189: 1380324.07 | F189: 392500 | G189: 0 | H189: 1772824.07 | J189: 837834.0229 | K189: 45865.86074 | L189: 0 | M189: 883699.8837 | N189: 889124.1863
A190: 47 | B190: 1850 | C190: Line Transformers | E190: 3423353.21 | F190: 303600 | G190: 0 | H190: 3726953.21 | J190: 1970927.91 | K190: 114630 | L190: 0 | M190: 2085557.91 | N190: 1641395.3
A191: 47 | B191: 1855 | C191: Services (Overhead & Underground) | E191: 304422.7 | F191: 30900 | G191: 0 | H191: 335322.7 | J191: 25028.78 | K191: 12737 | L191: 0 | M191: 37765.78 | N191: 297556.92
A192: 47 | B192: 1860 | C192: Meters | E192: 1104458.65 | F192: 11000 | G192: 0 | H192: 1115458.65 | J192: 703094.26 | K192: 35948 | L192: 0 | M192: 739042.26 | N192: 376416.39
A193: 47 | B193: 1860 | C193: Meters (Smart Meters) | E193: 0 | F193: 1204470.59 | G193: 0 | H193: 1204470.59 | J193: 172163.8233 | K193: 79696.98 | L193: 0 | M193: 251860.8033 | N193: 952609.7867
A194: N/A | B194: 1905 | C194: Land | E194: 0 | F194: 0 | G194: 0 | H194: 0 | J194: 0 | K194: 0 | L194: 0 | M194: 0 | N194: 0
A195: 1 | B195: 1908 | C195: Buildings & Fixtures | E195: 1025772.06 | F195: 42200 | G195: 0 | H195: 1067972.06 | J195: 444415.21 | K195: 35351 | L195: 0 | M195: 479766.21 | N195: 588205.85
A196: 13 | B196: 1910 | C196: Leasehold Improvements | E196: 0 | F196: 0 | G196: 0 | H196: 0 | J196: 0 | K196: 0 | L196: 0 | M196: 0 | N196: 0
A197: 8 | B197: 1915 | C197: Office Furniture & Equipment (10 years) | E197: 260024.17 | F197: 0 | G197: 0 | H197: 260024.17 | J197: 226028.77 | K197: 7499 | L197: 0 | M197: 233527.77 | N197: 26496.4
A198: 8 | B198: 1915 | C198: Office Furniture & Equipment (5 years) | E198: 0 | F198: 0 | G198: 0 | H198: 0 | J198: 0 | K198: 0 | L198: 0 | M198: 0 | N198: 0
A199: 52 | B199: 1920 | C199: Computer Equipment - Hardware | E199: 464982.98 | F199: 29500 | G199: 0 | H199: 494482.98 | J199: 419275.36 | K199: 19648.8 | L199: 0 | M199: 438924.16 | N199: 55558.82
A200: 50 | B200: 1920 | C200: Computer Equip.-Hardware(Smart Meters) | E200: 0 | F200: 18763.96 | G200: 0 | H200: 18763.96 | J200: 7379.196 | K200: 3752.792 | L200: 0 | M200: 11131.988 | N200: 7631.972
A201: 12 | B201: 1925 | C201: Software | E201: 363056.34 | F201: 10200 | G201: 0 | H201: 373256.34 | J201: 292446.54 | K201: 32288.58 | L201: 0 | M201: 324735.12 | N201: 48521.22
A202: 12 | B202: 1925 | C202: Software (Smart Meters) | E202: 0 | F202: 68016 | G202: 0 | H202: 68016 | J202: 21832 | K202: 13603.2 | L202: 0 | M202: 35435.2 | N202: 32580.8
A203: 10 | B203: 1930 | C203: Transportation Equipment - Large Vehicles | E203: 858183.34 | F203: 525400 | G203: -372388.12 | H203: 1011195.22 | J203: 482962.2888 | K203: 93561.9025 | L203: -297555.98 | M203: 278968.2113 | N203: 732227.0088
A204: 10 | B204: 1930 | C204: Transportation Equipment - Small Vehicles | E204: 161023.44 | F204: 10799.99 | G204: 0 | H204: 171823.43 | J204: 122195.658 | K204: 16179.932 | L204: 0 | M204: =J204+K204+L204 -> 138375.59 | N204: =H204-M204 -> 33447.84
A205: 8 | B205: 1935 | C205: Stores Equipment | E205: 8609.78 | F205: 0 | G205: 0 | H205: 8609.78 | J205: 8609.77 | K205: 0 | L205: 0 | M205: 8609.77 | N205: 0.01
A206: 8 | B206: 1940 | C206: Tools, Shop & Garage Equipment | E206: 272824.62 | F206: 16900 | G206: 0 | H206: 289724.62 | J206: 207890.44 | K206: 11616 | L206: 0 | M206: 219506.44 | N206: 70218.18
A207: 8 | B207: 1945 | C207: Measurement & Testing Equipment | E207: 2634.03 | F207: 0 | G207: 0 | H207: 2634.03 | J207: 2634.03 | K207: 0 | L207: 0 | M207: 2634.03 | N207: 0
A208: 8 | B208: 1950 | C208: Power Operated Equipment | E208: 0 | F208: 0 | G208: 0 | H208: 0 | J208: 0 | K208: 0 | L208: 0 | M208: 0 | N208: 0
A209: 8 | B209: 1955 | C209: Communications Equipment | E209: 134109.74 | F209: 0 | G209: 0 | H209: 134109.74 | J209: 132030.74 | K209: 300 | L209: 0 | M209: 132330.74 | N209: 1779
A210: 8 | B210: 1955 | C210: Communication Equipment (Smart Meters) | E210: 0 | F210: 0 | G210: 0 | H210: 0 | J210: 0 | K210: 0 | L210: 0 | M210: 0 | N210: 0
A211: 8 | B211: 1960 | C211: Miscellaneous Equipment | E211: 19219.52 | F211: 0 | G211: 0 | H211: 19219.52 | J211: 18777.66 | K211: 177 | L211: 0 | M211: 18954.66 | N211: 264.86
A212: 47 | B212: 1975 | C212: Load Management Controls Utility Premises | E212: 0 | F212: 0 | G212: 0 | H212: 0 | J212: 0 | K212: 0 | L212: 0 | M212: 0 | N212: 0
A213: 12 | B213: 1980 | C213: System Supervisor Equipment | E213: 562327.56 | F213: 0 | G213: 0 | H213: 562327.56 | J213: 298396.77 | K213: 26580 | L213: 0 | M213: 324976.77 | N213: 237350.79
A214: 47 | B214: 1985 | C214: Miscellaneous Fixed Assets | E214: 0 | F214: 0 | G214: 0 | H214: 0 | J214: 0 | K214: 0 | L214: 0 | M214: 0 | N214: 0
A215: 47 | B215: 1995 | C215: Contributions & Grants | E215: -1621820.64 | F215: -594100 | G215: 85200 | H215: -2130720.64 | J215: 0 | K215: -85200 | L215: 85200 | M215: =J215+K215+L215 -> 0 | N215: -2130720.64
B216: etc. | H216: =E217+F216+G216 -> 0 | M216: 0 | N216: 0
N217: 0
C218: Total | E218: =SUM(E179:E215) -> 22909878.69 | F218: =SUM(F179:F216) -> 2945402.54 | G218: =SUM(G179:G216) -> -287188.12 | H218: =SUM(H179:H216) -> 25568093.11 | J218: =SUM(J179:J216) -> 12471467.04 | K218: =SUM(K179:K216) -> 934837.2201 | L218: =SUM(L179:L216) -> -212355.98 | M218: =SUM(M179:M216) -> 13193948.28 | N218: 12374144.83
J220: Less: Fully Allocated Depreciation
A221: 10 | C221: Transportation | J221: Transportation
A222: 8 | C222: Stores Equipment | J222: Stores Equipment
J223: Net Depreciation | L223: =K218-L221-L222 -> 934837.2201
C227: Table 2.2.5(a) | F227: Year | G227: 2013 | H227: CGAAP
E229: Cost | K229: Accumulated Depreciation
A230: CCA Class | B230: OEB | C230: Description | D230: Depreciation Rate | E230: Opening Balance | F230: Additions | G230: Disposals | H230: Closing Balance | J230: Opening Balance | K230: Additions | L230: Disposals | M230: Closing Balance | N230: Net Book Value
... 186 more rows

Sheet App.2-CA_CGAAP_DepExp_2011 (hidden)
I1: File Number: | J1: ='LDC Info'!$E$18 -> EB-2012-0147
I2: Exhibit:
I3: Tab:
I4: Schedule:
I5: Page:
I7: Date:
C8: Midland PUC is adopting in 2013 - therefore no inputs on this schedule
A9: Appendix 2-CA
A10: Depreciation and Amortization Expense
A11: Assumes the applicant adopted IFRS for financial reporting purposes January 1, 2012
C12: Year | E12: CGAAP
A14: Account | B14: Description | C14: Opening NBV as at Jan 1, 2011 1 | D14: Additions | E14: Total for Depreciation | F14: Years | G14: Depreciation Rate | H14: Depreciation Expense | I14: 2011 Depreciation Expense per Appendix 2-B Fixed Assets, Columns K & L (l) | J14: Variance 3
C15: (a) | D15: (d) | E15: (e) = (a) + ½ x (d) 2 | F15: (f) | G15: (g) = 1 / (f) | H15: (h) = (e) / (f) | J15: (m) = (h) - (l)
A16: 1611 | B16: Computer Software (Formally known as Account 1925) | E16: =C16+0.5*D16 -> 0 | G16: =IF(F16=0,0,1/F16) -> 0 | H16: =IF(F16=0,0,E16/F16) -> 0 | J16: =IF(ISERROR(+H16-I16), 0, +H16-I16) -> 0
A17: 1612 | B17: Land Rights (Formally known as Account 1906) | E17: 0 | G17: 0 | H17: 0 | J17: 0
A18: 1805 | B18: Land | E18: 0 | G18: 0 | H18: 0 | J18: 0
A19: 1808 | B19: Buildings | E19: 0 | G19: 0 | H19: 0 | J19: 0
A20: 1810 | B20: Leasehold Improvements | E20: 0 | G20: 0 | H20: 0 | J20: 0
A21: 1815 | B21: Transformer Station Equipment >50 kV | E21: 0 | G21: 0 | H21: 0 | J21: 0
A22: 1820 | B22: Distribution Station Equipment <50 kV | E22: 0 | G22: 0 | H22: 0 | J22: 0
A23: 1825 | B23: Storage Battery Equipment | E23: 0 | G23: 0 | H23: 0 | J23: 0
A24: 1830 | B24: Poles, Towers & Fixtures | E24: 0 | G24: 0 | H24: 0 | J24: 0
A25: 1835 | B25: Overhead Conductors & Devices | E25: 0 | G25: 0 | H25: 0 | J25: 0
A26: 1840 | B26: Underground Conduit | E26: 0 | G26: 0 | H26: 0 | J26: 0
A27: 1845 | B27: Underground Conductors & Devices | E27: 0 | G27: 0 | H27: 0 | J27: 0
A28: 1850 | B28: Line Transformers | E28: 0 | G28: 0 | H28: 0 | J28: 0
A29: 1855 | B29: Services (Overhead & Underground) | E29: 0 | G29: 0 | H29: 0 | J29: 0
A30: 1860 | B30: Meters | E30: 0 | G30: 0 | H30: 0 | J30: 0
A31: 1860 | B31: Meters (Smart Meters) | E31: 0 | G31: 0 | H31: 0 | J31: 0
A32: 1905 | B32: Land | E32: 0 | G32: 0 | H32: 0 | J32: 0
A33: 1908 | B33: Buildings & Fixtures | E33: 0 | G33: 0 | H33: 0 | J33: 0
A34: 1910 | B34: Leasehold Improvements | E34: 0 | G34: 0 | H34: 0 | J34: 0
A35: 1915 | B35: Office Furniture & Equipment (10 years) | E35: 0 | G35: 0 | H35: 0 | J35: 0
A36: 1915 | B36: Office Furniture & Equipment (5 years) | E36: 0 | G36: 0 | H36: 0 | J36: 0
A37: 1920 | B37: Computer Equipment - Hardware | E37: 0 | G37: 0 | H37: 0 | J37: 0
A38: 1920 | B38: Computer Equip.-Hardware(Post Mar. 22/04) | E38: 0 | G38: 0 | H38: 0 | J38: 0
A39: 1920 | B39: Computer Equip.-Hardware(Post Mar. 19/07) | E39: 0 | G39: 0 | H39: 0 | J39: 0
A40: 1930 | B40: Transportation Equipment | E40: 0 | G40: 0 | H40: 0 | J40: 0
A41: 1935 | B41: Stores Equipment | E41: 0 | G41: 0 | H41: 0 | J41: 0
A42: 1940 | B42: Tools, Shop & Garage Equipment | E42: 0 | G42: 0 | H42: 0 | J42: 0
A43: 1945 | B43: Measurement & Testing Equipment | E43: 0 | G43: 0 | H43: 0 | J43: 0
A44: 1950 | B44: Power Operated Equipment | E44: 0 | G44: 0 | H44: 0 | J44: 0
A45: 1955 | B45: Communications Equipment | E45: 0 | G45: 0 | H45: 0 | J45: 0
A46: 1955 | B46: Communication Equipment (Smart Meters) | E46: 0 | G46: 0 | H46: 0 | J46: 0
A47: 1960 | B47: Miscellaneous Equipment | E47: 0 | G47: 0 | H47: 0 | J47: 0
A48: 1975 | B48: Load Management Controls Utility Premises | E48: 0 | G48: 0 | H48: 0 | J48: 0
A49: 1980 | B49: System Supervisor Equipment | E49: 0 | G49: 0 | H49: 0 | J49: 0
A50: 1985 | B50: Miscellaneous Fixed Assets | E50: 0 | G50: 0 | H50: 0 | J50: 0
A51: 1995 | B51: Contributions & Grants | E51: 0 | G51: 0 | H51: 0 | J51: 0
A52: etc. | E52: 0 | G52: 0 | H52: 0 | J52: 0
E53: 0 | G53: 0 | H53: 0 | J53: 0
B54: Total | C54: =SUM(C16:C53) -> 0 | D54: =SUM(D16:D53) -> 0 | E54: =SUM(E16:E53) -> 0 | H54: =SUM(H16:H53) -> 0 | I54: =SUM(I16:I53) -> 0 | J54: =SUM(J16:J53) -> 0
A56: Notes:
A58: 1 | B58: NBV must exclude assets still on the books but which have been fully amortized or depreciated.
A59: 2 | B59: Board policy of the "half-year" rule - the applicant must ensure that additions in the year attract a half-year depreciation expense in the first year. Deviations from this standard practice must be supported in the application.
A60: 3 | B60: The applicant must provide an explanation of material variances in evidence
A62: General | B62: Applicants must provide a breakdown of depreciation and amortization expense in the above format for all relevant accounts. Asset Retirement Obligations (AROs), depreciation and accretion expense should be disclosed separately consistent with the Notes of historical Audited Financial Statements.

Sheet App.2-CB_MIFRS_DepExp_2011 (hidden)
M1: File Number: | N1: ='LDC Info'!$E$18 -> EB-2012-0147
M2: Exhibit:
M3: Tab:
M4: Schedule:
M5: Page:
M7: Date:
E8: Midland PUC is adopting in 2013 - therefore no inputs on this schedule
A9: Appendix 2-CB
A10: Depreciation and Amortization Expense
A11: Assumes the applicant adopted IFRS for financial reporting purposes January 1, 2012
C12: Year | E12: MIFRS
A14: Account | B14: Description | C14: Opening NBV as at Jan 1, 2011 5 | D14: Additions | E14: Average Remaining Life of Opening NBV 4 | F14: Years (new additions only) 3 | G14: Depreciation Rate on New Additions | H14: Depreciation Expense on Opening NBV | I14: Depreciation Expense on Additions 1 | J14: 2011 Depreciation Expense | K14: 2011 Depreciation Expense per Appendix 2-B Fixed Assets, Columns K & L (l) | L14: Variance 2 | M14: Depreciation Expense on 2011 Full Year Additions | N14: 2011 Full Year Depreciation
C15: (a) | D15: (d) | E15: (i) | F15: (f) | G15: (g) = 1 / (f) | H15: (j) = (a) / (i) | I15: (h)=((d)*0.5)/(f) | J15: (k) = (j) + (h) | L15: (m) = (k) - (l) | M15: (n) = (d)/(f) | N15: (o) = (j) + (n)
A16: 1611 | B16: Computer Software (Formally known as Account 1925) | G16: =IF(F16=0,0,1/F16) -> 0 | H16: =IF(E16=0,0,+C16/E16) -> 0 | I16: =IF(F16=0,0,+(D16*0.5)/F16) -> 0 | J16: =IF(ISERROR(+H16+I16), 0, +H16+I16) -> 0 | L16: =IF(ISERROR(+J16-K16), 0, +J16-K16) -> 0 | M16: =IF(F16=0,0,+(D16)/F16) -> 0 | N16: =IF(ISERROR(+M16+H16), 0, +M16+H16) -> 0
A17: 1612 | B17: Land Rights (Formally known as Account 1906) | G17: 0 | H17: 0 | I17: 0 | J17: 0 | L17: 0 | M17: 0 | N17: 0
A18: 1805 | B18: Land | G18: 0 | H18: 0 | I18: 0 | J18: 0 | L18: 0 | M18: 0 | N18: 0
A19: 1808 | B19: Buildings | G19: 0 | H19: 0 | I19: 0 | J19: 0 | L19: 0 | M19: 0 | N19: 0
A20: 1810 | B20: Leasehold Improvements | G20: 0 | H20: 0 | I20: 0 | J20: 0 | L20: 0 | M20: 0 | N20: 0
A21: 1815 | B21: Transformer Station Equipment >50 kV | G21: 0 | H21: 0 | I21: 0 | J21: 0 | L21: 0 | M21: 0 | N21: 0
A22: 1820 | B22: Distribution Station Equipment <50 kV | G22: 0 | H22: 0 | I22: 0 | J22: 0 | L22: 0 | M22: 0 | N22: 0
A23: 1825 | B23: Storage Battery Equipment | G23: 0 | H23: 0 | I23: 0 | J23: 0 | L23: 0 | M23: 0 | N23: 0
A24: 1830 | B24: Poles, Towers & Fixtures | G24: 0 | H24: 0 | I24: 0 | J24: 0 | L24: 0 | M24: 0 | N24: 0
A25: 1835 | B25: Overhead Conductors & Devices | G25: 0 | H25: 0 | I25: 0 | J25: 0 | L25: 0 | M25: 0 | N25: 0
A26: 1840 | B26: Underground Conduit | G26: 0 | H26: 0 | I26: 0 | J26: 0 | L26: 0 | M26: 0 | N26: 0
A27: 1845 | B27: Underground Conductors & Devices | G27: 0 | H27: 0 | I27: 0 | J27: 0 | L27: 0 | M27: 0 | N27: 0
A28: 1850 | B28: Line Transformers | G28: 0 | H28: 0 | I28: 0 | J28: 0 | L28: 0 | M28: 0 | N28: 0
A29: 1855 | B29: Services (Overhead & Underground) | G29: 0 | H29: 0 | I29: 0 | J29: 0 | L29: 0 | M29: 0 | N29: 0
A30: 1860 | B30: Meters | G30: 0 | H30: 0 | I30: 0 | J30: 0 | L30: 0 | M30: 0 | N30: 0
A31: 1860 | B31: Meters (Smart Meters) | G31: 0 | H31: 0 | I31: 0 | J31: 0 | L31: 0 | M31: 0 | N31: 0
A32: 1905 | B32: Land | G32: 0 | H32: 0 | I32: 0 | J32: 0 | L32: 0 | M32: 0 | N32: 0
A33: 1908 | B33: Buildings & Fixtures | G33: 0 | H33: 0 | I33: 0 | J33: 0 | L33: 0 | M33: 0 | N33: 0
A34: 1910 | B34: Leasehold Improvements | G34: 0 | H34: 0 | I34: 0 | J34: 0 | L34: 0 | M34: 0 | N34: 0
A35: 1915 | B35: Office Furniture & Equipment (10 years) | G35: 0 | H35: 0 | I35: 0 | J35: 0 | L35: 0 | M35: 0 | N35: 0
A36: 1915 | B36: Office Furniture & Equipment (5 years) | G36: 0 | H36: 0 | I36: 0 | J36: 0 | L36: 0 | M36: 0 | N36: 0
A37: 1920 | B37: Computer Equipment - Hardware | G37: 0 | H37: 0 | I37: 0 | J37: 0 | L37: 0 | M37: 0 | N37: 0
A38: 1920 | B38: Computer Equip.-Hardware(Post Mar. 22/04) | G38: 0 | H38: 0 | I38: 0 | J38: 0 | L38: 0 | M38: 0 | N38: 0
A39: 1920 | B39: Computer Equip.-Hardware(Post Mar. 19/07) | G39: 0 | H39: 0 | I39: 0 | J39: 0 | L39: 0 | M39: 0 | N39: 0
A40: 1930 | B40: Transportation Equipment | G40: 0 | H40: 0 | I40: 0 | J40: 0 | L40: 0 | M40: 0 | N40: 0
A41: 1935 | B41: Stores Equipment | G41: 0 | H41: 0 | I41: 0 | J41: 0 | L41: 0 | M41: 0 | N41: 0
A42: 1940 | B42: Tools, Shop & Garage Equipment | G42: 0 | H42: 0 | I42: 0 | J42: 0 | L42: 0 | M42: 0 | N42: 0
A43: 1945 | B43: Measurement & Testing Equipment | G43: 0 | H43: 0 | I43: 0 | J43: 0 | L43: 0 | M43: 0 | N43: 0
A44: 1950 | B44: Power Operated Equipment | G44: 0 | H44: 0 | I44: 0 | J44: 0 | L44: 0 | M44: 0 | N44: 0
A45: 1955 | B45: Communications Equipment | G45: 0 | H45: 0 | I45: 0 | J45: 0 | L45: 0 | M45: 0 | N45: 0
A46: 1955 | B46: Communication Equipment (Smart Meters) | G46: 0 | H46: 0 | I46: 0 | J46: 0 | L46: 0 | M46: 0 | N46: 0
A47: 1960 | B47: Miscellaneous Equipment | G47: 0 | H47: 0 | I47: 0 | J47: 0 | L47: 0 | M47: 0 | N47: 0
A48: 1975 | B48: Load Management Controls Utility Premises | G48: 0 | H48: 0 | I48: 0 | J48: 0 | L48: 0 | M48: 0 | N48: 0
A49: 1980 | B49: System Supervisor Equipment | G49: 0 | H49: 0 | I49: 0 | J49: 0 | L49: 0 | M49: 0 | N49: 0
A50: 1985 | B50: Miscellaneous Fixed Assets | G50: 0 | H50: 0 | I50: 0 | J50: 0 | L50: 0 | M50: 0 | N50: 0
A51: 1995 | B51: Contributions & Grants | G51: 0 | H51: 0 | I51: 0 | J51: 0 | L51: 0 | M51: 0 | N51: 0
A52: etc. | G52: 0 | H52: 0 | I52: 0 | J52: 0 | L52: 0 | M52: 0 | N52: 0
G53: 0 | H53: 0 | I53: 0 | J53: 0 | L53: 0 | M53: 0 | N53: 0
B54: Total | C54: =SUM(C16:C53) -> 0 | D54: =SUM(D16:D53) -> 0 | H54: =SUM(H16:H53) -> 0 | I54: 0 | J54: 0 | K54: 0 | L54: 0 | M54: 0 | N54: 0
A56: Notes:
A58: 1 | B58: Board policy of the "half-year" rule - the applicant must ensure that additions in the year attract a half-year depreciation expense in the first year. Deviations from this standard practice must be supported in the application.
A59: 2 | B59: The applicant must provide an explanation of material variances in evidence
A60: 3 | B60: The applicant should ensure that the years for new additions of assets are the asset useful lives determined by management in accordance with IFRS.
A61: 4 | B61: A recalculation should be performed to determine the average remaining life of opening balance of assets (i.e. excluding 2011 additions) under IFRS. For example, Asset A had a useful life of 20 years under CGAAP. On January 1, 2011, the date of transition, Asset A was 3 years depreciated. As a result, Asset A would have a remaining service life of 17 years (20 years less 3 years) under CGAAP as of January 1, 2011. Due to the transition to IFRS, management re-assessed the asset useful lives under IFRS principles and concluded that the revised useful life of Asset A is now 30 years. Therefore, the average remaining useful life of opening balance of Asset A is determined to be 27 years (30 years less 3 years) under IFRS as of January 1, 2011.
A62: 5 | B62: NBV must exclude assets still on the books but which have been fully amortized or depreciated.
A64: General: | B64: Applicants must provide a breakdown of depreciation and amortization expense in the above format for all relevant accounts. Asset Retirement Obligations (AROs), depreciation and accretion expense should be disclosed separately consistent with the Notes of historical Audited Financial Statements.

Sheet App.2-CC_MIFRS_DepExp_2012 (hidden)
I1: File Number: | J1: ='LDC Info'!$E$18 -> EB-2012-0147
I2: Exhibit:
I3: Tab:
I4: Schedule:
I5: Page:
I7: Date:
C8: Midland PUC is adopting in 2013 - therefore no inputs on this schedule
A9: Appendix 2-CC
A10: Depreciation and Amortization Expense
A11: Assumes the applicant adopted IFRS for financial reporting purposes January 1, 2012
D12: MIFRS
A14: Account | B14: Description | C14: Additions | D14: Years (new additions only) | E14: Depreciation Rate on New Additions | F14: 2012 Depreciation Expense 1 | G14: 2012 Depreciation Expense per Apppendix 2-B Fixed Assets, Columns K & L (l) | H14: Variance 2 | I14: Depreciation Expense on 2012 Full Year Additions | J14: 2012 Full Year Depreciation
C15: (d) | D15: (f) | E15: (g) = 1 / (f) | F15: (h)=2011 Full Year Deprecation 3 + ((d)*0.5)/(f) | H15: (m) = (h) - (l) | I15: (n)=((d))/(f) | J15: (o) = 2011 Full Year Depreciation 3 + (n)
A16: 1611 | B16: Computer Software (Formally known as Account 1925) | E16: =IF(D16=0,0,1/D16) -> 0 | F16: =IF(D16=0,+'App.2-CB_MIFRS_DepExp_2011'!N16,+'App.2-CB_MIFRS_DepExp_2011'!N16+((C16*0.5)/D16)) -> 0 | H16: =IF(ISERROR(+F16-G16), 0, +F16-G16) -> 0 | I16: =IF(D16=0,0,+(C16)/D16) -> 0 | J16: =IF(ISERROR(+I16+'App.2-CB_MIFRS_DepExp_2011'!N16), 0, +I16+'App.2-CB_MIFRS_DepExp_2011'!N16) -> 0
A17: 1612 | B17: Land Rights (Formally known as Account 1906) | E17: 0 | F17: =IF(D17=0,+'App.2-CB_MIFRS_DepExp_2011'!N17,+'App.2-CB_MIFRS_DepExp_2011'!N17+((C17*0.5)/D17)) -> 0 | H17: 0 | I17: 0 | J17: =IF(ISERROR(+I17+'App.2-CB_MIFRS_DepExp_2011'!N17), 0, +I17+'App.2-CB_MIFRS_DepExp_2011'!N17) -> 0
A18: 1805 | B18: Land | E18: 0 | F18: =IF(D18=0,+'App.2-CB_MIFRS_DepExp_2011'!N18,+'App.2-CB_MIFRS_DepExp_2011'!N18+((C18*0.5)/D18)) -> 0 | H18: 0 | I18: 0 | J18: =IF(ISERROR(+I18+'App.2-CB_MIFRS_DepExp_2011'!N18), 0, +I18+'App.2-CB_MIFRS_DepExp_2011'!N18) -> 0
A19: 1808 | B19: Buildings | E19: 0 | F19: =IF(D19=0,+'App.2-CB_MIFRS_DepExp_2011'!N19,+'App.2-CB_MIFRS_DepExp_2011'!N19+((C19*0.5)/D19)) -> 0 | H19: 0 | I19: 0 | J19: =IF(ISERROR(+I19+'App.2-CB_MIFRS_DepExp_2011'!N19), 0, +I19+'App.2-CB_MIFRS_DepExp_2011'!N19) -> 0
A20: 1810 | B20: Leasehold Improvements | E20: 0 | F20: =IF(D20=0,+'App.2-CB_MIFRS_DepExp_2011'!N20,+'App.2-CB_MIFRS_DepExp_2011'!N20+((C20*0.5)/D20)) -> 0 | H20: 0 | I20: 0 | J20: =IF(ISERROR(+I20+'App.2-CB_MIFRS_DepExp_2011'!N20), 0, +I20+'App.2-CB_MIFRS_DepExp_2011'!N20) -> 0
A21: 1815 | B21: Transformer Station Equipment >50 kV | E21: 0 | F21: =IF(D21=0,+'App.2-CB_MIFRS_DepExp_2011'!N21,+'App.2-CB_MIFRS_DepExp_2011'!N21+((C21*0.5)/D21)) -> 0 | H21: 0 | I21: 0 | J21: =IF(ISERROR(+I21+'App.2-CB_MIFRS_DepExp_2011'!N21), 0, +I21+'App.2-CB_MIFRS_DepExp_2011'!N21) -> 0
A22: 1820 | B22: Distribution Station Equipment <50 kV | E22: 0 | F22: =IF(D22=0,+'App.2-CB_MIFRS_DepExp_2011'!N22,+'App.2-CB_MIFRS_DepExp_2011'!N22+((C22*0.5)/D22)) -> 0 | H22: 0 | I22: 0 | J22: =IF(ISERROR(+I22+'App.2-CB_MIFRS_DepExp_2011'!N22), 0, +I22+'App.2-CB_MIFRS_DepExp_2011'!N22) -> 0
A23: 1825 | B23: Storage Battery Equipment | E23: 0 | F23: =IF(D23=0,+'App.2-CB_MIFRS_DepExp_2011'!N23,+'App.2-CB_MIFRS_DepExp_2011'!N23+((C23*0.5)/D23)) -> 0 | H23: 0 | I23: 0 | J23: =IF(ISERROR(+I23+'App.2-CB_MIFRS_DepExp_2011'!N23), 0, +I23+'App.2-CB_MIFRS_DepExp_2011'!N23) -> 0
A24: 1830 | B24: Poles, Towers & Fixtures | E24: 0 | F24: =IF(D24=0,+'App.2-CB_MIFRS_DepExp_2011'!N24,+'App.2-CB_MIFRS_DepExp_2011'!N24+((C24*0.5)/D24)) -> 0 | H24: 0 | I24: 0 | J24: =IF(ISERROR(+I24+'App.2-CB_MIFRS_DepExp_2011'!N24), 0, +I24+'App.2-CB_MIFRS_DepExp_2011'!N24) -> 0
A25: 1835 | B25: Overhead Conductors & Devices | E25: 0 | F25: =IF(D25=0,+'App.2-CB_MIFRS_DepExp_2011'!N25,+'App.2-CB_MIFRS_DepExp_2011'!N25+((C25*0.5)/D25)) -> 0 | H25: 0 | I25: 0 | J25: =IF(ISERROR(+I25+'App.2-CB_MIFRS_DepExp_2011'!N25), 0, +I25+'App.2-CB_MIFRS_DepExp_2011'!N25) -> 0
A26: 1840 | B26: Underground Conduit | E26: 0 | F26: =IF(D26=0,+'App.2-CB_MIFRS_DepExp_2011'!N26,+'App.2-CB_MIFRS_DepExp_2011'!N26+((C26*0.5)/D26)) -> 0 | H26: 0 | I26: 0 | J26: =IF(ISERROR(+I26+'App.2-CB_MIFRS_DepExp_2011'!N26), 0, +I26+'App.2-CB_MIFRS_DepExp_2011'!N26) -> 0
A27: 1845 | B27: Underground Conductors & Devices | E27: 0 | F27: =IF(D27=0,+'App.2-CB_MIFRS_DepExp_2011'!N27,+'App.2-CB_MIFRS_DepExp_2011'!N27+((C27*0.5)/D27)) -> 0 | H27: 0 | I27: 0 | J27: =IF(ISERROR(+I27+'App.2-CB_MIFRS_DepExp_2011'!N27), 0, +I27+'App.2-CB_MIFRS_DepExp_2011'!N27) -> 0
A28: 1850 | B28: Line Transformers | E28: 0 | F28: =IF(D28=0,+'App.2-CB_MIFRS_DepExp_2011'!N28,+'App.2-CB_MIFRS_DepExp_2011'!N28+((C28*0.5)/D28)) -> 0 | H28: 0 | I28: 0 | J28: =IF(ISERROR(+I28+'App.2-CB_MIFRS_DepExp_2011'!N28), 0, +I28+'App.2-CB_MIFRS_DepExp_2011'!N28) -> 0
A29: 1855 | B29: Services (Overhead & Underground) | E29: 0 | F29: =IF(D29=0,+'App.2-CB_MIFRS_DepExp_2011'!N29,+'App.2-CB_MIFRS_DepExp_2011'!N29+((C29*0.5)/D29)) -> 0 | H29: 0 | I29: 0 | J29: =IF(ISERROR(+I29+'App.2-CB_MIFRS_DepExp_2011'!N29), 0, +I29+'App.2-CB_MIFRS_DepExp_2011'!N29) -> 0
A30: 1860 | B30: Meters | E30: 0 | F30: =IF(D30=0,+'App.2-CB_MIFRS_DepExp_2011'!N30,+'App.2-CB_MIFRS_DepExp_2011'!N30+((C30*0.5)/D30)) -> 0 | H30: 0 | I30: 0 | J30: =IF(ISERROR(+I30+'App.2-CB_MIFRS_DepExp_2011'!N30), 0, +I30+'App.2-CB_MIFRS_DepExp_2011'!N30) -> 0
A31: 1860 | B31: Meters (Smart Meters) | E31: 0 | F31: =IF(D31=0,+'App.2-CB_MIFRS_DepExp_2011'!N31,+'App.2-CB_MIFRS_DepExp_2011'!N31+((C31*0.5)/D31)) -> 0 | H31: 0 | I31: 0 | J31: =IF(ISERROR(+I31+'App.2-CB_MIFRS_DepExp_2011'!N31), 0, +I31+'App.2-CB_MIFRS_DepExp_2011'!N31) -> 0
A32: 1905 | B32: Land | E32: 0 | F32: =IF(D32=0,+'App.2-CB_MIFRS_DepExp_2011'!N32,+'App.2-CB_MIFRS_DepExp_2011'!N32+((C32*0.5)/D32)) -> 0 | H32: 0 | I32: 0 | J32: =IF(ISERROR(+I32+'App.2-CB_MIFRS_DepExp_2011'!N32), 0, +I32+'App.2-CB_MIFRS_DepExp_2011'!N32) -> 0
A33: 1908 | B33: Buildings & Fixtures | E33: 0 | F33: =IF(D33=0,+'App.2-CB_MIFRS_DepExp_2011'!N33,+'App.2-CB_MIFRS_DepExp_2011'!N33+((C33*0.5)/D33)) -> 0 | H33: 0 | I33: 0 | J33: =IF(ISERROR(+I33+'App.2-CB_MIFRS_DepExp_2011'!N33), 0, +I33+'App.2-CB_MIFRS_DepExp_2011'!N33) -> 0
A34: 1910 | B34: Leasehold Improvements | E34: 0 | F34: =IF(D34=0,+'App.2-CB_MIFRS_DepExp_2011'!N34,+'App.2-CB_MIFRS_DepExp_2011'!N34+((C34*0.5)/D34)) -> 0 | H34: 0 | I34: 0 | J34: =IF(ISERROR(+I34+'App.2-CB_MIFRS_DepExp_2011'!N34), 0, +I34+'App.2-CB_MIFRS_DepExp_2011'!N34) -> 0
A35: 1915 | B35: Office Furniture & Equipment (10 years) | E35: 0 | F35: =IF(D35=0,+'App.2-CB_MIFRS_DepExp_2011'!N35,+'App.2-CB_MIFRS_DepExp_2011'!N35+((C35*0.5)/D35)) -> 0 | H35: 0 | I35: 0 | J35: =IF(ISERROR(+I35+'App.2-CB_MIFRS_DepExp_2011'!N35), 0, +I35+'App.2-CB_MIFRS_DepExp_2011'!N35) -> 0
A36: 1915 | B36: Office Furniture & Equipment (5 years) | E36: 0 | F36: =IF(D36=0,+'App.2-CB_MIFRS_DepExp_2011'!N36,+'App.2-CB_MIFRS_DepExp_2011'!N36+((C36*0.5)/D36)) -> 0 | H36: 0 | I36: 0 | J36: =IF(ISERROR(+I36+'App.2-CB_MIFRS_DepExp_2011'!N36), 0, +I36+'App.2-CB_MIFRS_DepExp_2011'!N36) -> 0
A37: 1920 | B37: Computer Equipment - Hardware | E37: 0 | F37: =IF(D37=0,+'App.2-CB_MIFRS_DepExp_2011'!N37,+'App.2-CB_MIFRS_DepExp_2011'!N37+((C37*0.5)/D37)) -> 0 | H37: 0 | I37: 0 | J37: =IF(ISERROR(+I37+'App.2-CB_MIFRS_DepExp_2011'!N37), 0, +I37+'App.2-CB_MIFRS_DepExp_2011'!N37) -> 0
A38: 1920 | B38: Computer Equip.-Hardware(Post Mar. 22/04) | E38: 0 | F38: =IF(D38=0,+'App.2-CB_MIFRS_DepExp_2011'!N38,+'App.2-CB_MIFRS_DepExp_2011'!N38+((C38*0.5)/D38)) -> 0 | H38: 0 | I38: 0 | J38: =IF(ISERROR(+I38+'App.2-CB_MIFRS_DepExp_2011'!N38), 0, +I38+'App.2-CB_MIFRS_DepExp_2011'!N38) -> 0
A39: 1920 | B39: Computer Equip.-Hardware(Post Mar. 19/07) | E39: 0 | F39: =IF(D39=0,+'App.2-CB_MIFRS_DepExp_2011'!N39,+'App.2-CB_MIFRS_DepExp_2011'!N39+((C39*0.5)/D39)) -> 0 | H39: 0 | I39: 0 | J39: =IF(ISERROR(+I39+'App.2-CB_MIFRS_DepExp_2011'!N39), 0, +I39+'App.2-CB_MIFRS_DepExp_2011'!N39) -> 0
A40: 1930 | B40: Transportation Equipment | E40: 0 | F40: =IF(D40=0,+'App.2-CB_MIFRS_DepExp_2011'!N40,+'App.2-CB_MIFRS_DepExp_2011'!N40+((C40*0.5)/D40)) -> 0 | H40: 0 | I40: 0 | J40: =IF(ISERROR(+I40+'App.2-CB_MIFRS_DepExp_2011'!N40), 0, +I40+'App.2-CB_MIFRS_DepExp_2011'!N40) -> 0
A41: 1935 | B41: Stores Equipment | E41: 0 | F41: =IF(D41=0,+'App.2-CB_MIFRS_DepExp_2011'!N41,+'App.2-CB_MIFRS_DepExp_2011'!N41+((C41*0.5)/D41)) -> 0 | H41: 0 | I41: 0 | J41: =IF(ISERROR(+I41+'App.2-CB_MIFRS_DepExp_2011'!N41), 0, +I41+'App.2-CB_MIFRS_DepExp_2011'!N41) -> 0
A42: 1940 | B42: Tools, Shop & Garage Equipment | E42: 0 | F42: =IF(D42=0,+'App.2-CB_MIFRS_DepExp_2011'!N42,+'App.2-CB_MIFRS_DepExp_2011'!N42+((C42*0.5)/D42)) -> 0 | H42: 0 | I42: 0 | J42: =IF(ISERROR(+I42+'App.2-CB_MIFRS_DepExp_2011'!N42), 0, +I42+'App.2-CB_MIFRS_DepExp_2011'!N42) -> 0
A43: 1945 | B43: Measurement & Testing Equipment | E43: 0 | F43: =IF(D43=0,+'App.2-CB_MIFRS_DepExp_2011'!N43,+'App.2-CB_MIFRS_DepExp_2011'!N43+((C43*0.5)/D43)) -> 0 | H43: 0 | I43: 0 | J43: =IF(ISERROR(+I43+'App.2-CB_MIFRS_DepExp_2011'!N43), 0, +I43+'App.2-CB_MIFRS_DepExp_2011'!N43) -> 0
A44: 1950 | B44: Power Operated Equipment | E44: 0 | F44: =IF(D44=0,+'App.2-CB_MIFRS_DepExp_2011'!N44,+'App.2-CB_MIFRS_DepExp_2011'!N44+((C44*0.5)/D44)) -> 0 | H44: 0 | I44: 0 | J44: =IF(ISERROR(+I44+'App.2-CB_MIFRS_DepExp_2011'!N44), 0, +I44+'App.2-CB_MIFRS_DepExp_2011'!N44) -> 0
A45: 1955 | B45: Communications Equipment | E45: 0 | F45: =IF(D45=0,+'App.2-CB_MIFRS_DepExp_2011'!N45,+'App.2-CB_MIFRS_DepExp_2011'!N45+((C45*0.5)/D45)) -> 0 | H45: 0 | I45: 0 | J45: =IF(ISERROR(+I45+'App.2-CB_MIFRS_DepExp_2011'!N45), 0, +I45+'App.2-CB_MIFRS_DepExp_2011'!N45) -> 0
A46: 1955 | B46: Communication Equipment (Smart Meters) | E46: 0 | F46: =IF(D46=0,+'App.2-CB_MIFRS_DepExp_2011'!N46,+'App.2-CB_MIFRS_DepExp_2011'!N46+((C46*0.5)/D46)) -> 0 | H46: 0 | I46: 0 | J46: =IF(ISERROR(+I46+'App.2-CB_MIFRS_DepExp_2011'!N46), 0, +I46+'App.2-CB_MIFRS_DepExp_2011'!N46) -> 0
A47: 1960 | B47: Miscellaneous Equipment | E47: 0 | F47: =IF(D47=0,+'App.2-CB_MIFRS_DepExp_2011'!N47,+'App.2-CB_MIFRS_DepExp_2011'!N47+((C47*0.5)/D47)) -> 0 | H47: 0 | I47: 0 | J47: =IF(ISERROR(+I47+'App.2-CB_MIFRS_DepExp_2011'!N47), 0, +I47+'App.2-CB_MIFRS_DepExp_2011'!N47) -> 0
A48: 1975 | B48: Load Management Controls Utility Premises | E48: 0 | F48: =IF(D48=0,+'App.2-CB_MIFRS_DepExp_2011'!N48,+'App.2-CB_MIFRS_DepExp_2011'!N48+((C48*0.5)/D48)) -> 0 | H48: 0 | I48: 0 | J48: =IF(ISERROR(+I48+'App.2-CB_MIFRS_DepExp_2011'!N48), 0, +I48+'App.2-CB_MIFRS_DepExp_2011'!N48) -> 0
A49: 1980 | B49: System Supervisor Equipment | E49: 0 | F49: =IF(D49=0,+'App.2-CB_MIFRS_DepExp_2011'!N49,+'App.2-CB_MIFRS_DepExp_2011'!N49+((C49*0.5)/D49)) -> 0 | H49: 0 | I49: 0 | J49: =IF(ISERROR(+I49+'App.2-CB_MIFRS_DepExp_2011'!N49), 0, +I49+'App.2-CB_MIFRS_DepExp_2011'!N49) -> 0
A50: 1985 | B50: Miscellaneous Fixed Assets | E50: 0 | F50: =IF(D50=0,+'App.2-CB_MIFRS_DepExp_2011'!N50,+'App.2-CB_MIFRS_DepExp_2011'!N50+((C50*0.5)/D50)) -> 0 | H50: 0 | I50: 0 | J50: =IF(ISERROR(+I50+'App.2-CB_MIFRS_DepExp_2011'!N50), 0, +I50+'App.2-CB_MIFRS_DepExp_2011'!N50) -> 0
A51: 1995 | B51: Contributions & Grants | E51: 0 | F51: =IF(D51=0,+'App.2-CB_MIFRS_DepExp_2011'!N51,+'App.2-CB_MIFRS_DepExp_2011'!N51+((C51*0.5)/D51)) -> 0 | H51: 0 | I51: 0 | J51: =IF(ISERROR(+I51+'App.2-CB_MIFRS_DepExp_2011'!N51), 0, +I51+'App.2-CB_MIFRS_DepExp_2011'!N51) -> 0
A52: etc. | E52: 0 | F52: =IF(D52=0,+'App.2-CB_MIFRS_DepExp_2011'!N52,+'App.2-CB_MIFRS_DepExp_2011'!N52+((C52*0.5)/D52)) -> 0 | H52: 0 | I52: 0 | J52: =IF(ISERROR(+I52+'App.2-CB_MIFRS_DepExp_2011'!N52), 0, +I52+'App.2-CB_MIFRS_DepExp_2011'!N52) -> 0
E53: 0 | F53: =IF(D53=0,+'App.2-CB_MIFRS_DepExp_2011'!N53,+'App.2-CB_MIFRS_DepExp_2011'!N53+((C53*0.5)/D53)) -> 0 | H53: 0 | I53: 0 | J53: =IF(ISERROR(+I53+'App.2-CB_MIFRS_DepExp_2011'!N53), 0, +I53+'App.2-CB_MIFRS_DepExp_2011'!N53) -> 0
B54: Total | C54: =SUM(C16:C53) -> 0 | E54: 0 | F54: =SUM(F16:F53) -> 0 | G54: =SUM(G16:G53) -> 0 | H54: =SUM(H16:H53) -> 0 | I54: =SUM(I16:I53) -> 0 | J54: =SUM(J16:J53) -> 0
A56: Notes:
A57: 1 | B57: Board policy of the "half-year" rule - the applicant must ensure that additions in the year attract a half-year depreciation expense in the first year. Deviations from this standard practice must be supported in the application.
A58: 2 | B58: The applicant must provide an explanation of material variances in evidence
A59: 3 | B59: If the assets are fully depreciated as of the end of 2011, the applicant must exclude the depreciation expense of these assets in the calculation of the 2012 depreciation expense.
A61: General: | B61: Applicants must provide a breakdown of depreciation and amortization expense in the above format for all relevant accounts. Asset Retirement Obligations (AROs), depreciation and accretion expense should be disclosed separately consistent with the Notes of historical Audited Financial Statements.

Sheet App.2-CD_MIFRS_DepExp_2013 (hidden)
I1: File Number: | J1: ='LDC Info'!$E$18 -> EB-2012-0147
I2: Exhibit:
I3: Tab:
I4: Schedule:
I5: Page:
I7: Date:
C8: Midland PUC is adopting in 2013 - therefore no inputs on this schedule
A9: Appendix 2-CD
A10: Depreciation and Amortization Expense
A11: Assumes the applicant adopted IFRS for financial reporting purposes January 1, 2012
D12: MIFRS
A14: Account | B14: Description | C14: Additions | D14: Years (new additions only) | E14: Depreciation Rate on New Additions | F14: 2013 Depreciation Expense 1 | G14: 2013 Depreciation Expense per Appendix 2-B Fixed Assets, Columns K & L (l) | H14: Variance 2 | I14: Depreciation Expense on 2013 Full Year Additions | J14: 2013 Full Year Depreciation
C15: (d) | D15: (f) | E15: (g) = 1 / (f) | F15: (h)=2012 Full Year Depreciation 3 + ((d)*0.5)/(f) | H15: (m) = (h) - (l) | I15: (n)=((d))/(f) | J15: (o) = 2012 Full Year Depreciation 3 + (n)
A16: 1611 | B16: Computer Software (Formally known as Account 1925) | E16: =IF(D16=0,0,1/D16) -> 0 | F16: =IF(D16=0,'App.2-CC_MIFRS_DepExp_2012'!J16,+'App.2-CC_MIFRS_DepExp_2012'!J16+((C16*0.5)/D16)) -> 0 | H16: =IF(ISERROR(+F16-G16), 0, +F16-G16) -> 0 | I16: =IF(D16=0,0,+(C16)/D16) -> 0 | J16: =IF(ISERROR(+I16+'App.2-CC_MIFRS_DepExp_2012'!J16), 0, +I16+'App.2-CC_MIFRS_DepExp_2012'!J16) -> 0
A17: 1612 | B17: Land Rights (Formally known as Account 1906) | E17: 0 | F17: =IF(D17=0,'App.2-CC_MIFRS_DepExp_2012'!J17,+'App.2-CC_MIFRS_DepExp_2012'!J17+((C17*0.5)/D17)) -> 0 | H17: 0 | I17: 0 | J17: =IF(ISERROR(+I17+'App.2-CC_MIFRS_DepExp_2012'!J17), 0, +I17+'App.2-CC_MIFRS_DepExp_2012'!J17) -> 0
A18: 1805 | B18: Land | E18: 0 | F18: =IF(D18=0,'App.2-CC_MIFRS_DepExp_2012'!J18,+'App.2-CC_MIFRS_DepExp_2012'!J18+((C18*0.5)/D18)) -> 0 | H18: 0 | I18: 0 | J18: =IF(ISERROR(+I18+'App.2-CC_MIFRS_DepExp_2012'!J18), 0, +I18+'App.2-CC_MIFRS_DepExp_2012'!J18) -> 0
A19: 1808 | B19: Buildings | E19: 0 | F19: =IF(D19=0,'App.2-CC_MIFRS_DepExp_2012'!J19,+'App.2-CC_MIFRS_DepExp_2012'!J19+((C19*0.5)/D19)) -> 0 | H19: 0 | I19: 0 | J19: =IF(ISERROR(+I19+'App.2-CC_MIFRS_DepExp_2012'!J19), 0, +I19+'App.2-CC_MIFRS_DepExp_2012'!J19) -> 0
A20: 1810 | B20: Leasehold Improvements | E20: 0 | F20: =IF(D20=0,'App.2-CC_MIFRS_DepExp_2012'!J20,+'App.2-CC_MIFRS_DepExp_2012'!J20+((C20*0.5)/D20)) -> 0 | H20: 0 | I20: 0 | J20: =IF(ISERROR(+I20+'App.2-CC_MIFRS_DepExp_2012'!J20), 0, +I20+'App.2-CC_MIFRS_DepExp_2012'!J20) -> 0
A21: 1815 | B21: Transformer Station Equipment >50 kV | E21: 0 | F21: =IF(D21=0,'App.2-CC_MIFRS_DepExp_2012'!J21,+'App.2-CC_MIFRS_DepExp_2012'!J21+((C21*0.5)/D21)) -> 0 | H21: 0 | I21: 0 | J21: =IF(ISERROR(+I21+'App.2-CC_MIFRS_DepExp_2012'!J21), 0, +I21+'App.2-CC_MIFRS_DepExp_2012'!J21) -> 0
A22: 1820 | B22: Distribution Station Equipment <50 kV | E22: 0 | F22: =IF(D22=0,'App.2-CC_MIFRS_DepExp_2012'!J22,+'App.2-CC_MIFRS_DepExp_2012'!J22+((C22*0.5)/D22)) -> 0 | H22: 0 | I22: 0 | J22: =IF(ISERROR(+I22+'App.2-CC_MIFRS_DepExp_2012'!J22), 0, +I22+'App.2-CC_MIFRS_DepExp_2012'!J22) -> 0
A23: 1825 | B23: Storage Battery Equipment | E23: 0 | F23: =IF(D23=0,'App.2-CC_MIFRS_DepExp_2012'!J23,+'App.2-CC_MIFRS_DepExp_2012'!J23+((C23*0.5)/D23)) -> 0 | H23: 0 | I23: 0 | J23: =IF(ISERROR(+I23+'App.2-CC_MIFRS_DepExp_2012'!J23), 0, +I23+'App.2-CC_MIFRS_DepExp_2012'!J23) -> 0
A24: 1830 | B24: Poles, Towers & Fixtures | E24: 0 | F24: =IF(D24=0,'App.2-CC_MIFRS_DepExp_2012'!J24,+'App.2-CC_MIFRS_DepExp_2012'!J24+((C24*0.5)/D24)) -> 0 | H24: 0 | I24: 0 | J24: =IF(ISERROR(+I24+'App.2-CC_MIFRS_DepExp_2012'!J24), 0, +I24+'App.2-CC_MIFRS_DepExp_2012'!J24) -> 0
A25: 1835 | B25: Overhead Conductors & Devices | E25: 0 | F25: =IF(D25=0,'App.2-CC_MIFRS_DepExp_2012'!J25,+'App.2-CC_MIFRS_DepExp_2012'!J25+((C25*0.5)/D25)) -> 0 | H25: 0 | I25: 0 | J25: =IF(ISERROR(+I25+'App.2-CC_MIFRS_DepExp_2012'!J25), 0, +I25+'App.2-CC_MIFRS_DepExp_2012'!J25) -> 0
A26: 1840 | B26: Underground Conduit | E26: 0 | F26: =IF(D26=0,'App.2-CC_MIFRS_DepExp_2012'!J26,+'App.2-CC_MIFRS_DepExp_2012'!J26+((C26*0.5)/D26)) -> 0 | H26: 0 | I26: 0 | J26: =IF(ISERROR(+I26+'App.2-CC_MIFRS_DepExp_2012'!J26), 0, +I26+'App.2-CC_MIFRS_DepExp_2012'!J26) -> 0
A27: 1845 | B27: Underground Conductors & Devices | E27: 0 | F27: =IF(D27=0,'App.2-CC_MIFRS_DepExp_2012'!J27,+'App.2-CC_MIFRS_DepExp_2012'!J27+((C27*0.5)/D27)) -> 0 | H27: 0 | I27: 0 | J27: =IF(ISERROR(+I27+'App.2-CC_MIFRS_DepExp_2012'!J27), 0, +I27+'App.2-CC_MIFRS_DepExp_2012'!J27) -> 0
A28: 1850 | B28: Line Transformers | E28: 0 | F28: =IF(D28=0,'App.2-CC_MIFRS_DepExp_2012'!J28,+'App.2-CC_MIFRS_DepExp_2012'!J28+((C28*0.5)/D28)) -> 0 | H28: 0 | I28: 0 | J28: =IF(ISERROR(+I28+'App.2-CC_MIFRS_DepExp_2012'!J28), 0, +I28+'App.2-CC_MIFRS_DepExp_2012'!J28) -> 0
A29: 1855 | B29: Services (Overhead & Underground) | E29: 0 | F29: =IF(D29=0,'App.2-CC_MIFRS_DepExp_2012'!J29,+'App.2-CC_MIFRS_DepExp_2012'!J29+((C29*0.5)/D29)) -> 0 | H29: 0 | I29: 0 | J29: =IF(ISERROR(+I29+'App.2-CC_MIFRS_DepExp_2012'!J29), 0, +I29+'App.2-CC_MIFRS_DepExp_2012'!J29) -> 0
A30: 1860 | B30: Meters | E30: 0 | F30: =IF(D30=0,'App.2-CC_MIFRS_DepExp_2012'!J30,+'App.2-CC_MIFRS_DepExp_2012'!J30+((C30*0.5)/D30)) -> 0 | H30: 0 | I30: 0 | J30: =IF(ISERROR(+I30+'App.2-CC_MIFRS_DepExp_2012'!J30), 0, +I30+'App.2-CC_MIFRS_DepExp_2012'!J30) -> 0
A31: 1860 | B31: Meters (Smart Meters) | E31: 0 | F31: =IF(D31=0,'App.2-CC_MIFRS_DepExp_2012'!J31,+'App.2-CC_MIFRS_DepExp_2012'!J31+((C31*0.5)/D31)) -> 0 | H31: 0 | I31: 0 | J31: =IF(ISERROR(+I31+'App.2-CC_MIFRS_DepExp_2012'!J31), 0, +I31+'App.2-CC_MIFRS_DepExp_2012'!J31) -> 0
A32: 1905 | B32: Land | E32: 0 | F32: =IF(D32=0,'App.2-CC_MIFRS_DepExp_2012'!J32,+'App.2-CC_MIFRS_DepExp_2012'!J32+((C32*0.5)/D32)) -> 0 | H32: 0 | I32: 0 | J32: =IF(ISERROR(+I32+'App.2-CC_MIFRS_DepExp_2012'!J32), 0, +I32+'App.2-CC_MIFRS_DepExp_2012'!J32) -> 0
A33: 1908 | B33: Buildings & Fixtures | E33: 0 | F33: =IF(D33=0,'App.2-CC_MIFRS_DepExp_2012'!J33,+'App.2-CC_MIFRS_DepExp_2012'!J33+((C33*0.5)/D33)) -> 0 | H33: 0 | I33: 0 | J33: =IF(ISERROR(+I33+'App.2-CC_MIFRS_DepExp_2012'!J33), 0, +I33+'App.2-CC_MIFRS_DepExp_2012'!J33) -> 0
A34: 1910 | B34: Leasehold Improvements | E34: 0 | F34: =IF(D34=0,'App.2-CC_MIFRS_DepExp_2012'!J34,+'App.2-CC_MIFRS_DepExp_2012'!J34+((C34*0.5)/D34)) -> 0 | H34: 0 | I34: 0 | J34: =IF(ISERROR(+I34+'App.2-CC_MIFRS_DepExp_2012'!J34), 0, +I34+'App.2-CC_MIFRS_DepExp_2012'!J34) -> 0
A35: 1915 | B35: Office Furniture & Equipment (10 years) | E35: 0 | F35: =IF(D35=0,'App.2-CC_MIFRS_DepExp_2012'!J35,+'App.2-CC_MIFRS_DepExp_2012'!J35+((C35*0.5)/D35)) -> 0 | H35: 0 | I35: 0 | J35: =IF(ISERROR(+I35+'App.2-CC_MIFRS_DepExp_2012'!J35), 0, +I35+'App.2-CC_MIFRS_DepExp_2012'!J35) -> 0
A36: 1915 | B36: Office Furniture & Equipment (5 years) | E36: 0 | F36: =IF(D36=0,'App.2-CC_MIFRS_DepExp_2012'!J36,+'App.2-CC_MIFRS_DepExp_2012'!J36+((C36*0.5)/D36)) -> 0 | H36: 0 | I36: 0 | J36: =IF(ISERROR(+I36+'App.2-CC_MIFRS_DepExp_2012'!J36), 0, +I36+'App.2-CC_MIFRS_DepExp_2012'!J36) -> 0
A37: 1920 | B37: Computer Equipment - Hardware | E37: 0 | F37: =IF(D37=0,'App.2-CC_MIFRS_DepExp_2012'!J37,+'App.2-CC_MIFRS_DepExp_2012'!J37+((C37*0.5)/D37)) -> 0 | H37: 0 | I37: 0 | J37: =IF(ISERROR(+I37+'App.2-CC_MIFRS_DepExp_2012'!J37), 0, +I37+'App.2-CC_MIFRS_DepExp_2012'!J37) -> 0
A38: 1920 | B38: Computer Equip.-Hardware(Post Mar. 22/04) | E38: 0 | F38: =IF(D38=0,'App.2-CC_MIFRS_DepExp_2012'!J38,+'App.2-CC_MIFRS_DepExp_2012'!J38+((C38*0.5)/D38)) -> 0 | H38: 0 | I38: 0 | J38: =IF(ISERROR(+I38+'App.2-CC_MIFRS_DepExp_2012'!J38), 0, +I38+'App.2-CC_MIFRS_DepExp_2012'!J38) -> 0
A39: 1920 | B39: Computer Equip.-Hardware(Post Mar. 19/07) | E39: 0 | F39: =IF(D39=0,'App.2-CC_MIFRS_DepExp_2012'!J39,+'App.2-CC_MIFRS_DepExp_2012'!J39+((C39*0.5)/D39)) -> 0 | H39: 0 | I39: 0 | J39: =IF(ISERROR(+I39+'App.2-CC_MIFRS_DepExp_2012'!J39), 0, +I39+'App.2-CC_MIFRS_DepExp_2012'!J39) -> 0
A40: 1930 | B40: Transportation Equipment | E40: 0 | F40: =IF(D40=0,'App.2-CC_MIFRS_DepExp_2012'!J40,+'App.2-CC_MIFRS_DepExp_2012'!J40+((C40*0.5)/D40)) -> 0 | H40: 0 | I40: 0 | J40: =IF(ISERROR(+I40+'App.2-CC_MIFRS_DepExp_2012'!J40), 0, +I40+'App.2-CC_MIFRS_DepExp_2012'!J40) -> 0
A41: 1935 | B41: Stores Equipment | E41: 0 | F41: =IF(D41=0,'App.2-CC_MIFRS_DepExp_2012'!J41,+'App.2-CC_MIFRS_DepExp_2012'!J41+((C41*0.5)/D41)) -> 0 | H41: 0 | I41: 0 | J41: =IF(ISERROR(+I41+'App.2-CC_MIFRS_DepExp_2012'!J41), 0, +I41+'App.2-CC_MIFRS_DepExp_2012'!J41) -> 0
A42: 1940 | B42: Tools, Shop & Garage Equipment | E42: 0 | F42: =IF(D42=0,'App.2-CC_MIFRS_DepExp_2012'!J42,+'App.2-CC_MIFRS_DepExp_2012'!J42+((C42*0.5)/D42)) -> 0 | H42: 0 | I42: 0 | J42: =IF(ISERROR(+I42+'App.2-CC_MIFRS_DepExp_2012'!J42), 0, +I42+'App.2-CC_MIFRS_DepExp_2012'!J42) -> 0
A43: 1945 | B43: Measurement & Testing Equipment | E43: 0 | F43: =IF(D43=0,'App.2-CC_MIFRS_DepExp_2012'!J43,+'App.2-CC_MIFRS_DepExp_2012'!J43+((C43*0.5)/D43)) -> 0 | H43: 0 | I43: 0 | J43: =IF(ISERROR(+I43+'App.2-CC_MIFRS_DepExp_2012'!J43), 0, +I43+'App.2-CC_MIFRS_DepExp_2012'!J43) -> 0
A44: 1950 | B44: Power Operated Equipment | E44: 0 | F44: =IF(D44=0,'App.2-CC_MIFRS_DepExp_2012'!J44,+'App.2-CC_MIFRS_DepExp_2012'!J44+((C44*0.5)/D44)) -> 0 | H44: 0 | I44: 0 | J44: =IF(ISERROR(+I44+'App.2-CC_MIFRS_DepExp_2012'!J44), 0, +I44+'App.2-CC_MIFRS_DepExp_2012'!J44) -> 0
A45: 1955 | B45: Communications Equipment | E45: 0 | F45: =IF(D45=0,'App.2-CC_MIFRS_DepExp_2012'!J45,+'App.2-CC_MIFRS_DepExp_2012'!J45+((C45*0.5)/D45)) -> 0 | H45: 0 | I45: 0 | J45: =IF(ISERROR(+I45+'App.2-CC_MIFRS_DepExp_2012'!J45), 0, +I45+'App.2-CC_MIFRS_DepExp_2012'!J45) -> 0
A46: 1955 | B46: Communication Equipment (Smart Meters) | E46: 0 | F46: =IF(D46=0,'App.2-CC_MIFRS_DepExp_2012'!J46,+'App.2-CC_MIFRS_DepExp_2012'!J46+((C46*0.5)/D46)) -> 0 | H46: 0 | I46: 0 | J46: =IF(ISERROR(+I46+'App.2-CC_MIFRS_DepExp_2012'!J46), 0, +I46+'App.2-CC_MIFRS_DepExp_2012'!J46) -> 0
A47: 1960 | B47: Miscellaneous Equipment | E47: 0 | F47: =IF(D47=0,'App.2-CC_MIFRS_DepExp_2012'!J47,+'App.2-CC_MIFRS_DepExp_2012'!J47+((C47*0.5)/D47)) -> 0 | H47: 0 | I47: 0 | J47: =IF(ISERROR(+I47+'App.2-CC_MIFRS_DepExp_2012'!J47), 0, +I47+'App.2-CC_MIFRS_DepExp_2012'!J47) -> 0
A48: 1975 | B48: Load Management Controls Utility Premises | E48: 0 | F48: =IF(D48=0,'App.2-CC_MIFRS_DepExp_2012'!J48,+'App.2-CC_MIFRS_DepExp_2012'!J48+((C48*0.5)/D48)) -> 0 | H48: 0 | I48: 0 | J48: =IF(ISERROR(+I48+'App.2-CC_MIFRS_DepExp_2012'!J48), 0, +I48+'App.2-CC_MIFRS_DepExp_2012'!J48) -> 0
A49: 1980 | B49: System Supervisor Equipment | E49: 0 | F49: =IF(D49=0,'App.2-CC_MIFRS_DepExp_2012'!J49,+'App.2-CC_MIFRS_DepExp_2012'!J49+((C49*0.5)/D49)) -> 0 | H49: 0 | I49: 0 | J49: =IF(ISERROR(+I49+'App.2-CC_MIFRS_DepExp_2012'!J49), 0, +I49+'App.2-CC_MIFRS_DepExp_2012'!J49) -> 0
A50: 1985 | B50: Miscellaneous Fixed Assets | E50: 0 | F50: =IF(D50=0,'App.2-CC_MIFRS_DepExp_2012'!J50,+'App.2-CC_MIFRS_DepExp_2012'!J50+((C50*0.5)/D50)) -> 0 | H50: 0 | I50: 0 | J50: =IF(ISERROR(+I50+'App.2-CC_MIFRS_DepExp_2012'!J50), 0, +I50+'App.2-CC_MIFRS_DepExp_2012'!J50) -> 0
A51: 1995 | B51: Contributions & Grants | E51: 0 | F51: =IF(D51=0,'App.2-CC_MIFRS_DepExp_2012'!J51,+'App.2-CC_MIFRS_DepExp_2012'!J51+((C51*0.5)/D51)) -> 0 | H51: 0 | I51: 0 | J51: =IF(ISERROR(+I51+'App.2-CC_MIFRS_DepExp_2012'!J51), 0, +I51+'App.2-CC_MIFRS_DepExp_2012'!J51) -> 0
A52: etc. | E52: 0 | F52: =IF(D52=0,'App.2-CC_MIFRS_DepExp_2012'!J52,+'App.2-CC_MIFRS_DepExp_2012'!J52+((C52*0.5)/D52)) -> 0 | H52: 0 | I52: 0 | J52: =IF(ISERROR(+I52+'App.2-CC_MIFRS_DepExp_2012'!J52), 0, +I52+'App.2-CC_MIFRS_DepExp_2012'!J52) -> 0
E53: 0 | F53: =IF(D53=0,'App.2-CC_MIFRS_DepExp_2012'!J53,+'App.2-CC_MIFRS_DepExp_2012'!J53+((C53*0.5)/D53)) -> 0 | H53: 0 | I53: 0 | J53: =IF(ISERROR(+I53+'App.2-CC_MIFRS_DepExp_2012'!J53), 0, +I53+'App.2-CC_MIFRS_DepExp_2012'!J53) -> 0
B54: Total | C54: =SUM(C16:C53) -> 0 | E54: 0 | F54: =SUM(F16:F53) -> 0 | G54: =SUM(G16:G53) -> 0 | H54: =SUM(H16:H53) -> 0 | I54: =SUM(I16:I53) -> 0 | J54: =SUM(J16:J53) -> 0
B55: Depreciation expense adjustment resulting from amortization of Account 1575 | F55: 0
B56: Total Depreciation expense to be included in the test year revenue requirement | F56: =+F54+F55 -> 0
A57: Notes:
A58: 1 | B58: Board policy of the "half-year" rule - the applicant must ensure that additions in the year attract a half-year depreciation expense in the first year. Deviations from this standard practice must be supported in the application.
A59: 2 | B59: The applicant must provide an explanation of material variances in evidence
A60: 3 | B60: If the assets are fully depreciated as of the end of 2012, the applicant must exclude the depreciation expense of these assets in the calculation of the 2013 depreciation expense.
A63: General: | B63: Applicants must provide a breakdown of depreciation and amortization expense in the above format for all relevant accounts. Asset Retirement Obligations (AROs), depreciation and accretion expense should be disclosed separately consistent with the Notes of historical Audited Financial Statements.

Sheet App.2-CE_CGAAP_DepExp_2011
I1: File Number: | J1: ='LDC Info'!$E$18 -> EB-2012-0147
I2: Exhibit: | J2: 4
I3: Tab: | J3: 2
I4: Schedule: | J4: 7
I5: Page: | J5: 4 of 10
I7: Date: | J7: 2012-08-31
E8: Table 4.2.29
A9: Appendix 2-CE
A10: Depreciation and Amortization Expense
A11: Assumes the applicant adopted IFRS for financial reporting purposes January 1, 2013
C12: Year | D12: 2011 | E12: CGAAP
A14: Account | B14: Description | C14: Opening Regulatory Gross PP&E as at Jan 1, 2011 | D14: Less Fully Depreciated | E14: Net for Depreciation | F14: Additions | G14: Total for Depreciation | H14: Years | I14: Depreciation Rate | J14: 2011 Depreciation Expense | K14: 2011 Depreciation Expense per Appendix 2-B Fixed Assets, Column K (l) | L14: Variance 2
C15: (a) | D15: (b) | E15: (c) | F15: (d) | G15: (e) = (c) + ½ x (d) 1 | H15: (f) | I15: (g) = 1 / (f) | J15: (h) = (e) / (f) | L15: (m) = (h) - (l)
A16: 1611 | B16: Computer Software (Formally known as Account 1925) | C16: ='App.2-B_Fixed Asset Continuity'!E127 -> 0 | E16: =C16-D16 -> 0 | F16: ='App.2-B_Fixed Asset Continuity'!F127 -> 0 | G16: =E16+0.5*F16 -> 0 | I16: =IF(H16=0,"",1/H16) ->  | J16: =IF(H16=0,0,G16/H16) -> 0 | K16: ='App.2-B_Fixed Asset Continuity'!K127 -> 0 | L16: =IF(ISERROR(+J16-K16),"",+J16-K16) -> 0
A17: 1612 | B17: Land Rights (Formally known as Account 1906) | C17: ='App.2-B_Fixed Asset Continuity'!E128 -> 0 | E17: =C17-D17 -> 0 | F17: ='App.2-B_Fixed Asset Continuity'!F128 -> 0 | G17: =E17+0.5*F17 -> 0 | I17: =IF(H17=0,"",1/H17) ->  | J17: =IF(H17=0,0,G17/H17) -> 0 | K17: ='App.2-B_Fixed Asset Continuity'!K128 -> 0 | L17: =IF(ISERROR(+J17-K17),"",+J17-K17) -> 0
A18: 1805 | B18: Land | C18: ='App.2-B_Fixed Asset Continuity'!E129 -> 381737.67 | E18: 381737.67 | F18: ='App.2-B_Fixed Asset Continuity'!F129 -> 0 | G18: 381737.67 | H18: 0 | J18: 0 | K18: ='App.2-B_Fixed Asset Continuity'!K129 -> 0 | L18: 0
A19: 1806 | B19: Land Rights | C19: ='App.2-B_Fixed Asset Continuity'!E130 -> 32555.43 | E19: 32555.43 | F19: ='App.2-B_Fixed Asset Continuity'!F130 -> 0 | G19: 32555.43 | H19: 0 | J19: 0 | K19: ='App.2-B_Fixed Asset Continuity'!K130 -> 0 | L19: 0
A20: 1815 | B20: Transformer Station Equipment >50 kV | C20: ='App.2-B_Fixed Asset Continuity'!E131 -> 0 | E20: 0 | F20: ='App.2-B_Fixed Asset Continuity'!F131 -> 0 | G20: 0 | J20: 0 | K20: ='App.2-B_Fixed Asset Continuity'!K131 -> 0 | L20: 0
A21: 1820 | B21: Distribution Station Equipment <50 kV | C21: ='App.2-B_Fixed Asset Continuity'!E132 -> 5023305.76 | D21: 502009.48 | E21: 4521296.28 | F21: ='App.2-B_Fixed Asset Continuity'!F132 -> 18426.91 | G21: 4530509.735 | H21: =G21/K21 -> 24.67887025 | I21: 0.04052049344 | J21: 183578.49 | K21: ='App.2-B_Fixed Asset Continuity'!K132 -> 183578.49 | L21: 0
A22: 1825 | B22: Storage Battery Equipment | C22: ='App.2-B_Fixed Asset Continuity'!E133 -> 0 | D22: 0 | E22: 0 | F22: ='App.2-B_Fixed Asset Continuity'!F133 -> 0 | G22: 0 | J22: 0 | K22: ='App.2-B_Fixed Asset Continuity'!K133 -> 0 | L22: 0
A23: 1830 | B23: Poles, Towers & Fixtures | C23: ='App.2-B_Fixed Asset Continuity'!E134 -> 4214994.77 | D23: 1057428.961 | E23: 3157565.809 | F23: ='App.2-B_Fixed Asset Continuity'!F134 -> 368740.2 | G23: 3341935.909 | H23: =G23/K23 -> 24.54147889 | I23: 0.04074734064 | J23: 136175.0009 | K23: ='App.2-B_Fixed Asset Continuity'!K134 -> 136175.0009 | L23: 0
A24: 1835 | B24: Overhead Conductors & Devices | C24: ='App.2-B_Fixed Asset Continuity'!E135 -> 2049548.81 | D24: 520823.2194 | E24: 1528725.591 | F24: ='App.2-B_Fixed Asset Continuity'!F135 -> 148122.57 | G24: 1602786.876 | H24: 23.89677275 | I24: 0.0418466548 | J24: 67071.2691 | K24: ='App.2-B_Fixed Asset Continuity'!K135 -> 67071.2691 | L24: 0
A25: 1840 | B25: Underground Conduit | C25: ='App.2-B_Fixed Asset Continuity'!E136 -> 2091.64 | E25: 2091.64 | F25: ='App.2-B_Fixed Asset Continuity'!F136 -> 1513.75 | G25: 2848.515 | J25: 0 | K25: ='App.2-B_Fixed Asset Continuity'!K136 -> 0 | L25: 0
A26: 1845 | B26: Underground Conductors & Devices | C26: ='App.2-B_Fixed Asset Continuity'!E137 -> 3262386.93 | D26: 460019.25 | E26: 2802367.68 | F26: ='App.2-B_Fixed Asset Continuity'!F137 -> 65680.07 | G26: 2835207.715 | H26: 22.76854649 | I26: 0.04392023884 | J26: 124523 | K26: ='App.2-B_Fixed Asset Continuity'!K137 -> 124523 | L26: 0
A27: 1850 | B27: Line Transformers | C27: ='App.2-B_Fixed Asset Continuity'!E138 -> 3346007.01 | D27: 711367.55 | E27: 2634639.46 | F27: ='App.2-B_Fixed Asset Continuity'!F138 -> 77346.2 | G27: 2673312.56 | H27: 23.34893147 | I27: 0.04282851235 | J27: 114494 | K27: ='App.2-B_Fixed Asset Continuity'!K138 -> 114494 | L27: 0
A28: 1855 | B28: Services (Overhead & Underground) | C28: ='App.2-B_Fixed Asset Continuity'!E139 -> 182967.77 | D28: 1556.05 | E28: 181411.72 | F28: ='App.2-B_Fixed Asset Continuity'!F139 -> 121454.93 | G28: 242139.185 | H28: 19.15312626 | I28: 0.05221079769 | J28: 12642.28 | K28: ='App.2-B_Fixed Asset Continuity'!K139 -> 12642.28 | L28: 0
A29: 1860 | B29: Meters | C29: ='App.2-B_Fixed Asset Continuity'!E140 -> 1065645.57 | D29: 226264.13 | E29: 839381.44 | F29: ='App.2-B_Fixed Asset Continuity'!F140 -> 38813.08 | G29: 858787.98 | H29: 23.31730441 | I29: 0.04288660398 | J29: 36830.5 | K29: ='App.2-B_Fixed Asset Continuity'!K140 -> 36830.5 | L29: 0
A30: 1860 | B30: Meters (Smart Meters) | C30: ='App.2-B_Fixed Asset Continuity'!E141 -> 0 | E30: 0 | F30: ='App.2-B_Fixed Asset Continuity'!F141 -> 0 | G30: 0 | J30: 0 | K30: ='App.2-B_Fixed Asset Continuity'!K141 -> 0 | L30: 0
A31: 1905 | B31: Land | C31: ='App.2-B_Fixed Asset Continuity'!E142 -> 0 | E31: 0 | F31: ='App.2-B_Fixed Asset Continuity'!F142 -> 0 | G31: 0 | J31: 0 | K31: ='App.2-B_Fixed Asset Continuity'!K142 -> 0 | L31: 0
A32: 1908 | B32: Buildings & Fixtures | C32: ='App.2-B_Fixed Asset Continuity'!E143 -> 984361.31 | D32: 0 | E32: 984361.31 | F32: ='App.2-B_Fixed Asset Continuity'!F143 -> 41410.75 | G32: 1005066.685 | H32: 30.10173066 | I32: 0.03322068127 | J32: 33389 | K32: ='App.2-B_Fixed Asset Continuity'!K143 -> 33389 | L32: 0
A33: 1910 | B33: Leasehold Improvements | C33: ='App.2-B_Fixed Asset Continuity'!E144 -> 0 | E33: 0 | F33: ='App.2-B_Fixed Asset Continuity'!F144 -> 0 | G33: 0 | J33: 0 | K33: ='App.2-B_Fixed Asset Continuity'!K144 -> 0 | L33: 0
A34: 1915 | B34: Office Furniture & Equipment (10 years) | C34: ='App.2-B_Fixed Asset Continuity'!E145 -> 259029.1 | D34: 193100.16 | E34: 65928.94 | F34: ='App.2-B_Fixed Asset Continuity'!F145 -> 16518.99 | G34: 74188.435 | H34: 9.999789055 | I34: 0.1000021095 | J34: 7419 | K34: ='App.2-B_Fixed Asset Continuity'!K145 -> 7419 | L34: 0
A35: 1915 | B35: Office Furniture & Equipment (5 years) | C35: ='App.2-B_Fixed Asset Continuity'!E146 -> 0 | E35: 0 | F35: ='App.2-B_Fixed Asset Continuity'!F146 -> 0 | G35: 0 | J35: 0 | K35: ='App.2-B_Fixed Asset Continuity'!K146 -> 0 | L35: 0
A36: 1920 | B36: Computer Equipment - Hardware | C36: ='App.2-B_Fixed Asset Continuity'!E147 -> 458908.23 | D36: 365420.41 | E36: 93487.82 | F36: ='App.2-B_Fixed Asset Continuity'!F147 -> 6074.75 | G36: 96525.195 | H36: 5.240412142 | I36: 0.1908246857 | J36: 18419.39 | K36: ='App.2-B_Fixed Asset Continuity'!K147 -> 18419.39 | L36: 0
A37: 1920 | B37: Computer Equip.-Hardware(Post Mar. 22/04) | C37: ='App.2-B_Fixed Asset Continuity'!E148 -> 0 | E37: 0 | F37: ='App.2-B_Fixed Asset Continuity'!F148 -> 0 | G37: 0 | J37: 0 | K37: ='App.2-B_Fixed Asset Continuity'!K148 -> 0 | L37: 0
A38: 1920 | B38: Computer Equip.-Hardware(Post Mar. 19/07) | C38: ='App.2-B_Fixed Asset Continuity'!E149 -> 0 | E38: 0 | F38: ='App.2-B_Fixed Asset Continuity'!F149 -> 0 | G38: 0 | J38: 0 | K38: ='App.2-B_Fixed Asset Continuity'!K149 -> 0 | L38: 0
A39: 1925 | B39: Software | C39: ='App.2-B_Fixed Asset Continuity'!E150 -> 345753.83 | D39: 91946.58 | E39: 253807.25 | F39: ='App.2-B_Fixed Asset Continuity'!F150 -> 17302.51 | G39: 262458.505 | H39: 5.430667347 | I39: 0.1841394319 | J39: 48328.96 | K39: ='App.2-B_Fixed Asset Continuity'!K150 -> 48328.96 | L39: 0
A40: 1930 | B40: Transportation Equipment - Large Vehicles | C40: ='App.2-B_Fixed Asset Continuity'!E151 -> 858183.34 | D40: 140525.28 | E40: 717658.06 | F40: ='App.2-B_Fixed Asset Continuity'!F151 -> 0 | G40: 717658.06 | H40: 7.969043172 | I40: 0.1254855794 | J40: 90055.7375 | K40: ='App.2-B_Fixed Asset Continuity'!K151 -> 90055.7375 | L40: 0
A41: 1930 | B41: Transportation Equipment - Small Vehicles | C41: ='App.2-B_Fixed Asset Continuity'!E152 -> 189090.59 | D41: 68897.55 | E41: 120193.04 | F41: ='App.2-B_Fixed Asset Continuity'!F152 -> 2425 | G41: 121405.54 | H41: 6.62210879 | I41: 0.1510092981 | J41: 18333.36537 | K41: ='App.2-B_Fixed Asset Continuity'!K152 -> 18333.36537 | L41: 0
A42: 1935 | B42: Stores Equipment | C42: ='App.2-B_Fixed Asset Continuity'!E153 -> 8609.78 | D42: 8610 | E42: -0.22 | F42: ='App.2-B_Fixed Asset Continuity'!F153 -> 0 | G42: =E42+0.5*F42 -> -0.22 | J42: 0 | K42: ='App.2-B_Fixed Asset Continuity'!K153 -> 0 | L42: 0
A43: 1940 | B43: Tools, Shop & Garage Equipment | C43: ='App.2-B_Fixed Asset Continuity'!E154 -> 266128.02 | D43: 164230.86 | E43: 101897.16 | F43: ='App.2-B_Fixed Asset Continuity'!F154 -> 6696.6 | G43: 105245.46 | H43: 10.00146916 | I43: 0.09998531053 | J43: 10523 | K43: ='App.2-B_Fixed Asset Continuity'!K154 -> 10523 | L43: 0
A44: 1945 | B44: Measurement & Testing Equipment | C44: ='App.2-B_Fixed Asset Continuity'!E155 -> 2634.03 | D44: 2634 | E44: 0.03 | F44: ='App.2-B_Fixed Asset Continuity'!F155 -> 0 | G44: 0.03 | J44: 0 | K44: ='App.2-B_Fixed Asset Continuity'!K155 -> 0 | L44: 0
A45: 1950 | B45: Power Operated Equipment | C45: ='App.2-B_Fixed Asset Continuity'!E156 -> 0 | E45: 0 | F45: ='App.2-B_Fixed Asset Continuity'!F156 -> 0 | G45: 0 | J45: 0 | K45: ='App.2-B_Fixed Asset Continuity'!K156 -> 0 | L45: 0
A46: 1955 | B46: Communications Equipment | C46: ='App.2-B_Fixed Asset Continuity'!E157 -> 134109.74 | D46: 131113.74 | E46: 2996 | F46: ='App.2-B_Fixed Asset Continuity'!F157 -> 0 | G46: 2996 | H46: 9.986666667 | I46: 0.1001335113 | J46: 300 | K46: ='App.2-B_Fixed Asset Continuity'!K157 -> 300 | L46: 0
A47: 1955 | B47: Communication Equipment (Smart Meters) | C47: ='App.2-B_Fixed Asset Continuity'!E158 -> 0 | E47: 0 | F47: ='App.2-B_Fixed Asset Continuity'!F158 -> 0 | G47: 0 | J47: 0 | K47: ='App.2-B_Fixed Asset Continuity'!K158 -> 0 | L47: 0
A48: 1960 | B48: Miscellaneous Equipment | C48: ='App.2-B_Fixed Asset Continuity'!E159 -> 19219.52 | D48: 17450.16 | E48: 1769.36 | F48: ='App.2-B_Fixed Asset Continuity'!F159 -> 0 | G48: 1769.36 | H48: 9.996384181 | I48: 0.1000361713 | J48: 177 | K48: ='App.2-B_Fixed Asset Continuity'!K159 -> 177 | L48: 0
A49: 1975 | B49: Load Management Controls Utility Premises | C49: ='App.2-B_Fixed Asset Continuity'!E160 -> 0 | E49: 0 | F49: ='App.2-B_Fixed Asset Continuity'!F160 -> 0 | G49: 0 | J49: 0 | K49: ='App.2-B_Fixed Asset Continuity'!K160 -> 0 | L49: 0
A50: 1980 | B50: System Supervisor Equipment | C50: ='App.2-B_Fixed Asset Continuity'!E161 -> 452129.1 | D50: 97458.69 | E50: 354670.41 | F50: ='App.2-B_Fixed Asset Continuity'!F161 -> 110198.46 | G50: 409769.64 | H50: 14.76913462 | I50: 0.06770877413 | J50: 27745 | K50: ='App.2-B_Fixed Asset Continuity'!K161 -> 27745 | L50: 0
A51: 1985 | B51: Miscellaneous Fixed Assets | C51: ='App.2-B_Fixed Asset Continuity'!E162 -> 0 | E51: 0 | F51: ='App.2-B_Fixed Asset Continuity'!F162 -> 0 | G51: 0 | J51: 0 | K51: ='App.2-B_Fixed Asset Continuity'!K162 -> 0 | L51: 0
A52: 1995 | B52: Contributions & Grants | C52: ='App.2-B_Fixed Asset Continuity'!E163 -> -1429952.07 | D52: 0 | E52: -1429952.07 | F52: ='App.2-B_Fixed Asset Continuity'!F163 -> -265869.23 | G52: -1562886.685 | H52: 21.11990197 | I52: 0.04734870462 | J52: -74000.66 | K52: ='App.2-B_Fixed Asset Continuity'!K163 -> -74000.66 | L52: 0
B57: Total | C57: =SUM(C16:C56) -> 22109445.88 | D57: =SUM(D16:D56) -> 4760856.07 | E57: =SUM(E16:E56) -> 17348589.81 | F57: =SUM(F16:F56) -> 774855.54 | G57: =SUM(G16:G56) -> 17736017.58 | J57: =SUM(J16:J56) -> 856004.3329 | K57: =SUM(K16:K56) -> 856004.3329 | L57: =SUM(L16:L56) -> 0
A59: Notes:
A60: 1 | B60: Board policy of the "half-year" rule - the applicant must ensure that additions in the year attract a half-year depreciation expense in the first year. Deviations from this standard practice must be supported in the application.
A61: 2 | B61: The applicant must provide an explanation of material variances in evidence
A62: General: | B62: Applicants must provide a breakdown of depreciation and amortization expense in the above format for all relevant accounts. Asset Retirement Obligations (AROs), depreciation and accretion expense should be disclosed separately consistent with the Notes of historical Audited Financial Statements.

Sheet App.2-CF_CGAAP_DepExp_2012
I1: File Number: | J1: ='LDC Info'!$E$18 -> EB-2012-0147
I2: Exhibit: | J2: 4
I3: Tab: | J3: 2
I4: Schedule: | J4: 7
I5: Page: | J5: 6 of 10
I7: Date: | J7: 2012-08-31
E8: Table 4.2.30
A9: Appendix 2-CF
A10: Depreciation and Amortization Expense
A11: Assumes the applicant adopted IFRS for financial reporting purposes January 1, 2013
C12: Year | D12: 2012 | E12: CGAAP
A14: Account | B14: Description | C14: Opening Regulatory Gross PP&E as at Jan 1, 2012 | D14: Less Fully Depreciated | E14: Net for Depreciation | F14: Additions | G14: Total for Depreciation | H14: Years | I14: Depreciation Rate | J14: 2012 Depreciation Expense | K14: 2012 Depreciation Expense per Appendix 2-B Fixed Assets, Column K (l) | L14: Variance 2
C15: (a) | D15: (b) | E15: (c) | F15: (d) | G15: (e) = (c) + ½ x (d) 1 | H15: (f) | I15: (g) = 1 / (f) | J15: (h) = (e) / (f) | L15: (m) = (h) - (l)
A16: 1611 | B16: Computer Software (Formally known as Account 1925) | C16: ='App.2-B_Fixed Asset Continuity'!E179 -> 0 | E16: =C16-D16 -> 0 | F16: ='App.2-B_Fixed Asset Continuity'!F179 -> 0 | G16: =E16+0.5*F16 -> 0 | I16: =IF(H16=0,"",1/H16) ->  | J16: =IF(H16=0,0,G16/H16) -> 0 | K16: ='App.2-B_Fixed Asset Continuity'!K179 -> 0 | L16: =IF(ISERROR(+J16-K16),"",+J16-K16) -> 0
A17: 1612 | B17: Land Rights (Formally known as Account 1906) | C17: ='App.2-B_Fixed Asset Continuity'!E180 -> 32555.43 | E17: =C17-D17 -> 32555.43 | F17: ='App.2-B_Fixed Asset Continuity'!F180 -> 0 | G17: =E17+0.5*F17 -> 32555.43 | I17: =IF(H17=0,"",1/H17) ->  | J17: =IF(H17=0,0,G17/H17) -> 0 | K17: ='App.2-B_Fixed Asset Continuity'!K180 -> 0 | L17: =IF(ISERROR(+J17-K17),"",+J17-K17) -> 0
A18: 1805 | B18: Land | C18: ='App.2-B_Fixed Asset Continuity'!E181 -> 381737.67 | E18: 381737.67 | F18: ='App.2-B_Fixed Asset Continuity'!F181 -> 0 | G18: 381737.67 | J18: 0 | K18: ='App.2-B_Fixed Asset Continuity'!K181 -> 0 | L18: 0
A19: 1806 | B19: Land Rights | C19: ='App.2-B_Fixed Asset Continuity'!E182 -> 0 | F19: ='App.2-B_Fixed Asset Continuity'!F182 -> 0 | G19: 0 | J19: 0 | K19: ='App.2-B_Fixed Asset Continuity'!K182 -> 0 | L19: 0
A20: 1815 | B20: Transformer Station Equipment >50 kV | C20: ='App.2-B_Fixed Asset Continuity'!E183 -> 0 | E20: =C20-D20 -> 0 | F20: ='App.2-B_Fixed Asset Continuity'!F183 -> 0 | G20: 0 | J20: 0 | K20: ='App.2-B_Fixed Asset Continuity'!K183 -> 0 | L20: 0
A21: 1820 | B21: Distribution Station Equipment <50 kV | C21: ='App.2-B_Fixed Asset Continuity'!E184 -> 5041732.67 | D21: 502009.48 | E21: 4539723.19 | F21: ='App.2-B_Fixed Asset Continuity'!F184 -> 512294 | G21: 4795870.19 | H21: =G21/K21 -> 24.73433583 | I21: 0.04042962814 | J21: 193895.2484 | K21: ='App.2-B_Fixed Asset Continuity'!K184 -> 193895.2484 | L21: 0
A22: 1825 | B22: Storage Battery Equipment | C22: ='App.2-B_Fixed Asset Continuity'!E185 -> 0 | E22: 0 | F22: ='App.2-B_Fixed Asset Continuity'!F185 -> 0 | G22: 0 | J22: 0 | K22: ='App.2-B_Fixed Asset Continuity'!K185 -> 0 | L22: 0
A23: 1830 | B23: Poles, Towers & Fixtures | C23: ='App.2-B_Fixed Asset Continuity'!E186 -> 4583734.97 | D23: 1106833.829 | E23: 3476901.141 | F23: ='App.2-B_Fixed Asset Continuity'!F186 -> 271798 | G23: 3612800.141 | H23: 26.44864867 | I23: 0.03780911503 | J23: 136596.7761 | K23: ='App.2-B_Fixed Asset Continuity'!K186 -> 136596.7761 | L23: 0
A24: 1835 | B24: Overhead Conductors & Devices | C24: ='App.2-B_Fixed Asset Continuity'!E187 -> 2197671.38 | D24: 545156.9607 | E24: 1652514.419 | F24: ='App.2-B_Fixed Asset Continuity'!F187 -> 91160 | G24: 1698094.419 | H24: 25.23958723 | I24: 0.03962029929 | J24: 67279.00912 | K24: ='App.2-B_Fixed Asset Continuity'!K187 -> 67279.00912 | L24: 0
A25: 1840 | B25: Underground Conduit | C25: ='App.2-B_Fixed Asset Continuity'!E188 -> 1948941 | D25: 276011.55 | E25: 1672929.45 | F25: ='App.2-B_Fixed Asset Continuity'!F188 -> 0 | G25: 1672929.45 | H25: 22.97029042 | I25: 0.04353449529 | J25: 72830.13926 | K25: ='App.2-B_Fixed Asset Continuity'!K188 -> 72830.13926 | L25: 0
A26: 1845 | B26: Underground Conductors & Devices | C26: ='App.2-B_Fixed Asset Continuity'!E189 -> 1380324.07 | D26: 184007.7 | E26: 1196316.37 | F26: ='App.2-B_Fixed Asset Continuity'!F189 -> 392500 | G26: 1392566.37 | H26: 30.36171888 | I26: 0.03293621168 | J26: 45865.86074 | K26: ='App.2-B_Fixed Asset Continuity'!K189 -> 45865.86074 | L26: 0
A27: 1850 | B27: Line Transformers | C27: ='App.2-B_Fixed Asset Continuity'!E190 -> 3423353.21 | D27: 711367.55 | E27: 2711985.66 | F27: ='App.2-B_Fixed Asset Continuity'!F190 -> 303600 | G27: 2863785.66 | H27: 24.98286365 | I27: 0.04002743697 | J27: 114630 | K27: ='App.2-B_Fixed Asset Continuity'!K190 -> 114630 | L27: 0
A28: 1855 | B28: Services (Overhead & Underground) | C28: ='App.2-B_Fixed Asset Continuity'!E191 -> 304422.7 | D28: 1556.05 | E28: 302866.65 | F28: ='App.2-B_Fixed Asset Continuity'!F191 -> 30900 | G28: 318316.65 | H28: 24.99149329 | I28: 0.04001361537 | J28: 12737 | K28: ='App.2-B_Fixed Asset Continuity'!K191 -> 12737 | L28: 0
A29: 1860 | B29: Meters | C29: ='App.2-B_Fixed Asset Continuity'!E192 -> 1104458.65 | D29: 226264.13 | E29: 878194.52 | F29: ='App.2-B_Fixed Asset Continuity'!F192 -> 11000 | G29: 883694.52 | H29: 24.58257817 | I29: 0.04067921571 | J29: 35948 | K29: ='App.2-B_Fixed Asset Continuity'!K192 -> 35948 | L29: 0
A30: 1860 | B30: Meters (Smart Meters) | C30: ='App.2-B_Fixed Asset Continuity'!E193 -> 0 | E30: 1204471 | F30: ='App.2-B_Fixed Asset Continuity'!F193 -> 1204470.59 | G30: =+E30 -> 1204471 | H30: 15.11313227 | I30: 0.06616762047 | J30: 79696.98 | K30: ='App.2-B_Fixed Asset Continuity'!K193 -> 79696.98 | L30: 0
A31: 1905 | B31: Land | C31: ='App.2-B_Fixed Asset Continuity'!E194 -> 0 | E31: 0 | F31: ='App.2-B_Fixed Asset Continuity'!F194 -> 0 | G31: 0 | J31: 0 | K31: ='App.2-B_Fixed Asset Continuity'!K194 -> 0 | L31: 0
A32: 1908 | B32: Buildings & Fixtures | C32: ='App.2-B_Fixed Asset Continuity'!E195 -> 1025772.06 | D32: 0 | E32: 1025772.06 | F32: ='App.2-B_Fixed Asset Continuity'!F195 -> 42200 | G32: 1046872.06 | H32: 29.6136477 | I32: 0.03376821424 | J32: 35351 | K32: ='App.2-B_Fixed Asset Continuity'!K195 -> 35351 | L32: 0
A33: 1910 | B33: Leasehold Improvements | C33: ='App.2-B_Fixed Asset Continuity'!E196 -> 0 | E33: 0 | F33: ='App.2-B_Fixed Asset Continuity'!F196 -> 0 | G33: 0 | J33: 0 | K33: ='App.2-B_Fixed Asset Continuity'!K196 -> 0 | L33: 0
A34: 1915 | B34: Office Furniture & Equipment (10 years) | C34: ='App.2-B_Fixed Asset Continuity'!E197 -> 260024.17 | D34: 185039.91 | E34: 74984.26 | F34: ='App.2-B_Fixed Asset Continuity'!F197 -> 0 | G34: 74984.26 | H34: 9.999234565 | I34: 0.1000076549 | J34: 7499 | K34: ='App.2-B_Fixed Asset Continuity'!K197 -> 7499 | L34: 0
A35: 1915 | B35: Office Furniture & Equipment (5 years) | C35: ='App.2-B_Fixed Asset Continuity'!E198 -> 0 | E35: 0 | F35: ='App.2-B_Fixed Asset Continuity'!F198 -> 0 | G35: 0 | J35: 0 | K35: ='App.2-B_Fixed Asset Continuity'!K198 -> 0 | L35: 0
A36: 1920 | B36: Computer Equipment - Hardware | C36: ='App.2-B_Fixed Asset Continuity'!E199 -> 464982.98 | D36: 374286.3 | E36: 90696.68 | F36: ='App.2-B_Fixed Asset Continuity'!F199 -> 29500 | G36: 105446.68 | H36: 5.366570987 | I36: 0.1863387259 | J36: 19648.8 | K36: ='App.2-B_Fixed Asset Continuity'!K199 -> 19648.8 | L36: 0
A37: 1920 | B37: Computer Equip.-Hardware(Smart Meters) | C37: ='App.2-B_Fixed Asset Continuity'!E200 -> 0 | D37: 0 | E37: =+F37 -> 18763.96 | F37: ='App.2-B_Fixed Asset Continuity'!F200 -> 18763.96 | G37: =E37 -> 18763.96 | H37: 5 | I37: 0.2 | J37: 3752.792 | K37: ='App.2-B_Fixed Asset Continuity'!K200 -> 3752.792 | L37: 0
A38: 1925 | B38: Software | C38: ='App.2-B_Fixed Asset Continuity'!E201 -> 363056.34 | D38: 133587.54 | E38: 229468.8 | F38: ='App.2-B_Fixed Asset Continuity'!F201 -> 10200 | G38: 234568.8 | H38: 7.264760482 | I38: 0.1376507873 | J38: 32288.58 | K38: ='App.2-B_Fixed Asset Continuity'!K201 -> 32288.58 | L38: 0
A39: 1925 | B39: Software (Smart Meters) | C39: ='App.2-B_Fixed Asset Continuity'!E202 -> 0 | E39: =+F39 -> 68016 | F39: ='App.2-B_Fixed Asset Continuity'!F202 -> 68016 | G39: =E39 -> 68016 | H39: 5 | I39: 0.2 | J39: 13603.2 | K39: ='App.2-B_Fixed Asset Continuity'!K202 -> 13603.2 | L39: 0
A40: 1930 | B40: Transportation Equipment - Large Vehicles | C40: ='App.2-B_Fixed Asset Continuity'!E203 -> 858183.34 | D40: 372388.12 | E40: 485795.22 | F40: ='App.2-B_Fixed Asset Continuity'!F203 -> 525400 | G40: 748495.22 | H40: 8 | I40: 0.125 | J40: 93561.9025 | K40: ='App.2-B_Fixed Asset Continuity'!K203 -> 93561.9025 | L40: 0
A41: 1930 | B41: Transportation Equipment - Small Vehicles | C41: ='App.2-B_Fixed Asset Continuity'!E204 -> 161023.44 | D41: 40575.79 | E41: 120447.65 | F41: ='App.2-B_Fixed Asset Continuity'!F204 -> 10799.99 | G41: 125847.645 | H41: 7.778008276 | I41: 0.1285676184 | J41: 16179.932 | K41: ='App.2-B_Fixed Asset Continuity'!K204 -> 16179.932 | L41: 0
A42: 1935 | B42: Stores Equipment | C42: ='App.2-B_Fixed Asset Continuity'!E205 -> 8609.78 | D42: 8610 | E42: -0.22 | F42: ='App.2-B_Fixed Asset Continuity'!F205 -> 0 | G42: -0.22 | J42: 0 | K42: ='App.2-B_Fixed Asset Continuity'!K205 -> 0 | L42: 0
A43: 1940 | B43: Tools, Shop & Garage Equipment | C43: ='App.2-B_Fixed Asset Continuity'!E206 -> 272824.62 | D43: 165102.91 | E43: 107721.71 | F43: ='App.2-B_Fixed Asset Continuity'!F206 -> 16900 | G43: 116171.71 | H43: 10.00100809 | I43: 0.09998992009 | J43: 11616 | K43: ='App.2-B_Fixed Asset Continuity'!K206 -> 11616 | L43: -1.818989404e-12
A44: 1945 | B44: Measurement & Testing Equipment | C44: ='App.2-B_Fixed Asset Continuity'!E207 -> 2634.03 | D44: 2634 | E44: 0.03 | F44: ='App.2-B_Fixed Asset Continuity'!F207 -> 0 | G44: 0.03 | J44: 0 | K44: ='App.2-B_Fixed Asset Continuity'!K207 -> 0 | L44: 0
A45: 1950 | B45: Power Operated Equipment | C45: ='App.2-B_Fixed Asset Continuity'!E208 -> 0 | E45: 0 | F45: ='App.2-B_Fixed Asset Continuity'!F208 -> 0 | G45: 0 | J45: 0 | K45: ='App.2-B_Fixed Asset Continuity'!K208 -> 0 | L45: 0
A46: 1955 | B46: Communications Equipment | C46: ='App.2-B_Fixed Asset Continuity'!E209 -> 134109.74 | D46: 131113.74 | E46: 2996 | F46: ='App.2-B_Fixed Asset Continuity'!F209 -> 0 | G46: 2996 | H46: 9.986666667 | I46: 0.1001335113 | J46: 300 | K46: ='App.2-B_Fixed Asset Continuity'!K209 -> 300 | L46: 0
A47: 1955 | B47: Communication Equipment (Smart Meters) | C47: ='App.2-B_Fixed Asset Continuity'!E210 -> 0 | E47: 0 | F47: ='App.2-B_Fixed Asset Continuity'!F210 -> 0 | G47: 0 | J47: 0 | K47: ='App.2-B_Fixed Asset Continuity'!K210 -> 0 | L47: 0
A48: 1960 | B48: Miscellaneous Equipment | C48: ='App.2-B_Fixed Asset Continuity'!E211 -> 19219.52 | D48: 17450.16 | E48: 1769.36 | F48: ='App.2-B_Fixed Asset Continuity'!F211 -> 0 | G48: 1769.36 | H48: 9.996384181 | I48: 0.1000361713 | J48: 177 | K48: ='App.2-B_Fixed Asset Continuity'!K211 -> 177 | L48: 0
A49: 1975 | B49: Load Management Controls Utility Premises | C49: ='App.2-B_Fixed Asset Continuity'!E212 -> 0 | E49: 0 | F49: ='App.2-B_Fixed Asset Continuity'!F212 -> 0 | G49: 0 | J49: 0 | K49: ='App.2-B_Fixed Asset Continuity'!K212 -> 0 | L49: 0
A50: 1980 | B50: System Supervisor Equipment | C50: ='App.2-B_Fixed Asset Continuity'!E213 -> 562327.56 | D50: 163617.31 | E50: 398710.25 | F50: ='App.2-B_Fixed Asset Continuity'!F213 -> 0 | G50: 398710.25 | H50: 15.00038563 | I50: 0.06666495281 | J50: 26580 | K50: ='App.2-B_Fixed Asset Continuity'!K213 -> 26580 | L50: 0
A51: 1985 | B51: Miscellaneous Fixed Assets | C51: ='App.2-B_Fixed Asset Continuity'!E214 -> 0 | E51: 0 | F51: ='App.2-B_Fixed Asset Continuity'!F214 -> 0 | G51: 0 | J51: 0 | K51: ='App.2-B_Fixed Asset Continuity'!K214 -> 0 | L51: 0
A52: 1995 | B52: Contributions & Grants | C52: ='App.2-B_Fixed Asset Continuity'!E215 -> -1621820.64 | E52: -1621820.64 | F52: ='App.2-B_Fixed Asset Continuity'!F215 -> -594100 | G52: -1918870.64 | H52: 22.52195587 | I52: 0.04440111711 | J52: -85200 | K52: ='App.2-B_Fixed Asset Continuity'!K215 -> -85200 | L52: 0
B57: Total | C57: =SUM(C16:C56) -> 22909878.69 | D57: =SUM(D16:D56) -> 5147613.03 | E57: =SUM(E16:E56) -> 19053516.62 | F57: =SUM(F16:F56) -> 2945402.54 | G57: =SUM(G16:G56) -> 19880592.62 | J57: =SUM(J16:J56) -> 934837.2201 | K57: =SUM(K16:K56) -> 934837.2201 | L57: =SUM(L16:L56) -> -1.818989404e-12
A59: Notes:
A60: 1 | B60: Board policy of the "half-year" rule - the applicant must ensure that additions in the year attract a half-year depreciation expense in the first year. Deviations from this standard practice must be supported in the application.
A61: 2 | B61: The applicant must provide an explanation of material variances in evidence
A62: General: | B62: Applicants must provide a breakdown of depreciation and amortization expense in the above format for all relevant accounts. Asset Retirement Obligations (AROs), depreciation and accretion expense should be disclosed separately consistent with the Notes of historical Audited Financial Statements.

Sheet App.2-CG_MIFRS_DepExp_2012
N1: File Number: | O1: 0
N2: Exhibit: | O2: 4
N3: Tab: | O3: 2
N4: Schedule: | O4: 7
N5: Page: | O5: 9 of 10
N7: Date: | O7: 2012-08-31
A9: Appendix 2-CG
A10: Depreciation and Amortization Expense
A11: Assumes the applicant adopted IFRS for financial reporting purposes January 1, 2013
C12: Year | D12: 2012 | E12: MIFRS
A14: Account | B14: Description | C14: Opening NBV as at Jan 1, 2012 5 | D14: Additions | E14: Average Remaining Life of Opening NBV 4 | F14: Years (new additions only) 3 | G14: Depreciation Rate on New Additions | H14: Depreciation Expense on Opening NBV | I14: Depreciation Expense on Additions 1 | J14: 2012 Depreciation Expense | K14: 2012 Depreciation Expense per Appendix 2-B Fixed Assets, Column K (l) | L14: Variance 2 | M14: Depreciation Expense on 2012 Full Year Additions | N14: Less Depreciation Expense on Assets Fully Depreciated during the year (o) | O14: 2012 Full Year Depreciation 6
C15: (a) | D15: (d) | E15: (i) | F15: (f) | G15: (g) = 1 / (f) | H15: (j) = (a) / (i) | I15: (h)=((d)*0.5)/(f) | J15: (k) = (j) + (h) | L15: (m) = (k) - (l) | M15: (n)=((d))/(f) | O15: (p) = (j) + (n) - (o)
A16: 1611 | B16: Computer Software (Formally known as Account 1925) | C16: ='App.2-B_Fixed Asset Continuity'!E284-'App.2-B_Fixed Asset Continuity'!J284 -> 0 | G16: =IF(F16=0,0,1/F16) -> 0 | H16: =IF(E16=0,0,+C16/E16) -> 0 | I16: =IF(F16=0,0,+(D16*0.5)/F16) -> 0 | J16: =IF(ISERROR(+H16+I16),0,+H16+I16) -> 0 | L16: =IF(ISERROR(+J16-K16),0,+J16-K16) -> 0 | M16: =IF(F16=0,0,+(D16)/F16) -> 0 | O16: =IF(ISERROR(+M16+H16-N16),0,+M16+H16-N16) -> 0
A17: 1612 | B17: Land Rights (Formally known as Account 1906) | C17: ='App.2-B_Fixed Asset Continuity'!E285-'App.2-B_Fixed Asset Continuity'!J232 -> 17495.21 | G17: =IF(F17=0,0,1/F17) -> 0 | H17: =IF(E17=0,0,+C17/E17) -> 0 | I17: =IF(F17=0,0,+(D17*0.5)/F17) -> 0 | J17: =IF(ISERROR(+H17+I17),0,+H17+I17) -> 0 | L17: =IF(ISERROR(+J17-K17),0,+J17-K17) -> 0 | M17: =IF(F17=0,0,+(D17)/F17) -> 0 | O17: =IF(ISERROR(+M17+H17-N17),0,+M17+H17-N17) -> 0
A18: 1805 | B18: Land | C18: ='App.2-B_Fixed Asset Continuity'!E286-'App.2-B_Fixed Asset Continuity'!J233 -> 381737.67 | G18: 0 | H18: 0 | I18: 0 | J18: 0 | L18: 0 | M18: 0 | O18: 0
A19: 1806 | B19: Land Rights | G19: 0 | H19: 0 | I19: 0 | J19: 0 | L19: 0 | M19: 0 | O19: 0
A20: 1815 | B20: Transformer Station Equipment >50 kV | G20: 0 | H20: 0 | I20: 0 | J20: 0 | L20: 0 | M20: 0 | O20: 0
A21: 1820 | B21: Distribution Station Equipment <50 kV | C21: ='App.2-B_Fixed Asset Continuity'!E290-'App.2-B_Fixed Asset Continuity'!J290 -> 3706996.78 | D21: ='App.2-B_Fixed Asset Continuity'!F290 -> 512294 | E21: 25.31031216 | F21: 38.65 | G21: 0.02587322122 | H21: 146461.9147 | I21: 6627.347995 | J21: 153089.2627 | K21: ='App.2-B_Fixed Asset Continuity'!K290 -> 153110.923 | L21: -21.66033851 | M21: 13254.69599 | N21: 5604.464879 | O21: 154112.1458
A22: 1825 | B22: Storage Battery Equipment | C22: ='App.2-B_Fixed Asset Continuity'!E291-'App.2-B_Fixed Asset Continuity'!J291 -> 0 | D22: ='App.2-B_Fixed Asset Continuity'!F291 -> 0 | G22: 0 | H22: 0 | I22: 0 | J22: 0 | K22: ='App.2-B_Fixed Asset Continuity'!K291 -> 0 | L22: 0 | M22: 0 | O22: 0
A23: 1830 | B23: Poles, Towers & Fixtures | C23: ='App.2-B_Fixed Asset Continuity'!E292-'App.2-B_Fixed Asset Continuity'!J292 -> 2307576.628 | D23: ='App.2-B_Fixed Asset Continuity'!F292 -> 271798 | E23: 33.78875559 | F23: 45 | G23: 0.02222222222 | H23: 68294.21766 | I23: 3019.977778 | J23: 71314.19543 | K23: ='App.2-B_Fixed Asset Continuity'!K292 -> 71314.19543 | L23: 0 | M23: 6039.955556 | N23: 351.7340168 | O23: 73982.43919
A24: 1835 | B24: Overhead Conductors & Devices | C24: ='App.2-B_Fixed Asset Continuity'!E293-'App.2-B_Fixed Asset Continuity'!J293 -> 1076473.922 | D24: ='App.2-B_Fixed Asset Continuity'!F293 -> 91160 | E24: 44.28295983 | F24: 60 | G24: 0.01666666667 | H24: 24308.98761 | I24: 759.6666667 | J24: 25068.65427 | K24: ='App.2-B_Fixed Asset Continuity'!K293 -> 25068.65427 | L24: 0 | M24: 1519.333333 | O24: 25828.32094
A25: 1840 | B25: Underground Conduit | C25: ='App.2-B_Fixed Asset Continuity'!E294-'App.2-B_Fixed Asset Continuity'!J294 -> 618549.1229 | D25: ='App.2-B_Fixed Asset Continuity'!F294 -> 0 | E25: 38.60803495 | F25: 40 | G25: 0.025 | H25: 16021.2537 | I25: 0 | J25: 16021.2537 | K25: ='App.2-B_Fixed Asset Continuity'!K294 -> 16021.2537 | L25: 1.818989404e-12 | M25: 0 | O25: 16021.2537
A26: 1845 | B26: Underground Conductors & Devices | C26: ='App.2-B_Fixed Asset Continuity'!E295-'App.2-B_Fixed Asset Continuity'!J295 -> 542490.0471 | D26: ='App.2-B_Fixed Asset Continuity'!F295 -> 392500 | E26: 21.30240344 | F26: 40 | G26: 0.025 | H26: 25466.14276 | I26: 4906.25 | J26: 30372.39276 | K26: ='App.2-B_Fixed Asset Continuity'!K295 -> 30372.39726 | L26: -0.004499999999 | M26: 9812.5 | O26: 35278.64276
A27: 1850 | B27: Line Transformers | C27: ='App.2-B_Fixed Asset Continuity'!E296-'App.2-B_Fixed Asset Continuity'!J296 -> 1452425.3 | D27: ='App.2-B_Fixed Asset Continuity'!F296 -> 303600.2 | E27: 27.6647072 | F27: 40 | G27: 0.025 | H27: 52501.01834 | I27: 3795.0025 | J27: 56296.02084 | K27: ='App.2-B_Fixed Asset Continuity'!K296 -> 56296.02084 | L27: 0 | M27: 7590.005 | N27: 0 | O27: 60091.02334
A28: 1855 | B28: Services (Overhead & Underground) | C28: ='App.2-B_Fixed Asset Continuity'!E297-'App.2-B_Fixed Asset Continuity'!J297 -> 279393.92 | D28: ='App.2-B_Fixed Asset Continuity'!F297 -> 30900 | E28: 59.03802676 | F28: 60 | G28: 0.01666666667 | H28: 4732.440011 | I28: 257.5 | J28: 4989.940011 | K28: ='App.2-B_Fixed Asset Continuity'!K297 -> 4989.940011 | L28: 0 | M28: 515 | N28: -120.58 | O28: 5368.020011
A29: 1860 | B29: Meters | C29: ='App.2-B_Fixed Asset Continuity'!E298-'App.2-B_Fixed Asset Continuity'!J298 -> 401364.39 | D29: ='App.2-B_Fixed Asset Continuity'!F298 -> 11000 | E29: 11.23388911 | F29: 25 | G29: 0.04 | H29: 35728 | I29: 220 | J29: 35948 | K29: ='App.2-B_Fixed Asset Continuity'!K298 -> 35948 | L29: 0 | M29: 440 | N29: 2534 | O29: 33634
A30: 1860 | B30: Meters (Smart Meters) | C30: 0 | D30: ='App.2-B_Fixed Asset Continuity'!F299 -> 1204470.59 | F30: =+D30/K30 -> 15.89554028 | G30: 0.06291072729 | H30: 0 | I30: =IF(F30=0,0,+(D30)/F30) -> 75774.12082 | J30: 75774.12082 | K30: ='App.2-B_Fixed Asset Continuity'!K299 -> 75774.12082 | L30: 0 | M30: 75774.12082 | O30: 75774.12082
A31: 1905 | B31: Land | C31: ='App.2-B_Fixed Asset Continuity'!E300-'App.2-B_Fixed Asset Continuity'!J300 -> 0 | D31: ='App.2-B_Fixed Asset Continuity'!F300 -> 0 | G31: 0 | H31: 0 | I31: 0 | J31: 0 | K31: ='App.2-B_Fixed Asset Continuity'!K300 -> 0 | L31: 0 | M31: 0 | O31: 0
A32: 1908 | B32: Buildings & Fixtures | C32: ='App.2-B_Fixed Asset Continuity'!E301-'App.2-B_Fixed Asset Continuity'!J301 -> 581356.85 | D32: ='App.2-B_Fixed Asset Continuity'!F301 -> 42200 | E32: 35.57357763 | F32: 50 | G32: 0.02 | H32: 16342.37793 | I32: 422 | J32: 16764.37793 | K32: ='App.2-B_Fixed Asset Continuity'!K301 -> 16764.37793 | L32: 0 | M32: 844 | N32: 942.43 | O32: 16243.94793
A33: 1910 | B33: Leasehold Improvements | C33: ='App.2-B_Fixed Asset Continuity'!E302-'App.2-B_Fixed Asset Continuity'!J302 -> 0 | D33: ='App.2-B_Fixed Asset Continuity'!F302 -> 0 | G33: 0 | H33: 0 | I33: 0 | J33: 0 | K33: ='App.2-B_Fixed Asset Continuity'!K302 -> 0 | L33: 0 | M33: 0 | O33: 0
A34: 1915 | B34: Office Furniture & Equipment (10 years) | C34: ='App.2-B_Fixed Asset Continuity'!E303-'App.2-B_Fixed Asset Continuity'!J303 -> 33995.4 | D34: ='App.2-B_Fixed Asset Continuity'!F303 -> 0 | E34: =C34/K34 -> 6.31986957 | F34: 10 | G34: 0.1 | H34: 5379.13 | I34: 0 | J34: 5379.13 | K34: ='App.2-B_Fixed Asset Continuity'!K303 -> 5379.13 | L34: 0 | M34: 0 | N34: 1022.13 | O34: 4357
A35: 1915 | B35: Office Furniture & Equipment (5 years) | C35: ='App.2-B_Fixed Asset Continuity'!E304-'App.2-B_Fixed Asset Continuity'!J304 -> 0 | D35: ='App.2-B_Fixed Asset Continuity'!F304 -> 0 | G35: 0 | H35: 0 | I35: 0 | J35: 0 | K35: ='App.2-B_Fixed Asset Continuity'!K304 -> 0 | L35: 0 | M35: 0 | O35: 0
A36: 1920 | B36: Computer Equipment - Hardware | C36: ='App.2-B_Fixed Asset Continuity'!E305-'App.2-B_Fixed Asset Continuity'!J305 -> 45707.62 | D36: ='App.2-B_Fixed Asset Continuity'!F305 -> 29500 | E36: 2.737179917 | F36: 5 | G36: 0.2 | H36: 16698.8 | I36: 2950 | J36: 19648.8 | K36: ='App.2-B_Fixed Asset Continuity'!K305 -> 19648.8 | L36: 0 | M36: 5900 | N36: 2450.12 | O36: 20148.68
A37: 1920 | B37: Computer Equip.-Hardware(Smart Meters) | C37: 0 | D37: ='App.2-B_Fixed Asset Continuity'!F306 -> 18763.96 | F37: =+D37/K37 -> 5 | G37: 0.2 | H37: 0 | I37: =IF(F37=0,0,+(D37)/F37) -> 3752.792 | J37: 3752.792 | K37: ='App.2-B_Fixed Asset Continuity'!K306 -> 3752.792 | L37: 0 | M37: 3752.792 | O37: 3752.792
A38: 1925 | B38: Software | C38: ='App.2-B_Fixed Asset Continuity'!E307-'App.2-B_Fixed Asset Continuity'!J307 -> 70609.8 | D38: ='App.2-B_Fixed Asset Continuity'!F307 -> 10200 | E38: 2.258170982 | F38: 5 | G38: 0.2 | H38: 31268.58 | I38: 1020 | J38: 32288.58 | K38: ='App.2-B_Fixed Asset Continuity'!K307 -> 32288.58 | L38: 3.637978807e-12 | M38: 2040 | N38: 14893.98 | O38: 18414.6
A39: 1925 | B39: Software (Smart Meters) | C39: 0 | D39: ='App.2-B_Fixed Asset Continuity'!F308 -> 68016 | F39: =+D39/K39 -> 5 | G39: 0.2 | H39: 0 | I39: =IF(F39=0,0,+(D39)/F39) -> 13603.2 | J39: 13603.2 | K39: ='App.2-B_Fixed Asset Continuity'!K308 -> 13603.2 | L39: 0 | M39: 13603.2 | O39: 13603.2
A40: 1930 | B40: Transportation Equipment - Large Vehicles | C40: ='App.2-B_Fixed Asset Continuity'!E309-'App.2-B_Fixed Asset Continuity'!J309 -> 375221.0513 | D40: ='App.2-B_Fixed Asset Continuity'!F309 -> 525400 | E40: 6.179081816 | F40: 8 | G40: 0.125 | H40: 60724.4025 | I40: 32837.5 | J40: 93561.9025 | K40: ='App.2-B_Fixed Asset Continuity'!K309 -> 93561.9025 | L40: 0 | M40: 65675 | O40: 126399.4025
A41: 1930 | B41: Transportation Equipment - Small Vehicles | C41: ='App.2-B_Fixed Asset Continuity'!E310-'App.2-B_Fixed Asset Continuity'!J310 -> 38827.782 | D41: ='App.2-B_Fixed Asset Continuity'!F310 -> 10799.99 | E41: 4.350037377 | F41: 8 | G41: 0.125 | H41: 8925.850202 | I41: 674.999375 | J41: 9600.849577 | K41: ='App.2-B_Fixed Asset Continuity'!K310 -> 9600.850202 | L41: -0.0006250000006 | M41: 1349.99875 | N41: 789.075 | O41: 9486.773952
A42: 1935 | B42: Stores Equipment | C42: ='App.2-B_Fixed Asset Continuity'!E311-'App.2-B_Fixed Asset Continuity'!J311 -> -0.02 | D42: ='App.2-B_Fixed Asset Continuity'!F311 -> 0 | G42: 0 | H42: 0 | I42: 0 | J42: 0 | K42: ='App.2-B_Fixed Asset Continuity'!K311 -> 0 | L42: 0 | M42: 0 | O42: 0
A43: 1940 | B43: Tools, Shop & Garage Equipment | C43: ='App.2-B_Fixed Asset Continuity'!E312-'App.2-B_Fixed Asset Continuity'!J312 -> 64934.18 | D43: ='App.2-B_Fixed Asset Continuity'!F312 -> 16900 | E43: 6.028612014 | F43: 10 | G43: 0.1 | H43: 10771 | I43: 845 | J43: 11616 | K43: ='App.2-B_Fixed Asset Continuity'!K312 -> 11616 | L43: 0 | M43: 1690 | O43: 12461
A44: 1945 | B44: Measurement & Testing Equipment | C44: ='App.2-B_Fixed Asset Continuity'!E313-'App.2-B_Fixed Asset Continuity'!J313 -> 0 | D44: ='App.2-B_Fixed Asset Continuity'!F313 -> 0 | G44: 0 | H44: 0 | I44: 0 | J44: 0 | K44: ='App.2-B_Fixed Asset Continuity'!K313 -> 0 | L44: 0 | M44: 0 | O44: 0
A45: 1950 | B45: Power Operated Equipment | C45: ='App.2-B_Fixed Asset Continuity'!E314-'App.2-B_Fixed Asset Continuity'!J314 -> 0 | D45: ='App.2-B_Fixed Asset Continuity'!F314 -> 0 | G45: 0 | H45: 0 | I45: 0 | J45: 0 | K45: ='App.2-B_Fixed Asset Continuity'!K314 -> 0 | L45: 0 | M45: 0 | O45: 0
A46: 1955 | B46: Communications Equipment | C46: ='App.2-B_Fixed Asset Continuity'!E315-'App.2-B_Fixed Asset Continuity'!J315 -> 2079 | D46: ='App.2-B_Fixed Asset Continuity'!F315 -> 0 | E46: =+C46/K46 -> 6.93 | F46: 10 | G46: 0.1 | H46: 300 | I46: 0 | J46: 300 | K46: ='App.2-B_Fixed Asset Continuity'!K315 -> 300 | L46: 0 | M46: 0 | O46: 300
A47: 1955 | B47: Communication Equipment (Smart Meters) | C47: ='App.2-B_Fixed Asset Continuity'!E316-'App.2-B_Fixed Asset Continuity'!J316 -> 0 | D47: ='App.2-B_Fixed Asset Continuity'!F316 -> 0 | G47: 0 | H47: 0 | I47: 0 | J47: 0 | K47: ='App.2-B_Fixed Asset Continuity'!K316 -> 0 | L47: 0 | M47: 0 | O47: 0
A48: 1960 | B48: Miscellaneous Equipment | C48: ='App.2-B_Fixed Asset Continuity'!E317-'App.2-B_Fixed Asset Continuity'!J317 -> 441.86 | D48: ='App.2-B_Fixed Asset Continuity'!F317 -> 0 | E48: 2.496384181 | G48: 0 | H48: 177 | I48: 0 | J48: 177 | K48: ='App.2-B_Fixed Asset Continuity'!K317 -> 177 | L48: 0 | M48: 0 | O48: 177
A49: 1975 | B49: Load Management Controls Utility Premises | C49: ='App.2-B_Fixed Asset Continuity'!E318-'App.2-B_Fixed Asset Continuity'!J318 -> 0 | D49: ='App.2-B_Fixed Asset Continuity'!F318 -> 0 | G49: 0 | H49: 0 | I49: 0 | J49: 0 | K49: ='App.2-B_Fixed Asset Continuity'!K318 -> 0 | L49: 0 | M49: 0 | O49: 0
A50: 1980 | B50: System Supervisor Equipment | C50: ='App.2-B_Fixed Asset Continuity'!E319-'App.2-B_Fixed Asset Continuity'!J319 -> 263930.79 | D50: ='App.2-B_Fixed Asset Continuity'!F319 -> 0 | E50: 16.44687225 | F50: 20 | G50: =IF(F50=0,0,1/F50) -> 0.05 | H50: =IF(E50=0,0,+C50/E50) -> 16047.47614 | I50: =IF(F50=0,0,+(D50*0.5)/F50) -> 0 | J50: =IF(ISERROR(+H50+I50),0,+H50+I50) -> 16047.47614 | K50: ='App.2-B_Fixed Asset Continuity'!K319 -> 16047.47614 | L50: =IF(ISERROR(+J50-K50),0,+J50-K50) -> 0 | M50: =IF(F50=0,0,+(D50)/F50) -> 0 | O50: =IF(ISERROR(+M50+H50-N50),0,+M50+H50-N50) -> 16047.47614
A51: 1985 | B51: Miscellaneous Fixed Assets | C51: ='App.2-B_Fixed Asset Continuity'!E320-'App.2-B_Fixed Asset Continuity'!J320 -> 0 | D51: ='App.2-B_Fixed Asset Continuity'!F320 -> 0 | G51: 0 | H51: 0 | I51: 0 | J51: 0 | K51: ='App.2-B_Fixed Asset Continuity'!K320 -> 0 | L51: 0 | M51: 0 | O51: 0
A52: 1995 | B52: Contributions & Grants | C52: ='App.2-B_Fixed Asset Continuity'!E321-'App.2-B_Fixed Asset Continuity'!J321 -> -1621820.64 | D52: ='App.2-B_Fixed Asset Continuity'!F321 -> -594100 | E52: 38.20893714 | F52: 40.81478428 | G52: 0.02450092577 | H52: -42446.10716 | I52: -7278 | J52: -49724.10716 | K52: ='App.2-B_Fixed Asset Continuity'!K321 -> -49724.10716 | L52: 0 | M52: -14556 | O52: -57002.10716
G56: 0 | H56: 0 | I56: 0 | J56: 0 | L56: 0 | M56: 0 | O56: 0
G57: 0 | H57: 0 | I57: 0 | J57: 0 | L57: 0 | M57: 0 | O57: 0
G58: 0 | H58: 0 | I58: 0 | J58: 0 | L58: 0 | M58: 0 | O58: 0
G59: 0 | H59: 0 | I59: 0 | J59: 0 | L59: =IF(ISERROR(+J59-K59),0,+J59-K59) -> 0 | M59: 0 | O59: 0
B60: Total | C60: =SUM(C16:C59) -> 10639786.66 | D60: =SUM(D16:D59) -> 2945402.74 | E60: 388.7578119 | F60: 541.3603246 | H60: =SUM(H16:H59) -> 497702.4844 | I60: =SUM(I16:I59) -> 144187.3571 | J60: 641889.8415 | K60: 641911.507 | L60: -21.66546351 | M60: 195244.6014 | N60: 28467.3539 | O60: 664479.7319
C61: ='App.2-B_Fixed Asset Continuity'!E324-'App.2-B_Fixed Asset Continuity'!J324 -> 10438411.64
A62: Notes: | C62: =C61-C60 -> -201375.0193
A64: 1 | B64: Board policy of the "half-year" rule - the applicant must ensure that additions in the year attract a half-year depreciation expense in the first year. Deviations from this standard practice must be supported in the application.
A65: 2 | B65: The applicant must provide an explanation of material variances in evidence
A66: 3 | B66: The applicant should ensure that the years for new additions of assets are the asset useful lives determined by management in accordance with IFRS.
A67: 4 | B67: A recalculation should be performed to determine the average remaining life of opening balance of assets (i.e. excluding 2012 additions) under IFRS. For example, Asset A had a useful life of 20 years under CGAAP. On January 1, 2012, the date of transition, Asset A was 3 years depreciated. As a result, Asset A would have a remaining service life of 17 years (20 years less 3 years) under CGAAP as of January 1, 2012. Due to the transition to IFRS, management re-assessed the asset useful lives under IFRS principles and concluded that the revised useful life of Asset A is now 30 years. Therefore, the average remaining useful life of opening balance of Asset A is determined to be 27 years (30 years less 3 years) under IFRS as of January 1, 2012.
A68: 5 | B68: NBV must exclude assets still on the books but which have been fully amortized or depreciated.
A69: 6 | B69: This column refers to the calculated full year depreciation but excludes the depreciation expense on assets fully depreciated during the year. This column is used for the purpose of calculating depreciation expense in the following year on the next worksheet.
A71: General: | B71: Applicants must provide a breakdown of depreciation and amortization expense in the above format for all relevant accounts. Asset Retirement Obligations (AROs), depreciation and accretion expense should be disclosed separately consistent with the Notes of historical Audited Financial Statements.

Sheet App.2-CH_MIFRS_DepExp_2013
I1: File Number: | J1: 0
I2: Exhibit: | J2: 4
I3: Tab: | J3: 2
I4: Schedule: | J4: 7
I5: Page: | J5: 10 of 10
I7: Date: | J7: 2012-08-31
A9: Appendix 2-CH
A10: Depreciation and Amortization Expense
A11: Assumes the applicant adopted IFRS for financial reporting purposes January 1, 2013
C12: Year | D12: 2013 | E12: MIFRS
A14: Account | B14: Description | C14: Additions | D14: Years (new additions only) | E14: Depreciation Rate on New Additions | F14: 2013 Depreciation Expense 1 | G14: 2013 Depreciation Expense per Appendix 2-B Fixed Assets, Column K (l) | H14: Variance 2
C15: (d) | D15: (f) | E15: (g) = 1 / (f) | F15: (h)=2012 Full Year Depreciation + ((d)*0.5)/(f) | H15: (m) = (h) - (l)
A16: 1611 | B16: Computer Software (Formally known as Account 1925) | E16: =IF(D16=0,0,1/D16) -> 0 | F16: =IF(D16=0,'App.2-CG_MIFRS_DepExp_2012'!O16,+'App.2-CG_MIFRS_DepExp_2012'!O16+((C16*0.5)/D16)) -> 0 | G16: =+'App.2-B_Fixed Asset Continuity'!K335 -> 0 | H16: =IF(ISERROR(+F16-G16),0,+F16-G16) -> 0
A17: 1612 | B17: Land Rights (Formally known as Account 1906) | E17: =IF(D17=0,0,1/D17) -> 0 | F17: =IF(D17=0,'App.2-CG_MIFRS_DepExp_2012'!O17,+'App.2-CG_MIFRS_DepExp_2012'!O17+((C17*0.5)/D17)) -> 0 | G17: =+'App.2-B_Fixed Asset Continuity'!K336 -> 0 | H17: =IF(ISERROR(+F17-G17),0,+F17-G17) -> 0
A18: 1805 | B18: Land | E18: 0 | F18: =IF(D18=0,'App.2-CG_MIFRS_DepExp_2012'!O18,+'App.2-CG_MIFRS_DepExp_2012'!O18+((C18*0.5)/D18)) -> 0 | G18: =+'App.2-B_Fixed Asset Continuity'!K337 -> 0 | H18: 0
A19: 1806 | B19: Land Rights | E19: 0 | F19: =IF(D19=0,'App.2-CG_MIFRS_DepExp_2012'!O19,+'App.2-CG_MIFRS_DepExp_2012'!O19+((C19*0.5)/D19)) -> 0 | G19: =+'App.2-B_Fixed Asset Continuity'!K338 -> 0 | H19: 0
A20: 1815 | B20: Transformer Station Equipment >50 kV | E20: 0 | F20: =IF(D20=0,'App.2-CG_MIFRS_DepExp_2012'!O20,+'App.2-CG_MIFRS_DepExp_2012'!O20+((C20*0.5)/D20)) -> 0 | G20: =+'App.2-B_Fixed Asset Continuity'!K340 -> 0 | H20: 0
A21: 1820 | B21: Distribution Station Equipment <50 kV | C21: =+'App.2-B_Fixed Asset Continuity'!F341 -> 896700 | D21: 41.08129869 | E21: 0.02434197632 | F21: =IF(D21=0,'App.2-CG_MIFRS_DepExp_2012'!O21,+'App.2-CG_MIFRS_DepExp_2012'!O21+((C21*0.5)/D21)) -> 165025.8709 | G21: =+'App.2-B_Fixed Asset Continuity'!K341 -> 165069.1915 | H21: -43.32067702
A22: 1825 | B22: Storage Battery Equipment | E22: 0 | F22: =IF(D22=0,'App.2-CG_MIFRS_DepExp_2012'!O22,+'App.2-CG_MIFRS_DepExp_2012'!O22+((C22*0.5)/D22)) -> 0 | G22: =+'App.2-B_Fixed Asset Continuity'!K342 -> 0 | H22: 0
A23: 1830 | B23: Poles, Towers & Fixtures | C23: =+'App.2-B_Fixed Asset Continuity'!F343 -> 353100 | D23: =+'App.2-CG_MIFRS_DepExp_2012'!F23 -> 45 | E23: 0.02222222222 | F23: =IF(D23=0,'App.2-CG_MIFRS_DepExp_2012'!O23,+'App.2-CG_MIFRS_DepExp_2012'!O23+((C23*0.5)/D23)) -> 77905.77253 | G23: =+'App.2-B_Fixed Asset Continuity'!K343 -> 78257.50654 | H23: -351.7340168
A24: 1835 | B24: Overhead Conductors & Devices | C24: =+'App.2-B_Fixed Asset Continuity'!F344 -> 99700 | D24: =+'App.2-CG_MIFRS_DepExp_2012'!F24 -> 60 | E24: 0.01666666667 | F24: =IF(D24=0,'App.2-CG_MIFRS_DepExp_2012'!O24,+'App.2-CG_MIFRS_DepExp_2012'!O24+((C24*0.5)/D24)) -> 26659.15427 | G24: =+'App.2-B_Fixed Asset Continuity'!K344 -> 26659.15427 | H24: 0
A25: 1840 | B25: Underground Conduit | C25: =+'App.2-B_Fixed Asset Continuity'!F345 -> 0 | D25: =+'App.2-CG_MIFRS_DepExp_2012'!F25 -> 40 | E25: 0.025 | F25: =IF(D25=0,'App.2-CG_MIFRS_DepExp_2012'!O25,+'App.2-CG_MIFRS_DepExp_2012'!O25+((C25*0.5)/D25)) -> 16021.2537 | G25: =+'App.2-B_Fixed Asset Continuity'!K345 -> 16021.2537 | H25: 1.818989404e-12
A26: 1845 | B26: Underground Conductors & Devices | C26: =+'App.2-B_Fixed Asset Continuity'!F346 -> 387500 | D26: =+'App.2-CG_MIFRS_DepExp_2012'!F26 -> 40 | E26: 0.025 | F26: =IF(D26=0,'App.2-CG_MIFRS_DepExp_2012'!O26,+'App.2-CG_MIFRS_DepExp_2012'!O26+((C26*0.5)/D26)) -> 40122.39276 | G26: =+'App.2-B_Fixed Asset Continuity'!K346 -> 40122.40176 | H26: -0.008999999998
A27: 1850 | B27: Line Transformers | C27: =+'App.2-B_Fixed Asset Continuity'!F347 -> 318900 | D27: =+'App.2-CG_MIFRS_DepExp_2012'!F27 -> 40 | E27: 0.025 | F27: =IF(D27=0,'App.2-CG_MIFRS_DepExp_2012'!O27,+'App.2-CG_MIFRS_DepExp_2012'!O27+((C27*0.5)/D27)) -> 64077.27334 | G27: =+'App.2-B_Fixed Asset Continuity'!K347 -> 64077.27334 | H27: -7.275957614e-12
A28: 1855 | B28: Services (Overhead & Underground) | C28: =+'App.2-B_Fixed Asset Continuity'!F348 -> 30900 | D28: 60 | E28: 0.01666666667 | F28: =IF(D28=0,'App.2-CG_MIFRS_DepExp_2012'!O28,+'App.2-CG_MIFRS_DepExp_2012'!O28+((C28*0.5)/D28)) -> 5625.520011 | G28: =+'App.2-B_Fixed Asset Continuity'!K348 -> 5625.520011 | H28: 0
A29: 1860 | B29: Meters | C29: =+'App.2-B_Fixed Asset Continuity'!F349 -> 10000 | D29: 25 | E29: 0.04 | F29: =IF(D29=0,'App.2-CG_MIFRS_DepExp_2012'!O29,+'App.2-CG_MIFRS_DepExp_2012'!O29+((C29*0.5)/D29)) -> 33834 | G29: =+'App.2-B_Fixed Asset Continuity'!K349 -> 33834 | H29: 0
A30: 1860 | B30: Meters (Smart Meters) | C30: =+'App.2-B_Fixed Asset Continuity'!F350 -> 0 | D30: 15 | E30: 0.06666666667 | F30: =IF(D30=0,'App.2-CG_MIFRS_DepExp_2012'!O30,+'App.2-CG_MIFRS_DepExp_2012'!O30+((C30*0.5)/D30)) -> 75774.12082 | G30: =+'App.2-B_Fixed Asset Continuity'!K350 -> 75774.12082 | H30: 0
A31: 1905 | B31: Land | E31: 0 | F31: =IF(D31=0,'App.2-CG_MIFRS_DepExp_2012'!O31,+'App.2-CG_MIFRS_DepExp_2012'!O31+((C31*0.5)/D31)) -> 0 | G31: =+'App.2-B_Fixed Asset Continuity'!K351 -> 0 | H31: 0
A32: 1908 | B32: Buildings & Fixtures | C32: =+'App.2-B_Fixed Asset Continuity'!F352 -> 25000 | D32: 50 | E32: 0.02 | F32: =IF(D32=0,'App.2-CG_MIFRS_DepExp_2012'!O32,+'App.2-CG_MIFRS_DepExp_2012'!O32+((C32*0.5)/D32)) -> 16493.94793 | G32: =+'App.2-B_Fixed Asset Continuity'!K352 -> 16493.94793 | H32: 0
A33: 1910 | B33: Leasehold Improvements | E33: 0 | F33: =IF(D33=0,'App.2-CG_MIFRS_DepExp_2012'!O33,+'App.2-CG_MIFRS_DepExp_2012'!O33+((C33*0.5)/D33)) -> 0 | G33: =+'App.2-B_Fixed Asset Continuity'!K353 -> 0 | H33: 0
A34: 1915 | B34: Office Furniture & Equipment (10 years) | C34: =+'App.2-B_Fixed Asset Continuity'!F354 -> 0 | D34: 10 | E34: 0.1 | F34: =IF(D34=0,'App.2-CG_MIFRS_DepExp_2012'!O34,+'App.2-CG_MIFRS_DepExp_2012'!O34+((C34*0.5)/D34)) -> 4357 | G34: =+'App.2-B_Fixed Asset Continuity'!K354 -> 4357 | H34: 0
A35: 1915 | B35: Office Furniture & Equipment (5 years) | E35: 0 | F35: =IF(D35=0,'App.2-CG_MIFRS_DepExp_2012'!O35,+'App.2-CG_MIFRS_DepExp_2012'!O35+((C35*0.5)/D35)) -> 0 | G35: =+'App.2-B_Fixed Asset Continuity'!K355 -> 0 | H35: 0
A36: 1920 | B36: Computer Equipment - Hardware | C36: =+'App.2-B_Fixed Asset Continuity'!F356 -> 22200 | D36: 5 | E36: 0.2 | F36: =IF(D36=0,'App.2-CG_MIFRS_DepExp_2012'!O36,+'App.2-CG_MIFRS_DepExp_2012'!O36+((C36*0.5)/D36)) -> 22368.68 | G36: =+'App.2-B_Fixed Asset Continuity'!K356 -> 22367.32 | H36: 1.36
A37: 1920 | B37: Computer Equip.-Hardware(Smart Meters) | C37: =+'App.2-B_Fixed Asset Continuity'!F357 -> 0 | E37: 0 | F37: =IF(D37=0,'App.2-CG_MIFRS_DepExp_2012'!O37,+'App.2-CG_MIFRS_DepExp_2012'!O37+((C37*0.5)/D37)) -> 3752.792 | G37: =+'App.2-B_Fixed Asset Continuity'!K357 -> 3752.792 | H37: 0
A38: 1925 | B38: Software | C38: =+'App.2-B_Fixed Asset Continuity'!F358 -> 65000 | D38: 5 | E38: 0.2 | F38: =IF(D38=0,'App.2-CG_MIFRS_DepExp_2012'!O38,+'App.2-CG_MIFRS_DepExp_2012'!O38+((C38*0.5)/D38)) -> 24914.6 | G38: =+'App.2-B_Fixed Asset Continuity'!K358 -> 24911.4 | H38: 3.2
A39: 1925 | B39: Software (Smart Meters) | C39: =+'App.2-B_Fixed Asset Continuity'!F359 -> 0 | D39: 5 | E39: 0.2 | F39: =IF(D39=0,'App.2-CG_MIFRS_DepExp_2012'!O39,+'App.2-CG_MIFRS_DepExp_2012'!O39+((C39*0.5)/D39)) -> 13603.2 | G39: =+'App.2-B_Fixed Asset Continuity'!K359 -> 13603.2 | H39: 0
A40: 1930 | B40: Transportation Equipment - Large Vehicles | C40: =+'App.2-B_Fixed Asset Continuity'!F360 -> 0 | D40: 8 | E40: 0.125 | F40: =IF(D40=0,'App.2-CG_MIFRS_DepExp_2012'!O40,+'App.2-CG_MIFRS_DepExp_2012'!O40+((C40*0.5)/D40)) -> 126399.4025 | G40: =+'App.2-B_Fixed Asset Continuity'!K360 -> 126399.4025 | H40: 0
A41: 1930 | B41: Transportation Equipment - Small Vehicles | C41: =+'App.2-B_Fixed Asset Continuity'!F361 -> 0 | D41: 8 | E41: 0.125 | F41: =IF(D41=0,'App.2-CG_MIFRS_DepExp_2012'!O41,+'App.2-CG_MIFRS_DepExp_2012'!O41+((C41*0.5)/D41)) -> 9486.773952 | G41: =+'App.2-B_Fixed Asset Continuity'!K361 -> 9486.775202 | H41: -0.001249999999
A42: 1935 | B42: Stores Equipment | E42: 0 | F42: =IF(D42=0,'App.2-CG_MIFRS_DepExp_2012'!O42,+'App.2-CG_MIFRS_DepExp_2012'!O42+((C42*0.5)/D42)) -> 0 | G42: =+'App.2-B_Fixed Asset Continuity'!K362 -> 0 | H42: 0
A43: 1940 | B43: Tools, Shop & Garage Equipment | C43: =+'App.2-B_Fixed Asset Continuity'!F363 -> 10000 | D43: 10 | E43: 0.1 | F43: =IF(D43=0,'App.2-CG_MIFRS_DepExp_2012'!O43,+'App.2-CG_MIFRS_DepExp_2012'!O43+((C43*0.5)/D43)) -> 12961 | G43: =+'App.2-B_Fixed Asset Continuity'!K363 -> 12961 | H43: 0
A44: 1945 | B44: Measurement & Testing Equipment | E44: 0 | F44: =IF(D44=0,'App.2-CG_MIFRS_DepExp_2012'!O44,+'App.2-CG_MIFRS_DepExp_2012'!O44+((C44*0.5)/D44)) -> 0 | G44: =+'App.2-B_Fixed Asset Continuity'!K364 -> 0 | H44: 0
A45: 1950 | B45: Power Operated Equipment | E45: 0 | F45: =IF(D45=0,'App.2-CG_MIFRS_DepExp_2012'!O45,+'App.2-CG_MIFRS_DepExp_2012'!O45+((C45*0.5)/D45)) -> 0 | G45: =+'App.2-B_Fixed Asset Continuity'!K365 -> 0 | H45: 0
A46: 1955 | B46: Communications Equipment | C46: =+'App.2-B_Fixed Asset Continuity'!F366 -> 0 | E46: 0 | F46: =IF(D46=0,'App.2-CG_MIFRS_DepExp_2012'!O46,+'App.2-CG_MIFRS_DepExp_2012'!O46+((C46*0.5)/D46)) -> 300 | G46: =+'App.2-B_Fixed Asset Continuity'!K366 -> 300 | H46: 0
A47: 1955 | B47: Communication Equipment (Smart Meters) | E47: 0 | F47: =IF(D47=0,'App.2-CG_MIFRS_DepExp_2012'!O47,+'App.2-CG_MIFRS_DepExp_2012'!O47+((C47*0.5)/D47)) -> 0 | G47: =+'App.2-B_Fixed Asset Continuity'!K367 -> 0 | H47: 0
A48: 1960 | B48: Miscellaneous Equipment | C48: =+'App.2-B_Fixed Asset Continuity'!F368 -> 0 | E48: 0 | F48: =IF(D48=0,'App.2-CG_MIFRS_DepExp_2012'!O48,+'App.2-CG_MIFRS_DepExp_2012'!O48+((C48*0.5)/D48)) -> 177 | G48: =+'App.2-B_Fixed Asset Continuity'!K368 -> 177 | H48: 0
A49: 1975 | B49: Load Management Controls Utility Premises | E49: 0 | F49: =IF(D49=0,'App.2-CG_MIFRS_DepExp_2012'!O49,+'App.2-CG_MIFRS_DepExp_2012'!O49+((C49*0.5)/D49)) -> 0 | G49: =+'App.2-B_Fixed Asset Continuity'!K369 -> 0 | H49: 0
A50: 1980 | B50: System Supervisor Equipment | C50: =+'App.2-B_Fixed Asset Continuity'!F370 -> 120000 | D50: 20 | E50: 0.05 | F50: =IF(D50=0,'App.2-CG_MIFRS_DepExp_2012'!O50,+'App.2-CG_MIFRS_DepExp_2012'!O50+((C50*0.5)/D50)) -> 19047.47614 | G50: =+'App.2-B_Fixed Asset Continuity'!K370 -> 19047.47614 | H50: 0
A51: 1985 | B51: Miscellaneous Fixed Assets | E51: 0 | F51: =IF(D51=0,'App.2-CG_MIFRS_DepExp_2012'!O57,+'App.2-CG_MIFRS_DepExp_2012'!O57+((C51*0.5)/D51)) -> 0 | G51: =+'App.2-B_Fixed Asset Continuity'!K371 -> 0 | H51: 0
A52: 1995 | B52: Contributions & Grants | C52: =+'App.2-B_Fixed Asset Continuity'!F372 -> -588100 | D52: 40.80061052 | E52: 0.02450943717 | F52: =IF(D52=0,'App.2-CG_MIFRS_DepExp_2012'!O52,+'App.2-CG_MIFRS_DepExp_2012'!O52+((C52*0.5)/D52)) -> -64209.10716 | G52: =+'App.2-B_Fixed Asset Continuity'!K372 -> -64211.10716 | H52: 2
E53: 0 | F53: =IF(D53=0,'App.2-CG_MIFRS_DepExp_2012'!O59,+'App.2-CG_MIFRS_DepExp_2012'!O59+((C53*0.5)/D53)) -> 0 | G53: =+'App.2-B_Fixed Asset Continuity'!K373 -> 0 | H53: 0
B54: Total | C54: =SUM(C16:C53) -> 1750900 | F54: =SUM(F16:F53) -> 694698.1237 | G54: =SUM(G16:G53) -> 695086.6286 | H54: -388.5049438
B55: Depreciation expense adjustment resulting from amortization of Account 1575 | F55: =+'App.2-EB_PP&E Deferral Account'!F43 -> 0
B56: Total Depreciation expense to be included in the test year revenue requirement | F56: =F55+F54 -> 694698.1237
A58: Notes:
A59: 1 | B59: Board policy of the "half-year" rule - the applicant must ensure that additions in the year attract a half-year depreciation expense in the first year. Deviations from this standard practice must be supported in the application.
A60: 2 | B60: The applicant must provide an explanation of material variances in evidence
A63: General: | B63: Applicants must provide a breakdown of depreciation and amortization expense in the above format for all relevant accounts. Asset Retirement Obligations (AROs), depreciation and accretion expense should be disclosed separately consistent with the Notes of historical Audited Financial Statements.

Sheet App.2-CI_AltAccStd_DepExp (hidden)
I1: File Number: | J1: ='LDC Info'!$E$18 -> EB-2012-0147
I2: Exhibit:
I3: Tab:
I4: Schedule:
I5: Page:
B7: MIDLAND PUC HAS ADOPTED IFRS - THIS SCHEDULE NOT REQUIRED | I7: Date:
A9: Appendix 2-CI
A10: Depreciation and Amortization Expense
A11: Assumes the applicant adopted an alternate accounting standard other than IFRS for financial reporting purposes. For applicants adopting an Alternate Accounting Standard for financial reporting purposes January 1, 2012, applicants must complete 4 versions of the table below (2011 CGAAP, 2011 Alternate Accounting Standard, 2012 Alternate Accounting Standard and 2013 Alternate Accounting Standard). For applicants adopting an Alternate Accounting Standard for financial reporting purposes January 1, 2013, applicants must complete 4 versions of the table below (2011 CGAAP, 2012 CGAAP, 2012 Alternate Accounting Standard and 2013 Alternate Accounting Standard).
B12: Year | E12: Accounting Standard
A14: Account | B14: Description | C14: Opening NBV 1 | D14: Additions | E14: Total for Depreciation | F14: Years | G14: Depreciation Rate | H14: Depreciation Expense | I14: Depreciation Expense per Appendix 2-B Fixed Assets, Columns K & L (l) | J14: Variance 3
C15: (a) | D15: (d) | E15: (e) = (a) + ½ x (d) 2 | F15: (f) | G15: (g) = 1 / (f) | H15: (h) = (e) / (f) | J15: (m) = (h) - (l)
A16: 1611 | B16: Computer Software (Formally known as Account 1925) | E16: =C16+0.5*D16 -> 0 | G16: =IF(F16=0,0,1/F16) -> 0 | H16: =IF(F16=0,0,E16/F16) -> 0 | J16: =IF(ISERROR(+H16-I16), 0, +H16-I16) -> 0
A17: 1612 | B17: Land Rights (Formally known as Account 1906) | E17: 0 | G17: 0 | H17: 0 | J17: 0
A18: 1805 | B18: Land | E18: 0 | G18: 0 | H18: 0 | J18: 0
A19: 1808 | B19: Buildings | E19: 0 | G19: 0 | H19: 0 | J19: 0
A20: 1810 | B20: Leasehold Improvements | E20: 0 | G20: 0 | H20: 0 | J20: 0
A21: 1815 | B21: Transformer Station Equipment >50 kV | E21: 0 | G21: 0 | H21: 0 | J21: 0
A22: 1820 | B22: Distribution Station Equipment <50 kV | E22: 0 | G22: 0 | H22: 0 | J22: 0
A23: 1825 | B23: Storage Battery Equipment | E23: 0 | G23: 0 | H23: 0 | J23: 0
A24: 1830 | B24: Poles, Towers & Fixtures | E24: 0 | G24: 0 | H24: 0 | J24: 0
A25: 1835 | B25: Overhead Conductors & Devices | E25: 0 | G25: 0 | H25: 0 | J25: 0
A26: 1840 | B26: Underground Conduit | E26: 0 | G26: 0 | H26: 0 | J26: 0
A27: 1845 | B27: Underground Conductors & Devices | E27: 0 | G27: 0 | H27: 0 | J27: 0
A28: 1850 | B28: Line Transformers | E28: 0 | G28: 0 | H28: 0 | J28: 0
A29: 1855 | B29: Services (Overhead & Underground) | E29: 0 | G29: 0 | H29: 0 | J29: 0
A30: 1860 | B30: Meters | E30: 0 | G30: 0 | H30: 0 | J30: 0
A31: 1860 | B31: Meters (Smart Meters) | E31: 0 | G31: 0 | H31: 0 | J31: 0
A32: 1905 | B32: Land | E32: 0 | G32: 0 | H32: 0 | J32: 0
A33: 1908 | B33: Buildings & Fixtures | E33: 0 | G33: 0 | H33: 0 | J33: 0
A34: 1910 | B34: Leasehold Improvements | E34: 0 | G34: 0 | H34: 0 | J34: 0
A35: 1915 | B35: Office Furniture & Equipment (10 years) | E35: 0 | G35: 0 | H35: 0 | J35: 0
A36: 1915 | B36: Office Furniture & Equipment (5 years) | E36: 0 | G36: 0 | H36: 0 | J36: 0
A37: 1920 | B37: Computer Equipment - Hardware | E37: 0 | G37: 0 | H37: 0 | J37: 0
A38: 1920 | B38: Computer Equip.-Hardware(Post Mar. 22/04) | E38: 0 | G38: 0 | H38: 0 | J38: 0
A39: 1920 | B39: Computer Equip.-Hardware(Post Mar. 19/07) | E39: 0 | G39: 0 | H39: 0 | J39: 0
A40: 1930 | B40: Transportation Equipment | E40: 0 | G40: 0 | H40: 0 | J40: 0
A41: 1935 | B41: Stores Equipment | E41: 0 | G41: 0 | H41: 0 | J41: 0
A42: 1940 | B42: Tools, Shop & Garage Equipment | E42: 0 | G42: 0 | H42: 0 | J42: 0
A43: 1945 | B43: Measurement & Testing Equipment | E43: 0 | G43: 0 | H43: 0 | J43: 0
A44: 1950 | B44: Power Operated Equipment | E44: 0 | G44: 0 | H44: 0 | J44: 0
A45: 1955 | B45: Communications Equipment | E45: 0 | G45: 0 | H45: 0 | J45: 0
A46: 1955 | B46: Communication Equipment (Smart Meters) | E46: 0 | G46: 0 | H46: 0 | J46: 0
A47: 1960 | B47: Miscellaneous Equipment | E47: 0 | G47: 0 | H47: 0 | J47: 0
A48: 1975 | B48: Load Management Controls Utility Premises | E48: 0 | G48: 0 | H48: 0 | J48: 0
A49: 1980 | B49: System Supervisor Equipment | E49: 0 | G49: 0 | H49: 0 | J49: 0
A50: 1985 | B50: Miscellaneous Fixed Assets | E50: 0 | G50: 0 | H50: 0 | J50: 0
A51: 1995 | B51: Contributions & Grants | E51: 0 | G51: 0 | H51: 0 | J51: 0
A52: etc. | E52: 0 | G52: 0 | H52: 0 | J52: 0
E53: 0 | G53: 0 | H53: 0 | J53: 0
B54: Total | C54: =SUM(C16:C53) -> 0 | D54: =SUM(D16:D53) -> 0 | E54: =SUM(E16:E53) -> 0 | H54: =SUM(H16:H53) -> 0 | I54: =SUM(I16:I53) -> 0 | J54: =SUM(J16:J53) -> 0
A56: Notes:
A58: 1 | B58: NBV must exclude assets still on the books but which have been fully amortized or depreciated.
A59: 2 | B59: Board policy of the "half-year" rule - the applicant must ensure that additions in the year attract a half-year depreciation expense in the first year. Deviations from this standard practice must be supported in the application.
A60: 3 | B60: The applicant must provide an explanation of material variances in evidence
A63: General: | B63: Applicants must provide a breakdown of depreciation and amortization expense in the above format for all relevant accounts. Asset Retirement Obligations (AROs), depreciation and accretion expense should be disclosed separately consistent with the Notes of historical Audited Financial Statements.

Sheet App.2-D_Overhead
L1: File Number: | M1: ='LDC Info'!$E$18 -> EB-2012-0147
L2: Exhibit:
L3: Tab:
L4: Schedule:
L5: Page:
L7: Date: | M7: 2012-08-31
A9: Appendix 2-D
A10: Overhead Expense
A12: The following table should be completed based on the information requested below. An explanation should be provided for any blank entries. The entries should include overhead costs that are currently capitalized on self-constructed assets under MIFRS or an alternate accounting standard.
E13: (A) 1 | F13: (B) | G13: (C) | H13: (D) | I13: (E) 1 | J13: (F) | K13: (G)
A14: Nature of the Overhead Costs | E14: Dollar | F14: Dollar | G14: Dollar | H14: Dollar Impact - | I14: Dollar Impact - | J14: Directly | K14: Reasons why the overhead costs are allowed to be
E15: Impact on PP&E | F15: Impact on PP&E | G15: Impact on PP&E | H15: PP&E Variance | I15: PP&E Variance | J15: Attributable? | K15: capitalized under MIFRS or an alternate accounting
E16: Historic Year | F16: Bridge Year | G16: Test Year | H16: Test versus Bridge | I16: Test versus Historic | J16: (Y/N) | K16: standard given limitations on capitalized overhead
A17: employee benefits | H17: =+G17-F17 -> 0 | I17: =+G17-E17 -> 0 | K17: Midland PUC capitalizes direct benefits per labour hour worked on capital projects only under CGAAP and MIFRS. Direct labour benefits include EI, CPP, OMERS, WSIB & EHT.
A18: costs of site preparation | H18: 0 | I18: 0
A19: initial delivery and handling costs | H19: 0 | I19: 0
A20: costs of testing whether the asset is functioning properly | H20: 0 | I20: 0
A21: professional fees | H21: 0 | I21: 0
H22: 0 | I22: 0
A23: costs of opening a new facility | H23: 0 | I23: 0
A24: costs of introducing a new product or service (including costs of advertising and promotional activities) | H24: 0 | I24: 0
A25: costs of conducting business in a new location or with a new class of customer (including costs of staff training) | H25: 0 | I25: 0
A26: administration and other general overhead costs | H26: 0 | I26: 0
H27: 0 | I27: 0
H28: 0 | I28: 0
H29: 0 | I29: 0
A30: Insert description of additional item(s) and new rows if needed. | H30: 0 | I30: 0
A31: Total | E31: =SUM(E17:E30) -> 0 | F31: =SUM(F17:F30) -> 0 | G31: =SUM(G17:G30) -> 0 | H31: =SUM(H17:H30) -> 0 | I31: =SUM(I17:I30) -> 0
A34: The following table should be completed based on the information requested below. An explanation should be provided for any blank entries. The entries should include overhead costs that were capitalized on self-constructed assets under CGAAP but are no longer capitalized under MIFRS or an alternate accounting standard and are included in OM&A.
E35: (A) 1 | F35: (B) | G35: (C) | H35: (D) | I35: (E) 1 | J35: (F) | K35: (G)
A36: Nature of the Overhead Costs | E36: Dollar | F36: Dollar | G36: Dollar | H36: Dollar Impact - | I36: Dollar Impact - | J36: Directly | K36: Reasons why the overhead costs are not allowed to be
E37: Impact on OM&A | F37: Impact on OM&A | G37: Impact on OM&A | H37: OM&A Variance | I37: OM&A Variance | J37: Attributable? | K37: capitalized under MIFRS or an alternate accounting
E38: Historic Year | F38: Bridge Year | G38: Test Year | H38: Test versus Bridge | I38: Test versus Historic | J38: (Y/N) | K38: standard given limitations on capitalized overhead
A39: employee benefits | H39: =+G39-F39 -> 0 | I39: =+G39-E39 -> 0 | K39: Midland PUC's overhead policy has not changed from CGAAP to IFRS, therefore no changes are required.
A40: costs of site preparation | H40: =+G40-F40 -> 0 | I40: =+G40-E40 -> 0
A41: initial delivery and handling costs | H41: =+G41-F41 -> 0 | I41: =+G41-E41 -> 0
A42: costs of testing whether the asset is functioning properly | H42: =+G42-F42 -> 0 | I42: =+G42-E42 -> 0
A43: professional fees | H43: =+G43-F43 -> 0 | I43: =+G43-E43 -> 0
A45: costs of opening a new facility | H45: =+G45-F45 -> 0 | I45: =+G45-E45 -> 0
A46: costs of introducing a new product or service (including costs of advertising and promotional activities) | H46: 0 | I46: 0
A47: costs of conducting business in a new location or with a new class of customer (including costs of staff training) | H47: 0 | I47: 0
A48: administration and other general overhead costs | H48: 0 | I48: 0
H49: 0 | I49: 0
H50: 0 | I50: 0
H51: 0 | I51: 0
A52: Insert description of additional item(s) and new rows if needed. | H52: 0 | I52: 0
A53: Total | E53: =SUM(E39:E52) -> 0 | F53: =SUM(F39:F52) -> 0 | G53: =SUM(G39:G52) -> 0 | H53: =SUM(H39:H52) -> 0 | I53: =SUM(I39:I52) -> 0
A55: Notes:
A56: 1 | B56: If the applicant chooses to adopt IFRS or an alternate accounting standard for financial reporting purposes in 2013, the applicant does not need to complete Columns A, E. If the applicant adopts IFRS or an alternate accounting standard for financial reporting purposes in 2012, the applicant must complete all columns.

Sheet App.2-EA_PP&E Deferral Account (hidden)
H1: File Number: | I1: ='LDC Info'!$E$18 -> EB-2012-0147
H2: Exhibit:
H3: Tab:
H4: Schedule:
H5: Page:
H7: Date:
A8: Midland PUC is adopting in 2013 - therefore no inputs on this schedule
A9: Appendix 2-EA
A10: IFRS-CGAAP Transitional PP&E Amounts
A11: 2012 Adopters of IFRS for Financial Reporting Purposes
A13: For applicants that adopt IFRS on January 1, 2012 for financial reporting purposes
A15: Note: this sheet should be filled out if the applicant adopts IFRS for its financial reporting purpose as of January 1, 2012.
B17: 2009 Rebasing Year | C17: 2010 | D17: 2011 | E17: 2012 | F17: 2013 Rebasing Year | G17: 2014 | H17: 2015 | I17: 2016
A18: Reporting Basis | B18: CGAAP | C18: IRM | D18: IRM | E18: IRM | F18: MIFRS | G18: IRM | H18: IRM | I18: IRM
A19: Forecast vs. Actual Used in Rebasing Year | B19: Forecast | C19: Actual | D19: Actual | E19: Forecast | F19: Forecast
D20: $ | E20: $
A21: PP&E Values under CGAAP
A22: Opening net PP&E - Note 1
A23: Additions
A24: Depreciation (amounts should be negative)
A25: Closing net PP&E (1) | D25: =D22+D23+D24 -> 0 | E25: =E22+E23+E24 -> 0
A27: PP&E Values under MIFRS (Starts from 2011, the transition year)
A28: Opening net PP&E - Note 1
A29: Additions
A30: Depreciation (amounts should be negative)
A31: Closing net PP&E (2) | D31: =SUM(D28:D30) -> 0 | E31: =SUM(E28:E30) -> 0
A33: Difference in Closing net PP&E, CGAAP vs. MIFRS (Shown as adjustment to rate base on rebasing) | D33: =D25-D31 -> 0 | E33: =E25-E31 -> 0
A35: Account 1575 - IFRS-CGAAP Transitional PP&E Amounts
A36: Opening balance | D36: 0 | E36: =D40 -> 0 | F36: =E40 -> 0 | G36: =F40 -> 0 | H36: =G40 -> 0 | I36: =H40 -> 0
A37: Amounts added in the year | D37: =D33 -> 0 | E37: =E33-D33 -> 0
A38: Sub-total | D38: =D36+D37 -> 0 | E38: 0 | F38: 0 | G38: 0 | H38: 0 | I38: 0
A39: Amount of amortization, included in depreciation expense - Note 2 | F39: =IF(ISERROR(-E33/I44), 0, -E33/I44) -> 0 | G39: =+F39 -> 0 | H39: =+F39 -> 0 | I39: =+F39 -> 0
A40: Closing balance in deferral account | D40: =D38+D39 -> 0 | E40: 0 | F40: =IF(ISERROR(F38+F39), 0, F38+F39) -> 0 | G40: 0 | H40: 0 | I40: 0
A42: Effect on Revenue Requirement
A43: Amortization of deferred balance as above - Note 2 | F43: =IF(ISERROR(E33/I44), 0, E33/I44) -> 0 | H43: WACC
A44: Return on Rate Base Associated with deferred PP&E balance at WACC - Note 3 | F44: =E33*I43 -> 0 | H44: Disposition Period - Note 4 | I44: 4 | J44: Years
A45: Amount included in Revenue Requirement on rebasing | F45: =F43+F44 -> 0
A47: Notes:
A48: 1 For an applicant that adopts IFRS on January 1, 2012, the PP&E values as of January 1, 2011 under both CGAAP and MIFRS should be the same.
A49: 2 Amortization of the deferred balance in Account 1575 will start from the rebasing year.
A50: Assume the utility requests for a certain disposition period, the amortization that should be included in the depreciation expense is calculated as:
A51: the opening balance of Account 1575 / the approved disposition period
A52: 3 Return on rate base associated with deferred balance is calculated as:
A53: the deferred account opening balance as of 2013 rebasing year x WACC
A54: * Please note that the calculation should be adjusted once WACC is updated and finalized in the rate application.
A55: 4 Consistent with the 4 year normal rate cycle, the model is using a 4 year amortization period as a default selection to "clear" the PP&E deferral account through a one-time adjustment to ratebase to capture and remove the impact of the accounting policy changes as caused by the transition from CGAAP to MIFRS.

Sheet App.2-EB_PP&E Deferral Account
H1: File Number: | I1: ='LDC Info'!$E$18 -> EB-2012-0147
H2: Exhibit: | I2: 2
H3: Tab: | I3: 5
H4: Schedule: | I4: 3
H5: Page: | I5: 1 of 2
H7: Date: | I7: 2012-08-31
A9: Table 2.5.2: Appendix 2-EB
A10: IFRS-CGAAP Transitional PP&E Amounts
A11: 2013 Adopters of IFRS for Financial Reporting Purposes
A13: For applicants that adopt IFRS on January 1, 2013 for financial reporting purposes
A15: Note: this sheet should be filled out if the applicant adopts IFRS for its financial reporting purpose as of January 1, 2013.
B17: 2009 Rebasing Year | C17: 2010 | D17: 2011 | E17: 2012 | F17: 2013 Rebasing Year | G17: 2014 | H17: 2015 | I17: 2016
A18: Reporting Basis | B18: CGAAP | C18: IRM | D18: IRM | E18: IRM | F18: MIFRS | G18: IRM | H18: IRM | I18: IRM
A19: Forecast vs. Actual Used in Rebasing Year | B19: Forecast | C19: Actual | D19: Actual | E19: Forecast | F19: Forecast
D20: $ | E20: $ | F20: $ | G20: $ | H20: $ | I20: $
A21: PP&E Values under CGAAP
A22: Opening net PP&E - Note 1
A23: Additions less Disposals
A24: Depreciation (amounts should be negative)
A25: Closing net PP&E (1)
A27: PP&E Values under MIFRS (Starts from 2012, the transition year)
A28: Opening net PP&E - Note 1
A29: Additions less Disposals
A30: Depreciation (amounts should be negative)
A31: Closing net PP&E (2) | E31: =SUM(E28:E30) -> 0
A33: Difference in Closing net PP&E, CGAAP vs. MIFRS (Shown as adjustment to rate base on rebasing) | E33: =E25-E31 -> 0
A35: Account 1575 - IFRS-CGAAP Transitional PP&E Amounts
A36: Opening balance | E36: =D40 -> 0 | F36: =E40 -> 0 | G36: =F40 -> 0 | H36: =G40 -> 0 | I36: =H40 -> 0
A37: Amounts added in the year | E37: =E33-D33 -> 0
A38: Sub-total | E38: =E36+E37 -> 0 | F38: =F36+F37 -> 0 | G38: =G36+G37 -> 0 | H38: =H36+H37 -> 0 | I38: =I36+I37 -> 0
A39: Amount of amortization, included in depreciation expense - Note 2 | F39: =IF(ISERROR(-E33/I44), 0, -E33/I44) -> 0 | G39: =+F39 -> 0 | H39: =+F39 -> 0 | I39: =+F39 -> 0
A40: Closing balance in deferral account | E40: =E38+E39 -> 0 | F40: =IF(ISERROR(F38+F39), 0, F38+F39) -> 0 | G40: =G38+G39 -> 0 | H40: =H38+H39 -> 0 | I40: =I38+I39 -> 0
A42: Effect on Revenue Requirement
A43: Amortization of deferred balance as above - Note 2 | F43: =IF(ISERROR(E33/I44), 0, E33/I44) -> 0 | H43: WACC | I43: 0.05675641014
A44: Return on Rate Base Associated with deferred PP&E balance at WACC - Note 3 | F44: =E33*I43 -> 0 | H44: Disposition Period - Note 4 | I44: 4 | J44: Years
A45: Amount included in Revenue Requirement on rebasing | F45: =F43+F44 -> 0
A47: Notes:
A48: 1 For an applicant that adopts IFRS on January 1, 2013, the PP&E values as of January 1, 2012 under both CGAAP and MIFRS should be the same.
A49: 2 Amortization of the deferred balance in Account 1575 will start from the rebasing year.
A50: Assume the utility requests for a certain disposition period, the amortization that should be included in the depreciation expense is calculated as:
A51: the opening balance of Account 1575 / the approved disposition period
A52: 3 Return on rate base associated with deferred balance is calculated as:
A53: the deferred account opening balance as of 2013 rebasing year x WACC
A54: * Please note that the calculation should be adjusted once WACC is updated and finalized in the rate application.
A55: 4 Consistent with the 4 year normal rate cycle, the model is using a 4 year amortization period as a default selection to "clear" the PP&E deferral account through a one-time adjustment to ratebase to capture and remove the impact of the accounting policy changes as caused by the transition from CGAAP to MIFRS.

Sheet App.2-F_Other_Oper_Rev
G1: File Number: | H1: ='LDC Info'!$E$18 -> EB-2012-0147
G2: Exhibit: | H2: 3
G3: Tab: | H3: 3
G4: Schedule: | H4: 2
G5: Page: | H5: 1 of 7
G7: Date: | H7: 2012-08-31
C8: Table 3.3.11
A9: Appendix 2-F
A10: Other Operating Revenue
A12: USoA # | B12: USoA Description | C12: =F13-3 & " Actual" -> 2009 Actual | D12: =F13-2 & " Actual" -> 2010 Actual | E12: =F13-1 & " Actual"& CHAR(178) -> 2011 Actual² | F12: ="Bridge Year" & CHAR(179) -> Bridge Year³ | G12: ="Bridge Year" & CHAR(179) -> Bridge Year³ | H12: Test Year
F13: ='LDC Info'!E26 -> 2012 | G13: ='LDC Info'!E26 -> 2012 | H13: ='LDC Info'!E28 -> 2013
B14: Reporting Basis | F14: CGAAP | G14: MIFRS | H14: MIFRS
A15: 4080 | B15: Standard Supply Admin Chg ($.25) | C15: -16935.01 | D15: -17355.36 | E15: -17882.71 | F15: -19500 | G15: -19500 | H15: -19500
A16: 4210 | B16: Rent from Electric Property | C16: -90166.03 | D16: -82894.61 | E16: -80638.12 | F16: -77300 | G16: -77300 | H16: -78200
A17: 4220 | B17: Other Electric Revenues | C17: -1362.9 | D17: -835.46 | E17: -5664 | F17: -5600 | G17: -5600 | H17: -5600
A18: 4225 | B18: Late Payment Charges | C18: -20870.64 | D18: -19795.05 | E18: -22518.08 | F18: -23400 | G18: -23400 | H18: -23400
A19: 4310 | B19: Regulatory Credits | H19: 0
A20: 4235 | B20: Specific Service Charges | C20: -105669.64 | D20: -108001.73 | E20: -121896.73 | F20: -122100 | G20: -122100 | H20: -108600
A21: 4325 | B21: Rev From Merchandising, Jobbing | C21: -34899.94 | D21: -85866.63 | E21: -78046.43 | F21: -92500 | G21: -92500 | H21: -94300
A22: 4330 | B22: Costs and Exp Merchandising, Jobbing | C22: 18635.61 | D22: 63870.31 | E22: 54179.54 | F22: 63000 | G22: 63000 | H22: 64500
A23: 4357 | B23: Gain from Retirement of Utility and Other Property | C23: -13025 | D23: 0 | E23: 0 | F23: -26855.26 | G23: -26855.26 | H23: 0
A24: 4362 | B24: Loss from Retirement of Utility and Other Property | C24: 0 | D24: 2542.62 | E24: 2433.37 | F24: 0 | G24: 0 | H24: 0
A25: 4375 | B25: Rev from Non-Utility Operations | C25: -303650.12 | D25: -225317.8 | E25: -60591.46 | F25: -57600 | G25: -57600 | H25: -58800
A26: 4380 | B26: Expenses from Non-Utility Op'n | C26: 229702.23 | D26: 177889.05 | E26: 42125.47 | F26: 36800 | G26: 36800 | H26: 37700
A27: 4405 | B27: Interest & Dividend Income | C27: -37483.17 | D27: -33634.62 | E27: -51417.38 | F27: -5600 | G27: -5600 | H27: -5600
A30: Specific Service Charges | C30: =C20 -> -105669.64 | D30: -108001.73 | E30: -121896.73 | F30: -122100 | G30: -122100 | H30: -108600
A31: Late Payment Charges | C31: =C18 -> -20870.64 | D31: -19795.05 | E31: -22518.08 | F31: -23400 | G31: -23400 | H31: -23400
A32: Other Operating Revenues | C32: =C15+C16+C17 -> -108463.94 | D32: -101085.43 | E32: -104184.83 | F32: -102400 | G32: -102400 | H32: -103300
A33: Other Income or Deductions | C33: =C21+C22+C23+C25+C26+C27 -> -140720.39 | D33: =D21+D22+D23+D24+D25+D26+D27 -> -100517.07 | E33: =E21+E22+E23+E24+E25+E26+E27 -> -91316.89 | F33: =F21+F22+F23+F24+F25+F26+F27 -> -82755.26 | G33: =G21+G22+G23+G24+G25+G26+G27 -> -82755.26 | H33: =H21+H22+H23+H24+H25+H26+H27+H19 -> -56500
A34: Total | C34: =SUM(C30:C33) -> -375724.61 | D34: -329399.28 | E34: -339916.53 | F34: -330655.26 | G34: -330655.26 | H34: -291800
A36: Description | C36: Account(s)
A37: Specific Service Charges: | C37: 4235
A38: Late Payment Charges: | C38: 4225
A39: Other Distribution Revenues: | C39: 4080, 4082, 4084, 4090, 4205, 4210, 4215, 4220, 4240, 4245
A40: Other Income and Expenses: | C40: 4305, 4310, 4315, 4320, 4325, 4330, 4335, 4340, 4345, 4350, 4355, 4360, 4365, 4370, 4375, 4380, 4385, 4390, 4395, 4398, 4405, 4415
A43: Note: Add all applicable accounts listed above to the table and include all relevant information.
A44: The above table assumes adoption of MIFRS as of January 1, 2013. If the adoption year differs, please adjust the table accordingly.
A47: Account Breakdown Details
A49: For each "Other Operating Revenue" and "Other Income or Deductions" Account, a detailed breakdown of the account components is required. See the example below for Account 4405, Interest and Dividend Income.
A52: Account 4405 - Interest and Dividend Income
C53: =C12 -> 2009 Actual | D53: =D12 -> 2010 Actual | E53: =E12 -> 2011 Actual² | F53: Bridge Year | G53: Bridge Year | H53: Test Year
A54: Reporting Basis | C54: =IF(ISBLANK(C14), "", C14) ->  | F54: CGAAP | G54: MIFRS | H54: MIFRS
A55: Short-term Investment Interest
A56: Bank Deposit Interest
A57: Miscellaneous Interest Revenue
A58: etc.1
A60: Total | C60: =SUM(C55:C59) -> 0 | D60: 0 | E60: 0 | F60: 0 | G60: 0 | H60: 0
A63: Notes:
A64: 1 | B64: List and specify any other interest revenue
A65: 2 | B65: If the applicant is adopting IFRS or an alternate accounting standard as of January 1, 2012 for financial reporting purposes, 2011 must be presented on both a CGAAP and MIFRS (or alternate accounting standard) basis.
A66: 3 | B66: If the applicant is adopting IFRS or an alternate accounting standard as of January 1, 2013 for financial reporting purposes, 2012 must be presented on both a CGAAP and MIFRS (or alternate accounting standard) basis.
A70: Account 4080 - Standard Supply Service - Admin Charge
C71: 2009 Actual | D71: 2010 Actual | E71: 2011 Actual | F71: Bridge Year | G71: Bridge Year | H71: Test Year
A72: Reporting Basis | F72: CGAAP | G72: MIFRS | H72: MIFRS | J72: Table 3.3.17
A73: =B15 -> Standard Supply Admin Chg ($.25) | C73: =C15 -> -16935.01 | D73: -17355.36 | E73: -17882.71 | F73: -19500 | G73: -19500 | H73: -19500
A75: Total | C75: =SUM(C73:C74) -> -16935.01 | D75: -17355.36 | E75: -17882.71 | F75: -19500 | G75: -19500 | H75: -19500
A79: Account 4210 - Rent from Electric Property
C80: 2009 Actual | D80: 2010 Actual | E80: 2011 Actual | F80: Bridge Year | G80: Bridge Year | H80: Test Year | J80: Table 3.3.18
A81: Reporting Basis | F81: CGAAP | G81: MIFRS | H81: MIFRS
A82: Building Rental | C82: -53148.06 | D82: -50940.47 | E82: -48833.97 | F82: -45500 | G82: -45500 | H82: -46400
A83: Pole Rental | C83: -37017.97 | D83: -31954.14 | E83: -31804.15 | F83: -31800 | G83: -31800 | H83: -31800
A85: Total | C85: =SUM(C82:C84) -> -90166.03 | D85: -82894.61 | E85: -80638.12 | F85: -77300 | G85: -77300 | H85: -78200
A89: Account 4220 - Other Electric Revenues
C90: 2009 Actual | D90: 2010 Actual | E90: 2011 Actual | F90: Bridge Year | G90: Bridge Year | H90: Test Year | J90: Table 3.3.19
A91: Reporting Basis | F91: CGAAP | G91: MIFRS | H91: MIFRS
A92: Scrap Metal Revenues | C92: =C17 -> -1362.9 | D92: =D17 -> -835.46 | E92: =E17 -> -5664 | F92: =F17 -> -5600 | G92: =G17 -> -5600 | H92: =G92 -> -5600
A94: Total | C94: =SUM(C92:C93) -> -1362.9 | D94: -835.46 | E94: -5664 | F94: -5600 | G94: -5600 | H94: -5600
A97: Account 4225 - Late Payment Charges
C98: 2009 Actual | D98: 2010 Actual | E98: 2011 Actual | F98: Bridge Year | G98: Bridge Year | H98: Test Year
A99: Reporting Basis | F99: CGAAP | G99: MIFRS | H99: MIFRS | J99: Table 3.3.20
A100: Late Payment Fees paid by Customers | C100: =C18 -> -20870.64 | D100: -19795.05 | E100: -22518.08 | F100: -23400 | G100: -23400 | H100: -23400
A102: Total | C102: =SUM(C100:C101) -> -20870.64 | D102: -19795.05 | E102: -22518.08 | F102: -23400 | G102: -23400 | H102: -23400
A106: Account 4235 - Miscellaneous Service Revenues
C107: 2009 Actual | D107: 2010 Actual | E107: 2011 Actual | F107: Bridge Year | G107: Bridge Year | H107: Test Year
A108: Reporting Basis | F108: CGAAP | G108: MIFRS | H108: MIFRS | J108: Table 3.3.13
A109: NSF Charges | C109: -1382.5 | D109: -1980 | E109: -1755 | F109: -1800 | G109: -1800 | H109: -1800
A110: Account Set Up Charges | C110: -33690 | D110: -36510 | E110: -34470 | F110: -34200 | G110: -34200 | H110: -34200
A111: Interval Meter Load Management Tool | C111: -3626.37 | D111: -2358.2 | E111: -4484.63 | F111: -5400 | G111: -5400 | H111: -5400
A112: Account History | C112: -360 | D112: 0 | E112: -30 | F112: -100 | G112: -100 | H112: -100
A113: Lawyer Letters | C113: -85.68 | D113: -44.28 | E113: -45 | F113: -100 | G113: -100 | H113: -100
A114: Reconnection Fee | C114: -10120 | D114: -9220 | E114: -6880 | F114: -7000 | G114: -7000 | H114: -7000
A115: Notice Letter Charge | C115: -55205.09 | D115: -57889.25 | E115: -55680 | F115: -59400 | G115: -59400 | H115: -59400
A116: Temporary Services - Underground | C116: -1200 | D116: 0 | E116: -300 | F116: -600 | G116: -600 | H116: -600
A117: Late Payment Penalty Assessment | C117: 0 | D117: 0 | E117: -18252.1 | F117: -13500 | G117: -13500 | H117: 0
A119: Total | C119: =SUM(C109:C118) -> -105669.64 | D119: -108001.73 | E119: -121896.73 | F119: -122100 | G119: -122100 | H119: -108600
A123: Account 4310 - Regulatory Credits
C124: 2009 Actual | D124: 2010 Actual | E124: 2011 Actual | F124: Bridge Year | G124: Bridge Year | H124: Test Year
A125: Reporting Basis | F125: CGAAP | G125: MIFRS | H125: MIFRS
H126: =+H19 -> 0
A128: Total | C128: =SUM(C126:C127) -> 0 | D128: 0 | E128: 0 | F128: 0 | G128: 0 | H128: 0
A132: Account 4325 - Revenues from Merchandising, Jobbing
C133: 2009 Actual | D133: 2010 Actual | E133: 2011 Actual | F133: Bridge Year | G133: Bridge Year | H133: Test Year
A134: Reporting Basis | F134: CGAAP | G134: MIFRS | H134: MIFRS
A135: =B21 -> Rev From Merchandising, Jobbing | C135: =C21 -> -34899.94 | D135: -85866.63 | E135: -78046.43 | F135: -92500 | G135: -92500 | H135: -94300 | J135: Table 3.3.14
A137: Total | C137: =SUM(C135:C136) -> -34899.94 | D137: -85866.63 | E137: -78046.43 | F137: -92500 | G137: -92500 | H137: -94300
A141: Account 4330 - Expenses from Merchandising, Jobbing
C142: 2009 Actual | D142: 2010 Actual | E142: 2011 Actual | F142: Bridge Year | G142: Bridge Year | H142: Test Year
A143: Reporting Basis | F143: CGAAP | G143: MIFRS | H143: MIFRS | J143: Table 3.3.14
A144: =B22 -> Costs and Exp Merchandising, Jobbing | C144: =C22 -> 18635.61 | D144: 63870.31 | E144: 54179.54 | F144: 63000 | G144: 63000 | H144: 64500
A146: Total | C146: =SUM(C144:C145) -> 18635.61 | D146: 63870.31 | E146: 54179.54 | F146: 63000 | G146: 63000 | H146: 64500
A150: Account 4357 Gain on Retirement of Utility and Other Property
C151: 2009 Actual | D151: 2010 Actual | E151: 2011 Actual | F151: Bridge Year | G151: Bridge Year | H151: Test Year
A152: Reporting Basis | F152: CGAAP | G152: MIFRS | H152: MIFRS | J152: Table 3.3.21
A153: Gain on disposal of vehicle | C153: -525
A154: Gain on disposal of truck | C154: -12500 | F154: -26855.26 | G154: =+G23 -> -26855.26 | H154: =+H23 -> 0
A158: Total | C158: =SUM(C153:C157) -> -13025 | D158: 0 | E158: 0 | F158: -26855.26 | G158: -26855.26 | H158: 0
A161: Account 4362 - Loss on Retirement of Utility and Other Property
C162: 2009 Actual | D162: 2010 Actual | E162: 2011 Actual | F162: Bridge Year | G162: Bridge Year | H162: Test Year
A163: Reporting Basis | F163: CGAAP | G163: MIFRS | H163: MIFRS | J163: Table 3.3.22
A164: Gain on Enerconnect Limited Partnership redemption | D164: -1841.06
A165: Loss on disposal of generator | D165: 4383.68
A166: Loss on disposal of vehicle | E166: 2433.37
A167: Loss on disposal of distribution assets | G167: =+G24 -> 0 | H167: =+H24 -> 0
A169: Total | C169: =SUM(C164:C168) -> 0 | D169: 2542.62 | E169: 2433.37 | F169: 0 | G169: 0 | H169: 0
A173: Account 4375 - Revenues from Non-Utility Operations
C174: 2009 Actual | D174: 2010 Actual | E174: 2011 Actual | F174: Bridge Year | G174: Bridge Year | H174: Test Year | J174: Table 3.3.15
A175: Reporting Basis | F175: CGAAP | G175: MIFRS | H175: MIFRS
A176: Streetlight Revenues | C176: -67851.26 | D176: -49782.23 | E176: -60591.46 | F176: -57600 | G176: -57600 | H176: -58800
A177: OPA Revenues - Conservation Programs | C177: -235798.86 | D177: -175535.57
A179: Total | C179: =SUM(C176:C178) -> -303650.12 | D179: -225317.8 | E179: -60591.46 | F179: -57600 | G179: -57600 | H179: -58800
A183: Account 4380 - Expenses from Non-Utility Operations
C184: 2009 Actual | D184: 2010 Actual | E184: 2011 Actual | F184: Bridge Year | G184: Bridge Year | H184: Test Year
A185: Reporting Basis | F185: CGAAP | G185: MIFRS | H185: MIFRS | J185: Table 3.3.15
A186: Streetlight Expenses | C186: 40497.43 | D186: 36599.41 | E186: 42125.47 | F186: =F26 -> 36800 | G186: =G26 -> 36800 | H186: =H26 -> 37700
A187: OPA Expenses - Conservation Programs | C187: 189204.8 | D187: 135694.56
A188: Community Initiatives Funding | D188: 5595.08
A190: Total | C190: =SUM(C186:C189) -> 229702.23 | D190: 177889.05 | E190: 42125.47 | F190: 36800 | G190: 36800 | H190: 37700
A194: Account 4405 - Interest and Dividend Income
C195: 2009 Actual | D195: 2010 Actual | E195: 2011 Actual | F195: Bridge Year | G195: Bridge Year | H195: Test Year
A196: Reporting Basis | F196: CGAAP | G196: MIFRS | H196: MIFRS
A197: Bank Deposit Interest | C197: -1018.53 | D197: -3361.99 | E197: -7038.13 | F197: -5600 | G197: -5600 | H197: -5600
A198: Interest on PILS paid from CRA | C198: -5735.64 | D198: 0 | E198: 0 | J198: Table 3.3.16
A199: Regulatory Asset Interest | C199: -30729 | D199: -30272.63 | E199: -44379.25
A201: Total | C201: =SUM(C197:C200) -> -37483.17 | D201: -33634.62 | E201: -51417.38 | F201: -5600 | G201: -5600 | H201: -5600
A205: TOTALS | C205: =C201+C190+C179+C169+C158+C146+C137+C119+C102+C94+C85+C75 -> -375724.61 | D205: =D201+D190+D179+D169+D158+D146+D137+D119+D102+D94+D85+D75 -> -329399.28 | E205: =E201+E190+E179+E169+E158+E146+E137+E119+E102+E94+E85+E75 -> -339916.53 | F205: =F201+F190+F179+F169+F158+F146+F137+F119+F102+F94+F85+F75 -> -330655.26 | G205: =G201+G190+G179+G169+G158+G146+G137+G119+G102+G94+G85+G75 -> -330655.26 | H205: =H201+H190+H179+H169+H158+H146+H137+H119+H102+H94+H85+H75+H128 -> -291800
A206: TOTALS FROM ABOVE | C206: =C34 -> -375724.61 | D206: -329399.28 | E206: -339916.53 | F206: -330655.26 | G206: -330655.26 | H206: -291800
A207: VARIANCE | C207: =C205-C206 -> 0 | D207: 0 | E207: 0 | F207: 0 | G207: 0 | H207: 0
C209: 2009 Actual | D209: 2010 Actual | E209: 2011 Actual | F209: Bridge Year | G209: Bridge Year | H209: Test Year
A210: Reporting Basis | F210: CGAAP | G210: MIFRS | H210: MIFRS
A216: Total | C216: =SUM(C211:C215) -> 0 | D216: 0 | E216: 0 | F216: 0 | G216: 0 | H216: 0

Sheet App.2-G_Detailed_OM&A_Expenses
G1: File Number: | H1: ='LDC Info'!$E$18 -> EB-2012-0147
G2: Exhibit: | H2: 4
G3: Tab: | H3: 2
G4: Schedule: | H4: 2
G5: Page: | H5: 1 & 2 of 2
G7: Date: | H7: 2012-08-31
A9: Appendix 2-G
A10: Detailed, Account by Account, OM&A Expense Table
A11: (excluding Depreciation and Amortization)
A14: Account | B14: Description | C14: ="Last Rebasing Year (" & 'LDC Info'!E30 & " Actuals)" -> Last Rebasing Year (2009 Actuals) | D14: ='LDC Info'!E26-2 & " Actual" -> 2010 Actual | E14: ='LDC Info'!E26-1 & " Actual" & CHAR(178) -> 2011 Actual² | F14: ="Bridge Year " & 'LDC Info'!E26& CHAR(179) -> Bridge Year 2012³ | G14: ="Bridge Year " & 'LDC Info'!E26& CHAR(179) -> Bridge Year 2012³ | H14: ="Test Year " & 'LDC Info'!E28 -> Test Year 2013
A15: Reporting Basis | F15: CGAAP | G15: MIFRS | H15: MIFRS
A16: Operations
A17: 5005 | B17: Operation Supervision and Engineering | C17: 242508.85 | D17: 127990.69 | E17: 173956.64 | F17: 277900 | G17: 277900 | H17: 289509 | J17: Table 4.2.7
A18: 5010 | B18: Load Dispatching | C18: 13547.44394 | D18: 5930.82 | E18: 1989.3 | F18: 4000 | G18: 4000 | H18: 4080
A19: 5012 | B19: Station Buildings and Fixtures Expense | C19: 0 | D19: 0 | E19: 0 | F19: 0 | G19: 0 | H19: 0
A20: 5014 | B20: Transformer Station Equipment - Operation Labour | C20: 0 | D20: 0 | E20: 0 | F20: 0 | G20: 0 | H20: 0
A21: 5015 | B21: Transformer Station Equipment - Operation Supplies and Expenses | C21: 0 | D21: 0 | E21: 0 | F21: 0 | G21: 0 | H21: 0
A22: 5016 | B22: Distribution Station Equipment - Operation Labour | C22: 5010.282695 | D22: 3633.352136 | E22: 1358.4078 | F22: 3981.318865 | G22: 3981.318865 | H22: 4660.202859
A23: 5017 | B23: Distribution Station Equipment - Operation Supplies and Expenses | C23: 20405 | D23: 10293.14 | E23: 19040 | F23: 15900 | G23: 15900 | H23: 21100
A24: 5020 | B24: Overhead Distribution Lines and Feeders - Operation Labour | C24: 0 | D24: 0 | E24: 0 | F24: 0 | G24: 0 | H24: 0
A25: 5025 | B25: Overhead Distribution Lines and Feeders - Operation Supplies and Expenses | C25: 0 | D25: 0 | E25: 0 | F25: 0 | G25: 0 | H25: 0
A26: 5030 | B26: Overhead Sub-transmission Feeders - Operation | C26: 0 | D26: 0 | E26: 0 | F26: 0 | G26: 0 | H26: 0
A27: 5035 | B27: Overhead Distribution Transformers - Operation | C27: 2287.32 | D27: 52.5 | E27: 0 | F27: 1800 | G27: 1800 | H27: 1800
A28: 5040 | B28: Underground Distribution Lines and Feeders - Operation Labour | C28: 0 | D28: 0 | E28: 0 | F28: 0 | G28: 0 | H28: 0
A29: 5045 | B29: Underground Distribution Lines and Feeders - Operation Supplies and Expenses | C29: 0 | D29: 0 | E29: 0 | F29: 0 | G29: 0 | H29: 0
A30: 5050 | B30: Underground Sub-transmission Feeders - Operation | C30: 0 | D30: 0 | E30: 0 | F30: 0 | G30: 0 | H30: 0
A31: 5055 | B31: Underground Distribution Transformers - Operation | C31: 0 | D31: 0 | E31: 0 | F31: 0 | G31: 0 | H31: 0
A32: 5060 | B32: Street Lighting and Signal System Expense | C32: 0 | D32: 0 | E32: 0 | F32: 0 | G32: 0 | H32: 0
A33: 5065 | B33: Meter Expense | C33: 7776.06284 | D33: 2547.29117 | E33: 2204.632841 | F33: 4748.312265 | G33: 4748.312265 | H33: 5557.98195
A34: 5070 | B34: Customer Premises - Operation Labour | C34: 31889.58808 | D34: 37261.58216 | E34: 28362.39548 | F34: 38815.33135 | G34: 38815.33135 | H34: 45434.01928
A35: 5075 | B35: Customer Premises - Operation Materials and Expenses | C35: 2362.72 | D35: 3911.67 | E35: 1886.18 | F35: 2453.736828 | G35: 2453.736828 | H35: 2510.89989
A36: 5085 | B36: Miscellaneous Distribution Expenses | C36: 0 | D36: 0 | E36: 0 | F36: 0 | G36: 0 | H36: 0
A37: 5090 | B37: Underground Distribution Lines and Feeders - Rental Paid | C37: 0 | D37: 0 | E37: 0 | F37: 0 | G37: 0 | H37: 0
A38: 5095 | B38: Overhead Distribution Lines and Feeders - Rental Paid | C38: 0 | D38: 0 | E38: 0 | F38: 0 | G38: 0 | H38: 0
A39: 5096 | B39: Other Rent
A40: Total - Operations | C40: =SUM(C17:C39) -> 325787.2676 | D40: 191621.0455 | E40: 228797.5561 | F40: 349598.6993 | G40: 349598.6993 | H40: 374652.104
A41: Account | B41: Description | C41: =C14 -> Last Rebasing Year (2009 Actuals) | D41: 2010 Actual | E41: 2011 Actual² | F41: Bridge Year 2012³ | G41: Bridge Year 2012³ | H41: Test Year 2013
A42: Maintenance | F42: CGAAP | G42: MIFRS | H42: MIFRS | J42: Table 4.2.8
A43: 5105 | B43: Maintenance Supervision and Engineering | C43: 42218.98056 | D43: 95732.21198 | E43: 90255.59053 | F43: 91824.92967 | G43: 91824.92967 | H43: 110659.488
A44: 5110 | B44: Maintenance of Buildings and Fixtures - Distribution Stations | C44: 69149.97 | D44: 0 | E44: 0 | F44: 0 | G44: 0 | H44: 0
A45: 5112 | B45: Maintenance of Transformer Station Equipment | C45: 0 | D45: 0 | E45: 0 | F45: 0 | G45: 0 | H45: 0
A46: 5114 | B46: Maintenance of Distribution Station Equipment | C46: 444.7162309 | D46: 77210.80186 | E46: 80404.28955 | F46: 83969.12388 | G46: 83969.12388 | H46: 86937.1871
A47: 5120 | B47: Maintenance of Poles, Towers and Fixtures | C47: 12578.46569 | D47: 28904.44368 | E47: 2983.887449 | F47: 16769.06513 | G47: 16769.06513 | H47: 18344.98084
A48: 5125 | B48: Maintenance of Overhead Conductors and Devices | C48: 66414.30043 | D48: 70917.20792 | E48: 83042.84127 | F48: 75152.31509 | G48: 75152.31509 | H48: 84780.63865
A49: 5130 | B49: Maintenance of Overhead Services | C49: 0 | D49: 0 | E49: 0 | F49: 0 | G49: 0 | H49: 0
A50: 5135 | B50: Overhead Distribution Lines and Feeders - Right of Way | C50: 12660.10217 | D50: 13914.65247 | E50: 36649.67563 | F50: 25706.02204 | G50: 25706.02204 | H50: 29336.75831
A51: 5145 | B51: Maintenance of Underground Conduit | C51: 0 | D51: 0 | E51: 0 | F51: 0 | G51: 0 | H51: 0
A52: 5150 | B52: Maintenance of Underground Conductors and Devices | C52: 59242.54088 | D52: 54608.25223 | E52: 54497.27186 | F52: 64912.95206 | G52: 64912.95206 | H52: 74167.32215
A53: 5155 | B53: Maintenance of Underground Services | C53: 0 | D53: 0 | E53: 0 | F53: 0 | G53: 0 | H53: 0
A54: 5160 | B54: Maintenance of Line Transformers | C54: 7007.2498 | D54: 2937.188808 | E54: 4819.992847 | F54: 6239.349293 | G54: 6239.349293 | H54: 7132.749317
A55: 5165 | B55: Maintenance of Street Lighting and Signal Systems | C55: 0 | D55: 0 | E55: 0 | F55: 0 | G55: 0 | H55: 0
A56: 5170 | B56: Sentinel Lights - Labour | C56: 0 | D56: 0 | E56: 0 | F56: 0 | G56: 0 | H56: 0
A57: 5172 | B57: Sentinel Lights - Materials and Expenses | C57: 0 | D57: 0 | E57: 0 | F57: 0 | G57: 0 | H57: 0
A58: 5175 | B58: Maintenance of Meters | C58: 68147.11848 | D58: 92158.59821 | E58: 87494.27725 | F58: 92815.57584 | G58: 92815.57584 | H58: 108208.8462
A59: 5178 | B59: Customer Installations Expenses - Leased Property | C59: 0 | D59: 0 | E59: 0 | F59: 0 | G59: 0 | H59: 0
A60: 5195 | B60: Maintenance of Other Installations on Customer Premises | C60: 0 | D60: 0 | E60: 0 | F60: 0 | G60: 0 | H60: 0
A61: Total - Maintenance | C61: =SUM(C43:C60) -> 337863.4442 | D61: 436383.3572 | E61: 440147.8264 | F61: 457389.333 | G61: 457389.333 | H61: 519567.9705
A62: Account | B62: Description | C62: =C41 -> Last Rebasing Year (2009 Actuals) | D62: 2010 Actual | E62: 2011 Actual² | F62: Bridge Year 2012³ | G62: Bridge Year 2012³ | H62: Test Year 2013
A63: Billing and Collecting | F63: CGAAP | G63: MIFRS | H63: MIFRS
A64: 5305 | B64: Supervision | C64: 0 | D64: 0 | E64: 0 | F64: 0 | G64: 0 | H64: 0 | J64: Table 4.2.9
A65: 5310 | B65: Meter Reading Expense | C65: 117880.9911 | D65: 84964.15611 | E65: 76885.0646 | F65: 172885.9474 | G65: 172885.9474 | H65: 180526.933
A66: 5315 | B66: Customer Billing | C66: 167832.5 | D66: 172499.5 | E66: 188336.55 | F66: 202600 | G66: 202600 | H66: 206979
A67: 5320 | B67: Collecting | C67: 68030.33 | D67: 76036.16 | E67: 61599.57 | F67: 78200 | G67: 78200 | H67: 83177
A68: 5325 | B68: Collecting - Cash Over and Short | C68: -227.13 | D68: -21.89 | E68: 109.84 | F68: 100 | G68: 100 | H68: 102
A69: 5330 | B69: Collection Charges | C69: 720.86 | D69: 800.74 | E69: 1143.41 | F69: 900 | G69: 900 | H69: 918
A70: 5335 | B70: Bad Debt Expense | C70: 80000 | D70: 79999.82 | E70: -88094.49 | F70: 25000 | G70: 25000 | H70: 25000
A71: 5340 | B71: Miscellaneous Customer Accounts Expenses | C71: 0 | D71: 0 | E71: 0 | F71: 0 | G71: 0 | H71: 0
A72: Total - Billing and Collecting | C72: =SUM(C64:C71) -> 434237.5511 | D72: 414278.4861 | E72: 239979.9446 | F72: 479685.9474 | G72: 479685.9474 | H72: 496702.933
A73: Account | B73: Description | C73: =C62 -> Last Rebasing Year (2009 Actuals) | D73: 2010 Actual | E73: 2011 Actual² | F73: Bridge Year 2012³ | G73: Bridge Year 2012³ | H73: Test Year 2013
A74: Community Relations | F74: CGAAP | G74: MIFRS | H74: MIFRS
A75: 5405 | B75: Supervision | C75: 0 | D75: 0 | E75: 0 | F75: 0 | G75: 0 | H75: 0 | J75: Table 4.2.10
A76: 5410 | B76: Community Relations - Sundry | C76: 1315.51218 | D76: 3900.044111 | E76: 3728.161496 | F76: 3527.344231 | G76: 3527.344231 | H76: 4128.817667
A77: 5415 | B77: Energy Conservation | C77: 0 | D77: 0 | E77: 0 | F77: 0 | G77: 0 | H77: 0
A78: 5420 | B78: Community Safety Program | C78: 0 | D78: 0 | E78: 0 | F78: 0 | G78: 0 | H78: 0
A79: 5425 | B79: Miscellaneous Customer Service and Informational Expenses | C79: 0 | D79: 0 | E79: 0 | F79: 0 | G79: 0 | H79: 0
A80: 5505 | B80: Supervision | C80: 0 | D80: 0 | E80: 0 | F80: 0 | G80: 0 | H80: 0
A81: 5510 | B81: Demonstrating and Selling Expense | C81: 0 | D81: 0 | E81: 0 | F81: 0 | G81: 0 | H81: 0
A82: 5515 | B82: Advertising Expenses | C82: 0 | D82: 0 | E82: 0 | F82: 0 | G82: 0 | H82: 0
A83: 5520 | B83: Miscellaneous Sales Expense
A84: Total - Community Relations | C84: =SUM(C75:C83) -> 1315.51218 | D84: 3900.044111 | E84: 3728.161496 | F84: 3527.344231 | G84: 3527.344231 | H84: 4128.817667
A85: Account | B85: Description | C85: =C73 -> Last Rebasing Year (2009 Actuals) | D85: 2010 Actual | E85: 2011 Actual² | F85: Bridge Year 2012³ | G85: Bridge Year 2012³ | H85: Test Year 2013
A86: Administrative and General Expenses | F86: CGAAP | G86: MIFRS | H86: MIFRS
A87: 5605 | B87: Executive Salaries and Expenses | C87: 27590.93 | D87: 28485.54 | E87: 27402.26 | F87: 27500 | G87: 27500 | H87: 27524 | J87: Table 4.2.11
A88: 5610 | B88: Management Salaries and Expenses | C88: 262316.07 | D88: 266380.33 | E88: 320502.23 | F88: 373900 | G88: 373900 | H88: 506320
A89: 5615 | B89: General Administrative Salaries and Expenses | C89: 18447.97 | D89: 69568.17 | E89: 52134.49 | F89: 60658 | G89: 60658 | H89: 62345
A90: 5620 | B90: Office Supplies and Expenses | C90: 105531.05 | D90: 117358.93 | E90: 116037.88 | F90: 108200 | G90: 108200 | H90: 110192
A91: 5625 | B91: Administrative Expense Transferred - Credit | C91: 0 | D91: 0 | E91: 0 | F91: 0 | G91: 0 | H91: 0
A92: 5630 | B92: Outside Services Employed | C92: 62208.31 | D92: 36705.67 | E92: 45339.57 | F92: 49500 | G92: 49500 | H92: 50500
A93: 5635 | B93: Property Insurance | C93: 23227.83 | D93: 45397.64 | E93: 41465.52 | F93: 26700 | G93: 26700 | H93: 27234
A94: 5640 | B94: Injuries and Damages | C94: 18731.04 | D94: 10849.68 | E94: 19165.92 | F94: 15800 | G94: 15800 | H94: 16116
A95: 5645 | B95: OMERS Pensions and Benefits | C95: 0 | D95: 0 | E95: 0 | F95: 0 | G95: 0 | H95: 0
A96: 5646 | B96: Employee Pensions and OPEB | C96: 0 | D96: 0 | E96: 0 | F96: 0 | G96: 0 | H96: 0
A97: 5647 | B97: Employee Sick Leave
A98: 5650 | B98: Franchise Requirements
A99: 5655 | B99: Regulatory Expenses | C99: 39959.13 | D99: 51926.66 | E99: 62720.77 | F99: 95181.62417 | G99: 95181.62417 | H99: 100696.5877
A100: 5660 | B100: General Advertising Expenses | C100: 0 | D100: 0 | E100: 0 | F100: 0 | G100: 0 | H100: 0
A101: 5665 | B101: Miscellaneous General Expenses | C101: 43586.22 | D101: 43539.81 | E101: 45931.38 | F101: 46200 | G101: 46200 | H101: 47124
A102: 5670 | B102: Rent | C102: 0
A103: 5672 | B103: Lease Payment Charge
A104: 5675 | B104: Maintenance of General Plant | C104: 83912.80488 | D104: 127616.4371 | E104: 142836.0514 | F104: 121459.0108 | G104: 121459.0108 | H104: 128818.9909
A105: 5680 | B105: Electrical Safety Authority Fees | C105: 3859.68 | D105: 3844.8 | E105: 5613.82 | F105: 5100 | G105: 5100 | H105: 5202
A106: 5681 | B106: Special Purpose Charge Expense | C106: 0
A107: 5685 | B107: Independent Electricity System Operator Fees and Penalties | C107: 0
A108: 5695 | B108: OM&A Contra Account
A109: 6205 | B109: Donations
A110: 6205 | B110: Donations, Sub-account LEAP Funding
A111: Total - Administrative and General Expenses | C111: =SUM(C87:C110) -> 689371.0349 | D111: 801673.6671 | E111: 879149.8914 | F111: 930198.6349 | G111: 930198.6349 | H111: 1082072.579
A112: Total OM&A | C112: =C40+C61+C72+C84+C111 -> 1788574.81 | D112: 1847856.6 | E112: 1791803.38 | F112: 2220399.959 | G112: 2220399.959 | H112: 2477124.404
A113: Adjustments for non-recoverable items | F113: CGAAP | G113: MIFRS | H113: MIFRS
A114: 5681 | B114: Special Purpose Charge Expense
A115: 6205 | B115: Donations1
A119: Total Recoverable OM&A | C119: =C112-SUM(C114:C118) -> 1788574.81 | D119: 1847856.6 | E119: 1791803.38 | F119: 2220399.959 | G119: 2220399.959 | H119: 2477124.404
A121: 1 Account 6205 - Donations is generally non-recoverable. However, the sub-account LEAP funding of account 6205 is generally recoverable.
A123: Note:
A124: 1 | B124: If it has been more than three years since the applicant last filed a cost of service application, additional years of historical actuals should be incorporated into the table, as necessary, to go back to the last cost of service application. If the applicant last filed a cost of service application less than three years ago, a minimum of three years of actual information is required.
A125: 2 | B125: If the applicant is adopting IFRS or an alternate accounting standard as of January 1, 2012 for financial reporting purposes, 2011 must be presented on both a CGAAP and MIFRS (or alternate accounting standard) basis.
A126: 3 | B126: If the applicant is adopting IFRS or an alternate accounting standard as of January 1, 2013 for financial reporting purposes, 2012 must be presented on both a CGAAP and MIFRS (or alternate accounting standard) basis.

Sheet App.2-H_OM&A_Detailed_Analysis
H1: File Number: | I1: ='LDC Info'!$E$18 -> EB-2012-0147
H2: Exhibit: | I2: 4
H3: Tab: | I3: 2
H4: Schedule: | I4: 3
H5: Page: | I5: 14-16 of 26
H7: Date: | I7: 2012-08-31
A9: Appendix 2-H
A10: OM&A Detailed Variance Analysis
A11: (excluding Depreciation and Amortization)
A14: Account | B14: Description | C14: ="Last Board-approved Rebasing Year ("&'LDC Info'!E30&" Year)" -> Last Board-approved Rebasing Year (2009 Year) | D14: Most Current Actuals Year 2011 | E14: ="Test Year " & 'LDC Info'!E28 -> Test Year 2013 | F14: Test Year Versus Last Rebasing | H14: Test Year Versus Most Current Actuals
F15: Variance ($) | G15: Percentage Change (%) | H15: Variance ($) | I15: Percentage Change (%)
A16: Reporting Basis | C16: CGAAP | D16: CGAAP | E16: MIFRS
A17: Operations
A18: 5005 | B18: Operation Supervision and Engineering | C18: ='App.2-G_Detailed_OM&A_Expenses'!C17 -> 242508.85 | D18: ='App.2-G_Detailed_OM&A_Expenses'!E17 -> 173956.64 | E18: ='App.2-G_Detailed_OM&A_Expenses'!H17 -> 289509 | F18: =E18-C18 -> 47000.15 | G18: =IF(C18=0,"",(E18/C18)-1) -> 0.1938079786 | H18: =E18-D18 -> 115552.36 | I18: =IF(D18=0,"",(E18/D18)-1) -> 0.6642595534 | K18: Table 4.2.15
A19: 5010 | B19: Load Dispatching | C19: ='App.2-G_Detailed_OM&A_Expenses'!C18 -> 13547.44394 | D19: ='App.2-G_Detailed_OM&A_Expenses'!E18 -> 1989.3 | E19: ='App.2-G_Detailed_OM&A_Expenses'!H18 -> 4080 | F19: =E19-C19 -> -9467.443939 | G19: =IF(C19=0,"",(E19/C19)-1) -> -0.6988361776 | H19: =E19-D19 -> 2090.7 | I19: =IF(D19=0,"",(E19/D19)-1) -> 1.050972704
A20: 5012 | B20: Station Buildings and Fixtures Expense | C20: ='App.2-G_Detailed_OM&A_Expenses'!C19 -> 0 | D20: ='App.2-G_Detailed_OM&A_Expenses'!E19 -> 0 | E20: ='App.2-G_Detailed_OM&A_Expenses'!H19 -> 0 | F20: 0 | H20: 0
A21: 5014 | B21: Transformer Station Equipment - Operation Labour | C21: ='App.2-G_Detailed_OM&A_Expenses'!C20 -> 0 | D21: ='App.2-G_Detailed_OM&A_Expenses'!E20 -> 0 | E21: ='App.2-G_Detailed_OM&A_Expenses'!H20 -> 0 | F21: 0 | H21: 0
A22: 5015 | B22: Transformer Station Equipment - Operation Supplies and Expenses | C22: ='App.2-G_Detailed_OM&A_Expenses'!C21 -> 0 | D22: ='App.2-G_Detailed_OM&A_Expenses'!E21 -> 0 | E22: ='App.2-G_Detailed_OM&A_Expenses'!H21 -> 0 | F22: 0 | H22: 0
A23: 5016 | B23: Distribution Station Equipment - Operation Labour | C23: ='App.2-G_Detailed_OM&A_Expenses'!C22 -> 5010.282695 | D23: ='App.2-G_Detailed_OM&A_Expenses'!E22 -> 1358.4078 | E23: ='App.2-G_Detailed_OM&A_Expenses'!H22 -> 4660.202859 | F23: -350.0798361 | G23: -0.06987227217 | H23: 3301.795059 | I23: 2.430636116
A24: 5017 | B24: Distribution Station Equipment - Operation Supplies and Expenses | C24: ='App.2-G_Detailed_OM&A_Expenses'!C23 -> 20405 | D24: ='App.2-G_Detailed_OM&A_Expenses'!E23 -> 19040 | E24: ='App.2-G_Detailed_OM&A_Expenses'!H23 -> 21100 | F24: 695 | G24: 0.03406027934 | H24: 2060 | I24: 0.1081932773
A25: 5020 | B25: Overhead Distribution Lines and Feeders - Operation Labour | C25: ='App.2-G_Detailed_OM&A_Expenses'!C24 -> 0 | D25: ='App.2-G_Detailed_OM&A_Expenses'!E24 -> 0 | E25: ='App.2-G_Detailed_OM&A_Expenses'!H24 -> 0 | F25: 0 | H25: 0
A26: 5025 | B26: Overhead Distribution Lines and Feeders - Operation Supplies and Expenses | C26: ='App.2-G_Detailed_OM&A_Expenses'!C25 -> 0 | D26: ='App.2-G_Detailed_OM&A_Expenses'!E25 -> 0 | E26: ='App.2-G_Detailed_OM&A_Expenses'!H25 -> 0 | F26: 0 | H26: 0
A27: 5030 | B27: Overhead Sub-transmission Feeders - Operation | C27: ='App.2-G_Detailed_OM&A_Expenses'!C26 -> 0 | D27: ='App.2-G_Detailed_OM&A_Expenses'!E26 -> 0 | E27: ='App.2-G_Detailed_OM&A_Expenses'!H26 -> 0 | F27: 0 | H27: 0
A28: 5035 | B28: Overhead Distribution Transformers - Operation | C28: ='App.2-G_Detailed_OM&A_Expenses'!C27 -> 2287.32 | D28: ='App.2-G_Detailed_OM&A_Expenses'!E27 -> 0 | E28: ='App.2-G_Detailed_OM&A_Expenses'!H27 -> 1800 | F28: -487.32 | G28: -0.2130528304 | H28: 1800
A29: 5040 | B29: Underground Distribution Lines and Feeders - Operation Labour | C29: ='App.2-G_Detailed_OM&A_Expenses'!C28 -> 0 | D29: ='App.2-G_Detailed_OM&A_Expenses'!E28 -> 0 | E29: ='App.2-G_Detailed_OM&A_Expenses'!H28 -> 0 | F29: 0 | H29: 0
A30: 5045 | B30: Underground Distribution Lines and Feeders - Operation Supplies and Expenses | C30: ='App.2-G_Detailed_OM&A_Expenses'!C29 -> 0 | D30: ='App.2-G_Detailed_OM&A_Expenses'!E29 -> 0 | E30: ='App.2-G_Detailed_OM&A_Expenses'!H29 -> 0 | F30: 0 | H30: 0
A31: 5050 | B31: Underground Sub-transmission Feeders - Operation | C31: ='App.2-G_Detailed_OM&A_Expenses'!C30 -> 0 | D31: ='App.2-G_Detailed_OM&A_Expenses'!E30 -> 0 | E31: ='App.2-G_Detailed_OM&A_Expenses'!H30 -> 0 | F31: 0 | H31: 0
A32: 5055 | B32: Underground Distribution Transformers - Operation | C32: ='App.2-G_Detailed_OM&A_Expenses'!C31 -> 0 | D32: ='App.2-G_Detailed_OM&A_Expenses'!E31 -> 0 | E32: ='App.2-G_Detailed_OM&A_Expenses'!H31 -> 0 | F32: 0 | H32: 0
A33: 5060 | B33: Street Lighting and Signal System Expense | C33: ='App.2-G_Detailed_OM&A_Expenses'!C32 -> 0 | D33: ='App.2-G_Detailed_OM&A_Expenses'!E32 -> 0 | E33: ='App.2-G_Detailed_OM&A_Expenses'!H32 -> 0 | F33: 0 | H33: 0
A34: 5065 | B34: Meter Expense | C34: ='App.2-G_Detailed_OM&A_Expenses'!C33 -> 7776.06284 | D34: ='App.2-G_Detailed_OM&A_Expenses'!E33 -> 2204.632841 | E34: ='App.2-G_Detailed_OM&A_Expenses'!H33 -> 5557.98195 | F34: -2218.08089 | G34: -0.2852447229 | H34: 3353.349109 | I34: 1.52104652
A35: 5070 | B35: Customer Premises - Operation Labour | C35: ='App.2-G_Detailed_OM&A_Expenses'!C34 -> 31889.58808 | D35: ='App.2-G_Detailed_OM&A_Expenses'!E34 -> 28362.39548 | E35: ='App.2-G_Detailed_OM&A_Expenses'!H34 -> 45434.01928 | F35: 13544.4312 | G35: 0.424728948 | H35: 17071.6238 | I35: 0.6019105053
A36: 5075 | B36: Customer Premises - Operation Materials and Expenses | C36: ='App.2-G_Detailed_OM&A_Expenses'!C35 -> 2362.72 | D36: ='App.2-G_Detailed_OM&A_Expenses'!E35 -> 1886.18 | E36: ='App.2-G_Detailed_OM&A_Expenses'!H35 -> 2510.89989 | F36: 148.1798905 | G36: 0.06271580656 | H36: 624.7198905 | I36: 0.3312090524
A37: 5085 | B37: Miscellaneous Distribution Expenses | C37: ='App.2-G_Detailed_OM&A_Expenses'!C36 -> 0 | D37: ='App.2-G_Detailed_OM&A_Expenses'!E36 -> 0 | E37: ='App.2-G_Detailed_OM&A_Expenses'!H36 -> 0 | F37: 0 | H37: 0
A38: 5090 | B38: Underground Distribution Lines and Feeders - Rental Paid | C38: ='App.2-G_Detailed_OM&A_Expenses'!C37 -> 0 | D38: ='App.2-G_Detailed_OM&A_Expenses'!E37 -> 0 | E38: ='App.2-G_Detailed_OM&A_Expenses'!H37 -> 0 | F38: 0 | H38: 0
A39: 5095 | B39: Overhead Distribution Lines and Feeders - Rental Paid | C39: ='App.2-G_Detailed_OM&A_Expenses'!C38 -> 0 | D39: ='App.2-G_Detailed_OM&A_Expenses'!E38 -> 0 | E39: ='App.2-G_Detailed_OM&A_Expenses'!H38 -> 0 | F39: 0 | H39: 0
A40: 5096 | B40: Other Rent | C40: ='App.2-G_Detailed_OM&A_Expenses'!C39 -> 0 | D40: ='App.2-G_Detailed_OM&A_Expenses'!E39 -> 0 | E40: ='App.2-G_Detailed_OM&A_Expenses'!H39 -> 0 | F40: 0 | H40: 0
A41: Total - Operations | C41: =SUM(C18:C40) -> 325787.2676 | D41: =SUM(D18:D40) -> 228797.5561 | E41: =SUM(E18:E40) -> 374652.104 | F41: 48864.83642 | G41: 0.1499900128 | H41: 145854.5479 | I41: 0.6374829798
A42: Account | B42: Description | C42: ="Last Board-approved Rebasing Year ("&'LDC Info'!E58&" Year)" -> Last Board-approved Rebasing Year ( Year) | D42: Most Current Actuals Year 2011 | E42: ="Test Year " & 'LDC Info'!E56 -> Test Year | F42: Test Year Versus Last Rebasing | H42: Test Year Versus Most Current Actuals
F43: Variance ($) | G43: Percentage Change (%) | H43: Variance ($) | I43: Percentage Change (%)
A44: Reporting Basis | C44: CGAAP | D44: CGAAP | E44: MIFRS
A45: Maintenance
A46: 5105 | B46: Maintenance Supervision and Engineering | C46: ='App.2-G_Detailed_OM&A_Expenses'!C43 -> 42218.98056 | D46: ='App.2-G_Detailed_OM&A_Expenses'!E43 -> 90255.59053 | E46: ='App.2-G_Detailed_OM&A_Expenses'!H43 -> 110659.488 | F46: =E46-C46 -> 68440.50742 | G46: =IF(C46=0,"",(E46/C46)-1) -> 1.621083847 | H46: =E46-D46 -> 20403.89745 | I46: =IF(D46=0,"",(E46/D46)-1) -> 0.2260679624 | K46: Table 4.2.16
A47: 5110 | B47: Maintenance of Buildings and Fixtures - Distribution Stations | C47: ='App.2-G_Detailed_OM&A_Expenses'!C44 -> 69149.97 | D47: ='App.2-G_Detailed_OM&A_Expenses'!E44 -> 0 | E47: ='App.2-G_Detailed_OM&A_Expenses'!H44 -> 0 | F47: -69149.97 | G47: -1 | H47: 0
A48: 5112 | B48: Maintenance of Transformer Station Equipment | C48: ='App.2-G_Detailed_OM&A_Expenses'!C45 -> 0 | D48: ='App.2-G_Detailed_OM&A_Expenses'!E45 -> 0 | E48: ='App.2-G_Detailed_OM&A_Expenses'!H45 -> 0 | F48: 0 | H48: 0
A49: 5114 | B49: Maintenance of Distribution Station Equipment | C49: ='App.2-G_Detailed_OM&A_Expenses'!C46 -> 444.7162309 | D49: ='App.2-G_Detailed_OM&A_Expenses'!E46 -> 80404.28955 | E49: ='App.2-G_Detailed_OM&A_Expenses'!H46 -> 86937.1871 | F49: 86492.47087 | G49: 194.4891256 | H49: 6532.897555 | I49: 0.08125060979
A50: 5120 | B50: Maintenance of Poles, Towers and Fixtures | C50: ='App.2-G_Detailed_OM&A_Expenses'!C47 -> 12578.46569 | D50: ='App.2-G_Detailed_OM&A_Expenses'!E47 -> 2983.887449 | E50: ='App.2-G_Detailed_OM&A_Expenses'!H47 -> 18344.98084 | F50: 5766.51515 | G50: 0.4584434455 | H50: 15361.09339 | I50: 5.148013675
A51: 5125 | B51: Maintenance of Overhead Conductors and Devices | C51: ='App.2-G_Detailed_OM&A_Expenses'!C48 -> 66414.30043 | D51: ='App.2-G_Detailed_OM&A_Expenses'!E48 -> 83042.84127 | E51: ='App.2-G_Detailed_OM&A_Expenses'!H48 -> 84780.63865 | F51: 18366.33822 | G51: 0.276541921 | H51: 1737.797381 | I51: 0.02092651642
A52: 5130 | B52: Maintenance of Overhead Services | C52: ='App.2-G_Detailed_OM&A_Expenses'!C49 -> 0 | D52: ='App.2-G_Detailed_OM&A_Expenses'!E49 -> 0 | E52: ='App.2-G_Detailed_OM&A_Expenses'!H49 -> 0 | F52: 0 | H52: 0
A53: 5135 | B53: Overhead Distribution Lines and Feeders - Right of Way | C53: ='App.2-G_Detailed_OM&A_Expenses'!C50 -> 12660.10217 | D53: ='App.2-G_Detailed_OM&A_Expenses'!E50 -> 36649.67563 | E53: ='App.2-G_Detailed_OM&A_Expenses'!H50 -> 29336.75831 | F53: 16676.65614 | G53: 1.317260786 | H53: -7312.917315 | I53: -0.1995356627
A54: 5145 | B54: Maintenance of Underground Conduit | C54: ='App.2-G_Detailed_OM&A_Expenses'!C51 -> 0 | D54: ='App.2-G_Detailed_OM&A_Expenses'!E51 -> 0 | E54: ='App.2-G_Detailed_OM&A_Expenses'!H51 -> 0 | F54: 0 | H54: 0
A55: 5150 | B55: Maintenance of Underground Conductors and Devices | C55: ='App.2-G_Detailed_OM&A_Expenses'!C52 -> 59242.54088 | D55: ='App.2-G_Detailed_OM&A_Expenses'!E52 -> 54497.27186 | E55: ='App.2-G_Detailed_OM&A_Expenses'!H52 -> 74167.32215 | F55: 14924.78128 | G55: 0.2519267583 | H55: 19670.05029 | I55: 0.3609364215
A56: 5155 | B56: Maintenance of Underground Services | C56: ='App.2-G_Detailed_OM&A_Expenses'!C53 -> 0 | D56: ='App.2-G_Detailed_OM&A_Expenses'!E53 -> 0 | E56: ='App.2-G_Detailed_OM&A_Expenses'!H53 -> 0 | F56: 0 | H56: 0
A57: 5160 | B57: Maintenance of Line Transformers | C57: ='App.2-G_Detailed_OM&A_Expenses'!C54 -> 7007.2498 | D57: ='App.2-G_Detailed_OM&A_Expenses'!E54 -> 4819.992847 | E57: ='App.2-G_Detailed_OM&A_Expenses'!H54 -> 7132.749317 | F57: 125.4995167 | G57: 0.0179099533 | H57: 2312.75647 | I57: 0.4798257058
A58: 5165 | B58: Maintenance of Street Lighting and Signal Systems | C58: ='App.2-G_Detailed_OM&A_Expenses'!C55 -> 0 | D58: ='App.2-G_Detailed_OM&A_Expenses'!E55 -> 0 | E58: ='App.2-G_Detailed_OM&A_Expenses'!H55 -> 0 | F58: 0 | H58: 0
A59: 5170 | B59: Sentinel Lights - Labour | C59: ='App.2-G_Detailed_OM&A_Expenses'!C56 -> 0 | D59: ='App.2-G_Detailed_OM&A_Expenses'!E56 -> 0 | E59: ='App.2-G_Detailed_OM&A_Expenses'!H56 -> 0 | F59: 0 | H59: 0
A60: 5172 | B60: Sentinel Lights - Materials and Expenses | C60: ='App.2-G_Detailed_OM&A_Expenses'!C57 -> 0 | D60: ='App.2-G_Detailed_OM&A_Expenses'!E57 -> 0 | E60: ='App.2-G_Detailed_OM&A_Expenses'!H57 -> 0 | F60: 0 | H60: 0
A61: 5175 | B61: Maintenance of Meters | C61: ='App.2-G_Detailed_OM&A_Expenses'!C58 -> 68147.11848 | D61: ='App.2-G_Detailed_OM&A_Expenses'!E58 -> 87494.27725 | E61: ='App.2-G_Detailed_OM&A_Expenses'!H58 -> 108208.8462 | F61: 40061.72769 | G61: 0.5878711907 | H61: 20714.56893 | I61: 0.2367534149
A62: 5178 | B62: Customer Installations Expenses - Leased Property | C62: ='App.2-G_Detailed_OM&A_Expenses'!C59 -> 0 | D62: ='App.2-G_Detailed_OM&A_Expenses'!E59 -> 0 | E62: ='App.2-G_Detailed_OM&A_Expenses'!H59 -> 0 | F62: 0 | H62: 0
A63: 5195 | B63: Maintenance of Other Installations on Customer Premises | C63: ='App.2-G_Detailed_OM&A_Expenses'!C60 -> 0 | D63: ='App.2-G_Detailed_OM&A_Expenses'!E60 -> 0 | E63: ='App.2-G_Detailed_OM&A_Expenses'!H60 -> 0 | F63: 0 | H63: 0
A64: Total - Maintenance | C64: =SUM(C46:C63) -> 337863.4442 | D64: =SUM(D46:D63) -> 440147.8264 | E64: =SUM(E46:E63) -> 519567.9705 | F64: 181704.5263 | G64: 0.5378046349 | H64: 79420.14414 | I64: 0.1804397054
A65: Account | B65: Description | C65: ="Last Board-approved Rebasing Year ("&'LDC Info'!E80&" Year)" -> Last Board-approved Rebasing Year ( Year) | D65: Most Current Actuals Year 2011 | E65: ="Test Year " & 'LDC Info'!E78 -> Test Year | F65: Test Year Versus Last Rebasing | H65: Test Year Versus Most Current Actuals
F66: Variance ($) | G66: Percentage Change (%) | H66: Variance ($) | I66: Percentage Change (%)
A67: Reporting Basis | C67: CGAAP | D67: CGAAP | E67: MIFRS
A68: Billing and Collecting | K68: Table 4.2.17
A69: 5305 | B69: Supervision | C69: ='App.2-G_Detailed_OM&A_Expenses'!C64 -> 0 | D69: ='App.2-G_Detailed_OM&A_Expenses'!E64 -> 0 | E69: ='App.2-G_Detailed_OM&A_Expenses'!H64 -> 0 | F69: =E69-C69 -> 0 | G69: =IF(C69=0,"",(E69/C69)-1) ->  | H69: =E69-D69 -> 0 | I69: =IF(D69=0,"",(E69/D69)-1) -> 
A70: 5310 | B70: Meter Reading Expense | C70: ='App.2-G_Detailed_OM&A_Expenses'!C65 -> 117880.9911 | D70: ='App.2-G_Detailed_OM&A_Expenses'!E65 -> 76885.0646 | E70: ='App.2-G_Detailed_OM&A_Expenses'!H65 -> 180526.933 | F70: 62645.94183 | G70: 0.5314337895 | H70: 103641.8684 | I70: 1.348010422
A71: 5315 | B71: Customer Billing | C71: ='App.2-G_Detailed_OM&A_Expenses'!C66 -> 167832.5 | D71: ='App.2-G_Detailed_OM&A_Expenses'!E66 -> 188336.55 | E71: ='App.2-G_Detailed_OM&A_Expenses'!H66 -> 206979 | F71: 39146.5 | G71: 0.2332474342 | H71: 18642.45 | I71: 0.09898476955
A72: 5320 | B72: Collecting | C72: ='App.2-G_Detailed_OM&A_Expenses'!C67 -> 68030.33 | D72: ='App.2-G_Detailed_OM&A_Expenses'!E67 -> 61599.57 | E72: ='App.2-G_Detailed_OM&A_Expenses'!H67 -> 83177 | F72: 15146.67 | G72: 0.2226458405 | H72: 21577.43 | I72: 0.3502853997
A73: 5325 | B73: Collecting - Cash Over and Short | C73: ='App.2-G_Detailed_OM&A_Expenses'!C68 -> -227.13 | D73: ='App.2-G_Detailed_OM&A_Expenses'!E68 -> 109.84 | E73: ='App.2-G_Detailed_OM&A_Expenses'!H68 -> 102 | F73: 329.13 | G73: -1.449082024 | H73: -7.84 | I73: -0.07137654771
A74: 5330 | B74: Collection Charges | C74: ='App.2-G_Detailed_OM&A_Expenses'!C69 -> 720.86 | D74: ='App.2-G_Detailed_OM&A_Expenses'!E69 -> 1143.41 | E74: ='App.2-G_Detailed_OM&A_Expenses'!H69 -> 918 | F74: 197.14 | G74: 0.2734789002 | H74: -225.41 | I74: -0.1971383843
A75: 5335 | B75: Bad Debt Expense | C75: ='App.2-G_Detailed_OM&A_Expenses'!C70 -> 80000 | D75: ='App.2-G_Detailed_OM&A_Expenses'!E70 -> -88094.49 | E75: ='App.2-G_Detailed_OM&A_Expenses'!H70 -> 25000 | F75: -55000 | G75: -0.6875 | H75: 113094.49 | I75: -1.283786194
A76: 5340 | B76: Miscellaneous Customer Accounts Expenses | F76: 0 | H76: 0
A77: Total - Billing and Collecting | C77: =SUM(C69:C76) -> 434237.5511 | D77: =SUM(D69:D76) -> 239979.9446 | E77: =SUM(E69:E76) -> 496702.933 | F77: 62465.38183 | G77: 0.1438507141 | H77: 256722.9884 | I77: 1.069768513
A78: Account | B78: Description | C78: ="Last Board-approved Rebasing Year ("&'LDC Info'!E92&" Year)" -> Last Board-approved Rebasing Year ( Year) | D78: Most Current Actuals Year 2011 | E78: ="Test Year " & 'LDC Info'!E90 -> Test Year | F78: Test Year Versus Last Rebasing | H78: Test Year Versus Most Current Actuals
F79: Variance ($) | G79: Percentage Change (%) | H79: Variance ($) | I79: Percentage Change (%)
A80: Reporting Basis | C80: CGAAP | D80: CGAAP | E80: MIFRS
A81: Community Relations | K81: Table 4.2.18
A82: 5405 | B82: Supervision | C82: ='App.2-G_Detailed_OM&A_Expenses'!C75 -> 0 | D82: ='App.2-G_Detailed_OM&A_Expenses'!E75 -> 0 | E82: ='App.2-G_Detailed_OM&A_Expenses'!H75 -> 0 | F82: =E82-C82 -> 0 | G82: =IF(C82=0,"",(E82/C82)-1) ->  | H82: =E82-D82 -> 0 | I82: =IF(D82=0,"",(E82/D82)-1) -> 
A83: 5410 | B83: Community Relations - Sundry | C83: ='App.2-G_Detailed_OM&A_Expenses'!C76 -> 1315.51218 | D83: ='App.2-G_Detailed_OM&A_Expenses'!E76 -> 3728.161496 | E83: ='App.2-G_Detailed_OM&A_Expenses'!H76 -> 4128.817667 | F83: 2813.305488 | G83: 2.138562859 | H83: 400.6561717 | I83: 0.1074674936
A84: 5415 | B84: Energy Conservation | C84: ='App.2-G_Detailed_OM&A_Expenses'!C77 -> 0 | D84: ='App.2-G_Detailed_OM&A_Expenses'!E77 -> 0 | E84: ='App.2-G_Detailed_OM&A_Expenses'!H77 -> 0 | F84: 0 | H84: 0
A85: 5420 | B85: Community Safety Program | C85: ='App.2-G_Detailed_OM&A_Expenses'!C78 -> 0 | D85: ='App.2-G_Detailed_OM&A_Expenses'!E78 -> 0 | E85: ='App.2-G_Detailed_OM&A_Expenses'!H78 -> 0 | F85: 0 | H85: 0
A86: 5425 | B86: Miscellaneous Customer Service and Informational Expenses | C86: ='App.2-G_Detailed_OM&A_Expenses'!C79 -> 0 | D86: ='App.2-G_Detailed_OM&A_Expenses'!E79 -> 0 | E86: ='App.2-G_Detailed_OM&A_Expenses'!H79 -> 0 | F86: 0 | H86: 0
A87: 5505 | B87: Supervision | C87: ='App.2-G_Detailed_OM&A_Expenses'!C80 -> 0 | D87: ='App.2-G_Detailed_OM&A_Expenses'!E80 -> 0 | E87: ='App.2-G_Detailed_OM&A_Expenses'!H80 -> 0 | F87: 0 | H87: 0
A88: 5510 | B88: Demonstrating and Selling Expense | C88: ='App.2-G_Detailed_OM&A_Expenses'!C81 -> 0 | D88: ='App.2-G_Detailed_OM&A_Expenses'!E81 -> 0 | E88: ='App.2-G_Detailed_OM&A_Expenses'!H81 -> 0 | F88: 0 | H88: 0
A89: 5515 | B89: Advertising Expenses | C89: ='App.2-G_Detailed_OM&A_Expenses'!C82 -> 0 | D89: ='App.2-G_Detailed_OM&A_Expenses'!E82 -> 0 | E89: ='App.2-G_Detailed_OM&A_Expenses'!H82 -> 0 | F89: 0 | H89: 0
A90: 5520 | B90: Miscellaneous Sales Expense | F90: 0 | H90: 0
A91: Total - Community Relations | C91: =SUM(C82:C90) -> 1315.51218 | D91: =SUM(D82:D90) -> 3728.161496 | E91: =SUM(E82:E90) -> 4128.817667 | F91: 2813.305488 | G91: 2.138562859 | H91: 400.6561717 | I91: 0.1074674936
A92: Account | B92: Description | C92: ="Last Board-approved Rebasing Year ("&'LDC Info'!E105&" Year)" -> Last Board-approved Rebasing Year ( Year) | D92: Most Current Actuals Year 2011 | E92: ="Test Year " & 'LDC Info'!E103 -> Test Year | F92: Test Year Versus Last Rebasing | H92: Test Year Versus Most Current Actuals
F93: Variance ($) | G93: Percentage Change (%) | H93: Variance ($) | I93: Percentage Change (%)
A94: Reporting Basis | C94: CGAAP | D94: CGAAP | E94: MIFRS
A95: Administrative and General Expenses
A96: 5605 | B96: Executive Salaries and Expenses | C96: ='App.2-G_Detailed_OM&A_Expenses'!C87 -> 27590.93 | D96: ='App.2-G_Detailed_OM&A_Expenses'!E87 -> 27402.26 | E96: ='App.2-G_Detailed_OM&A_Expenses'!H87 -> 27524 | F96: =E96-C96 -> -66.93 | G96: =IF(C96=0,"",(E96/C96)-1) -> -0.002425797173 | H96: =E96-D96 -> 121.74 | I96: =IF(D96=0,"",(E96/D96)-1) -> 0.004442699252 | K96: Table 4.2.19
A97: 5610 | B97: Management Salaries and Expenses | C97: ='App.2-G_Detailed_OM&A_Expenses'!C88 -> 262316.07 | D97: ='App.2-G_Detailed_OM&A_Expenses'!E88 -> 320502.23 | E97: ='App.2-G_Detailed_OM&A_Expenses'!H88 -> 506320 | F97: 244003.93 | G97: 0.9301905522 | H97: 185817.77 | I97: 0.5797705994
A98: 5615 | B98: General Administrative Salaries and Expenses | C98: ='App.2-G_Detailed_OM&A_Expenses'!C89 -> 18447.97 | D98: ='App.2-G_Detailed_OM&A_Expenses'!E89 -> 52134.49 | E98: ='App.2-G_Detailed_OM&A_Expenses'!H89 -> 62345 | F98: 43897.03 | G98: 2.379504628 | H98: 10210.51 | I98: 0.1958494271
A99: 5620 | B99: Office Supplies and Expenses | C99: ='App.2-G_Detailed_OM&A_Expenses'!C90 -> 105531.05 | D99: ='App.2-G_Detailed_OM&A_Expenses'!E90 -> 116037.88 | E99: ='App.2-G_Detailed_OM&A_Expenses'!H90 -> 110192 | F99: 4660.95 | G99: 0.04416662205 | H99: -5845.88 | I99: -0.05037906587
A100: 5625 | B100: Administrative Expense Transferred - Credit | C100: ='App.2-G_Detailed_OM&A_Expenses'!C91 -> 0 | D100: ='App.2-G_Detailed_OM&A_Expenses'!E91 -> 0 | E100: ='App.2-G_Detailed_OM&A_Expenses'!H91 -> 0 | F100: 0 | H100: 0
A101: 5630 | B101: Outside Services Employed | C101: ='App.2-G_Detailed_OM&A_Expenses'!C92 -> 62208.31 | D101: ='App.2-G_Detailed_OM&A_Expenses'!E92 -> 45339.57 | E101: ='App.2-G_Detailed_OM&A_Expenses'!H92 -> 50500 | F101: -11708.31 | G101: -0.1882113499 | H101: 5160.43 | I101: 0.1138173565
A102: 5635 | B102: Property Insurance | C102: ='App.2-G_Detailed_OM&A_Expenses'!C93 -> 23227.83 | D102: ='App.2-G_Detailed_OM&A_Expenses'!E93 -> 41465.52 | E102: ='App.2-G_Detailed_OM&A_Expenses'!H93 -> 27234 | F102: 4006.17 | G102: 0.1724728483 | H102: -14231.52 | I102: -0.3432133493
A103: 5640 | B103: Injuries and Damages | C103: ='App.2-G_Detailed_OM&A_Expenses'!C94 -> 18731.04 | D103: ='App.2-G_Detailed_OM&A_Expenses'!E94 -> 19165.92 | E103: ='App.2-G_Detailed_OM&A_Expenses'!H94 -> 16116 | F103: -2615.04 | G103: -0.1396099736 | H103: -3049.92 | I103: -0.1591324601
A104: 5645 | B104: OMERS Pensions and Benefits | C104: ='App.2-G_Detailed_OM&A_Expenses'!C95 -> 0 | D104: ='App.2-G_Detailed_OM&A_Expenses'!E95 -> 0 | E104: ='App.2-G_Detailed_OM&A_Expenses'!H95 -> 0 | F104: 0 | H104: 0
A105: 5646 | B105: Employee Pensions and OPEB | C105: ='App.2-G_Detailed_OM&A_Expenses'!C96 -> 0 | D105: ='App.2-G_Detailed_OM&A_Expenses'!E96 -> 0 | E105: ='App.2-G_Detailed_OM&A_Expenses'!H96 -> 0 | F105: =E105-C105 -> 0 | G105: =IF(C105=0,"",(E105/C105)-1) ->  | H105: =E105-D105 -> 0 | I105: =IF(D105=0,"",(E105/D105)-1) -> 
A106: 5647 | B106: Employee Sick Leave | C106: ='App.2-G_Detailed_OM&A_Expenses'!C97 -> 0 | D106: ='App.2-G_Detailed_OM&A_Expenses'!E97 -> 0 | E106: ='App.2-G_Detailed_OM&A_Expenses'!H97 -> 0 | F106: =E106-C106 -> 0 | G106: =IF(C106=0,"",(E106/C106)-1) ->  | H106: =E106-D106 -> 0 | I106: =IF(D106=0,"",(E106/D106)-1) -> 
A107: 5650 | B107: Franchise Requirements | C107: ='App.2-G_Detailed_OM&A_Expenses'!C98 -> 0 | D107: ='App.2-G_Detailed_OM&A_Expenses'!E98 -> 0 | E107: ='App.2-G_Detailed_OM&A_Expenses'!H98 -> 0 | F107: 0 | H107: 0
A108: 5655 | B108: Regulatory Expenses | C108: ='App.2-G_Detailed_OM&A_Expenses'!C99 -> 39959.13 | D108: ='App.2-G_Detailed_OM&A_Expenses'!E99 -> 62720.77 | E108: ='App.2-G_Detailed_OM&A_Expenses'!H99 -> 100696.5877 | F108: 60737.45773 | G108: 1.519989493 | H108: 37975.81773 | I108: 0.6054743546
A109: 5660 | B109: General Advertising Expenses | C109: ='App.2-G_Detailed_OM&A_Expenses'!C100 -> 0 | D109: ='App.2-G_Detailed_OM&A_Expenses'!E100 -> 0 | E109: ='App.2-G_Detailed_OM&A_Expenses'!H100 -> 0 | F109: 0 | H109: 0
A110: 5665 | B110: Miscellaneous General Expenses | C110: ='App.2-G_Detailed_OM&A_Expenses'!C101 -> 43586.22 | D110: ='App.2-G_Detailed_OM&A_Expenses'!E101 -> 45931.38 | E110: ='App.2-G_Detailed_OM&A_Expenses'!H101 -> 47124 | F110: 3537.78 | G110: 0.08116739648 | H110: 1192.62 | I110: 0.02596525513
A111: 5670 | B111: Rent | C111: ='App.2-G_Detailed_OM&A_Expenses'!C102 -> 0 | D111: ='App.2-G_Detailed_OM&A_Expenses'!E102 -> 0 | E111: ='App.2-G_Detailed_OM&A_Expenses'!H102 -> 0 | F111: =E111-C111 -> 0 | G111: =IF(C111=0,"",(E111/C111)-1) ->  | H111: =E111-D111 -> 0
A112: 5672 | B112: Lease Payment Charge | C112: ='App.2-G_Detailed_OM&A_Expenses'!C103 -> 0 | D112: ='App.2-G_Detailed_OM&A_Expenses'!E103 -> 0 | E112: ='App.2-G_Detailed_OM&A_Expenses'!H103 -> 0 | F112: 0 | H112: 0
A113: 5675 | B113: Maintenance of General Plant | C113: ='App.2-G_Detailed_OM&A_Expenses'!C104 -> 83912.80488 | D113: ='App.2-G_Detailed_OM&A_Expenses'!E104 -> 142836.0514 | E113: ='App.2-G_Detailed_OM&A_Expenses'!H104 -> 128818.9909 | F113: 44906.18601 | G113: 0.5351529611 | H113: -14017.06051 | I113: -0.09813391207
A114: 5680 | B114: Electrical Safety Authority Fees | C114: ='App.2-G_Detailed_OM&A_Expenses'!C105 -> 3859.68 | D114: ='App.2-G_Detailed_OM&A_Expenses'!E105 -> 5613.82 | E114: ='App.2-G_Detailed_OM&A_Expenses'!H105 -> 5202 | F114: 1342.32 | G114: 0.3477801268 | H114: -411.82 | I114: -0.07335824804
A115: 5681 | B115: Special Purpose Charge Expense | C115: ='App.2-G_Detailed_OM&A_Expenses'!C106 -> 0 | D115: ='App.2-G_Detailed_OM&A_Expenses'!E106 -> 0 | E115: ='App.2-G_Detailed_OM&A_Expenses'!H106 -> 0 | F115: 0 | H115: 0
A116: 5685 | B116: Independent Electricity System Operator Fees and Penalties | C116: ='App.2-G_Detailed_OM&A_Expenses'!C107 -> 0 | D116: ='App.2-G_Detailed_OM&A_Expenses'!E107 -> 0 | E116: ='App.2-G_Detailed_OM&A_Expenses'!H107 -> 0 | F116: 0 | H116: 0
A117: 5695 | B117: OM&A Contra Account | C117: ='App.2-G_Detailed_OM&A_Expenses'!C108 -> 0 | D117: ='App.2-G_Detailed_OM&A_Expenses'!E108 -> 0 | E117: ='App.2-G_Detailed_OM&A_Expenses'!H108 -> 0 | F117: 0 | H117: 0
A118: 6205 | B118: Donations | C118: ='App.2-G_Detailed_OM&A_Expenses'!C109 -> 0 | D118: ='App.2-G_Detailed_OM&A_Expenses'!E109 -> 0 | E118: ='App.2-G_Detailed_OM&A_Expenses'!H109 -> 0 | F118: =E118-C118 -> 0 | G118: =IF(C118=0,"",(E118/C118)-1) ->  | H118: =E118-D118 -> 0 | I118: =IF(D118=0,"",(E118/D118)-1) -> 
A119: 6205 | B119: Donations, Sub-account LEAP Funding | C119: ='App.2-G_Detailed_OM&A_Expenses'!C110 -> 0 | D119: ='App.2-G_Detailed_OM&A_Expenses'!E110 -> 0 | E119: ='App.2-G_Detailed_OM&A_Expenses'!H110 -> 0 | F119: 0 | H119: 0
A120: Total - Administrative and General Expenses | C120: =SUM(C96:C119) -> 689371.0349 | D120: =SUM(D96:D119) -> 879149.8914 | E120: =SUM(E96:E119) -> 1082072.579 | F120: 392701.5437 | G120: 0.5696519347 | H120: 202922.6872 | I120: 0.2308169394
A121: Total OM&A | C121: =C120+C91+C77+C64+C41 -> 1788574.81 | D121: =D120+D91+D77+D64+D41 -> 1791803.38 | E121: =E120+E91+E77+E64+E41 -> 2477124.404 | F121: 688549.5938 | G121: 0.3849710898 | H121: 685321.0238 | I121: 0.3824755726
A122: Adjustments for non-recoverable items
A123: 5681 | B123: Special Purpose Charge Expense | F123: =E123-C123 -> 0 | G123: =IF(C123=0,"",(E123/C123)-1) ->  | H123: =E123-D123 -> 0 | I123: =IF(D123=0,"",(E123/D123)-1) -> 
A124: 6205 | B124: Donations1 | F124: =E124-C124 -> 0 | H124: =E124-D124 -> 0
F125: =E125-C125 -> 0 | H125: =E125-D125 -> 0
F126: =E126-C126 -> 0 | H126: =E126-D126 -> 0
F127: =E127-C127 -> 0 | H127: =E127-D127 -> 0
A128: Total Recoverable OM&A | C128: =C121-SUM(C123:C127) -> 1788574.81 | D128: =D121-SUM(D123:D127) -> 1791803.38 | E128: =E121-SUM(E123:E127) -> 2477124.404 | F128: =F121-SUM(F123:F127) -> 688549.5938 | G128: 0.3849710898 | H128: =H121-SUM(H123:H127) -> 685321.0238 | I128: 0.3824755726
A130: 1 Account 6205 - Donations is generally non-recoverable. However, the sub-account LEAP funding of account 6205 is generally recoverable.
A133: Note:
A135: 1 | B135: If the applicant is adopting IFRS or an alternate accounting standard as of January 1, 2013 for financial reporting purposes, Column D "Most Current Actual Year" must be provided on CGAAP.
A136: 2 | B136: If the applicant is adopting IFRS or an alternate accounting standard as of January 1, 2012 for financial reporting purposes, Column D "Most Current Actual Year" must be provided on that standard.

Sheet App.2-I_OM&A_Summary_Analys
K1: File Number: | L1: ='LDC Info'!$E$18 -> EB-2012-0147
K2: Exhibit: | L2: 4
K3: Tab: | L3: 1
K4: Schedule: | L4: 1
K5: Page: | L5: 2 & 3 of 8
K7: Date: | L7: 2012-08-31
A9: Appendix 2-I
A10: Summary of Recoverable OM&A Expenses
B13: ="Last Rebasing Year (" & 'LDC Info'!E30 & " BA)" -> Last Rebasing Year (2009 BA) | C13: ="Last Rebasing Year (" & 'LDC Info'!E30 & " Actuals)" -> Last Rebasing Year (2009 Actuals) | D13: ='LDC Info'!E26 -2 & " Actuals" -> 2010 Actuals | E13: ='LDC Info'!E26 -1 & " Actuals" -> 2011 Actuals | F13: ='LDC Info'!E26 & " Bridge Year" -> 2012 Bridge Year | G13: ='LDC Info'!E28 & " Test Year" -> 2013 Test Year
A14: Reporting Basis | B14: CGAAP | C14: CGAAP | D14: CGAAP | E14: CGAAP | F14: MIFRS | G14: MIFRS | I14: Table 4.2.3
A15: Operations | B15: 455700 | C15: 325787.2676 | D15: 191621.0455 | E15: 228797.5561 | F15: 349598.6993 | G15: 374652.104
A16: Maintenance | B16: 353900 | C16: 337863.4442 | D16: 436383.3572 | E16: 440147.8264 | F16: 457389.333 | G16: 519567.9705
A17: SubTotal | B17: =SUM(B15:B16) -> 809600 | C17: 663650.7118 | D17: 628004.4026 | E17: 668945.3825 | F17: 806988.0323 | G17: 894220.0745
A18: %Change (year over year) | D18: =IF(ISERROR((D17-C17)/C17), "", (D17-C17)/C17) -> -0.05371245526 | E18: =IF(ISERROR((E17-D17)/D17), "", (E17-D17)/D17) -> 0.06519218608 | F18: =IF(ISERROR((F17-E17)/E17), "", (F17-E17)/E17) -> 0.2063586257 | G18: =IF(ISERROR((G17-F17)/F17), "", (G17-F17)/F17) -> 0.1080958313
A19: %Change (Test Year vs Last Rebasing Year - Actual) | G19: =IF(ISERROR((G17-C17)/C17), "", (G17-C17)/C17) -> 0.3474257747
A20: Billing and Collecting | B20: 435800 | C20: 434237.5511 | D20: 414278.4861 | E20: 239979.9446 | F20: 479685.9474 | G20: 496702.933
A21: Community Relations | B21: 5600 | C21: 1315.51218 | D21: 3900.044111 | E21: 3728.161496 | F21: 3527.344231 | G21: 4128.817667
A22: Administrative and General | B22: 814150 | C22: 689371.0349 | D22: 801673.6671 | E22: 879149.8914 | F22: 930198.6349 | G22: 1082072.579
A23: SubTotal | B23: =SUM(B20:B22) -> 1255550 | C23: 1124924.098 | D23: 1219852.197 | E23: 1122857.997 | F23: 1413411.927 | G23: 1582904.329
A24: %Change (year over year) | D24: =IF(ISERROR((D23-C23)/C23), "", (D23-C23)/C23) -> 0.08438622599 | E24: =IF(ISERROR((E23-D23)/D23), "", (E23-D23)/D23) -> -0.07951307551 | F24: =IF(ISERROR((F23-E23)/E23), "", (F23-E23)/E23) -> 0.2587628442 | G24: =IF(ISERROR((G23-F23)/F23), "", (G23-F23)/F23) -> 0.1199172015
A25: %Change (Test Year vs Last Rebasing Year - Actual) | G25: =IF(ISERROR((G23-C23)/C23), "", (G23-C23)/C23) -> 0.4071210065
A26: Total | B26: =SUM(B23,B17) -> 2065150 | C26: 1788574.81 | D26: 1847856.6 | E26: 1791803.38 | F26: 2220399.959 | G26: 2477124.404
A27: %Change (year over year) | D27: =IF(ISERROR((D26-C26)/C26), "", (D26-C26)/C26) -> 0.0331447081 | E27: =IF(ISERROR((E26-D26)/D26), "", (E26-D26)/D26) -> -0.03033418286 | F27: =IF(ISERROR((F26-E26)/E26), "", (F26-E26)/E26) -> 0.2391984431 | G27: =IF(ISERROR((G26-F26)/F26), "", (G26-F26)/F26) -> 0.1156208114
B30: =B13 -> Last Rebasing Year (2009 BA) | C30: Last Rebasing Year (2009 Actuals) | D30: 2010 Actuals | E30: 2011 Actuals | F30: 2012 Bridge Year | G30: 2013 Test Year
A31: Operations | B31: =B15 -> 455700 | C31: 325787.2676 | D31: 191621.0455 | E31: 228797.5561 | F31: 349598.6993 | G31: 374652.104 | I31: Table 4.2.2
A32: Maintenance | B32: 353900 | C32: 337863.4442 | D32: 436383.3572 | E32: 440147.8264 | F32: 457389.333 | G32: 519567.9705
A33: Billing and Collecting | B33: =B20 -> 435800 | C33: 434237.5511 | D33: 414278.4861 | E33: 239979.9446 | F33: 479685.9474 | G33: 496702.933
A34: Community Relations | B34: 5600 | C34: 1315.51218 | D34: 3900.044111 | E34: 3728.161496 | F34: 3527.344231 | G34: 4128.817667
A35: Administrative and General | B35: 814150 | C35: 689371.0349 | D35: 801673.6671 | E35: 879149.8914 | F35: 930198.6349 | G35: 1082072.579
A36: Total | B36: =SUM(B31:B35) -> 2065150 | C36: 1788574.81 | D36: 1847856.6 | E36: 1791803.38 | F36: 2220399.959 | G36: 2477124.404
A37: %Change (year over year) | D37: =IF(ISERROR((D36-C36)/C36), "", (D36-C36)/C36) -> 0.0331447081 | E37: =IF(ISERROR((E36-D36)/D36), "", (E36-D36)/D36) -> -0.03033418286 | F37: =IF(ISERROR((F36-E36)/E36), "", (F36-E36)/E36) -> 0.2391984431 | G37: =IF(ISERROR((G36-F36)/F36), "", (G36-F36)/F36) -> 0.1156208114
B40: =B13 -> Last Rebasing Year (2009 BA) | C40: =C13 -> Last Rebasing Year (2009 Actuals) | D40: ="Variance " & 'LDC Info'!E30 & " BA – " & 'LDC Info'!E30 & " Actuals" -> Variance 2009 BA – 2009 Actuals | E40: =D13 -> 2010 Actuals | F40: ="Variance " & 'LDC Info'!E26 -2 & " Actuals vs. " & 'LDC Info'!E30 & " Actuals" -> Variance 2010 Actuals vs. 2009 Actuals | G40: =E13 -> 2011 Actuals | H40: ="Variance " & 'LDC Info'!E26 -1 & " Actuals vs. " & 'LDC Info'!E26-2 & " Actuals" -> Variance 2011 Actuals vs. 2010 Actuals | I40: =F13 -> 2012 Bridge Year | J40: ="Variance " & 'LDC Info'!E26 & " Bridge vs. " & 'LDC Info'!E26 -1 & " Actuals" -> Variance 2012 Bridge vs. 2011 Actuals | K40: =G13 -> 2013 Test Year | L40: ="Variance " & 'LDC Info'!E28 & " Test vs. " & 'LDC Info'!E26 & " Bridge" -> Variance 2013 Test vs. 2012 Bridge
A41: Operations | B41: =B15 -> 455700 | C41: =C15 -> 325787.2676 | D41: =B41-C41 -> 129912.7324 | E41: =D15 -> 191621.0455 | F41: =E41-C41 -> -134166.2221 | G41: =E15 -> 228797.5561 | H41: =G41-E41 -> 37176.51066 | I41: =F15 -> 349598.6993 | J41: =I41-G41 -> 120801.1432 | K41: =G15 -> 374652.104 | L41: =K41-I41 -> 25053.40468 | N41: Table 4.2.4
A42: Maintenance | B42: =B16 -> 353900 | C42: =C16 -> 337863.4442 | D42: =B42-C42 -> 16036.55576 | E42: =D16 -> 436383.3572 | F42: =E42-C42 -> 98519.91292 | G42: =E16 -> 440147.8264 | H42: =G42-E42 -> 3764.469217 | I42: =F16 -> 457389.333 | J42: 17241.50662 | K42: =G16 -> 519567.9705 | L42: 62178.63752
A43: Billing and Collecting | B43: =B20 -> 435800 | C43: 434237.5511 | D43: =B43-C43 -> 1562.448862 | E43: =D20 -> 414278.4861 | F43: =E43-C43 -> -19959.06502 | G43: =E20 -> 239979.9446 | H43: -174298.5415 | I43: =F20 -> 479685.9474 | J43: 239706.0027 | K43: =G20 -> 496702.933 | L43: 17016.98562
A44: Community Relations | B44: 5600 | C44: 1315.51218 | D44: =B44-C44 -> 4284.48782 | E44: =D21 -> 3900.044111 | F44: =E44-C44 -> 2584.531931 | G44: =E21 -> 3728.161496 | H44: -171.8826149 | I44: =F21 -> 3527.344231 | J44: -200.8172642 | K44: =G21 -> 4128.817667 | L44: 601.4734358
A45: Administrative and General | B45: 814150 | C45: 689371.0349 | D45: =B45-C45 -> 124778.9651 | E45: =D22 -> 801673.6671 | F45: =E45-C45 -> 112302.6323 | G45: =E22 -> 879149.8914 | H45: 77476.22425 | I45: =F22 -> 930198.6349 | J45: 51048.74354 | K45: =G22 -> 1082072.579 | L45: 151873.9437
A46: Total OM&A Expenses | B46: =SUM(B41:B45) -> 2065150 | C46: =SUM(C41:C45) -> 1788574.81 | D46: 276575.19 | E46: 1847856.6 | F46: 59281.79 | G46: 1791803.38 | H46: -56053.22 | I46: 2220399.959 | J46: 428596.5788 | K46: 2477124.404 | L46: 256724.4449
A47: Variance from previous year | E47: =E46-C46 -> 59281.79 | G47: =G46-E46 -> -56053.22 | I47: =I46-G46 -> 428596.5788 | K47: =K46-I46 -> 256724.4449
A48: Percent change (year over year) | E48: =IF(ISERROR(E47/C46), "", E47/C46) -> 0.0331447081 | G48: =IF(ISERROR(G47/E46), "", G47/E46) -> -0.03033418286 | I48: =IF(ISERROR(I47/G46), "", I47/G46) -> 0.2391984431 | K48: =IF(ISERROR(K47/I46), "", K47/I46) -> 0.1156208114
A49: Percent Change: Test year vs. Most Current Actual | K49: =IF(ISERROR((K46-G46)/G46), "", (K46-G46)/G46) -> 0.3824755726
A50: Simple average of % variance for all years | K50: =IF(ISERROR((K46-C46)/C46), "", (K46-C46)/C46)/4 -> 0.09624277245 | L50: =IF(ISERROR(AVERAGE(E48,G48,I48,K48)), "", AVERAGE(E48,G48,I48,K48)) -> 0.08940744494
A51: Compound Annual Growth Rate for all years | G51: =IF(ISERROR((K47-C47)/C47), "", (K47-C47)/C47) ->  | L51: =((K46/C46)^(1/4))-1 -> 0.08482622883
A52: ="Compound Growth Rate (" & E13 & " vs. " & 'LDC Info'!E30 & " Actuals)" -> Compound Growth Rate (2011 Actuals vs. 2009 Actuals) | G52: =IF(ISERROR((G46/C46)^(1/(2010-2008)) - 1), "", (G46-C46)/C46) -> 0.00180510761
A54: Note:
A56: 1 "BA" = Board-Approved
A57: 2 If it has been more than three years since the applicant last filed a cost of service application, additional years of historical actuals should be incorporated into the table, as necessary, to go back to the last cost of service application. If the applicant last filed a cost of service application less than three years ago, a minimum of three years of actual information is required.
A59: 3 Recoverable OM&A that is included on these tables should be identical to the recoverable OM&A that is shown for the corresponding periods on Appendix 2-H.

Sheet App.2-J_OM&A_Cost _Drivers
F1: File Number: | G1: ='LDC Info'!$E$18 -> EB-2012-0147
F2: Exhibit: | G2: 4
F3: Tab: | G3: 2
F4: Schedule: | G4: 3
F5: Page: | G5: 1 of 26
F7: Date: | G7: 2012-08-31
A10: Appendix 2-J
A11: OM&A Cost Driver Table
A13: OM&A | B13: ="Last Rebasing Year (" & 'LDC Info'!E30 & " Actuals)" -> Last Rebasing Year (2009 Actuals) | C13: 2009 Actuals | D13: ='LDC Info'!E26 -2 & " Actuals" -> 2010 Actuals | E13: ='LDC Info'!E26 -1 & " Actuals" -> 2011 Actuals | F13: ='LDC Info'!E26 & " Bridge Year" -> 2012 Bridge Year | G13: ='LDC Info'!E28 & " Test Year" -> 2013 Test Year
A14: Reporting Basis | B14: CGAAP | D14: CGAAP | E14: CGAAP | F14: MIFRS | G14: MIFRS | J14: Table 4.2.12
A15: Opening Balance | B15: ='App.2-I_OM&A_Summary_Analys'!B26 -> 2065150 | C15: =B32 -> 1788574.36 | D15: =IF(ISERROR(FIND("2008", $B$13)), B32, C32) -> 1788574.36 | E15: =D32 -> 1847856.6 | F15: =E32 -> 1791802.38 | G15: =F32 -> 2220399.619
A16: Wages - Year over Year Changes | B16: -65353.51 | D16: -30262.82 | E16: 120151.77 | F16: 95870.13183 | G16: 143063.3014
A17: Wages - WSIB Reimbursement | B17: -38490 | D17: -25765
A18: Smart Meter - Wages & Benefits | E18: 13052.916 | F18: 26447.084 | G18: 14503.416
A19: IFRS - Wages & Benefits | G19: 39029.5
A20: Benefits - Year over Year Changes | B20: -78234.11 | D20: -908.97 | E20: 12606.734 | F20: 29994.346 | G20: 44651.144
A21: Wage/Benefit Accrual - One Time Adjustment | B21: 83770.81 | D21: -83770.81
A22: Retiree Benefit Accrual - One Time Adjustment | B22: -47325 | D22: 47325
A23: Burden - Third Party Expenses | B23: -66435.43 | D23: 152730.36 | E23: -26365.32 | F23: 30050.39
A25: Outside Services | B25: -38191.69
A26: Bad Debts | E26: -168094.49 | F26: 113094.49
A27: Manual Meter Reading Expenses | D27: -21746.01 | E27: -33229.4
A28: Smart Meter TOU Metering Expenses | F28: 104859.66
A29: Smart Meter Third Party Training Expenses | E29: 9000 | F29: =(12000-9000) -> 3000
A30: All Other Expenses | B30: -26316.71 | D30: 21680.49 | E30: 16823.57 | F30: 25281.137 | G30: 15477.08359
A32: Closing Balance | B32: =SUM(B15:B31) -> 1788574.36 | C32: 1788574.36 | D32: 1847856.6 | E32: 1791802.38 | F32: 2220399.619 | G32: 2477124.064
A34: Notes:
A36: 1 | B36: For each year, a detailed explanation for each cost driver and associated amount is
B37: required.
A38: 2 | B38: The closing balance for each year becomes the opening balance for the next year.
A39: 3 | B39: If it has been more than three years since the applicant last filed a cost of service application, additional years of historical actuals should be incorporated into the table, as necessary, to go back to the last cost of service application. If the applicant last filed a cost of service application less than three years ago, a minimum of three years of actual information is required.
A43: 4 | B43: Opening Balance for "Last Rebasing Year" (cell B15) should be equal to the Board-Approved amount.

Sheet App.2-K_Employee Costs
F1: File Number: | G1: ='LDC Info'!$E$18 -> EB-2012-0147
F2: Exhibit: | G2: 4
F3: Tab: | G3: 2
F4: Schedule: | G4: 4
F5: Page: | G5: 3 of 13
F7: Date: | G7: 2012-08-31
A9: Appendix 2-K
A10: Employee Costs
B12: ="Last Rebasing Year (" & 'LDC Info'!E30 & " Board-Approved)" -> Last Rebasing Year (2009 Board-Approved) | C12: ="Last Rebasing Year (" & 'LDC Info'!E30 & " Actuals)" -> Last Rebasing Year (2009 Actuals) | D12: ='LDC Info'!E26 -2 & " Actuals" -> 2010 Actuals | E12: ='LDC Info'!E26 -1 & " Actuals" -> 2011 Actuals | F12: ='LDC Info'!E26 & " Bridge Year" -> 2012 Bridge Year | G12: ='LDC Info'!E28 & " Test Year" -> 2013 Test Year
A13: Reporting Basis | B13: CGAAP | C13: CGAAP | D13: CGAAP | E13: CGAAP | F13: CGAAP | G13: MIFRS | I13: Table 4.2.21
A14: Number of Employees (FTEs including Part-Time)1
A15: Management | B15: 6 | C15: 6.5 | D15: 7.273809524 | E15: 6.251190476 | F15: 7.16 | G15: 8.16
A16: Union | B16: 10 | C16: 9 | D16: 9.5 | E16: 9 | F16: 9 | G16: 10
A17: Total | B17: =SUM(B15:B16) -> 16 | C17: 15.5 | D17: 16.77380952 | E17: 15.25119048 | F17: 16.16 | G17: 18.16
A18: Number of Part-Time Employees
A19: Management | B19: 2 | C19: 1 | D19: 1 | E19: 2 | F19: 1 | G19: 1
A20: Union
A21: Total | B21: =SUM(B19:B20) -> 2 | C21: 1 | D21: 1 | E21: 2 | F21: 1 | G21: 1
A22: Total Salary and Wages
A23: Management | B23: 448400 | C23: 519400.99 | D23: 407086.89 | E23: 463469.33 | F23: 555600 | G23: 642600
A24: Union | B24: 616600 | C24: 524441.95 | D24: 570594.97 | E24: 615827.41 | F24: 612400 | G24: 708300
A25: Total | B25: =SUM(B23:B24) -> 1065000 | C25: 1043842.94 | D25: 977681.86 | E25: 1079296.74 | F25: 1168000 | G25: 1350900
A26: Current Benefits
A27: Management | B27: 121475 | C27: 84870.51 | D27: 80321.64 | E27: 101836.29 | F27: 136150 | G27: 162886
A28: Union | B28: 165198 | C28: 133498.1 | D28: 147061.29 | E28: 160244.42 | F28: 158500 | G28: 187749
A29: Total | B29: =SUM(B27:B28) -> 286673 | C29: 218368.61 | D29: 227382.93 | E29: 262080.71 | F29: 294650 | G29: 350635
A30: Accrued Pension and Post-Retirement Benefits
A31: Management | B31: 4000 | C31: -15641.204 | D31: 1873.596 | E31: 1790.808 | F31: 1703.2 | G31: 1611.2
A32: Union | B32: 7700 | C32: -23461.806 | D32: 2810.394 | E32: 2686.212 | F32: 2554.8 | G32: 2416.8
A33: Total | B33: =SUM(B31:B32) -> 11700 | C33: -39103.01 | D33: 4683.99 | E33: 4477.02 | F33: 4258 | G33: 4028
A34: Total Benefits (Current + Accrued)
A35: Management | B35: =B27+B31 -> 125475 | C35: 69229.306 | D35: 82195.236 | E35: 103627.098 | F35: 137853.2 | G35: 164497.2
A36: Union | B36: 172898 | C36: 110036.294 | D36: 149871.684 | E36: 162930.632 | F36: 161054.8 | G36: 190165.8
A37: Total | B37: 298373 | C37: 179265.6 | D37: 232066.92 | E37: 266557.73 | F37: 298908 | G37: 354663
A38: Total Compensation (Salary, Wages, & Benefits)
A39: Management | B39: =B23+B35 -> 573875 | C39: 588630.296 | D39: 489282.126 | E39: 567096.428 | F39: 693453.2 | G39: 807097.2
A40: Union | B40: 789498 | C40: 634478.244 | D40: 720466.654 | E40: 778758.042 | F40: 773454.8 | G40: 898465.8
A41: Total | B41: 1363373 | C41: 1223108.54 | D41: 1209748.78 | E41: 1345854.47 | F41: 1466908 | G41: 1705563
A42: Compensation - Average Yearly Base Wages
A43: Management | B43: 70566.66667 | C43: 79907.84462 | D43: 55966.11908 | E43: 74140.97071 | F43: 77597.76536 | G43: 78750
A44: Union | B44: 58350 | C44: 53454.53667 | D44: 53436.78211 | E44: 60774.35333 | F44: 64488.88889 | G44: 67534
A45: Total | B45: =B43+B44 -> 128916.6667 | C45: 133362.3813 | D45: 109402.9012 | E45: 134915.324 | F45: 142086.6543 | G45: 146284
A46: Compensation - Average Yearly Overtime
A47: Management
A48: Union | B48: 3310 | C48: 4335.112 | D48: 6625.846316 | E48: 7650.914444 | F48: 3555.555556 | G48: 3296
A49: Total | B49: =B47+B48 -> 3310 | C49: 4335.112 | D49: 6625.846316 | E49: 7650.914444 | F49: 3555.555556 | G49: 3296
A50: Compensation - Average Yearly Incentive Pay
A51: Management | B51: 4166.666667 | C51: 8333.333333
A52: Union
A53: Total | B53: =B51+B52 -> 4166.666667 | C53: =C51+C52 -> 8333.333333
A54: Compensation - Average Yearly Benefits
A55: Management | B55: 15684.375 | C55: 10650.66246 | D55: 11300.16338 | E55: 16577.17812 | F55: 19253.24022 | G55: 20158.97059
A56: Union | B56: 17289.8 | C56: 11003.6294 | D56: 14987.1684 | E56: 16293.0632 | F56: 16105.48 | G56: 19016.58
A57: Total | B57: =B55+B56 -> 32974.175 | C57: 21654.29186 | D57: 26287.33178 | E57: 32870.24132 | F57: 35358.72022 | G57: 39175.55059
A59: Total Compensation | B59: =SUM(B39:B40) -> 1363373 | C59: 1223108.54 | D59: 1209748.78 | E59: 1345854.47 | F59: 1466908 | G59: 1705563
A60: Total Compensation Capitalized (CGAAP) | B60: 273689 | C60: 137886.96 | D60: 169944.26 | E60: 197463.03 | F60: 164708.4282
A61: Total Compensation Charged to Varance Accounts | C61: 2137.5 | D61: 32357.19 | E61: 27228.84 | F61: 35150
A62: Total Compensation Charged to OM&A (CGAAP) | B62: =B59-B60 -> 1089684 | C62: =C59-C60-C61 -> 1083084.08 | D62: =D59-D60-D61 -> 1007447.33 | E62: =E59-E60-E61 -> 1121162.6 | F62: =F59-F60-F61 -> 1267049.572
A64: Total Compensation Capitalized (MIFRS) | E64: =E60 -> 197463.03 | F64: =F60 -> 164708.4282 | G64: 196800
A65: Total Compensation Charged to Variance Accounts | E65: =E61 -> 27228.84 | F65: =F61 -> 35150
A66: Total Compensation Charged to OM&A (MIFRS) | E66: =E59-E64-E65 -> 1121162.6 | F66: =F59-F64-F65 -> 1267049.572 | G66: =G59-G64-G65 -> 1508763
A69: 1 If an applicant wishes to use headcount, it must also file the same schedule on an FTE basis.
A71: Note:
A72: 1 Please report compensation on a CGAAP and MIFRS basis for your transition year.

Sheet App.2-L_OM&A_per_Cust_FTEE
G1: File Number: | H1: ='LDC Info'!$E$18 -> EB-2012-0147
G2: Exhibit: | H2: 4
G3: Tab: | H3: 1
G4: Schedule: | H4: 1
G5: Page: | H5: 4 of 8
D7: Table 4.2.5 | G7: Date: | H7: 2012-08-31
A9: Appendix 2-L
A10: Recoverable OM&A Cost per Customer and per FTEE
C12: ="Last Rebasing Year (" & 'LDC Info'!E30 & " Board-Approved)" -> Last Rebasing Year (2009 Board-Approved) | D12: ="Last Rebasing Year (" & 'LDC Info'!E30 & " Actuals)" -> Last Rebasing Year (2009 Actuals) | E12: ='LDC Info'!E26 -2 & " Actuals" -> 2010 Actuals | F12: ='LDC Info'!E26 -1 & " Actuals" -> 2011 Actuals | G12: ='LDC Info'!E26 & " Bridge Year" -> 2012 Bridge Year | H12: ='LDC Info'!E28 & " Test Year" -> 2013 Test Year
A13: Reporting Basis | C13: CGAAP | D13: CGAAP | E13: CGAAP | F13: CGAAP | G13: CGAAP | H13: MIFRS
A14: Number of Customers | C14: 6850 | D14: 6862 | E14: 6905 | F14: 6938 | G14: 7017.549931 | H14: 7098.03546
A15: Total Recoverable OM&A from Appendix 2-I | C15: ='App.2-I_OM&A_Summary_Analys'!B36 -> 2065150 | D15: ='App.2-I_OM&A_Summary_Analys'!C36 -> 1788574.81 | E15: ='App.2-I_OM&A_Summary_Analys'!D36 -> 1847856.6 | F15: ='App.2-I_OM&A_Summary_Analys'!E36 -> 1791803.38 | G15: ='App.2-I_OM&A_Summary_Analys'!F36 -> 2220399.959 | H15: ='App.2-I_OM&A_Summary_Analys'!G36 -> 2477124.404
A16: OM&A cost per customer | C16: =IF(C14=0,"",C15/C14) -> 301.4817518 | D16: 260.6491999 | E16: 267.6113831 | F16: 258.2593514 | G16: 316.4067204 | H16: 348.9873244
A17: Number of FTEEs | C17: 16 | D17: 15.5 | E17: 16.77380952 | F17: 15.25119048 | G17: 16.16 | H17: 18.16
A18: Customers/FTEEs | C18: =IF(C17=0,"",C14/C17) -> 428.125 | D18: 442.7096774 | E18: 411.6536551 | F18: 454.9153072 | G18: 434.2543274 | H18: 390.8609835
A19: OM&A Cost per FTEE | C19: =IF(C17=0,"",C15/C17) -> 129071.875 | D19: 115391.9232 | E19: 110163.204 | F19: 117486.1322 | G19: 137400.9876 | H19: 136405.5288
A21: Notes:
A23: 1 | B23: If it has been more than three years since the applicant last filed a cost of service application, additional years of historical actuals should be incorporated into the table, as necessary, to go back to the last cost of service application. If the applicant last filed a cost of service application less than three years ago, a minimum of three years of actual information is required.
A27: 2 | B27: The method of calculating the number of customers must be identified.
A28: 3 | B28: The method of calculating the number of FTEEs must be identified. See also Appendix 2-K
A29: 4 | B29: The number of customers and the number of FTEEs should correspond to mid-year or average of January 1 and December 31 figures.

Sheet App.2-M_Regulatory_Costs
J1: File Number: | K1: ='LDC Info'!$E$18 -> EB-2012-0147
J2: Exhibit: | K2: 4
J3: Tab: | K3: 1
J4: Schedule: | K4: 1
J5: Page: | K5: 7 of 8
E7: Table 4.2.6 | J7: Date: | K7: 2012-08-31
A9: Appendix 2-M
A10: Regulatory Cost Schedule
A13: Regulatory Cost Category | C13: USoA Account | D13: USoA Account Balance | E13: Ongoing or One-time Cost? 2 | F13: ="Last Rebasing Year (" & 'LDC Info'!E30 & " Board Approved)" -> Last Rebasing Year (2009 Board Approved) | G13: Most Current Actuals Year 2011 | H13: ='LDC Info'!E26 & " Bridge Year" -> 2012 Bridge Year | I13: Annual % Change | J13: ='LDC Info'!E28 & " Test Year" -> 2013 Test Year | K13: Annual % Change
A14: (A) | C14: (B) | D14: (C ) | E14: (D) | F14: (E) | G14: (F) | H14: (G) | I14: (H) = [(G)-(F)]/(F) | J14: (I) | K14: (J) = [(I)-(G)]/(G)
A15: 1 | B15: OEB Annual Assessment | C15: 5655 | E15: On-Going | F15: 19829 | G15: 21363.99 | H15: 23302.72 | I15: =IF(G15=0,"",(H15-G15)/G15) -> 0.09074756167 | J15: 23768.7744 | K15: =IF(H15=0,"",(J15-H15)/H15) -> 0.02
A16: 2 | B16: OEB Section 30 Costs (Applicant-originated) | F16: 0 | G16: 0 | H16: 0 | I16: =IF(G16=0,"",(H16-G16)/G16) ->  | J16: 0 | K16: =IF(H16=0,"",(J16-H16)/H16) -> 
A17: 3 | B17: OEB Section 30 Costs (OEB-initiated) | C17: 5655 | E17: On-Going | F17: 236.4 | G17: 935.72 | H17: 900 | I17: -0.03817381268 | J17: 918 | K17: 0.02
A18: 4 | B18: Expert Witness costs for regulatory matters | F18: 0 | G18: 0 | H18: 0 | J18: 0
A19: 5 | B19: Legal/Consulting/Intervenor costs for 2013 COS | C19: 5665 | E19: On-Time | F19: 0 | G19: 0 | H19: 0 | J19: 50000
A20: 6 | B20: Legal/audit/Consultants' costs for regulatory matters - IRM | C20: 5655 | E20: On-Going | F20: 19893.73 | G20: 31939.0175 | H20: 36367.1575 | I20: 0.1386435885 | J20: 10000 | K20: -0.725026626
A21: 7 | B21: Operating expenses associated with staff resources allocated to regulatory matters | C21: 5655
A22: 8 | B22: Legal/Audit Costs - IRM | C22: 5655 | E22: On-Going | F22: 0 | H22: 0 | J22: 0
A23: 9 | B23: Other regulatory agency fees or assessments | C23: 5665 | E23: On-Going | F23: 0 | G23: 800 | H23: 824 | I23: 0.03 | J23: 840.48 | K23: 0.02
A24: 10 | B24: Any other costs for regulatory matters (please define) OCEB reporting to OEB | C24: 5665 | E24: On-Going | F24: 0 | G24: 1875 | H24: 1800 | I24: -0.04 | J24: 1836 | K24: 0.02
A25: 11 | B25: Intervenor costs | C25: 5655 | E25: On-Going | F25: 0 | G25: 5807 | H25: 5321.08 | I25: -0.08367831927 | J25: 0 | K25: -1
A26: 12 | B26: Sub-total - Ongoing Costs 3 | D26: =SUMIF($E15:$E25,$E11,D15:D25) -> 0 | F26: =+F25+F24+F23+F20+F17+F15+F22 -> 39959.13 | G26: =+G25+G24+G23+G20+G17+G15+G22 -> 62720.7275 | H26: 68514.9575 | I26: 0.09238142207 | J26: 37363.2544 | K26: -0.4546701076
A27: 13 | B27: Sub-total - One-time Costs 4 | D27: =SUMIF($E15:$E25,$E12,D15:D25) -> 0 | F27: =+F19 -> 0 | G27: =+G19 -> 0 | H27: 0 | J27: =+J19 -> 50000
A28: 14 | B28: Total | D28: =D26+D27 -> 0 | F28: =F26+F27 -> 39959.13 | G28: =G26+G27 -> 62720.7275 | H28: =H26+H27 -> 68514.9575 | I28: 0.09238142207 | J28: =J26+J27 -> 87363.2544 | K28: 0.2750975493
A31: 1 | B31: Please identify the resources involved.
A32: 2 | B32: Where a category's costs include both one-time and ongoing costs, the applicant should prove a separate breakdown between one-time and ongoing costs.
A33: 3 | B33: Sum of all ongoing costs identified in rows 1 to 11 inclusive.
A34: 4 | B34: Sum of all one-time costs identified in rows 1 to 11 inclusive.
A37: Please fill out the following table for all one-time costs related to this cost of service application
C39: Historical Year(s) | D39: =H13 -> 2012 Bridge Year | E39: =J13 -> 2013 Test Year | F39: Total Costs | G39: Cost/4 yrs
A40: =+A19 -> 5 | B40: =+B19 -> Legal/Consulting/Intervenor costs for 2013 COS | D40: 0 | E40: =+J19*4 -> 200000 | F40: =SUM(D40:E40) -> 200000 | G40: =+F40/4 -> 50000
B41: Total Cost | D41: =SUM(D40:D40) -> 0 | E41: =SUM(E40:E40) -> 200000 | F41: =SUM(F40:F40) -> 200000 | G41: =SUM(G40:G40) -> 50000

Sheet App.2-N_Corp_Cost_Allocation
F1: File Number: | G1: ='LDC Info'!$E$18 -> EB-2012-0147
F2: Exhibit:
F3: Tab:
F4: Schedule:
F5: Page:
A7: MIDLAND DOES NOT HAVE SHARED SERVICES
A9: Appendix 2-N
A10: Shared Services and Corporate Cost Allocation
B12: Year:
A14: Shared Services
A16: Name of Company | C16: Service Offered | D16: Pricing Methdology | E16: Price for the Service | F16: Cost for the Service
A17: From | B17: To
E18: $ | F18: $
A28: Corporate Cost Allocation
A30: Name of Company | C30: Service Offered | D30: Pricing Methdology | E30: % of Corporate Costs Allocated | F30: Amount Allocated
A31: From | B31: To
E32: % | F32: $
A33: eg: parent company | B33: eg: regulated entity
A42: Note:
A43: 1 | B43: This appendix must be completed in relation to each service provided or received for the Historical (actuals), Bridge and Test years.

Sheet App.2-OA Capital Structure
K1: File Number: | O1: ='LDC Info'!$E$18 -> EB-2012-0147
K2: Exhibit: | O2: 5
K3: Tab: | O3: 1
K4: Schedule: | O4: 2
K5: Page: | O5: 1 & 2 of 4
K7: Date: | O7: 2012-08-31
I8: Table 5.1.1
C10: Appendix 2-OA
C11: Capital Structure and Cost of Capital
A13: This table must be completed for the required years of all historical years, the bridge year and the test year.
I14: 2009
A15: Line No.
C16: Particulars | E16: Capitalization Ratio | K16: Cost Rate | O16: Return
C19: Application
E20: (%) | I20: ($) | K20: (%) | O20: ($)
C21: Debt
A22: 1 | C22: Long-term Debt | E22: 0.5267 | I22: =$I$31*E22 -> 5746697.714 | K22: 0.0464 | O22: =K22*I22 -> 266646.7739
A23: 2 | C23: Short-term Debt | E23: 0.04 | G23: (1) | I23: =$I$31*E23 -> 436430.4321 | K23: 0.0133 | O23: =K23*I23 -> 5804.524746
A24: 3 | C24: Total Debt | E24: =SUM(E22:E23) -> 0.5667 | I24: =SUM(I22:I23) -> 6183128.146 | K24: =IF(E24=0,0,SUMPRODUCT(E22:E23,K22:K23)/E24) -> 0.04406366684 | O24: =SUM(O22:O23) -> 272451.2987
C26: Equity
A27: 4 | C27: Common Equity | E27: 0.4333 | I27: =$I$31*E27 -> 4727632.655 | K27: 0.0801 | O27: =K27*I27 -> 378683.3757
A28: 5 | C28: Preferred Shares | E28: 0 | I28: =$I$31*E28 -> 0 | O28: =K28*I28 -> 0
A29: 6 | C29: Total Equity | E29: =SUM(E27:E28) -> 0.4333 | I29: =SUM(I27:I28) -> 4727632.655 | K29: =IF(E29=0,0,SUMPRODUCT(E27:E28,K27:K28)/E29) -> 0.0801 | O29: =SUM(O27:O28) -> 378683.3757
A31: 7 | C31: Total | E31: 1 | I31: 10910760.8 | K31: 0.0633 | O31: =O24+O29 -> 651134.6744
A36: Line No. | I36: 2010
C37: Particulars | E37: Capitalization Ratio | K37: Cost Rate | O37: Return
C40: Application
E41: (%) | I41: ($) | K41: (%) | O41: ($)
C42: Debt
A43: 1 | C43: Long-term Debt | E43: 0.56 | I43: =$I$52*E43 -> 7007492.597 | K43: 0.0464 | O43: =K43*I43 -> 325147.6565
A44: 2 | C44: Short-term Debt | E44: 0.04 | G44: (1) | I44: =$I$52*E44 -> 500535.1855 | K44: 0.0133 | O44: =K44*I44 -> 6657.117967
A45: 3 | C45: Total Debt | E45: =SUM(E43:E44) -> 0.6 | I45: =SUM(I43:I44) -> 7508027.783 | K45: =IF(E45=0,0,SUMPRODUCT(E43:E44,K43:K44)/E45) -> 0.04419333333 | O45: =SUM(O43:O44) -> 331804.7745
C47: Equity
A48: 4 | C48: Common Equity | E48: 0.4 | I48: =$I$52*E48 -> 5005351.855 | K48: 0.0801 | O48: =K48*I48 -> 400928.6836
A49: 5 | C49: Preferred Shares | E49: 0 | I49: =$I$31*E49 -> 0 | O49: =K49*I49 -> 0
A50: 6 | C50: Total Equity | E50: =SUM(E48:E49) -> 0.4 | I50: =SUM(I48:I49) -> 5005351.855 | K50: =IF(E50=0,0,SUMPRODUCT(E48:E49,K48:K49)/E50) -> 0.0801 | O50: =SUM(O48:O49) -> 400928.6836
A52: 7 | C52: Total | E52: 1 | I52: 12513379.64 | K52: =(K45*E45)+(K50*E50) -> 0.058556 | O52: =O45+O50 -> 732733.4581
A57: Line No. | I57: 2011
C58: Particulars | E58: Capitalization Ratio | K58: Cost Rate | O58: Return
C61: Application
E62: (%) | I62: ($) | K62: (%) | O62: ($)
C63: Debt
A64: 1 | C64: Long-term Debt | E64: 0.56 | I64: =$I$73*E64 -> 7719478.684 | K64: =K43 -> 0.0464 | O64: =K64*I64 -> 358183.8109
A65: 2 | C65: Short-term Debt | E65: 0.04 | G65: (1) | I65: =$I$73*E65 -> 551391.3346 | K65: =K44 -> 0.0133 | O65: =K65*I65 -> 7333.50475
A66: 3 | C66: Total Debt | E66: =SUM(E64:E65) -> 0.6 | I66: =SUM(I64:I65) -> 8270870.018 | K66: =IF(E66=0,0,SUMPRODUCT(E64:E65,K64:K65)/E66) -> 0.04419333333 | O66: =SUM(O64:O65) -> 365517.3157
C68: Equity
A69: 4 | C69: Common Equity | E69: 0.4 | I69: =$I$73*E69 -> 5513913.346 | K69: =K48 -> 0.0801 | O69: =K69*I69 -> 441664.459
A70: 5 | C70: Preferred Shares | E70: 0 | I70: =$I$31*E70 -> 0 | O70: =K70*I70 -> 0
A71: 6 | C71: Total Equity | E71: =SUM(E69:E70) -> 0.4 | I71: =SUM(I69:I70) -> 5513913.346 | K71: =IF(E71=0,0,SUMPRODUCT(E69:E70,K69:K70)/E71) -> 0.0801 | O71: =SUM(O69:O70) -> 441664.459
A73: 7 | C73: Total | E73: 1 | I73: 13784783.36 | K73: =(K66*E66)+(K71*E71) -> 0.058556 | O73: =O66+O71 -> 807181.7747
A79: Line No. | I79: 2012
C80: Particulars | E80: Capitalization Ratio | K80: Cost Rate | O80: Return
C83: Application
E84: (%) | I84: ($) | K84: (%) | O84: ($)
C85: Debt
A86: 1 | C86: Long-term Debt | E86: 0.56 | I86: =$I$95*E86 -> 8388332.871 | K86: =K64 -> 0.0464 | O86: =K86*I86 -> 389218.6452
A87: 2 | C87: Short-term Debt | E87: 0.04 | G87: (1) | I87: =$I$95*E87 -> 599166.6336 | K87: =K65 -> 0.0133 | O87: =K87*I87 -> 7968.916227
A88: 3 | C88: Total Debt | E88: =SUM(E86:E87) -> 0.6 | I88: =SUM(I86:I87) -> 8987499.505 | K88: =IF(E88=0,0,SUMPRODUCT(E86:E87,K86:K87)/E88) -> 0.04419333333 | O88: =SUM(O86:O87) -> 397187.5614
C90: Equity
A91: 4 | C91: Common Equity | E91: 0.4 | I91: =$I$95*E91 -> 5991666.336 | K91: =K69 -> 0.0801 | O91: =K91*I91 -> 479932.4735
A92: 5 | C92: Preferred Shares | E92: 0 | I92: =$I$31*E92 -> 0 | O92: =K92*I92 -> 0
A93: 6 | C93: Total Equity | E93: =SUM(E91:E92) -> 0.4 | I93: =SUM(I91:I92) -> 5991666.336 | K93: =IF(E93=0,0,SUMPRODUCT(E91:E92,K91:K92)/E93) -> 0.0801 | O93: =SUM(O91:O92) -> 479932.4735
A95: 7 | C95: Total | E95: 1 | I95: 14979165.84 | K95: =(K88*E88)+(K93*E93) -> 0.058556 | O95: =O88+O93 -> 877120.035
A101: Line No. | I101: 2013
C102: Particulars | E102: Capitalization Ratio | K102: Cost Rate | O102: Return
C105: Application
E106: (%) | I106: ($) | K106: (%) | O106: ($)
C107: Debt
A108: 1 | C108: Long-term Debt | E108: 0.56 | I108: =$I$117*E108 -> 8951795.374 | K108: 0.03607930382 | O108: =K108*I108 -> 322974.545
A109: 2 | C109: Short-term Debt | E109: 0.04 | G109: (1) | I109: =$I$117*E109 -> 639413.9553 | K109: 0.0208 | O109: =K109*I109 -> 13299.81027
A110: 3 | C110: Total Debt | E110: =SUM(E108:E109) -> 0.6 | I110: =SUM(I108:I109) -> 9591209.329 | K110: =IF(E110=0,0,SUMPRODUCT(E108:E109,K108:K109)/E110) -> 0.03506068357 | O110: =SUM(O108:O109) -> 336274.3553
C112: Equity
A113: 4 | C113: Common Equity | E113: 0.4 | I113: =$I$117*E113 -> 6394139.553 | K113: 0.0893 | O113: =K113*I113 -> 570996.6621
A114: 5 | C114: Preferred Shares | E114: 0 | I114: =$I$31*E114 -> 0 | O114: =K114*I114 -> 0
A115: 6 | C115: Total Equity | E115: =SUM(E113:E114) -> 0.4 | I115: =SUM(I113:I114) -> 6394139.553 | K115: =IF(E115=0,0,SUMPRODUCT(E113:E114,K113:K114)/E115) -> 0.0893 | O115: =SUM(O113:O114) -> 570996.6621
A117: 7 | C117: Total | E117: 1 | I117: 15985348.88 | K117: =(K110*E110)+(K115*E115) -> 0.05675641014 | O117: =O110+O115 -> 907271.0174
A121: Notes
A122: (1) | C122: 4.0% unless an applicant has proposed or been approved for a different amount.

Sheet App.2-OB_Debt Instruments
J1: File Number: | K1: ='LDC Info'!$E$18 -> EB-2012-0147
J2: Exhibit: | K2: 5
J3: Tab: | K3: 1
J4: Schedule: | K4: 2
J5: Page: | K5: 3 of 4
J7: Date: | K7: 2012-08-31
E9: TABLE 5.1.2
A10: Appendix 2-OB
A11: Debt Instruments
A13: This table must be completed for the required years of all historical years, the bridge year and the test year.
D14: Year | E14: 2009
A16: Row | B16: Description | C16: Lender | D16: Affiliated or Third-Party Debt? | E16: Fixed or Variable-Rate? | F16: Start Date | G16: Term (years) | H16: Principal ($) | I16: Rate (%) (Note 2) | J16: Interest ($) (Note 1)
A17: 1 | B17: Short Term Loan Advance | C17: Infrastructure Ontario | D17: Third-Party | E17: Variable Rate | F17: 2009-12-15 | G17: 1 | H17: 1422519 | I17: 0.0174 | J17: =H17*I17/12*0.5 -> 1031.326275
A19: Total | H19: =SUM(H17:H17) -> 1422519 | I19: =IF(H19=0,"",J19/H19) -> 0.000725 | J19: =SUM(J17:J17) -> 1031.326275
D23: Year | F23: 2010
A25: Row | B25: Description | C25: Lender | D25: Affiliated or Third-Party Debt? | E25: Fixed or Variable-Rate? | F25: Start Date | G25: Term (years) | H25: Principal ($) | I25: Rate (%) (Note 2) | J25: Interest ($) (Note 1)
A26: 1 | B26: Debenture # 3 | C26: Infrastructure Ontario | D26: Third-Party | E26: Fixed Rate | F26: 2010-04-01 | G26: 5 | H26: 270000 | I26: 0.0291 | J26: 6335.83
A27: 2 | B27: Debenture # 1 | C27: Infrastructure Ontario | D27: Third-Party | E27: Fixed Rate | F27: 2010-04-01 | G27: 10 | H27: 1066393.23 | I27: 0.0391 | J27: 32400.805
A28: 3 | B28: Debenture # 2 | C28: Infrastructure Ontario | D28: Third-Party | E28: Fixed Rate | F28: 2010-04-01 | G28: 10 | H28: 1173250 | I28: 0.0391 | J28: 35647.5
A29: 4 | B29: Short Term Loan Advance | C29: Infrastructure Ontario | D29: Third-Party | E29: Fixed Rate | F29: 2010-02-16 | G29: 1 | H29: 900000 | I29: 0.0174 | J29: 13726.125
A31: Total | H31: =SUM(H26:H29) -> 3409643.23 | I31: =IF(H31=0,"",J31/H31) -> 0.02584148958 | J31: =SUM(J26:J29) -> 88110.26
D35: Year | F35: 2011
A37: Row | B37: Description | C37: Lender | D37: Affiliated or Third-Party Debt? | E37: Fixed or Variable-Rate? | F37: Start Date | G37: Term (years) | H37: Principal ($) | I37: Rate (%) (Note 2) | J37: Interest ($) (Note 1)
A38: 1 | B38: Debenture # 3 | C38: Infrastructure Ontario | D38: Third-Party | E38: Fixed Rate | F38: 2010-04-01 | G38: 5 | H38: 210000 | I38: 0.0291 | J38: 7022.275
A39: 2 | B39: Debenture # 1 | C39: Infrastructure Ontario | D39: Third-Party | E39: Fixed Rate | F39: 2010-04-01 | G39: 10 | H39: 954141.31 | I39: 0.0391 | J39: 39717.895
A40: 3 | B40: Debenture # 2 | C40: Infrastructure Ontario | D40: Third-Party | E40: Fixed Rate | F40: 2010-04-01 | G40: 10 | H40: 1049750 | I40: 0.0391 | J40: 43697.785
A41: 4 | B41: Debenture # 5 | C41: Infrastructure Ontario | D41: Third-Party | E41: Fixed Rate | F41: 2011-03-01 | G41: 10 | H41: 1140000 | I41: 0.04 | J41: 39355.61333
A42: 5 | B42: Debenture # 4 | C42: Infrastructure Ontario | D42: Third-Party | E42: Fixed Rate | F42: 2011-06-15 | G42: 15 | H42: 966666.67 | I42: 0.0412 | J42: 22320.43083
A44: Total | H44: =SUM(H38:H42) -> 4320557.98 | I44: =IF(H44=0,"",J44/H44) -> 0.03520702647 | J44: =SUM(J38:J42) -> 152113.9992
D48: Year | E48: 2012
A50: Row | B50: Description | C50: Lender | D50: Affiliated or Third-Party Debt? | E50: Fixed or Variable-Rate? | F50: Start Date | G50: Term (years) | H50: Principal ($) | I50: Rate (%) (Note 2) | J50: Interest ($) (Note 1)
A51: 1 | B51: Debenture # 3 | C51: Infrastructure Ontario | D51: Third-Party | E51: Fixed Rate | F51: 2010-04-01 | G51: 5 | H51: 150000 | I51: 0.0291 | J51: 5223.645
A52: 2 | B52: Debenture # 1 | C52: Infrastructure Ontario | D52: Third-Party | E52: Fixed Rate | F52: 2010-04-01 | G52: 10 | H52: 841889.39 | I52: 0.0391 | J52: 35016.2
A53: 3 | B53: Debenture # 2 | C53: Infrastructure Ontario | D53: Third-Party | E53: Fixed Rate | F53: 2010-04-01 | G53: 10 | H53: 926250 | I53: 0.0391 | J53: 38524.965
A54: 4 | B54: Debenture # 5 | C54: Infrastructure Ontario | D54: Third-Party | E54: Fixed Rate | F54: 2011-03-01 | G54: 10 | H54: 1020000 | I54: 0.04 | J54: 42976.43667
A55: 5 | B55: Debenture # 4 | C55: Infrastructure Ontario | D55: Third-Party | E55: Fixed Rate | F55: 2011-06-15 | G55: 15 | H55: 900000.01 | I55: 0.0412 | J55: 39334.71667
A56: 6 | B56: Debenture # 6 | C56: Infrastructure Ontario | D56: Third-Party | E56: Fixed Rate | F56: 2012-09-01 | G56: 10 | H56: 542000 | I56: 0.035 | J56: 1580.833333
A57: 7 | B57: Debenture # 7 | C57: Infrastructure Ontario | D57: Third-Party | E57: Fixed Rate | F57: 2012-09-01 | G57: 5 | H57: 430000 | I57: 0.0279 | J57: 999.75
A59: Total | H59: =SUM(H51:H57) -> 4810139.4 | I59: =IF(H59=0,"",J59/H59) -> 0.03402324404 | J59: =SUM(J51:J57) -> 163656.5467
D63: Year | E63: 2013
A65: Row | B65: Description | C65: Lender | D65: Affiliated or Third-Party Debt? | E65: Fixed or Variable-Rate? | F65: Start Date | G65: Term (years) | H65: Principal ($) | I65: Rate (%) (Note 2) | J65: Interest ($) (Note 1)
A66: 1 | B66: Debenture # 3 | C66: Infrastructure Ontario | D66: Third-Party | E66: Fixed Rate | F66: 2010-04-01 | G66: 5 | H66: 90000 | I66: 0.0291 | J66: 3491.995
A67: 2 | B67: Debenture # 1 | C67: Infrastructure Ontario | D67: Third-Party | E67: Fixed Rate | F67: 2010-04-01 | G67: 10 | H67: 729637.47 | I67: 0.0391 | J67: 30723.345
A68: 3 | B68: Debenture # 2 | C68: Infrastructure Ontario | D68: Third-Party | E68: Fixed Rate | F68: 2010-04-01 | G68: 10 | H68: 802750 | I68: 0.0391 | J68: 33801.955
A69: 4 | B69: Debenture # 5 | C69: Infrastructure Ontario | D69: Third-Party | E69: Fixed Rate | F69: 2011-03-01 | G69: 10 | H69: 900000 | I69: 0.04 | J69: 38101.91667
A70: 5 | B70: Debenture # 4 | C70: Infrastructure Ontario | D70: Third-Party | E70: Fixed Rate | F70: 2011-06-15 | G70: 15 | H70: 833333.35 | I70: 0.0412 | J70: 36179.49917
A71: 6 | B71: Debenture # 6 | C71: Infrastructure Ontario | D71: Third-Party | E71: Fixed Rate | F71: 2012-09-01 | G71: 20 | H71: 487800 | I71: 0.035 | J71: 18337.66667
A72: 7 | B72: Debenture # 7 | C72: Infrastructure Ontario | D72: Third-Party | E72: Fixed Rate | F72: 2012-09-01 | G72: 10 | H72: 344000 | I72: 0.0279 | J72: 11197.2
A73: 8 | B73: Debenture #8 | C73: Infrastructure Ontario | D73: Third-Party | E73: Fixed Rate | F73: 2013-09-01 | G73: 20 | H73: 850000 | I73: 0.035 | J73: 9916.666667
A75: Total | H75: =SUM(H66:H73) -> 5037520.82 | I75: =IF(H75=0,"",J75/H75) -> 0.03607930382 | J75: =SUM(J66:J73) -> 181750.2442
A78: Notes
A80: 1 | B80: If financing is in place only part of the year, calculate the pro-rated interest and input in the cell.
A81: 2 | B81: Input actual or deemed long-term debt rate in accordance with the guidelines in The Report of the Board on the Cost of Capital for Ontario's Regulated Utilities, issued December 11, 2009
A82: 3 | B82: Add more lines above row 12 if necessary.

Sheet App.2-P_Cost_Allocation
E1: File Number: | F1: ='LDC Info'!$E$18 -> EB-2012-0147
E2: Exhibit: | F2: 7
E3: Tab: | F3: 1
E4: Schedule: | F4: 2
E5: Page: | F5: 10 of 11
E7: Date: | F7: 2012-08-31
A9: Appendix 2-P
A10: Cost Allocation
A12: Please complete the following four tables.
A14: A) Allocated Costs
A16: Classes | B16: Costs Allocated from Previous Study | C16: % | D16: Costs Allocated in Test Year Study (Column 7A) | E16: %
A17: Residential | B17: 1440154.771 | C17: =IF(B$22=0,"",B17/B$22) -> 0.4782466512 | D17: 2122546.043 | E17: =IF(D$22=0,"",D17/D$22) -> 0.516179625
A18: GS < 50 kW | B18: 483530.6525 | C18: =IF(B$22=0,"",B18/B$22) -> 0.1605708775 | D18: 713196.3872 | E18: =IF(D$22=0,"",D18/D$22) -> 0.1734414407
A19: GS 50 - 4,999 kW | B19: 954748.9319 | C19: =IF(B$22=0,"",B19/B$22) -> 0.3170530617 | D19: 1154661.482 | E19: =IF(D$22=0,"",D19/D$22) -> 0.2808008491
A20: Street Lighting | B20: 119818.2456 | C20: =IF(B$22=0,"",B20/B$22) -> 0.03978924758 | D20: 116236.211 | E20: =IF(D$22=0,"",D20/D$22) -> 0.02826735562
A21: Unmetered Scattered Load (USL) | B21: 13069.62628 | C21: =IF(B$22=0,"",B21/B$22) -> 0.004340161994 | D21: 5389.75921 | E21: =IF(D$22=0,"",D21/D$22) -> 0.001310729582
A22: Total | B22: =SUM(B17:B21) -> 3011322.227 | C22: =SUM(C17:C21) -> 1 | D22: =SUM(D17:D21) -> 4112029.882 | E22: =SUM(E17:E21) -> 1
A24: Notes
A26: 1 Customer Classification - If proposed rate classes differ from those in place in the previous Cost Allocation study, modify the rate classes to match the current application as closely as possible.
A29: 2 Host Distributors - Provide information on embedded distributor(s) as a separate class, if applicable. If embedded distributor(s) are billed as customers in a General Service class, include the allocated cost and revenue of the embedded distributor(s) in the applicable class. Also complete Appendix 2-Q.
A33: 3 Class Revenue Requirements - If using the Board-issued model, in column 7A enter the results from Worksheet O-1, Revenue Requirement (row 40 in the 2013 model). This excludes costs in deferral and variance accounts. Note to Embedded Distributor(s), it also does not include Account 4750 - Low Voltage (LV) Costs.
A37: B) Calculated Class Revenues
C39: Column 7B | D39: Column 7C | E39: Column 7D | F39: Column 7E
A40: Classes (same as previous table) | C40: Load Forecast (LF) X current approved rates | D40: L.F. X current approved rates X (1 + d) | E40: LF X proposed rates | F40: Miscellaneous Revenue
A42: =A17 -> Residential | C42: 2085814.49 | D42: 2223000.835 | E42: 1993003.738 | F42: 161380.4957
A43: GS < 50 kW | C43: 550850.0358 | D43: 587080.0567 | E43: 638656.1991 | F43: 53095.44252
A44: GS 50 - 4,999 kW | C44: 809623.1153 | D44: 862872.9302 | E44: 1055023.816 | F44: 64918.72802
A45: Street Lighting | C45: 123674.8969 | D45: 131809.1328 | E45: 127451.5185 | F45: 12031.93466
A46: Unmetered Scattered Load (USL) | C46: 14512.42927 | D46: 15466.92792 | E46: 6094.311924 | F46: 373.399128
A47: Total | C47: =SUM(C42:C46) -> 3584474.968 | D47: =SUM(D42:D46) -> 3820229.882 | E47: =SUM(E42:E46) -> 3820229.583 | F47: =SUM(F42:F46) -> 291800
A49: Notes:
A51: 1 Columns 7B to 7D - LF means Load Forecast of Annual Billing Quantities (i.e. customers or connections X 12, (kWh or kW, as applicable). Revenue Quantities should be net of Transfomrer Ownership Allowance. Exclude revenue from rate adders and rate riders.
A54: 2 Columns 7C and 7D - Column total in each column should equal the Base Revenue Requirement
A56: 3 Columns 7C - The Board cost allocation model calculates "1+d" in worksheet O-1, cell C21. "d" is defined as Revenue Deficiency/ Revenue at Current Rates.
A59: 4 Columns 7E - If using the Board-issued Cost Allocation model, enter Miscellaneous Revenue as it appears in Worksheet O-1, row 19.
A62: C) Rebalancing Revenue-to-Cost (R/C) Ratios
A64: Class | C64: Previously Approved Ratios | D64: Status Quo Ratios | E64: Proposed Ratios | F64: Policy Range
C65: Most Recent Year: | D65: (7C + 7E) / (7A) | E65: (7D + 7E) / (7A)
C66: 2010
C67: % | D67: % | E67: % | F67: %
A68: =A42 -> Residential | C68: 113 | D68: =IF(D17=0,"",(D42+F42)/D17*100) -> 112.3359062 | E68: =IF(D17=0,"",(E42+F42)/D17*100) -> 101.5 | F68: 85 - 115
A69: =A43 -> GS < 50 kW | C69: 105 | D69: =IF(D18=0,"",(D43+F43)/D18*100) -> 89.76146132 | E69: =IF(D18=0,"",(E43+F43)/D18*100) -> 96.99315 | F69: 80 - 120
A70: =A44 -> GS 50 - 4,999 kW | C70: 83 | D70: =IF(D19=0,"",(D44+F44)/D19*100) -> 80.35183232 | E70: =IF(D19=0,"",(E44+F44)/D19*100) -> 96.99315 | F70: 80 - 120
A71: =A45 -> Street Lighting | C71: 70 | D71: =IF(D20=0,"",(D45+F45)/D20*100) -> 123.7489301 | E71: =IF(D20=0,"",(E45+F45)/D20*100) -> 120 | F71: 70 - 120
A72: =A46 -> Unmetered Scattered Load (USL) | C72: 120 | D72: =IF(D21=0,"",(D46+F46)/D21*100) -> 293.8967481 | E72: =IF(D21=0,"",(E46+F46)/D21*100) -> 120 | F72: 80 - 120
A74: Notes
A76: 1 Previously Approved Revenue-to-Cost Ratios - For most applicants, Most Recent Year would be the third year of the IRM 3 period, e.g. if the applicant rebased in 2009 with further adjustments over 2 years, the Most recent year is 2011. For applicants that have had rates adjusted only under IRM 2, the Most Recent Year is 2006, and the applicant should enter the ratios from their Informational Filing.
A79: 2 Status Quo Ratios - The Board's updated Cost Allocation Model yields the Status Quo Ratios in Worksheet O-1. Status Quo means "Before Rebalancing".
A81: D) Proposed Revenue-to-Cost Ratios
A83: Class | C83: Proposed Revenue-to-Cost Ratios | F83: Policy Range
C84: 2013 | D84: 2014 | E84: 2015
C85: % | D85: % | E85: % | F85: %
A86: =A68 -> Residential | C86: =E68 -> 101.5 | D86: =+C86 -> 101.5 | E86: =+D86 -> 101.5 | F86: =F68 -> 85 - 115
A87: =A69 -> GS < 50 kW | C87: =E69 -> 96.99315 | D87: =+C87 -> 96.99315 | E87: 96.99315 | F87: =F69 -> 80 - 120
A88: =A70 -> GS 50 - 4,999 kW | C88: =E70 -> 96.99315 | D88: 96.99315 | E88: 96.99315 | F88: =F70 -> 80 - 120
A89: =A71 -> Street Lighting | C89: =E71 -> 120 | D89: 120 | E89: 120 | F89: =F71 -> 70 - 120
A90: =A72 -> Unmetered Scattered Load (USL) | C90: =E72 -> 120 | D90: 120 | E90: 120 | F90: =F72 -> 80 - 120
A92: Note
A93: 1 The applicant should complete Table D if it is applying for approval of a revenue to cost ratio in 2012 that is outside the Board’s policy range for any customer class. Table (d) will show the information that the distributor would likely enter in the IRM model) in 2013. In 2013 Table (d), enter the planned ratios for the classes that will be ‘Change’ and ‘No Change’ in 2013 (in the current Revenue Cost Ratio Adjustment Workform, Worksheet C1.1 ‘Decision – Cost Revenue Adjustment’, column d), and enter TBD for class(es) that will be entered as ‘Rebalance’.

Sheet App.2-Q_Cost of Serv. Emb. Dx
F1: File Number: | G1: ='LDC Info'!$E$18 -> EB-2012-0147
F2: Exhibit:
F3: Tab:
F4: Schedule:
F5: Page:
A7: Midland PUC is not a host distributor | F7: Date:
A9: Appendix 2-Q
A10: Cost of Serving Embedded Distributor(s)
A12: To be completed by Host Distributors*
A13: (Not required if Host Distributor has an Embedded Distributor rate class, i.e. a separate row in Appendix 2-P.)
A17: Proposed Rate Class for Billing Embedded Distributor(s)
A19: Host's Distribution Facilities used by Embedded Distributor(s)
A21: (1) | B21: (2) | C21: (3) | D21: (4) | E21: (5) | F21: (6) = '(3) + (4)
A22: Asset Class | B22: Total OM&A costs asociated with asset class | C22: Original cost of asset class | D22: Accumulated amortization of asset class | E22: Annual amortization of asset class | F22: Net Book Value of asset class
A23: Totals for Host Distributor: | B23: ($) | C23: ($) | D23: ($) | E23: ($)
A24: Distribution Stations | F24: =C24+D24 -> 0
A25: Low Voltage Line | F25: 0
A26: LV Line category # 2 (if applcable) | F26: 0
A27: TS (owned by host) | F27: 0
A28: add rows if necessary... | F28: 0
F29: 0
F30: 0
A32: (1) | B32: (7) | C32: (8) | D32: (9) | E32: (10) | F32: (11)
A33: =A22 -> Asset Class | B33: Total line length or station capacity in asset class | C33: Line length or capacity required to provide LV service to Embedded Distributor(s) | D33: Annual total demand on station/line providing LV services (sum of 12 monthly peaks) | E33: Annual billed Embedded Distributor demand on station/line providing LV services | F33: Embedded Distributor(s)' Responsibility Share
A34: Embedded Distributor's share: | B34: kW or kVa; km | C34: kW or kVA; km | D34: kW or kVA | E34: kW or kVA | F34: percent
A35: Distribution Stations | F35: =IF(D35=0,0,(C35/B35)*(E35/D35)) -> 0
A36: Low Voltage Line | F36: =IF(D36=0,0,(C36/B36)*(E36/D36)) -> 0
A37: LV Line # 2 (if applicable) | F37: =IF(D37=0,0,(C37/B37)*(E37/D37)) -> 0
A38: TS (owned by host) | F38: =IF(D38=0,0,(C38/B38)*(E38/D38)) -> 0
A39: add rows if necessary | F39: =IF(D39=0,0,(C39/B39)*(E39/D39)) -> 0
A41: (1) | B41: (12) | C41: (12a) | D41: (13) | E41: (14) | F41: (15) | G41: (16)
A42: =A33 -> Asset Class | B42: Return on Assets used to Provide LV services | C42: Taxes/PILs | D42: Annual amortization on assets used to provide LV services | E42: OM&A costs with burden associated with assets used to provide LV services | F42: Total annual cost associated with assets used to provide LV services | G42: Monthly cost associated with the delivery of LV services
B43: ($) | C43: ($) | D43: ($) | E43: ($) | F43: ($) | G43: $/kW or $/kVA
A44: Distribution Stations | B44: =E$55*(F24+B24*E$60)*F35 -> 0 | C44: =(B44-(B$55*C$55*F35*(F24+B24*E58)+B$56*C$56*F35*(F24+B24*E$58)))*E$58/(1-E$58) -> 0 | D44: =E24*F35 -> 0 | E44: =B24*F35 -> 0 | F44: =SUM(B44:E44) -> 0 | G44: =IF(E35=0,0,(D44/E35)) -> 0
A45: Low Voltage Line | B45: =E$55*(F25+B25*E$60)*F36 -> 0 | C45: =(B45-(B$55*C$55*F36*(F25+B25*E59)+B$56*C$56*F36*(F25+B25*E59)))*E$58/(1-E$58) -> 0 | D45: =E25*F36 -> 0 | E45: =B25*F36 -> 0 | F45: =SUM(B45:E45) -> 0 | G45: =IF(E36=0,0,(D45/E36)) -> 0
A46: LV Line # 2 (if applicable) | B46: =E$55*(F26+B26*E$60)*F37 -> 0 | C46: =(B46-(B$55*C$55*F37*(F26+B26*E60)+B$56*C$56*F37*(F26+B26*E$60)))*E$58/(1-E$58) -> 0 | D46: =E26*F37 -> 0 | E46: =B26*F37 -> 0 | F46: =SUM(B46:E46) -> 0 | G46: =IF(E37=0,0,(D46/E37)) -> 0
A47: TS (owned by host) | B47: =E$55*(F27+B27*E$60)*F38 -> 0 | C47: =(B47-(B$55*C$55*F38*(F27+B27*E61)+B$56*C$56*F38*(F27+B27*E61)))*E$58/(1-E$58) -> 0 | D47: =E27*F38 -> 0 | E47: =B27*F38 -> 0 | F47: =SUM(B47:E47) -> 0 | G47: =IF(E38=0,0,(D47/E38)) -> 0
A48: add rows if necessary | B48: =E$55*(F28+B28*E$60)*F39 -> 0 | C48: =(B48-(B$55*C$55*F39*(F28+B28*I62)+B$56*C$56*F39*(F28+B28*I62)))*E$58/(1-E$58) -> 0 | D48: =E28*F39 -> 0 | E48: =B28*F39 -> 0 | F48: =SUM(B48:E48) -> 0 | G48: =IF(E39=0,0,(D48/E39)) -> 0
A50: Total | F50: =SUM(F44:F48) -> 0 | G50: =SUM(G44:G48) -> 0
A52: (17) | B52: (18) | C52: (19) | D52: (20) | E52: (21)
B53: Capital Structure | C53: Cost Rate
B54: (%) | C54: (%) | E54: (%)
A55: Long-Term Debt | D55: Weighted Average Cost of Capital | E55: =IF(B61=0%,0,SUMPRODUCT(B55:B59,C55:C59)/B61) -> 0
A56: Short-term Debt
A58: Common Equity | D58: Tax/PILs Rate
A59: Preferred Shares
D60: Working Capital Allowance Factor
A61: Total | B61: =SUM(B55:B59) -> 0

Sheet App.2-R_Loss Factors
G1: File Number: | H1: ='LDC Info'!$E$18 -> EB-2012-0147
G2: Exhibit: | H2: 8
G3: Tab:
G4: Schedule: | H4: 1
G5: Page: | H5: 9 of 10
G7: Date: | H7: 2012-08-31
D8: Table 8.1.11
A9: Appendix 2-R
A10: Loss Factors
C14: Historical Years | H14: 5-Year Average
C15: =IF(ISBLANK('LDC Info'!E26-5), "Year 5", 'LDC Info'!E26-5) -> 2007 | D15: =IF(ISBLANK('LDC Info'!E26-4), "Year 5", 'LDC Info'!E26-4) -> 2008 | E15: =IF(ISBLANK('LDC Info'!E26-3), "Year 5", 'LDC Info'!E26-3) -> 2009 | F15: =IF(ISBLANK('LDC Info'!E26-2), "Year 5", 'LDC Info'!E26-2) -> 2010 | G15: =IF(ISBLANK('LDC Info'!E26-1), "Year 5", 'LDC Info'!E26-1) -> 2011
B16: Losses Within Distributor's System
A17: A(1) | B17: "Wholesale" kWh delivered to distributor (higher value) | C17: 240226974.5 | D17: 230112011 | E17: 217320554.3 | F17: 220973975.1 | G17: 214540510.6 | H17: =IF(SUM(C17:G17)=0,0,AVERAGE(C17:G17)) -> 224634805.1
A18: A(2) | B18: "Wholesale" kWh delivered to distributor (lower value) | C18: 232327828.4 | D18: 222551885.2 | E18: 210025260.2 | F18: 213537360.7 | G18: 207396158.5 | H18: =IF(SUM(C18:G18)=0,0,AVERAGE(C18:G18)) -> 217167698.6
A19: B | B19: Portion of "Wholesale" kWh delivered to distributor for its Large Use Customer(s) | C19: 0 | D19: 0 | E19: 0 | F19: 0 | G19: 0 | H19: =IF(SUM(C19:G19)=0,0,AVERAGE(C19:G19)) -> 0
A20: C | B20: Net "Wholesale" kWh delivered to distributor = A(2) - B | C20: =C18-C19 -> 232327828.4 | D20: 222551885.2 | E20: 210025260.2 | F20: 213537360.7 | G20: 207396158.5 | H20: 217167698.6
A21: D | B21: "Retail" kWh delivered by distributor | C21: 224566924.2 | D21: 215492783 | E21: 203110374 | F21: 207341771 | G21: 201044063 | H21: =IF(SUM(C21:G21)=0,0,AVERAGE(C21:G21)) -> 210311183
A22: E | B22: Portion of "Retail" kWh delivered by distributor to its Large Use Customer(s) | H22: =IF(SUM(C22:G22)=0,0,AVERAGE(C22:G22)) -> 0
A23: F | B23: Net "Retail" kWh delivered by distributor = D - E | C23: =C21-C22 -> 224566924.2 | D23: 215492783 | E23: 203110374 | F23: 207341771 | G23: 201044063 | H23: 210311183
A24: G | B24: Loss Factor in Distributor's system = C / F | C24: =IF(C23=0,"",C20/C23) -> 1.034559427 | D24: 1.032757952 | E24: 1.034044968 | F24: 1.029881049 | G24: 1.031595539 | H24: 1.032601764
B25: Losses Upstream of Distributor's System
A26: H | B26: Supply Facilities Loss Factor | C26: 1.034 | D26: 1.034 | E26: 1.034897479 | F26: 1.034837657 | G26: 1.034869855 | H26: =IF(SUM(C26:G26)=0,0,AVERAGE(C26:G26)) -> 1.034520998
B27: Total Losses
A28: I | B28: Total Loss Factor = G x H | C28: =IF(C24="","",C24*C26) -> 1.069734447 | D28: 1.067871722 | E28: 1.070130531 | F28: 1.065759692 | G28: 1.067567126 | H28: 1.068248208
A30: Notes
A33: A(1) | B33: If directly connected to the IESO-controlled grid, kWh pertains to the virtual meter on the primary or high voltage side of the transformer at the interface with the transmission grid. This corresponds to the "With Losses" kWh value provided by the IESO's MV-WEB. It is the higher of the two values provided by MV-WEB.
B37: If fully embedded within a host distributor, kWh pertains to the virtual meter on the primary or high voltage side of the transformer, at the interface between the host distributor and the transmission grid. For example, if the host distributor is Hydro One Networks Inc., kWh from the Hydro One Networks' invoice corresponding to "Total kWh w Losses" should be reported. This corresponds to the higher of the two kWh values provided in Hydro One Networks' invoice.
B42: If partially embedded, kWh pertains to the sum of the above.
A44: A(2) | B44: If directly connected to the IESO-controlled grid, kWh pertains to a metering installation on the secondary or low voltage side of the transformer at the interface with the transmission grid. This corresponds to the "Without Losses" kWh value provided by the IESO's MV-WEB. It is the lower of the two kWh values provided by MV-WEB.
B48: If fully embedded with the host distributor, kWh pertains to an actual or virtual meter at the interface between the embedded distributor and the host distributor. For example, if the host distributor is Hydro One Networks Inc., kWh from the Hydro One Networks' invoice corresponding to "Total kWh" should be reported. This corresponds to the lower of the two kWh values provided in Hydro One Networks' invoice.
B53: If partially embedded, kWh pertains to the sum of the above.
B55: Additionally, kWh pertaining to distributed generation directly connected to the distributor's own distribution network should be included in A(2).
A58: B | B58: If a Large Use Customer is metered on the secondary or low voltage side of the transformer, the default loss is 1% (i.e., B = 1.01 X E).
A61: D | B61: kWh corresponding to D should equal metered or estimated kWh at the customer’s delivery point.
A64: G and I | B64: These loss factors pertain to secondary-metered customers with demand less than 5,000 kW.
A66: H | B66: If directly connected to the IESO-controlled grid, SFLF = 1.0045.
B68: If fully embedded within a host distributor, SFLF = loss factor re losses in transformer at grid interface X loss factor re losses in host distributor's system. If the host distributor is Hydro One Networks Inc., SFLF = 1.0060 X 1.0278 = 1.0340. If partially embedded, SFLF should be calculated as the weighted average of above.
B72: Distributors that wish to propose a different SFLF should provide appropriate justification for any such proposal including supporting
B73: calculations and any other relevant material.

Sheet App.2-S_Stranded Meters
G1: File Number: | H1: ='LDC Info'!$E$18 -> EB-2012-0147
G2: Exhibit: | H2: 9
G3: Tab: | H3: 3
G4: Schedule: | H4: 3
G5: Page: | H5: 3 of 3
G7: Date: | H7: 2012-08-31
E8: Table 9.4.1
A9: Appendix 2-S
A10: Stranded Meter Treatment
A12: Year | B12: Notes | C12: Gross Asset Value | D12: Accumulated Amortization | E12: Contributed Capital (Net of Amortization) | F12: Net Asset | G12: Proceeds on Disposition | H12: Residual Net Book Value
C13: (A) | D13: (B) | E13: (C) | F13: (D ) = (A) - (B) - (C) | G13: (E) | H13: (F) = (D) - (E)
A14: 2006 | C14: 769081.906 | D14: 380483.6425 | F14: =C14-D14-E14 -> 388598.2635 | H14: =F14-G14 -> 388598.2635
A15: 2007 | C15: 784929.486 | D15: 407419.6764 | F15: 377509.8096 | H15: 377509.8096
A16: 2008 | C16: 797009.546 | D16: 434914.4728 | F16: 362095.0732 | H16: 362095.0732
A17: 2009 | C17: 801101.626 | D17: 462732.9289 | F17: 338368.6971 | H17: 338368.6971
A18: 2010 | C18: 801101.626 | D18: 490633.2872 | F18: 310468.3388 | H18: 310468.3388
A19: 2011 | C19: 801101.626 | D19: 517985.8438 | F19: 283115.7822 | H19: 283115.7822
A20: 2012 | B20: (1) | C20: 801101.626 | D20: 543985.6919 | F20: 257115.9341 | H20: 257115.9341
A22: Notes:
A24: (1) | B24: For 2012, please indicate whether the amounts provided are on a forecast or actual basis. | I24: Note: See Schedule of customer class rate rider below
A26: Some distributors have transferred the cost of stranded meters from Account 1860 - Meters to "Sub-account Stranded Meter Costs of Account 1555", while in some cases distributors have left these costs in Account 1860. Depending on which treatment the applicant has chosen. please provide the information under either of the two scenarios (A and B below), as applicable.
A31: Scenario A: If the stranded meter costs were transferred to "Sub-account Stranded Meter Costs" of Account 1555, the above table should be completed and the following information should be provided.
A34: 1 | B34: A description of the accounting treatment followed by the applicant on stranded meter costs for financial accounting and reporting purposes.
A37: 2 | B37: The amount of the pooled residual net book value of the removed from service stranded meters, less any contributed capital (net of accumulated amortization), and less any net proceeds from sales, which were transferred to this sub-account as of December 31, 2010.
A41: 3 | B41: A statement as to whether or not, since transferring the removed stranded meter costs to the sub-account, the recording of depreciation expenses was continued in order to reduce the net book value through accumulated depreciation. If so, the total depreciation expense amount for the period from the time the costs for the stranded meters were transferred to the sub-account to December 31, 2010 should be provided.
B46: If no depreciation expenses were recorded to reduce the net book value of stranded meter costs through accumulated depreciation, the total depreciation expense amount that would have been applicable from the time that the stranded meter costs were transferred to the sub-account of Account 1555 to December 31, 2010 should be provided. In addition, the following information should be provided:
B51: a) | C51: Whether or not carrying charges were recorded for the stranded meter cost balances in the sub-account, and if so, the total carrying charges recorded to December 31, 2010.
B54: b) | C54: The estimated amount of the pooled residual net book value of the removed from service meters, less any net proceeds from sales and contributed capital, at the time when the smart meters will have been fully deployed (e.g., as of December 31, 2010). If the smart meters have been fully deployed, the actual amount should be provided.
B59: c) | C59: A description as to how the applicant intends to recover in rates the remaining costs for stranded meters, including the proposed accounting treatment, the proposed disposition period, and the associated bill impacts.
A63: Scenario B: If the stranded meter costs remained recorded in Account 1860, the above table should be completed and the following information should be provided:
A66: 1 | B66: A description of the accounting treatment followed by the applicant on stranded meter costs for financial accounting and reporting purposes. Midland PUC - stranded meters remained in Account #1860 and were depreciated with grouped assets in 2009, 2010, 2011 and 2012.
A69: 2 | B69: The amount of the pooled residual net book value of the removed from service stranded meters, less any contributed capital (net of accumulated amortization), and less any net proceeds from sales, as of December 31, 2010. - Midland PUC - the NBV of the removed from service stranded meters at December 31, 2010 was $310,468 - please see schedule above.
A73: 3 | B73: A statement as to whether or not the recording of depreciation expenses continued in order to reduce the net book value through accumulated depreciation. If so, provision of the total (cumulative) depreciation expense for the period from the time that the meters became stranded to December 31, 2010. Midland PUC - The recording of depreciation expenses continued in order to reduce the net book value through accumulated depreciation. Midland PUC had substantially completed the installation of Smart Meters in 2009. The total (cumulative) depreciation expense for 2009 and 2010 totaled $55,719. Midland PUC continued to depreciate these assets in 2011 and 2012.
A77: 4 | B77: If no depreciation expenses were recorded to reduce the net book value of stranded meters through accumulated depreciation, the total (cumulative) depreciation expense amount that would have been applicable for the period from the time that the meters became stranded to December 31, 2010. Midland PUC - N/A
A81: 5 | B81: The estimated amount of the pooled residual net book value of the removed from service meters, less any net proceeds from sales and contributed capital, at the time when smart meters will have been fully deployed. If the smart meters have been fully deployed, please provide the actual amount. Midland PUC - the net book value of the removed from service meters at 2012 is $257,116 as shown in the above table.
A85: 6 | B85: A description as to how the applicant intends to recover in rates the costs for stranded meters, including the proposed accounting treatment, the proposed disposition period and the associated bill impacts. Midland PUC is proposing to recover the stranded meter assets over 1 year as set out in the schedule below.
A88: Distributors should also provide the Net Book Value per class of meter as of December 31, 2010 as well as the number of meters that were removed / stranded. In preparing this information, distributors should review the Board's letter of January 16, 2007 Stranded Meter Costs Related to the Installation of Smart Meters which stated that records were to be kept of the type and number of each meter to support the stranded meter costs.
J95: Table 9.3.12
E97: Customer Class Rate Rider
B100: Stranded Meter Costs | E100: Total Capital | F100: Less: | G100: Stranded
E101: GL#1860 | F101: Industrial | G101: Meters
B105: Capital Cost | E105: 1117459.65 | F105: -316358.024 | G105: =+E105+F105 -> 801101.626
B107: Accumulated Amortization | E107: 739082.26 | F107: -195096.5681 | G107: =+E107+F107 -> 543985.6919
B109: Net Book Value | E109: =+E105-E107 -> 378377.39 | F109: =+F105-F107 -> -121261.4559 | G109: =+G105-G107 -> 257115.9341
E112: Residential | F112: Commercial | G112: Total
B114: Number of Customers - 2013 Forecast | E114: 6231 | F114: 755 | G114: =SUM(E114:F114) -> 6986
B116: Allocation of Meter Costs - 2007 CA Model | E116: 0.7650219588 | F116: 0.2349780412 | G116: =SUM(E116:F116) -> 1
B118: Stranded Assets - $ | E118: =+G109*E116 -> 196699.3355 | F118: =+F116*G109 -> 60416.59855 | G118: =SUM(E118:F118) -> 257115.9341
B120: Stranded Meter Rate Rider per Customer Class (SMRR) | E120: =+E118/E114/12 -> 2.630654998 | F120: =+F118/F114/12 -> 6.668498736
B122: Annual Cost | E122: 31.56785998 | F122: 80.02198483

Sheet App.2-T_1592_Tax_Variance
C1: File Number: | E1: ='LDC Info'!$E$18 -> EB-2012-0147
C2: Exhibit: | E2: 9
C3: Tab: | E3: 2
C4: Schedule: | E4: 1
C5: Page: | E5: 14 of 15
C7: Date: | E7: 2012-08-31
A9: Appendix 2-T
A10: Deferred PILs Account 1592 Balances | G10: Table 9.2.2
A12: The following table should be completed based on the information requested below, in accordance with the notes following the table. An explanation should be provided for any blank entries.
A14: Tax Item | E14: Principal as of
E15: December 31,
E16: 2011
A17: Large Corporation Tax grossed-up proxy from 2006 EDR application PILs model for the period from May 1, 2006 to April 30, 2007
A18: Large Corporation Tax grossed-up proxy from 2006 EDR application PILs model for the period from January 1, 2006 to April 30, 2006 (4/12ths of the approved grossed-up proxy), if not recorded in PILs account 1562
A19: Ontario Capital Tax rate decrease and increase in capital deduction for 2007
A20: Ontario Capital Tax rate decrease and increase in capital deduction for 2008
A21: Ontario Capital Tax rate decrease and increase in capital deduction for 2009
A22: Ontario Capital Tax rate decrease and increase in capital deduction for 2010
A23: Ontario Capital Tax rate decrease and increase in capital deduction for 2011
A24: Capital Cost Allowance class changes from 2006 EDR application for 2006
A25: Capital Cost Allowance class changes from 2006 EDR application for 2007
A26: Capital Cost Allowance class changes from 2006 EDR application for 2008
A27: Capital Cost Allowance class changes from 2006 EDR application for 2009
A28: Capital Cost Allowance class changes from 2006 EDR application for 2010
A29: Capital Cost Allowance class changes from 2006 EDR application for 2011
A30: PILs Tax Variance for 2006 and Subsequent Years - Sub-Account HST/OVAT Input Tax Credits (ITC's) - Represents 50% of the account balance at December 31, 2011 | E30: -17054.38
A31: Carrying Charges | E31: -505.8992354
A32: Total | E32: =SUM(E17:E31) -> -17560.27924
A34: Notes:
A36: 1 | B36: Revise the deferral and variance account continuity schedule to include account 1592 as a group 2 account and enter all relevant information for transactions, adjustments, etc., for all relevant years.
A39: 2 | B39: Describe each type of tax item that has been recorded in account 1592.
A41: 3 | B41: Provide the calculations that show how each item was determined and provide any pertinent supporting evidence and documentation.
A44: 4 | B44: Please state whether or not the applicant followed the guidance provided in the FAQ of July 2007. If not, please provide an explanation.
A47: 5 | B47: Identify the account balance as of December 31, 2011 as per the 2011 Audited Financial Statements. Identify the account balance as of December 31, 2011 as per the April 2012 2.1.7 RRR filing to the Board. Provide a reconciliation if the balances provided are not identical to each other and to the total shown on the continuity schedule.
A52: 6 | B52: Complete the above table based on the answers to the previous. Add rows as required to complete the analysis in an informative manner. Please provide the completed table as a working Excel spreadsheet.

Sheet App.2-U_IFRS Transition Costs
J1: File Number: | K1: ='LDC Info'!$E$18 -> EB-2012-0147
J2: Exhibit: | K2: 9
J3: Tab: | K3: 2
J4: Schedule: | K4: 1
J5: Page: | K5: 7 of 15
J7: Date: | K7: 2012-08-31
G8: Table 9.2.1
A9: Appendix 2-U
A10: One-Time Incremental IFRS Transition Costs
A12: The following table should be completed based on the information requested below. An explanation should be provided for any blank entries. The entries should include one-time incremental IFRS transition costs that are currently included in Account 1508, Other Regulatory Assets, sub-account Deferred IFRS Transition Costs Account, or Account 1508, Other Regulatory Assets, sub-account IFRS Transition Costs Variance Account.
A14: Nature of One-Time Incremental IFRS Transition Costs 1 | E14: Audited Actual | F14: Audited Actual | G14: Audited Actual | H14: Audited Carrying | I14: Total Audited | J14: RRR 2.1.7 | K14: Variance 2 | L14: Reasons why the costs recorded meet the criteria of one-time IFRS administrative incremental costs
E15: Costs Incurred | F15: Costs Incurred | G15: Costs Incurred | H15: Charges | I15: Actual Costs | J15: Balance
E16: 2009 | F16: 2010 | G16: 2011 | H16: to Dec 31, 2011 | I16: to Dec 31, 2011 | J16: 2011-12-31
A17: professional accounting fees | E17: 19099.16 | F17: 17500 | G17: 39504.36 | I17: =SUM(E17:H17) -> 76103.52 | L17: Fees associated with preparation of position papers, compartmentalization of assets and draft of IFRS compliant financial statements
A18: professional legal fees | I18: =SUM(E18:H18) -> 0
A19: salaries, wages and benefits of staff added to support the transition to IFRS | E19: 1440 | F19: 6936.49 | G19: 19754.78 | I19: 28131.27 | L19: Staff support dealing with updating financial records for IFRS compliance and conversion from GAAP
A20: associated staff training and development costs | E20: 7443.77 | G20: 154.2 | I20: 7597.97 | L20: Training costs in 2009 and 2010 regarding IFRS transition
A21: costs related to system upgrades, or replacements or changes where IFRS was the major reason for conversion | I21: 0
I22: 0
A23: IFRS Approved Recoveries from EB-2008-0236 | E23: -16666.72 | F23: -25000.08 | G23: -25000.08 | I23: -66666.88 | L23: Approved IFRS recoveries per 2009 COS Application EB-2008-0236
H24: 300.77 | I24: 300.77
I25: 0
I26: 0
I27: 0
I28: 0
A29: Insert description of additional item(s) and new rows if needed. | I29: 0
A30: Total | E30: =SUM(E17:E29) -> 11316.21 | F30: =SUM(F17:F29) -> -563.59 | G30: =SUM(G17:G29) -> 34413.26 | H30: =SUM(H17:H29) -> 300.77 | I30: =SUM(I17:I29) -> 45466.65 | J30: 45467 | K30: =+I30-J30 -> -0.35
A33: Note:
A34: 1 | B34: The Deferred IFRS Transition Costs Account and the IFRS Transition Costs Variance Account are exclusively for necessary, incremental transition costs and shall not include ongoing IFRS compliance costs or impacts arising from adopting accounting policy changes that reflect changes in the timing of the recognition of income. The incremental costs in these accounts shall not include costs related to system upgrades, or replacements or changes where IFRS was not the major reason for conversion. In addition, incremental IFRS costs shall not include capital assets or expenditures.
A36: 2 | B36: Applicants are to provide an explanation of material variances in evidence

Sheet App.2-V_Rev_Reconciliation
O1: File Number: | P1: ='LDC Info'!$E$18 -> EB-2012-0147
O2: Exhibit: | P2: 8
O3: Tab: | P3: 7
O4: Schedule: | P4: 1
O5: Page: | P5: 1 of 1
O7: Date: | P7: 2012-08-31
H8: Table 8.7.1
A9: Appendix 2-V
A10: Revenue Reconciliation
A12: Rate Class | B12: Customers/ Connections | C12: Number of Customers/Connections | F12: Test Year Consumption | H12: Proposed Rates | K12: Revenues at Proposed Rates | M12: Class Specific Revenue Requirement | N12: Transformer Allowance Credit | O12: Total | P12: Difference
C13: Start of Test Year | D13: End of Test Year | E13: Average | F13: kWh | G13: kW | H13: Monthly Service Charge | I13: Volumetric
I14: kWh | J14: kW
A16: Residential | B16: Customers | C16: =+D16 -> 6230.682082 | D16: 6230.682082 | E16: =IF(SUM(C16:D16)=0,0,AVERAGE(C16:D16)) -> 6230.682082 | F16: 49351145.05 | H16: 14.29 | I16: 0.0187 | K16: =H16*E16*12+I16*F16+J16*G16 -> 1991303.776 | M16: 1993003.738 | O16: =SUM(M16:N16) -> 1993003.738 | P16: =O16-K16 -> 1699.961676
A17: GS < 50 kW | B17: Customers | C17: =+D17 -> 754.6020045 | D17: 754.6020045 | E17: 754.6020045 | F17: 23252817.67 | H17: 24.38 | I17: 0.018 | K17: 639317.0805 | M17: 638656.1991 | O17: 638656.1991 | P17: -660.8814072
A18: GS > 50 to 4,999 kW | B18: Customers | C18: 112.8756184 | D18: 112.7513736 | E18: 112.813496 | F18: 118116818.3 | G18: 287941.0801 | H18: 76.21 | J18: 3.7644 | K18: 1187095.6 | M18: 1055023.816 | N18: 132000 | O18: 1187023.816 | P18: -71.78468051
A19: Large Use | E19: 0 | K19: 0 | O19: 0 | P19: 0
A20: Streetlighting | B20: Connections | C20: =+D20 -> 2071.532905 | D20: 2071.532905 | E20: 2071.532905 | F20: 1312204.369 | G20: 3588.139349 | H20: 3.8439 | J20: 8.8899 | K20: 127451.384 | M20: 127451.5185 | O20: 127451.5185 | P20: 0.1345167685
A21: Sentinel Lighting | E21: 0 | K21: 0 | O21: 0 | P21: 0
A22: Unmetered Scattered Load | B22: Connections | C22: =+D22 -> 12 | D22: 12 | E22: 12 | F22: 411649.2206 | H22: 10.3893 | I22: 0.0112 | K22: 6106.530471 | M22: 6094.311924 | O22: 6094.311924 | P22: -12.2185463
A23: Standby Power | E23: 0 | K23: 0 | O23: 0 | P23: 0
A24: Embedded Distributor Class | E24: 0 | K24: 0 | O24: 0 | P24: 0
A25: etc. | E25: 0 | K25: 0 | O25: 0 | P25: 0
E26: 0 | K26: 0 | O26: 0 | P26: 0
E27: 0 | K27: 0 | O27: 0 | P27: 0
E28: 0 | K28: 0 | O28: 0 | P28: 0
A30: Total | K30: =SUM(K16:K28) -> 3951274.371 | M30: =SUM(M16:M28) -> 3820229.583 | N30: =SUM(N16:N28) -> 132000 | O30: =M30+N30 -> 3952229.583 | P30: =O30-K30 -> 955.2115592
A32: Note
A34: 1 The class specific revenue requirements in column N must be the amounts used in the final rate design process. The total of column N should equate to the proposed base revenue requirement

Sheet App.2-W_Bill Impacts
N1: File Number: | O1: ='LDC Info'!$E$18 -> EB-2012-0147 | T1: 1
N2: Exhibit: | O2: 8
N3: Tab:
N4: Schedule:
N5: Page: | O5: Appendix A Pages 2-6 of 6
N7: Date: | O7: 2012-08-31
H8: Appendix A Exhibit 8
B10: Appendix 2-W
B11: Bill Impacts
B14: Customer Class: | D14: Residential | R14: Table 1.2.1
D16: Consumption | F16: 800 | G16: kWh
F18: Current Board-Approved | J18: Proposed | N18: Impact
D19: Charge Unit | F19: Rate | G19: Volume | H19: Charge | J19: Rate | K19: Volume | L19: Charge | N19: $ Change | O19: % Change
F20: ($) | H20: ($) | J20: ($) | L20: ($)
B21: Monthly Service Charge | D21: Monthly | F21: 11.78 | G21: 1 | H21: =G21*F21 -> 11.78 | J21: 14.29 | K21: 1 | L21: =K21*J21 -> 14.29 | N21: =L21-H21 -> 2.51 | O21: =IF((H21)=0,"",(N21/H21)) -> 0.2130730051
B22: Smart Meter Rate Adder | D22: Monthly | F22: 3.18 | G22: 1 | H22: =G22*F22 -> 3.18 | K22: 1 | L22: =K22*J22 -> 0 | N22: =L22-H22 -> -3.18 | O22: =IF((H22)=0,"",(N22/H22)) -> -1
G23: 1 | H23: 0 | K23: 1 | L23: =K23*J23 -> 0 | N23: =L23-H23 -> 0 | O23: =IF((H23)=0,"",(N23/H23)) -> 
G24: 1 | H24: 0 | K24: 1 | L24: 0 | N24: 0
G25: 1 | H25: 0 | K25: 1 | L25: 0 | N25: 0
G26: 1 | H26: 0 | K26: 1 | L26: 0 | N26: 0
B27: Distribution Volumetric Rate | D27: per kWh | F27: 0.0196 | G27: =$F$16 -> 800 | H27: 15.68 | J27: 0.0187 | K27: =$F$16 -> 800 | L27: 14.96 | N27: -0.72 | O27: -0.04591836735
B28: Smart Meter Disposition Rider | D28: Monthly | F28: -0.96 | G28: 1 | H28: -0.96 | K28: 1 | L28: 0 | N28: 0.96 | O28: -1
B29: LRAM & SSM Rate Rider | D29: per kWh | F29: 5e-05 | G29: =$F$16 -> 800 | H29: 0.04 | K29: =$F$16 -> 800 | L29: 0 | N29: -0.04 | O29: -1
D30: Monthly | G30: 1 | H30: =G30*F30 -> 0 | K30: 1 | L30: =K30*J30 -> 0 | N30: =L30-H30 -> 0 | O30: =IF((H30)=0,"",(N30/H30)) -> 
G31: =$F$16 -> 800 | H31: =G31*F31 -> 0 | K31: 800 | L31: =K31*J31 -> 0 | N31: =L31-H31 -> 0 | O31: =IF((H31)=0,"",(N31/H31)) -> 
G32: 800 | H32: =G32*F32 -> 0 | K32: 800 | L32: =K32*J32 -> 0 | N32: =L32-H32 -> 0 | O32: =IF((H32)=0,"",(N32/H32)) -> 
G33: 800 | H33: 0 | K33: 800 | L33: 0 | N33: 0
G34: 800 | H34: 0 | K34: 800 | L34: 0 | N34: 0
G35: 800 | H35: 0 | K35: 800 | L35: 0 | N35: 0
G36: 800 | H36: 0 | K36: 800 | L36: 0 | N36: 0
B37: Sub-Total A | H37: =SUM(H21:H36) -> 29.72 | L37: =SUM(L21:L36) -> 29.25 | N37: -0.47 | O37: -0.01581426649
B38: Deferral/Variance Account Disposition Rate Rider | D38: per kWh | F38: -0.007 | G38: =$F$16 -> 800 | H38: =G38*F38 -> -5.6 | J38: 0.001312653151 | K38: =$F$16 -> 800 | L38: =K38*J38 -> 1.050122521 | N38: =L38-H38 -> 6.650122521 | O38: =IF((H38)=0,"",(N38/H38)) -> -1.187521879
B39: Stranded Meter Rate Rider | D39: Monthly | G39: 1 | H39: =G39*F39 -> 0 | J39: 2.630654998 | K39: 1 | L39: 2.630654998 | N39: 2.630654998
G40: =$F$16 -> 800 | H40: =G40*F40 -> 0 | K40: =$F$16 -> 800 | L40: 0 | N40: 0
G41: =$F$16 -> 800 | H41: =G41*F41 -> 0 | K41: =$F$16 -> 800 | L41: 0 | N41: 0
B42: Low Voltage Service Charge | D42: per kWh | F42: 0.0015 | G42: =$F$16 -> 800 | H42: =G42*F42 -> 1.2 | J42: 0.002 | K42: =$F$16 -> 800 | L42: 1.6 | N42: 0.4 | O42: 0.3333333333
L43: 0 | N43: 0
B44: Sub-Total B - Distribution (includes Sub-Total A) | H44: =SUM(H38:H42)+H37 -> 25.32 | L44: =SUM(L38:L43)+L37 -> 34.53077752 | N44: =L44-H44 -> 9.210777519 | O44: =IF((H44)=0,"",(N44/H44)) -> 0.3637747835
B45: RTSR - Network | D45: per kWh | F45: 0.0057 | G45: =F16*(1+F72) -> 852.08 | H45: =G45*F45 -> 4.856856 | J45: 0.005481668279 | K45: =F16*(1+J72) -> 854.8 | L45: =K45*J45 -> 4.685730045 | N45: -0.1711259549 | O45: -0.03523389512
B46: RTSR - Line and Transformation Connection | D46: per kWh | F46: 0.0047 | G46: =G45 -> 852.08 | H46: =G46*F46 -> 4.004776 | J46: 0.004526423505 | K46: =K45 -> 854.8 | L46: =K46*J46 -> 3.869186812 | N46: -0.1355891883 | O46: -0.03385687196
B47: Sub-Total C - Delivery (including Sub-Total B) | H47: =SUM(H44:H46) -> 34.181632 | L47: =SUM(L44:L46) -> 43.08569438 | N47: 8.904062376 | O47: 0.2604926054
B48: Wholesale Market Service Charge (WMSC) | F48: 0.0052 | G48: =G46 -> 852.08 | H48: =G48*F48 -> 4.430816 | J48: 0.0052 | K48: =K46 -> 854.8 | L48: =K48*J48 -> 4.44496 | N48: 0.014144 | O48: 0.003192188527
B49: Rural and Remote Rate Protection (RRRP) | F49: 0.0011 | G49: =G46 -> 852.08 | H49: 0.937288 | J49: 0.0011 | K49: =K46 -> 854.8 | L49: 0.94028 | N49: 0.002992 | O49: 0.003192188527
B50: Standard Supply Service Charge | F50: 0.25 | G50: 1 | H50: 0.25 | J50: 0.25 | K50: 1 | L50: 0.25 | N50: 0 | O50: 0
B51: Debt Retirement Charge (DRC) | F51: 0.007 | G51: =+F16 -> 800 | H51: 5.6 | J51: 0.007 | K51: =+F16 -> 800 | L51: 5.6 | N51: 0 | O51: 0
B52: Smart Meter Entity Charge | D52: Monthly | G52: 1 | J52: 0.806 | K52: 1 | L52: 0.806 | N52: 0.806
B53: Energy - RPP - Tier 1 | F53: 0.075 | G53: =IF($T$1=1,IF($F$16>=600,600,IF($F$16<600,$F$16*(1+$F$72),$F$16-600)),IF($T$1=2,IF($F$16>=1000,1000,IF($F$16<1000,$F$16*(1+$F$72),$F$16-1000)))) -> 600 | H53: =G53*F53 -> 45 | J53: 0.074 | K53: =IF($T$1=1,IF($F$16>=600,600,IF($F$16<600,$F$16*(1+$J$72),$F$16-600)),IF($T$1=2,IF($F$16>=1000,1000,IF($F$16<1000,$F$16*(1+$J$72),$F$16-1000)))) -> 600 | L53: =K53*J53 -> 44.4 | N53: -0.6 | O53: -0.01333333333
B54: Energy - RPP - Tier 2 | F54: 0.088 | G54: =IF($T$1=1,IF($F$16>=600,$F$16*(1+$F$72)-600,IF($F$16<600,0,)), IF($T$1=2,IF($F$16>=1000,$F$16*(1+$F$72)-1000,IF($F$16<1000,0)))) -> 252.08 | H54: =G54*F54 -> 22.18304 | J54: 0.087 | K54: =IF($T$1=1,IF($F$16>=600,$F$16*(1+$J$72)-600,IF($F$16<600,0,)), IF($T$1=2,IF($F$16>=1000,$F$16*(1+$J$72)-1000,IF($F$16<1000,0)))) -> 254.8 | L54: =K54*J54 -> 22.1676 | N54: -0.01544 | O54: -0.0006960272352
B55: TOU - Off Peak | F55: 0.065 | G55: =0.64*$F$16*(1+$F$72) -> 545.3312 | H55: 35.446528 | J55: 0.063 | K55: =0.64*$F$16*(1+$J$72) -> 547.072 | L55: 34.465536 | N55: -0.980992 | O55: -0.02767526343
B56: TOU - Mid Peak | F56: 0.1 | G56: =0.18*$F$16*(1+$F$72) -> 153.3744 | H56: 15.33744 | J56: 0.099 | K56: =0.18*$F$16*(1+$J$72) -> 153.864 | L56: 15.232536 | N56: -0.104904 | O56: -0.006839733358
B57: TOU - On Peak | F57: 0.117 | G57: =0.18*$F$16*(1+$F$72) -> 153.3744 | H57: 17.9448048 | J57: 0.118 | K57: =0.18*$F$16*(1+$J$72) -> 153.864 | L57: 18.155952 | N57: 0.2111472 | O57: 0.01176648074
B59: Total Bill on RPP (before Taxes) | H59: =SUM(H47:H54) -> 112.582776 | L59: =SUM(L47:L54) -> 121.6945344 | N59: 9.111758376 | O59: 0.08093385773
B60: HST | F60: 0.13 | H60: =H59*F60 -> 14.63576088 | J60: 0.13 | L60: =L59*J60 -> 15.82028947 | N60: =L60-H60 -> 1.184528589 | O60: =IF((H60)=0,"",(N60/H60)) -> 0.08093385773
B61: Total Bill (including HST) | H61: =H59+H60 -> 127.2185369 | L61: =L59+L60 -> 137.5148238 | N61: =L61-H61 -> 10.29628696 | O61: =IF((H61)=0,"",(N61/H61)) -> 0.08093385773
B62: Ontario Clean Energy Benefit 1 | H62: =ROUND(-H61*10%,2) -> -12.72 | L62: =ROUND(-L61*10%,2) -> -13.75 | N62: =L62-H62 -> -1.03 | O62: =IF((H62)=0,"",(N62/H62)) -> 0.08097484277
B63: Total Bill on RPP (including OCEB) | H63: =SUM(H61:H62) -> 114.4985369 | L63: =SUM(L61:L62) -> 123.7648238 | N63: =L63-H63 -> 9.266286965 | O63: =IF((H63)=0,"",(N63/H63)) -> 0.08092930458
B65: Total Bill on TOU (before Taxes) | H65: =SUM(H47:H51,H55:H57) -> 114.1285088 | L65: =SUM(L47:L52,L55:L57) -> 122.9809584 | N65: =L65-H65 -> 8.852449576 | O65: =IF((H65)=0,"",(N65/H65)) -> 0.07756562904
B66: HST | F66: 0.13 | H66: =H65*F66 -> 14.83670614 | J66: 0.13 | L66: =L65*J66 -> 15.98752459 | N66: 1.150818445 | O66: 0.07756562904
B67: Total Bill (including HST) | H67: =H65+H66 -> 128.9652149 | L67: =L65+L66 -> 138.968483 | N67: 10.00326802 | O67: 0.07756562904
B68: Ontario Clean Energy Benefit 1 | H68: =ROUND(-H67*10%,2) -> -12.9 | L68: =ROUND(-L67*10%,2) -> -13.9 | N68: -1 | O68: 0.07751937984
B69: Total Bill on TOU (including OCEB) | H69: =H67+H68 -> 116.0652149 | L69: =L67+L68 -> 125.068483 | N69: 9.003268021 | O69: 0.07757076937
B72: Loss Factor (%) | F72: 0.0651 | J72: 0.0685
A74: 1 Applicable to eligible customers only. Refer to the Ontario Clean Energy Benefit Act, 2010.
A76: Note that the "Charge $" columns provide breakdowns of the amounts that each bill component contributes to the total monthly bill at the referenced
A77: consumption level at existing and proposed rates.
A79: Applicants must provide bill impacts for residential at 800 kWh and GS<50kW at 2000 kWh. In addition, their filing should cover the range that is relevant
A80: to their service territory, class by class. A general guideline of consumption levels follows:
A82: Residential (kWh) - 100, 250, 500, 800, 1000, 1500, 2000
A83: GS<50kW (kWh) - 1000, 2000, 5000, 10000, 15000
A84: GS>50kW (kW) - 60, 100, 500, 1000
A85: Large User - range appropriate for utility
A86: Lighting Classes and USL - 150 kWh and 1 kW, range appropriate for utility.
B93: Customer Class: | D93: General Service Less Than 50KW | R93: Table 1.2.1
D95: Consumption | F95: 2000 | G95: kWh
F97: Current Board-Approved | J97: Proposed | N97: Impact
D98: Charge Unit | F98: Rate | G98: Volume | H98: Charge | J98: Rate | K98: Volume | L98: Charge | N98: $ Change | O98: % Change
F99: ($) | H99: ($) | J99: ($) | L99: ($)
B100: Monthly Service Charge | D100: Monthly | F100: 14.86 | G100: 1 | H100: =G100*F100 -> 14.86 | J100: 24.38 | K100: 1 | L100: =K100*J100 -> 24.38 | N100: =L100-H100 -> 9.52 | O100: =IF((H100)=0,"",(N100/H100)) -> 0.6406460296
B101: Smart Meter Rate Adder | D101: Monthly | F101: 6.17 | G101: 1 | H101: =G101*F101 -> 6.17 | K101: 1 | L101: =K101*J101 -> 0 | N101: =L101-H101 -> -6.17 | O101: =IF((H101)=0,"",(N101/H101)) -> -1
G102: 1 | H102: 0 | K102: 1 | L102: =K102*J102 -> 0 | N102: =L102-H102 -> 0 | O102: =IF((H102)=0,"",(N102/H102)) -> 
G103: 1 | H103: 0 | K103: 1 | L103: 0 | N103: 0
G104: 1 | H104: 0 | K104: 1 | L104: 0 | N104: 0
G105: 1 | H105: 0 | K105: 1 | L105: 0 | N105: 0
B106: Distribution Volumetric Rate | D106: per kWh | F106: 0.0155 | G106: =+F95 -> 2000 | H106: 31 | J106: 0.018 | K106: =+G106 -> 2000 | L106: 36 | N106: 5 | O106: 0.1612903226
B107: Smart Meter Disposition Rider | D107: Monthly | F107: 5.34 | G107: 1 | H107: 5.34 | K107: =+G107 -> 1 | L107: 0 | N107: -5.34 | O107: -1
B108: LRAM & SSM Rate Rider | D108: per kWh | F108: 0.0002 | G108: =+F95 -> 2000 | H108: 0.4 | K108: 2000 | L108: 0 | N108: -0.4 | O108: -1
D109: Monthly | G109: 1 | H109: 0 | K109: 1 | L109: 0 | N109: 0
G110: =+$F$95 -> 2000 | H110: 0 | K110: 2000 | L110: 0 | N110: 0
G111: 2000 | H111: 0 | K111: 2000 | L111: 0 | N111: 0
G112: 2000 | H112: 0 | K112: 2000 | L112: 0 | N112: 0
G113: 2000 | H113: 0 | K113: 2000 | L113: 0 | N113: 0
G114: 2000 | H114: 0 | K114: 2000 | L114: 0 | N114: 0
G115: 2000 | H115: 0 | K115: 2000 | L115: 0 | N115: 0
B116: Sub-Total A | H116: =SUM(H100:H115) -> 57.77 | L116: =SUM(L100:L115) -> 60.38 | N116: 2.61 | O116: 0.04517915873
B117: Deferral/Variance Account Disposition Rate Rider | D117: per kWh | F117: -0.0048 | G117: =+F95 -> 2000 | H117: =G117*F117 -> -9.6 | J117: 0.001188118087 | K117: =+F95 -> 2000 | L117: =K117*J117 -> 2.376236174 | N117: =L117-H117 -> 11.97623617 | O117: =IF((H117)=0,"",(N117/H117)) -> -1.247524601
B118: Stranded Meter Rate Rider | D118: Monthly | G118: 1 | H118: =G118*F118 -> 0 | J118: 6.668498736 | K118: 1 | L118: 6.668498736 | N118: 6.668498736
G119: =+G117 -> 2000 | H119: =G119*F119 -> 0 | K119: =+F95 -> 2000 | L119: 0 | N119: 0
G120: =+G119 -> 2000 | H120: =G120*F120 -> 0 | K120: =+F95 -> 2000 | L120: 0 | N120: 0
B121: Low Voltage Service Charge | D121: per kWh | F121: 0.0013 | G121: =+G120 -> 2000 | H121: =G121*F121 -> 2.6 | J121: 0.0018 | K121: =+F95 -> 2000 | L121: 3.6 | N121: 1 | O121: 0.3846153846
L122: 0 | N122: 0
B123: Sub-Total B - Distribution (includes Sub-Total A) | H123: =SUM(H117:H121)+H116 -> 50.77 | L123: =SUM(L117:L122)+L116 -> 73.02473491 | N123: =L123-H123 -> 22.25473491 | O123: =IF((H123)=0,"",(N123/H123)) -> 0.4383441976
B124: RTSR - Network | D124: per kWh | F124: 0.0052 | G124: =F95*(1+F151) -> 2130.2 | H124: =G124*F124 -> 11.07704 | J124: 0.005000820185 | K124: =F95*(1+J151) -> 2137 | L124: =K124*J124 -> 10.68675273 | N124: -0.3902872656 | O124: -0.03523389512
B125: RTSR - Line and Transformation Connection | D125: per kWh | F125: 0.0043 | G125: =G124 -> 2130.2 | H125: =G125*F125 -> 9.15986 | J125: 0.004141195972 | K125: =K124 -> 2137 | L125: =K125*J125 -> 8.849735793 | N125: -0.3101242072 | O125: -0.03385687196
B126: Sub-Total C - Delivery (including Sub-Total B) | H126: =SUM(H123:H125) -> 71.0069 | L126: =SUM(L123:L125) -> 92.56122344 | N126: 21.55432344 | O126: 0.3035525201
B127: Wholesale Market Service Charge (WMSC) | F127: 0.0052 | G127: =G125 -> 2130.2 | H127: =G127*F127 -> 11.07704 | J127: 0.0052 | K127: =K125 -> 2137 | L127: =K127*J127 -> 11.1124 | N127: 0.03536 | O127: 0.003192188527
B128: Rural and Remote Rate Protection (RRRP) | F128: 0.0011 | G128: =G125 -> 2130.2 | H128: 2.34322 | J128: 0.0011 | K128: =K125 -> 2137 | L128: 2.3507 | N128: 0.00748 | O128: 0.003192188527
B129: Standard Supply Service Charge | F129: 0.25 | G129: 1 | H129: 0.25 | J129: 0.25 | K129: 1 | L129: 0.25 | N129: 0 | O129: 0
B130: Debt Retirement Charge (DRC) | F130: 0.007 | G130: =+F95 -> 2000 | H130: 14 | J130: 0.007 | K130: =+F95 -> 2000 | L130: 14 | N130: 0 | O130: 0
B131: Smart Meter Entity Charge | D131: Monthly | J131: 0.806 | K131: 1 | L131: 0.806 | N131: =L131-H131 -> 0.806 | O131: =IF((H131)=0,"",(N131/H131)) -> 
B132: Energy - RPP - Tier 1 | F132: 0.075 | G132: =IF($T$1=1,IF($F$95>=600,600,IF($F$95<600,$F$95*(1+$F$151),$F$16-600)),IF($T$1=2,IF($F$95>=1000,1000,IF($F$95<1000,$F$95*(1+$F$151),$F$95-1000)))) -> 600 | H132: 45 | J132: =+J53 -> 0.074 | K132: =IF($T$1=1,IF($F$95>=600,600,IF($F$95<600,$F$95*(1+$J$151),$F$16-600)),IF($T$1=2,IF($F$95>=1000,1000,IF($F$95<1000,$F$95*(1+$J$151),$F$95-1000)))) -> 600 | L132: 44.4 | N132: -0.6 | O132: -0.01333333333
B133: Energy - RPP - Tier 2 | F133: 0.088 | G133: =IF($T$1=1,IF($F$95>=600,$F$95*(1+$F$151)-600,IF($F$95<600,0,)), IF($T$1=2,IF($F$95>=1000,$F$95*(1+$F$151)-1000,IF($F$95<1000,0)))) -> 1530.2 | H133: 134.6576 | J133: =+J54 -> 0.087 | K133: =IF($T$1=1,IF($F$95>=600,$F$95*(1+$J$151)-600,IF($F$95<600,0,)), IF($T$1=2,IF($F$95>=1000,$F$95*(1+$J$151)-1000,IF($F$95<1000,0)))) -> 1537 | L133: 133.719 | N133: -0.9386 | O133: -0.006970271266
B134: TOU - Off Peak | F134: 0.065 | G134: =0.64*$F$95*(1+$F$151) -> 1363.328 | H134: 88.61632 | J134: 0.063 | K134: =0.64*$F$95*(1+$J$151) -> 1367.68 | L134: 86.16384 | N134: -2.45248 | O134: -0.02767526343
B135: TOU - Mid Peak | F135: 0.1 | G135: =0.18*$F$95*(1+$F$151) -> 383.436 | H135: 38.3436 | J135: 0.099 | K135: =0.18*$F$95*(1+$J$151) -> 384.66 | L135: 38.08134 | N135: -0.26226 | O135: -0.006839733358
B136: TOU - On Peak | F136: 0.117 | G136: =0.18*$F$95*(1+$F$151) -> 383.436 | H136: 44.862012 | J136: 0.118 | K136: =0.18*$F$95*(1+$J$151) -> 384.66 | L136: 45.38988 | N136: 0.527868 | O136: 0.01176648074
B138: Total Bill on RPP (before Taxes) | H138: =SUM(H126:H133) -> 278.33476 | L138: =SUM(L126:L133) -> 299.1993234 | N138: =L138-H138 -> 20.86456344 | O138: =IF((H138)=0,"",(N138/H138)) -> 0.07496211913
B139: HST | F139: 0.13 | H139: =H138*F139 -> 36.1835188 | J139: 0.13 | L139: =L138*J139 -> 38.89591205 | N139: =L139-H139 -> 2.712393247 | O139: =IF((H139)=0,"",(N139/H139)) -> 0.07496211913
B140: Total Bill (including HST) | H140: =H138+H139 -> 314.5182788 | L140: =L138+L139 -> 338.0952355 | N140: =L140-H140 -> 23.57695668 | O140: =IF((H140)=0,"",(N140/H140)) -> 0.07496211913
B141: Ontario Clean Energy Benefit 1 | H141: =ROUND(-H140*10%,2) -> -31.45 | L141: =ROUND(-L140*10%,2) -> -33.81 | N141: =L141-H141 -> -2.36 | O141: =IF((H141)=0,"",(N141/H141)) -> 0.07503974563
B142: Total Bill on RPP (including OCEB) | H142: =SUM(H140:H141) -> 283.0682788 | L142: =SUM(L140:L141) -> 304.2852355 | N142: =L142-H142 -> 21.21695668 | O142: =IF((H142)=0,"",(N142/H142)) -> 0.07495349452
B144: Total Bill on TOU (before Taxes) | H144: =SUM(H126:H130,H134:H136) -> 270.499092 | L144: =SUM(L126:L131,L134:L136) -> 290.7153834 | N144: =L144-H144 -> 20.21629144 | O144: =IF((H144)=0,"",(N144/H144)) -> 0.07473700295
B145: HST | F145: 0.13 | H145: =H144*F145 -> 35.16488196 | J145: 0.13 | L145: =L144*J145 -> 37.79299985 | N145: =L145-H145 -> 2.628117887 | O145: =IF((H145)=0,"",(N145/H145)) -> 0.07473700295
B146: Total Bill (including HST) | H146: =H144+H145 -> 305.663974 | L146: =L144+L145 -> 328.5083833 | N146: =L146-H146 -> 22.84440932 | O146: =IF((H146)=0,"",(N146/H146)) -> 0.07473700295
B147: Ontario Clean Energy Benefit 1 | H147: =ROUND(-H146*10%,2) -> -30.57 | L147: =ROUND(-L146*10%,2) -> -32.85 | N147: =L147-H147 -> -2.28 | O147: =IF((H147)=0,"",(N147/H147)) -> 0.07458292444
B148: Total Bill on TOU (including OCEB) | H148: =H146+H147 -> 275.093974 | L148: =L146+L147 -> 295.6583833 | N148: =L148-H148 -> 20.56440932 | O148: =IF((H148)=0,"",(N148/H148)) -> 0.07475412503
B151: Loss Factor (%) | F151: =+F72 -> 0.0651 | J151: =+J72 -> 0.0685
B157: Customer Class: | D157: General Service Greater Than 50KW
D159: Consumption | F159: 1095000 | G159: kWh | J159: Consumption | L159: 2500 | M159: KW
F161: Current Board-Approved | J161: Proposed | N161: Impact
D162: Charge Unit | F162: Rate | G162: Volume | H162: Charge | J162: Rate | K162: Volume | L162: Charge | N162: $ Change | O162: % Change
F163: ($) | H163: ($) | J163: ($) | L163: ($)
B164: Monthly Service Charge | D164: Monthly | F164: 58.48 | G164: 1 | H164: =G164*F164 -> 58.48 | J164: 76.21 | K164: 1 | L164: =K164*J164 -> 76.21 | N164: =L164-H164 -> 17.73 | O164: =IF((H164)=0,"",(N164/H164)) -> 0.3031805746
B165: Smart Meter Rate Adder | G165: 1 | H165: =G165*F165 -> 0 | K165: 1 | L165: =K165*J165 -> 0 | N165: =L165-H165 -> 0 | O165: =IF((H165)=0,"",(N165/H165)) -> 
G166: 1 | H166: 0 | K166: 1 | L166: =K166*J166 -> 0 | N166: =L166-H166 -> 0 | O166: =IF((H166)=0,"",(N166/H166)) -> 
G167: 1 | H167: 0 | K167: 1 | L167: 0 | N167: 0
G168: 1 | H168: 0 | K168: 1 | L168: 0 | N168: 0
G169: 1 | H169: 0 | K169: 1 | L169: 0 | N169: 0
B170: Distribution Volumetric Rate | D170: per kW | F170: 2.9954 | G170: =+L159 -> 2500 | H170: 7488.5 | J170: 3.7644 | K170: =+G170 -> 2500 | L170: 9411 | N170: 1922.5 | O170: 0.2567269814
G171: 1 | H171: 0 | K171: =+G171 -> 1 | L171: 0 | N171: 0
B172: LRAM & SSM Rate Rider | D172: per kW | F172: 0.0093 | G172: =+L159 -> 2500 | H172: 23.25 | K172: =+G172 -> 2500 | L172: 0 | N172: -23.25 | O172: -1
G173: 1 | H173: 0 | K173: =+G173 -> 1 | L173: 0 | N173: 0
H174: 0 | L174: 0 | N174: 0
H175: 0 | L175: 0 | N175: 0
H176: 0 | L176: 0 | N176: 0
H177: 0 | L177: 0 | N177: 0
H178: 0 | L178: 0 | N178: 0
H179: 0 | L179: 0 | N179: 0
B180: Sub-Total A | H180: =SUM(H164:H179) -> 7570.23 | L180: =SUM(L164:L179) -> 9487.21 | N180: 1916.98 | O180: 0.2532261239
B181: Deferral/Variance Account Disposition Rate Rider | D181: per kW | F181: -1.3786 | G181: =+L159 -> 2500 | H181: =G181*F181 -> -3446.5 | J181: 0.4440335234 | K181: =+L159 -> 2500 | L181: =K181*J181 -> 1110.083808 | N181: =L181-H181 -> 4556.583808 | O181: =IF((H181)=0,"",(N181/H181)) -> -1.322090181
G182: 1 | H182: =G182*F182 -> 0 | K182: 1 | L182: 0 | N182: 0
G183: =+L159 -> 2500 | H183: =G183*F183 -> 0 | K183: =+L159 -> 2500 | L183: 0 | N183: 0
G184: =+L159 -> 2500 | H184: =G184*F184 -> 0 | K184: =+L159 -> 2500 | L184: 0 | N184: 0
B185: Low Voltage Service Charge | D185: per kW | F185: 0.5012 | G185: =+L159 -> 2500 | H185: =G185*F185 -> 1253 | J185: 0.7284 | K185: =+L159 -> 2500 | L185: 1821 | N185: 568 | O185: 0.4533120511
D186: Monthly | K186: 1 | L186: 0 | N186: 0
B187: Sub-Total B - Distribution (includes Sub-Total A) | H187: =SUM(H181:H185)+H180 -> 5376.73 | L187: =SUM(L181:L186)+L180 -> 12418.29381 | N187: =L187-H187 -> 7041.563808 | O187: =IF((H187)=0,"",(N187/H187)) -> 1.309636863
B188: RTSR - Network | D188: per kW | F188: 2.1368 | G188: =+L159 -> 2500 | H188: =G188*F188 -> 5342 | J188: 2.054952417 | K188: =+L159 -> 2500 | L188: =K188*J188 -> 5137.381043 | N188: -204.6189566 | O188: -0.03830381066
B189: RTSR - Line and Transformation Connection | D189: per kW | F189: 1.6983 | G189: =+L159 -> 2500 | H189: =G189*F189 -> 4245.75 | J189: 1.635579795 | K189: =+L159 -> 2500 | L189: =K189*J189 -> 4088.949488 | N189: -156.8005118 | O189: -0.03693116923
B190: Sub-Total C - Delivery (including Sub-Total B) | H190: =SUM(H187:H189) -> 14964.48 | L190: =SUM(L187:L189) -> 21644.62434 | N190: 6680.14434 | O190: 0.4464000313
B191: Wholesale Market Service Charge (WMSC) | D191: per kWh | F191: 0.0052 | G191: =+F159*(1+F208) -> 1166284.5 | H191: =G191*F191 -> 6064.6794 | J191: 0.0052 | K191: =+F159*(1+J208) -> 1170007.5 | L191: =K191*J191 -> 6084.039 | N191: 19.3596 | O191: 0.003192188527
B192: Rural and Remote Rate Protection (RRRP) | D192: per kWh | F192: 0.0011 | G192: =F159*(1+F208) -> 1166284.5 | H192: 1282.91295 | J192: 0.0011 | K192: =+F159*(1+J208) -> 1170007.5 | L192: 1287.00825 | N192: 4.0953 | O192: 0.003192188527
B193: Standard Supply Service Charge | D193: Monthly | F193: 0.25 | G193: 1 | H193: 0.25 | J193: 0.25 | K193: 1 | L193: 0.25 | N193: 0 | O193: 0
